Workbook

Sheet Cover
C2: United Energy
C3: Regulatory proposal 2026-31
C5: HV conductor risk based
C6: Model number: | D6: 4.07
C8: 2025-01-31
A40: =_xlfn.SHEETS() -> 9

Sheet Summary
A1: =bus -> United Energy
A2: =proj -> Proactive replacement of HV conductor
A3: SUMMARY
A5: RESULTS
G7: PV of costs | H7: PV of benefits | I7: NPV | K7: Total capital cost
C8: Option | G8: =output_dollars -> 2026-06-30 | H8: =output_dollars -> 2026-06-30 | I8: =output_dollars -> 2026-06-30 | K8: =output_dollars -> 2026-06-30
C9: Option 1 (base case) | D9: =Assumptions!E14 -> No change to existing practices | G9: 0 | H9: 0 | I9: 0 | K9: 0
C10: Option 2 | D10: =Assumptions!E15 -> Proactive replacement of HV conductor | G10: =-Calcs!BJ4/mill_conv*conv_2026 -> -87.77438841 | H10: =Calcs!BT4/mill_conv*conv_2026 -> 148.5447921 | I10: =Calcs!BV4/mill_conv*conv_2026 -> 60.77040367 | K10: =Calcs!BH4/10^6 -> 139.1916243
G14: NPV
C15: Preferred option: | G15: =output_dollars -> 2026-06-30
C16: =INDEX($C$9:$C$13,MATCH($G16, $I$9:$I$13,0)) -> Option 2 | D16: =INDEX($C$9:$C$13,MATCH($G16, $I$9:$I$13,0)) -> Option 2 | G16: =MAX(I9:I11) -> 60.77040367
A20: EXPENDITURE
C24: Capital expenditure 2026-31
C25: =output_dollars -> 2026-06-30 | E25: =Misc_calcs!G$27 -> 2026-27 | F25: =Misc_calcs!H$27 -> 2027-28 | G25: =Misc_calcs!I$27 -> 2028-29 | H25: =Misc_calcs!J$27 -> 2029-30 | I25: =Misc_calcs!K$27 -> 2030-31 | K25: Total
C26: =D10 -> Proactive replacement of HV conductor | E26: =Total!$F$15/mill_conv -> 10.04831069 | F26: =Total!$F$15/mill_conv -> 10.04831069 | G26: =Total!$F$15/mill_conv -> 10.04831069 | H26: =Total!$F$15/mill_conv -> 10.04831069 | I26: =Total!$F$15/mill_conv -> 10.04831069 | K26: =SUM(E26:I26) -> 50.24155344
A32: SENSITIVITIES
E34: NPV
E35: =output_dollars -> 2026-06-30
C36: Option 2 | E36: =I10 -> 60.77040367
C38: =Assumptions!C116 -> Capex 10% higher | E38: =TRANSPOSE(Sensitivities!L4:P4)/mill_conv*conv_2026 -> 51.99296482
C39: =Assumptions!C117 -> Capex 10% lower | E39: 69.54784251
C40: =Assumptions!C118 -> Total benefits 10% higher | E40: 75.62488287
C41: =Assumptions!C119 -> Total benefits 10% lower | E41: 45.91592446
C42: =Assumptions!C120 -> Capex 10% higher & Total benefits 10% lower | E42: 37.13848562
A53: End | E53: . | F53: . | G53: . | H53: . | I53: . | J53: . | K53: .

Sheet Total
A1: =bus -> United Energy
A2: =proj -> Proactive replacement of HV conductor
B4: Total conductor length assessed | E4: km | F4: =SUM(Calcs!F9:F30523)/thous_conv -> 3478.757825
B5: Total conductor length where replacement is preferred option | E5: km | F5: =Calcs!F4/thous_conv -> 787.7284904
B6: Length replaced for 2026-31 pa | E6: km | F6: 51.09700296
B9: Total capital cost for feeders where option 2 is preferred | E9: =input_dollars -> 2023-12-31 | F9: =Calcs!BH4 -> 139191624.3
B11: Weighted average unit rate ($2023/m) | F11: =F9/F5 -> 176700
B14: Expenditure per year over 5 years | E14: =input_dollars -> 2023-12-31 | F14: =F11*F6 -> 9028840.422
B15: Expenditure per year over 5 years | E15: =output_dollars -> 2026-06-30 | F15: =F14*conv_2026 -> 10048310.69

Sheet Assumptions
A1: =bus -> United Energy
A2: =proj -> Proactive replacement of HV conductor
A4: Project
C6: Business: | E6: United Energy
C8: Descripton: | E8: Proactive replacement of HV conductor
C10: Date of cost inputs: | D10: select > | E10: December | G10: 2023
C13: Option | E13: Description
C14: Option 1 (base case) | E14: No change to existing practices
C15: Option 2 | E15: Proactive replacement of HV conductor
A18: Timing & WACC
C20: Input dollars | G20: =EOMONTH(DATE(Assumptions!$G$10,INDEX(Data!$J$62:$J$63, MATCH(Assumptions!$E$10, Data!$I$62:$I$63,0)), 1),0) -> 2023-12-31 | H20: [input_dollars]
C21: Pre-tax real WACC | G21: 0.035 | H21: [real_disc]
C22: VCR date | G22: 2023-12-31 | H22: [vcr_date]
C24: Model start year | G24: 2026-27 | H24: [start]
C26: Analysis period (years) | G26: 20 | H26: [years]\
C28: Output dollars | G28: 2026-06-30 | H28: [output_dollars]
C29: Other benefits date | G29: 2024-12-31 | H29: [custval_date]
C30: Value of CO2 reductions value date | G30: 2023-12-31
A35: Costs
B37: Planned replacement cost | E37: $/m | G37: 176.7
B40: Asset life (years) | G40: 65
A43: VNR
C45: Average to max. demand ratio based on ZSS network average | G45: 0.5
C46: Demand forecast flat after | G46: 2034-35
C48: Average outage duration | G48: 1.5 | H48: hours | I48: Based on network CAIDI
A50: Other risks
B53: SAFETY
C55: Value of statistical life | G55: 5400000 | H55: 2023-06-30
C57: Value of injury | G57: 0 | H57: =input_dollars -> 2023-12-31
C59: =Data!A45 -> Disproportionate factors applied to various bushfire and other risk valuations
C60: =Data!B47 -> Harm to property from network | G60: =Data!F47 -> 1
C61: =Data!B48 -> Harm to property from bushfire | G61: =Data!F48 -> 1
C62: =Data!B49 -> Harm to environment | G62: =Data!F49 -> 1
C63: =Data!B50 -> Safety - Public trespass | G63: =Data!F50 -> 1
C64: =Data!B51 -> Safety - Single fatality or serious injury ^ | G64: =Data!F51 -> 3
C65: =Data!B52 -> Safety from bushfire in HBRA | G65: =Data!F52 -> 3
C66: =Data!B53 -> Safety - Multiple fatality or serious injury ^ | G66: =Data!F53 -> 6
C67: =Data!B54 -> Safety from bushfire (REFCL declared areas) | G67: =Data!F54 -> 6
C68: =Data!B55 -> Safety from bushfire (electric line construction areas) | G68: =Data!F55 -> 10
C71: ^ Public or employee
C74: Incident type | G74: Value | H74: Probability | I74: DF selected | J74: Description/comment
C75: Safety (fatality) | G75: =G55*INDEX(hy_escalation, MATCH(input_dollars,hy_dates,0))/INDEX(hy_escalation, MATCH(H55,hy_dates,0)) -> 5607473.52 | H75: 0 | I75: 0 | J75: 0
C76: Safety (injury) | G76: =G57*INDEX(hy_escalation, MATCH(input_dollars,hy_dates,0))/INDEX(hy_escalation, MATCH(H57,hy_dates,0)) -> 0 | H76: 0 | I76: 0 | J76: 0
B81: UNPLANNED REPLACEMENT/REPAIR
C83: Premium for failure | G83: 0.2
C86: Probability of new conductor failure | E86: per m per annum | G86: 5.8923e-06
A89: Other benefits
B91: ENVIRONMENTAL | K91: 2026-27 | L91: 2027-28 | M91: 2028-29 | N91: 2029-30 | O91: 2030-31 | P91: 2031-32
C92: Value of CO2 reductions | H92: =G30 -> 2023-12-31 | I92: $/kWh | K92: 0.0247304868 | L92: 0.02234074009 | M92: 0.02019632912 | N92: 0.01806294208 | O92: 0.01591339762 | P92: 0.01371506943
B95: CUSTOMER VALUE | G95: Value
C96: Reliability in worst-served areas | G96: 151432.8174 | H96: =custval_date -> 2024-12-31 | I96: per MWh
C97: Enabling solar exports | G97: 88.35771951 | H97: 2024-12-31 | I97: per MWh
C98: Aesthetics | G98: 0 | H98: 2024-12-31 | I98: per customer
C99: Customer value of time - residential | G99: 0.3518133654 | H99: 2024-12-31 | I99: per customer minute
C100: Customer value of time - business | G100: 0.3518133654 | H100: 2024-12-31 | I100: per customer minute
C101: Communication | G101: 0 | H101: 2024-12-31 | I101: per customer
C102: Information accessibility | G102: 0 | H102: 2024-12-31 | I102: per customer
A111: Sensitivities
G115: Capex | H115: Total benefits
B116: 1 | C116: Capex 10% higher | G116: 0.1 | H116: 0
B117: 2 | C117: Capex 10% lower | G117: -0.1 | H117: 0
B118: 3 | C118: Total benefits 10% higher | G118: 0 | H118: 0.1
B119: 4 | C119: Total benefits 10% lower | G119: 0 | H119: -0.1
B120: 5 | C120: Capex 10% higher & Total benefits 10% lower | G120: 0.1 | H120: -0.1

Sheet Demand
A1: =Assumptions!A1 -> United Energy
A2: =Assumptions!A2 -> Proactive replacement of HV conductor
B7: Feeder | C7: No. ACRs | E7: Weighted average demand (MW)
E8: 2026-27 | F8: 2027-28 | G8: 2028-29 | H8: 2029-30 | I8: 2030-31 | J8: 2031-32 | K8: 2032-33 | L8: 2033-34 | M8: 2034-35 | N8: 2035-36 | O8: 2036-37 | P8: 2037-38 | Q8: 2038-39 | R8: 2039-40 | S8: 2040-41 | T8: 2041-42 | U8: 2042-43 | V8: 2043-44 | W8: 2044-45 | X8: 2045-46
B9: BC11 | C9: 0 | E9: 2.841 | F9: 2.898 | G9: 2.962 | H9: 3.012 | I9: 3.049 | J9: 3.093 | K9: 3.15 | L9: 3.21 | M9: 3.247 | N9: 3.247 | O9: 3.247 | P9: 3.247 | Q9: 3.247 | R9: 3.247 | S9: 3.247 | T9: 3.247 | U9: 3.247 | V9: 3.247 | W9: 3.247 | X9: 3.247
B10: BC23 | C10: 0 | E10: 3.477 | F10: 3.557 | G10: 3.643 | H10: 3.716 | I10: 3.776 | J10: 3.836 | K10: 3.912 | L10: 3.995 | M10: 4.045 | N10: 4.045 | O10: 4.045 | P10: 4.045 | Q10: 4.045 | R10: 4.045 | S10: 4.045 | T10: 4.045 | U10: 4.045 | V10: 4.045 | W10: 4.045 | X10: 4.045
B11: BH11 | C11: 1 | E11: 5.508 | F11: 5.519 | G11: 5.54 | H11: 5.56 | I11: 5.578 | J11: 5.598 | K11: 5.631 | L11: 5.695 | M11: 5.711 | N11: 5.711 | O11: 5.711 | P11: 5.711 | Q11: 5.711 | R11: 5.711 | S11: 5.711 | T11: 5.711 | U11: 5.711 | V11: 5.711 | W11: 5.711 | X11: 5.711
B12: BH12 | C12: 1 | E12: 3.997 | F12: 4.319 | G12: 4.974 | H12: 5.086 | I12: 6.436 | J12: 7.879 | K12: 7.99 | L12: 8.076 | M12: 8.139 | N12: 8.139 | O12: 8.139 | P12: 8.139 | Q12: 8.139 | R12: 8.139 | S12: 8.139 | T12: 8.139 | U12: 8.139 | V12: 8.139 | W12: 8.139 | X12: 8.139
B13: BH21 | C13: 1 | E13: 4.598 | F13: 4.758 | G13: 4.941 | H13: 5.12 | I13: 5.263 | J13: 5.426 | K13: 5.619 | L13: 5.829 | M13: 6.002 | N13: 6.002 | O13: 6.002 | P13: 6.002 | Q13: 6.002 | R13: 6.002 | S13: 6.002 | T13: 6.002 | U13: 6.002 | V13: 6.002 | W13: 6.002 | X13: 6.002
B14: BH22 | C14: 1 | E14: 5.352 | F14: 5.335 | G14: 5.358 | H14: 5.381 | I14: 5.381 | J14: 5.408 | K14: 5.47 | L14: 5.54 | M14: 5.564 | N14: 5.564 | O14: 5.564 | P14: 5.564 | Q14: 5.564 | R14: 5.564 | S14: 5.564 | T14: 5.564 | U14: 5.564 | V14: 5.564 | W14: 5.564 | X14: 5.564
B15: BH23 | C15: 1 | E15: 8.998 | F15: 9.16 | G15: 9.34 | H15: 9.533 | I15: 9.711 | J15: 9.884 | K15: 10.095 | L15: 10.305 | M15: 10.528 | N15: 10.528 | O15: 10.528 | P15: 10.528 | Q15: 10.528 | R15: 10.528 | S15: 10.528 | T15: 10.528 | U15: 10.528 | V15: 10.528 | W15: 10.528 | X15: 10.528
B16: BH31 | C16: 1 | E16: 3.737 | F16: 3.84 | G16: 3.956 | H16: 4.062 | I16: 4.162 | J16: 4.258 | K16: 4.384 | L16: 4.528 | M16: 4.645 | N16: 4.645 | O16: 4.645 | P16: 4.645 | Q16: 4.645 | R16: 4.645 | S16: 4.645 | T16: 4.645 | U16: 4.645 | V16: 4.645 | W16: 4.645 | X16: 4.645
B17: BH34 | C17: 1 | E17: 2.592 | F17: 2.606 | G17: 2.64 | H17: 2.657 | I17: 2.671 | J17: 2.682 | K17: 2.721 | L17: 2.764 | M17: 2.781 | N17: 2.781 | O17: 2.781 | P17: 2.781 | Q17: 2.781 | R17: 2.781 | S17: 2.781 | T17: 2.781 | U17: 2.781 | V17: 2.781 | W17: 2.781 | X17: 2.781
B18: BR01 | C18: 1 | E18: 4.561 | F18: 4.587 | G18: 4.647 | H18: 4.674 | I18: 4.691 | J18: 4.714 | K18: 4.757 | L18: 4.827 | M18: 4.854 | N18: 4.854 | O18: 4.854 | P18: 4.854 | Q18: 4.854 | R18: 4.854 | S18: 4.854 | T18: 4.854 | U18: 4.854 | V18: 4.854 | W18: 4.854 | X18: 4.854
B19: BR04 | C19: 1 | E19: 4.47 | F19: 4.494 | G19: 4.554 | H19: 4.597 | I19: 4.624 | J19: 4.654 | K19: 4.701 | L19: 4.774 | M19: 4.81 | N19: 4.81 | O19: 4.81 | P19: 4.81 | Q19: 4.81 | R19: 4.81 | S19: 4.81 | T19: 4.81 | U19: 4.81 | V19: 4.81 | W19: 4.81 | X19: 4.81
B20: BR06 | C20: 2 | E20: 3.426 | F20: 3.388 | G20: 3.391 | H20: 3.418 | I20: 3.441 | J20: 3.461 | K20: 3.507 | L20: 3.563 | M20: 3.59 | N20: 3.59 | O20: 3.59 | P20: 3.59 | Q20: 3.59 | R20: 3.59 | S20: 3.59 | T20: 3.59 | U20: 3.59 | V20: 3.59 | W20: 3.59 | X20: 3.59
B21: BR09 | C21: 1 | E21: 5.033 | F21: 5.033 | G21: 5.073 | H21: 5.089 | I21: 5.096 | J21: 5.109 | K21: 5.152 | L21: 5.218 | M21: 5.251 | N21: 5.251 | O21: 5.251 | P21: 5.251 | Q21: 5.251 | R21: 5.251 | S21: 5.251 | T21: 5.251 | U21: 5.251 | V21: 5.251 | W21: 5.251 | X21: 5.251
B22: BR10 | C22: 1 | E22: 2.955 | F22: 2.978 | G22: 3.018 | H22: 3.041 | I22: 3.051 | J22: 3.081 | K22: 3.114 | L22: 3.164 | M22: 3.184 | N22: 3.184 | O22: 3.184 | P22: 3.184 | Q22: 3.184 | R22: 3.184 | S22: 3.184 | T22: 3.184 | U22: 3.184 | V22: 3.184 | W22: 3.184 | X22: 3.184
B23: BR13 | C23: 1 | E23: 4.266 | F23: 4.306 | G23: 4.359 | H23: 4.422 | I23: 4.449 | J23: 4.495 | K23: 4.551 | L23: 4.628 | M23: 4.681 | N23: 4.681 | O23: 4.681 | P23: 4.681 | Q23: 4.681 | R23: 4.681 | S23: 4.681 | T23: 4.681 | U23: 4.681 | V23: 4.681 | W23: 4.681 | X23: 4.681
B24: BR15 | C24: 1 | E24: 3.648 | F24: 3.668 | G24: 3.704 | H24: 3.727 | I24: 3.737 | J24: 3.747 | K24: 3.783 | L24: 3.833 | M24: 3.853 | N24: 3.853 | O24: 3.853 | P24: 3.853 | Q24: 3.853 | R24: 3.853 | S24: 3.853 | T24: 3.853 | U24: 3.853 | V24: 3.853 | W24: 3.853 | X24: 3.853
B25: BT13 | C25: 0 | E25: 2.85 | F25: 2.866 | G25: 2.916 | H25: 2.959 | I25: 2.999 | J25: 3.039 | K25: 3.092 | L25: 3.159 | M25: 3.205 | N25: 3.205 | O25: 3.205 | P25: 3.205 | Q25: 3.205 | R25: 3.205 | S25: 3.205 | T25: 3.205 | U25: 3.205 | V25: 3.205 | W25: 3.205 | X25: 3.205
B26: BT14 | C26: 1 | E26: 4.293 | F26: 4.329 | G26: 4.402 | H26: 4.472 | I26: 4.512 | J26: 4.559 | K26: 4.625 | L26: 4.712 | M26: 4.781 | N26: 4.781 | O26: 4.781 | P26: 4.781 | Q26: 4.781 | R26: 4.781 | S26: 4.781 | T26: 4.781 | U26: 4.781 | V26: 4.781 | W26: 4.781 | X26: 4.781
B27: BT15 | C27: 1 | E27: 3.846 | F27: 3.895 | G27: 3.951 | H27: 4.001 | I27: 4.024 | J27: 4.064 | K27: 4.117 | L27: 4.189 | M27: 4.217 | N27: 4.217 | O27: 4.217 | P27: 4.217 | Q27: 4.217 | R27: 4.217 | S27: 4.217 | T27: 4.217 | U27: 4.217 | V27: 4.217 | W27: 4.217 | X27: 4.217
B28: BT16 | C28: 1 | E28: 5.262 | F28: 5.352 | G28: 5.455 | H28: 5.515 | I28: 5.562 | J28: 5.635 | K28: 5.748 | L28: 5.848 | M28: 5.888 | N28: 5.888 | O28: 5.888 | P28: 5.888 | Q28: 5.888 | R28: 5.888 | S28: 5.888 | T28: 5.888 | U28: 5.888 | V28: 5.888 | W28: 5.888 | X28: 5.888
B29: BT21 | C29: 0 | E29: 2.649 | F29: 2.682 | G29: 2.719 | H29: 2.762 | I29: 2.796 | J29: 2.826 | K29: 2.876 | L29: 2.946 | M29: 2.99 | N29: 2.99 | O29: 2.99 | P29: 2.99 | Q29: 2.99 | R29: 2.99 | S29: 2.99 | T29: 2.99 | U29: 2.99 | V29: 2.99 | W29: 2.99 | X29: 2.99
B30: BT23 | C30: 0 | E30: 2.356 | F30: 2.392 | G30: 2.445 | H30: 2.481 | I30: 2.518 | J30: 2.544 | K30: 2.597 | L30: 2.66 | M30: 2.69 | N30: 2.69 | O30: 2.69 | P30: 2.69 | Q30: 2.69 | R30: 2.69 | S30: 2.69 | T30: 2.69 | U30: 2.69 | V30: 2.69 | W30: 2.69 | X30: 2.69
B31: BT25 | C31: 0 | E31: 3.72 | F31: 3.74 | G31: 3.776 | H31: 3.803 | I31: 3.823 | J31: 3.839 | K31: 3.878 | L31: 3.928 | M31: 3.955 | N31: 3.955 | O31: 3.955 | P31: 3.955 | Q31: 3.955 | R31: 3.955 | S31: 3.955 | T31: 3.955 | U31: 3.955 | V31: 3.955 | W31: 3.955 | X31: 3.955
B32: BU11 | C32: 1 | E32: 3.439 | F32: 3.462 | G32: 3.502 | H32: 3.535 | I32: 3.545 | J32: 3.558 | K32: 3.588 | L32: 3.648 | M32: 3.671 | N32: 3.671 | O32: 3.671 | P32: 3.671 | Q32: 3.671 | R32: 3.671 | S32: 3.671 | T32: 3.671 | U32: 3.671 | V32: 3.671 | W32: 3.671 | X32: 3.671
B33: BU12 | C33: 1 | E33: 4.541 | F33: 4.574 | G33: 4.647 | H33: 4.697 | I33: 4.74 | J33: 4.79 | K33: 4.86 | L33: 4.956 | M33: 5.013 | N33: 5.013 | O33: 5.013 | P33: 5.013 | Q33: 5.013 | R33: 5.013 | S33: 5.013 | T33: 5.013 | U33: 5.013 | V33: 5.013 | W33: 5.013 | X33: 5.013
B34: BU14 | C34: 0 | E34: 3.781 | F34: 3.778 | G34: 3.792 | H34: 3.795 | I34: 3.788 | J34: 3.785 | K34: 3.798 | L34: 3.821 | M34: 3.821 | N34: 3.821 | O34: 3.821 | P34: 3.821 | Q34: 3.821 | R34: 3.821 | S34: 3.821 | T34: 3.821 | U34: 3.821 | V34: 3.821 | W34: 3.821 | X34: 3.821
B35: BU15 | C35: 1 | E35: 3.472 | F35: 3.478 | G35: 3.501 | H35: 3.518 | I35: 3.521 | J35: 3.521 | K35: 3.548 | L35: 3.571 | M35: 3.574 | N35: 3.574 | O35: 3.574 | P35: 3.574 | Q35: 3.574 | R35: 3.574 | S35: 3.574 | T35: 3.574 | U35: 3.574 | V35: 3.574 | W35: 3.574 | X35: 3.574
B36: BU21 | C36: 1 | E36: 4.085 | F36: 4.101 | G36: 4.135 | H36: 4.148 | I36: 4.152 | J36: 4.155 | K36: 4.195 | L36: 4.258 | M36: 4.269 | N36: 4.269 | O36: 4.269 | P36: 4.269 | Q36: 4.269 | R36: 4.269 | S36: 4.269 | T36: 4.269 | U36: 4.269 | V36: 4.269 | W36: 4.269 | X36: 4.269
B37: BU22 | C37: 1 | E37: 4.479 | F37: 4.493 | G37: 4.523 | H37: 4.556 | I37: 4.572 | J37: 4.592 | K37: 4.635 | L37: 4.701 | M37: 4.735 | N37: 4.735 | O37: 4.735 | P37: 4.735 | Q37: 4.735 | R37: 4.735 | S37: 4.735 | T37: 4.735 | U37: 4.735 | V37: 4.735 | W37: 4.735 | X37: 4.735
B38: BU24 | C38: 0 | E38: 1.716 | F38: 1.723 | G38: 1.733 | H38: 1.743 | I38: 1.733 | J38: 1.733 | K38: 1.743 | L38: 1.763 | M38: 1.763 | N38: 1.763 | O38: 1.763 | P38: 1.763 | Q38: 1.763 | R38: 1.763 | S38: 1.763 | T38: 1.763 | U38: 1.763 | V38: 1.763 | W38: 1.763 | X38: 1.763
B39: BW21 | C39: 1 | E39: 4.616 | F39: 4.649 | G39: 4.705 | H39: 4.748 | I39: 4.801 | J39: 4.841 | K39: 4.904 | L39: 4.997 | M39: 5.047 | N39: 5.047 | O39: 5.047 | P39: 5.047 | Q39: 5.047 | R39: 5.047 | S39: 5.047 | T39: 5.047 | U39: 5.047 | V39: 5.047 | W39: 5.047 | X39: 5.047
B40: BW22 | C40: 0 | E40: 2.695 | F40: 2.713 | G40: 2.744 | H40: 2.761 | I40: 2.775 | J40: 2.793 | K40: 2.831 | L40: 2.855 | M40: 2.885 | N40: 2.885 | O40: 2.885 | P40: 2.885 | Q40: 2.885 | R40: 2.885 | S40: 2.885 | T40: 2.885 | U40: 2.885 | V40: 2.885 | W40: 2.885 | X40: 2.885
B41: BW23 | C41: 0 | E41: 2.202 | F41: 2.176 | G41: 2.17 | H41: 2.177 | I41: 2.187 | J41: 2.194 | K41: 2.217 | L41: 2.257 | M41: 2.277 | N41: 2.277 | O41: 2.277 | P41: 2.277 | Q41: 2.277 | R41: 2.277 | S41: 2.277 | T41: 2.277 | U41: 2.277 | V41: 2.277 | W41: 2.277 | X41: 2.277
B42: BW32 | C42: 1 | E42: 2.527 | F42: 2.563 | G42: 2.616 | H42: 2.649 | I42: 2.675 | J42: 2.718 | K42: 2.758 | L42: 2.805 | M42: 2.838 | N42: 2.838 | O42: 2.838 | P42: 2.838 | Q42: 2.838 | R42: 2.838 | S42: 2.838 | T42: 2.838 | U42: 2.838 | V42: 2.838 | W42: 2.838 | X42: 2.838
B43: BW33 | C43: 1 | E43: 3.599 | F43: 3.629 | G43: 3.672 | H43: 3.718 | I43: 3.741 | J43: 3.781 | K43: 3.831 | L43: 3.901 | M43: 3.944 | N43: 3.944 | O43: 3.944 | P43: 3.944 | Q43: 3.944 | R43: 3.944 | S43: 3.944 | T43: 3.944 | U43: 3.944 | V43: 3.944 | W43: 3.944 | X43: 3.944
B44: BW34 | C44: 1 | E44: 3.658 | F44: 3.715 | G44: 3.781 | H44: 3.851 | I44: 3.894 | J44: 3.944 | K44: 4.02 | L44: 4.124 | M44: 4.194 | N44: 4.194 | O44: 4.194 | P44: 4.194 | Q44: 4.194 | R44: 4.194 | S44: 4.194 | T44: 4.194 | U44: 4.194 | V44: 4.194 | W44: 4.194 | X44: 4.194
B45: BW35 | C45: 0 | E45: 4.987 | F45: 5.066 | G45: 5.169 | H45: 5.262 | I45: 5.325 | J45: 5.398 | K45: 5.493 | L45: 5.623 | M45: 5.723 | N45: 5.723 | O45: 5.723 | P45: 5.723 | Q45: 5.723 | R45: 5.723 | S45: 5.723 | T45: 5.723 | U45: 5.723 | V45: 5.723 | W45: 5.723 | X45: 5.723
B46: CDA11 | C46: 1 | E46: 3.623 | F46: 3.667 | G46: 3.727 | H46: 3.78 | I46: 3.827 | J46: 3.887 | K46: 3.973 | L46: 4.082 | M46: 4.139 | N46: 4.139 | O46: 4.139 | P46: 4.139 | Q46: 4.139 | R46: 4.139 | S46: 4.139 | T46: 4.139 | U46: 4.139 | V46: 4.139 | W46: 4.139 | X46: 4.139
B47: CDA21 | C47: 0 | E47: 2.115 | F47: 2.115 | G47: 2.128 | H47: 2.125 | I47: 2.108 | J47: 2.108 | K47: 2.138 | L47: 2.154 | M47: 2.121 | N47: 2.121 | O47: 2.121 | P47: 2.121 | Q47: 2.121 | R47: 2.121 | S47: 2.121 | T47: 2.121 | U47: 2.121 | V47: 2.121 | W47: 2.121 | X47: 2.121
B48: CDA22 | C48: 1 | E48: 8.448 | F48: 8.364 | G48: 8.318 | H48: 8.284 | I48: 8.219 | J48: 8.166 | K48: 8.136 | L48: 8.126 | M48: 8.079 | N48: 8.079 | O48: 8.079 | P48: 8.079 | Q48: 8.079 | R48: 8.079 | S48: 8.079 | T48: 8.079 | U48: 8.079 | V48: 8.079 | W48: 8.079 | X48: 8.079
B49: CDA23 | C49: 2 | E49: 8.429 | F49: 8.595 | G49: 8.812 | H49: 8.998 | I49: 9.161 | J49: 9.35 | K49: 9.556 | L49: 9.826 | M49: 10.032 | N49: 10.032 | O49: 10.032 | P49: 10.032 | Q49: 10.032 | R49: 10.032 | S49: 10.032 | T49: 10.032 | U49: 10.032 | V49: 10.032 | W49: 10.032 | X49: 10.032
B50: CDA24 | C50: 0 | E50: 3.658 | F50: 3.671 | G50: 3.691 | H50: 3.711 | I50: 3.714 | J50: 3.734 | K50: 3.764 | L50: 3.797 | M50: 3.81 | N50: 3.81 | O50: 3.81 | P50: 3.81 | Q50: 3.81 | R50: 3.81 | S50: 3.81 | T50: 3.81 | U50: 3.81 | V50: 3.81 | W50: 3.81 | X50: 3.81
B51: CFD12 | C51: 2 | E51: 3.798 | F51: 3.779 | G51: 3.773 | H51: 3.78 | I51: 3.777 | J51: 3.777 | K51: 3.794 | L51: 3.821 | M51: 3.824 | N51: 3.824 | O51: 3.824 | P51: 3.824 | Q51: 3.824 | R51: 3.824 | S51: 3.824 | T51: 3.824 | U51: 3.824 | V51: 3.824 | W51: 3.824 | X51: 3.824
B52: CFD13 | C52: 1 | E52: 4.904 | F52: 4.921 | G52: 4.978 | H52: 5.008 | I52: 5.018 | J52: 5.035 | K52: 5.088 | L52: 5.165 | M52: 5.205 | N52: 5.205 | O52: 5.205 | P52: 5.205 | Q52: 5.205 | R52: 5.205 | S52: 5.205 | T52: 5.205 | U52: 5.205 | V52: 5.205 | W52: 5.205 | X52: 5.205
B53: CFD14 | C53: 2 | E53: 6.821 | F53: 6.894 | G53: 7.014 | H53: 7.103 | I53: 7.18 | J53: 7.24 | K53: 7.349 | L53: 7.472 | M53: 7.529 | N53: 7.529 | O53: 7.529 | P53: 7.529 | Q53: 7.529 | R53: 7.529 | S53: 7.529 | T53: 7.529 | U53: 7.529 | V53: 7.529 | W53: 7.529 | X53: 7.529
B54: CFD15 | C54: 1 | E54: 2.545 | F54: 2.588 | G54: 2.651 | H54: 2.701 | I54: 2.744 | J54: 2.787 | K54: 2.851 | L54: 2.934 | M54: 2.984 | N54: 2.984 | O54: 2.984 | P54: 2.984 | Q54: 2.984 | R54: 2.984 | S54: 2.984 | T54: 2.984 | U54: 2.984 | V54: 2.984 | W54: 2.984 | X54: 2.984
B55: CFD16 | C55: 2 | E55: 6.301 | F55: 6.367 | G55: 6.443 | H55: 6.5 | I55: 6.536 | J55: 6.569 | K55: 6.652 | L55: 6.726 | M55: 6.767 | N55: 6.767 | O55: 6.767 | P55: 6.767 | Q55: 6.767 | R55: 6.767 | S55: 6.767 | T55: 6.767 | U55: 6.767 | V55: 6.767 | W55: 6.767 | X55: 6.767
B56: CFD22 | C56: 0 | E56: 3.391 | F56: 3.427 | G56: 3.477 | H56: 3.52 | I56: 3.54 | J56: 3.563 | K56: 3.609 | L56: 3.679 | M56: 3.706 | N56: 3.706 | O56: 3.706 | P56: 3.706 | Q56: 3.706 | R56: 3.706 | S56: 3.706 | T56: 3.706 | U56: 3.706 | V56: 3.706 | W56: 3.706 | X56: 3.706
B57: CFD23 | C57: 1 | E57: 2.753 | F57: 2.767 | G57: 2.804 | H57: 2.841 | I57: 2.871 | J57: 2.911 | K57: 2.961 | L57: 3.018 | M57: 3.061 | N57: 3.061 | O57: 3.061 | P57: 3.061 | Q57: 3.061 | R57: 3.061 | S57: 3.061 | T57: 3.061 | U57: 3.061 | V57: 3.061 | W57: 3.061 | X57: 3.061
B58: CFD24 | C58: 0 | E58: 3.747 | F58: 3.723 | G58: 3.703 | H58: 3.693 | I58: 3.687 | J58: 3.677 | K58: 3.68 | L58: 3.694 | M58: 3.697 | N58: 3.697 | O58: 3.697 | P58: 3.697 | Q58: 3.697 | R58: 3.697 | S58: 3.697 | T58: 3.697 | U58: 3.697 | V58: 3.697 | W58: 3.697 | X58: 3.697
B59: CFD25 | C59: 0 | E59: 3.242 | F59: 3.265 | G59: 3.298 | H59: 3.328 | I59: 3.338 | J59: 3.361 | K59: 3.391 | L59: 3.438 | M59: 3.458 | N59: 3.458 | O59: 3.458 | P59: 3.458 | Q59: 3.458 | R59: 3.458 | S59: 3.458 | T59: 3.458 | U59: 3.458 | V59: 3.458 | W59: 3.458 | X59: 3.458
B60: CFD26 | C60: 2 | E60: 3.014 | F60: 3.064 | G60: 3.124 | H60: 3.184 | I60: 3.234 | J60: 3.287 | K60: 3.37 | L60: 3.457 | M60: 3.51 | N60: 3.51 | O60: 3.51 | P60: 3.51 | Q60: 3.51 | R60: 3.51 | S60: 3.51 | T60: 3.51 | U60: 3.51 | V60: 3.51 | W60: 3.51 | X60: 3.51
B61: CM11 | C61: 0 | E61: 2.358 | F61: 2.401 | G61: 2.474 | H61: 2.527 | I61: 2.547 | J61: 2.577 | K61: 2.653 | L61: 2.736 | M61: 2.746 | N61: 2.746 | O61: 2.746 | P61: 2.746 | Q61: 2.746 | R61: 2.746 | S61: 2.746 | T61: 2.746 | U61: 2.746 | V61: 2.746 | W61: 2.746 | X61: 2.746
B62: CM13 | C62: 1 | E62: 3.484 | F62: 3.537 | G62: 3.617 | H62: 3.683 | I62: 3.736 | J62: 3.792 | K62: 3.875 | L62: 3.968 | M62: 4.018 | N62: 4.018 | O62: 4.018 | P62: 4.018 | Q62: 4.018 | R62: 4.018 | S62: 4.018 | T62: 4.018 | U62: 4.018 | V62: 4.018 | W62: 4.018 | X62: 4.018
B63: CM15 | C63: 0 | E63: 1.336 | F63: 1.359 | G63: 1.395 | H63: 1.425 | I63: 1.438 | J63: 1.448 | K63: 1.491 | L63: 1.537 | M63: 1.554 | N63: 1.554 | O63: 1.554 | P63: 1.554 | Q63: 1.554 | R63: 1.554 | S63: 1.554 | T63: 1.554 | U63: 1.554 | V63: 1.554 | W63: 1.554 | X63: 1.554
B64: CM21 | C64: 0 | E64: 3.317 | F64: 3.37 | G64: 3.453 | H64: 3.516 | I64: 3.546 | J64: 3.579 | K64: 3.665 | L64: 3.775 | M64: 3.798 | N64: 3.798 | O64: 3.798 | P64: 3.798 | Q64: 3.798 | R64: 3.798 | S64: 3.798 | T64: 3.798 | U64: 3.798 | V64: 3.798 | W64: 3.798 | X64: 3.798
B65: CM22 | C65: 0 | E65: 1.959 | F65: 1.992 | G65: 2.029 | H65: 2.065 | I65: 2.098 | J65: 2.128 | K65: 2.171 | L65: 2.228 | M65: 2.261 | N65: 2.261 | O65: 2.261 | P65: 2.261 | Q65: 2.261 | R65: 2.261 | S65: 2.261 | T65: 2.261 | U65: 2.261 | V65: 2.261 | W65: 2.261 | X65: 2.261
B66: CM23 | C66: 0 | E66: 2.971 | F66: 2.974 | G66: 2.984 | H66: 3.004 | I66: 3.017 | J66: 3.034 | K66: 3.054 | L66: 3.074 | M66: 3.104 | N66: 3.104 | O66: 3.104 | P66: 3.104 | Q66: 3.104 | R66: 3.104 | S66: 3.104 | T66: 3.104 | U66: 3.104 | V66: 3.104 | W66: 3.104 | X66: 3.104
B67: CM24 | C67: 0 | E67: 2.574 | F67: 2.577 | G67: 2.6 | H67: 2.62 | I67: 2.65 | J67: 2.67 | K67: 2.703 | L67: 2.733 | M67: 2.77 | N67: 2.77 | O67: 2.77 | P67: 2.77 | Q67: 2.77 | R67: 2.77 | S67: 2.77 | T67: 2.77 | U67: 2.77 | V67: 2.77 | W67: 2.77 | X67: 2.77
B68: CM25 | C68: 0 | E68: 4.19 | F68: 4.243 | G68: 4.313 | H68: 4.373 | I68: 4.426 | J68: 4.483 | K68: 4.556 | L68: 4.643 | M68: 4.703 | N68: 4.703 | O68: 4.703 | P68: 4.703 | Q68: 4.703 | R68: 4.703 | S68: 4.703 | T68: 4.703 | U68: 4.703 | V68: 4.703 | W68: 4.703 | X68: 4.703
B69: CRM11 | C69: 0 | E69: 18.238 | F69: 18.705 | G69: 19.467 | H69: 19.781 | I69: 19.835 | J69: 20.229 | K69: 21.06 | L69: 21.798 | M69: 21.397 | N69: 21.397 | O69: 21.397 | P69: 21.397 | Q69: 21.397 | R69: 21.397 | S69: 21.397 | T69: 21.397 | U69: 21.397 | V69: 21.397 | W69: 21.397 | X69: 21.397
B70: CRM13 | C70: 1 | E70: 7.911 | F70: 7.986 | G70: 8.095 | H70: 8.175 | I70: 8.221 | J70: 8.284 | K70: 8.376 | L70: 8.508 | M70: 8.572 | N70: 8.572 | O70: 8.572 | P70: 8.572 | Q70: 8.572 | R70: 8.572 | S70: 8.572 | T70: 8.572 | U70: 8.572 | V70: 8.572 | W70: 8.572 | X70: 8.572
B71: CRM14 | C71: 1 | E71: 9.417 | F71: 9.509 | G71: 9.618 | H71: 9.708 | I71: 9.771 | J71: 9.847 | K71: 9.956 | L71: 10.128 | M71: 10.226 | N71: 10.226 | O71: 10.226 | P71: 10.226 | Q71: 10.226 | R71: 10.226 | S71: 10.226 | T71: 10.226 | U71: 10.226 | V71: 10.226 | W71: 10.226 | X71: 10.226
B72: CRM22 | C72: 1 | E72: 4.351 | F72: 4.364 | G72: 4.401 | H72: 4.434 | I72: 4.431 | J72: 4.444 | K72: 4.477 | L72: 4.52 | M72: 4.536 | N72: 4.536 | O72: 4.536 | P72: 4.536 | Q72: 4.536 | R72: 4.536 | S72: 4.536 | T72: 4.536 | U72: 4.536 | V72: 4.536 | W72: 4.536 | X72: 4.536
B73: CRM24 | C73: 0 | E73: 6.812 | F73: 6.822 | G73: 6.858 | H73: 6.865 | I73: 6.841 | J73: 6.858 | K73: 6.931 | L73: 6.984 | M73: 6.944 | N73: 6.944 | O73: 6.944 | P73: 6.944 | Q73: 6.944 | R73: 6.944 | S73: 6.944 | T73: 6.944 | U73: 6.944 | V73: 6.944 | W73: 6.944 | X73: 6.944
B74: CRM32 | C74: 0 | E74: 16.528 | F74: 16.613 | G74: 16.729 | H74: 16.825 | I74: 16.908 | J74: 16.977 | K74: 17.099 | L74: 17.241 | M74: 17.38 | N74: 17.38 | O74: 17.38 | P74: 17.38 | Q74: 17.38 | R74: 17.38 | S74: 17.38 | T74: 17.38 | U74: 17.38 | V74: 17.38 | W74: 17.38 | X74: 17.38
B75: CRM33 | C75: 1 | E75: 5.405 | F75: 5.428 | G75: 5.472 | H75: 5.498 | I75: 5.505 | J75: 5.528 | K75: 5.558 | L75: 5.624 | M75: 5.658 | N75: 5.658 | O75: 5.658 | P75: 5.658 | Q75: 5.658 | R75: 5.658 | S75: 5.658 | T75: 5.658 | U75: 5.658 | V75: 5.658 | W75: 5.658 | X75: 5.658
B76: CRM34 | C76: 1 | E76: 8.362 | F76: 8.352 | G76: 8.359 | H76: 8.362 | I76: 8.352 | J76: 8.362 | K76: 8.395 | L76: 8.435 | M76: 8.465 | N76: 8.465 | O76: 8.465 | P76: 8.465 | Q76: 8.465 | R76: 8.465 | S76: 8.465 | T76: 8.465 | U76: 8.465 | V76: 8.465 | W76: 8.465 | X76: 8.465
B77: CRM35 | C77: 1 | E77: 10.774 | F77: 10.83 | G77: 10.927 | H77: 10.973 | I77: 11.011 | J77: 11.07 | K77: 11.147 | L77: 11.27 | M77: 11.317 | N77: 11.317 | O77: 11.317 | P77: 11.317 | Q77: 11.317 | R77: 11.317 | S77: 11.317 | T77: 11.317 | U77: 11.317 | V77: 11.317 | W77: 11.317 | X77: 11.317
B78: DC01 | C78: 1 | E78: 8.8 | F78: 8.834 | G78: 8.931 | H78: 8.963 | I78: 8.99 | J78: 9.03 | K78: 9.123 | L78: 9.251 | M78: 9.304 | N78: 9.304 | O78: 9.304 | P78: 9.304 | Q78: 9.304 | R78: 9.304 | S78: 9.304 | T78: 9.304 | U78: 9.304 | V78: 9.304 | W78: 9.304 | X78: 9.304
B79: DC02 | C79: 2 | E79: 9.956 | F79: 10.007 | G79: 10.124 | H79: 10.195 | I79: 10.243 | J79: 10.336 | K79: 10.457 | L79: 10.661 | M79: 10.744 | N79: 10.744 | O79: 10.744 | P79: 10.744 | Q79: 10.744 | R79: 10.744 | S79: 10.744 | T79: 10.744 | U79: 10.744 | V79: 10.744 | W79: 10.744 | X79: 10.744
B80: DC03 | C80: 2 | E80: 11.199 | F80: 11.271 | G80: 11.417 | H80: 11.547 | I80: 11.623 | J80: 11.759 | K80: 11.922 | L80: 12.171 | M80: 12.297 | N80: 12.297 | O80: 12.297 | P80: 12.297 | Q80: 12.297 | R80: 12.297 | S80: 12.297 | T80: 12.297 | U80: 12.297 | V80: 12.297 | W80: 12.297 | X80: 12.297
B81: DC04 | C81: 1 | E81: 9.534 | F81: 9.652 | G81: 9.837 | H81: 10.005 | I81: 10.166 | J81: 10.367 | K81: 10.582 | L81: 10.9 | M81: 11.086 | N81: 11.086 | O81: 11.086 | P81: 11.086 | Q81: 11.086 | R81: 11.086 | S81: 11.086 | T81: 11.086 | U81: 11.086 | V81: 11.086 | W81: 11.086 | X81: 11.086
B82: DC05 | C82: 1 | E82: 13.975 | F82: 14.006 | G82: 14.103 | H82: 14.206 | I82: 14.259 | J82: 14.366 | K82: 14.513 | L82: 14.706 | M82: 14.764 | N82: 14.764 | O82: 14.764 | P82: 14.764 | Q82: 14.764 | R82: 14.764 | S82: 14.764 | T82: 14.764 | U82: 14.764 | V82: 14.764 | W82: 14.764 | X82: 14.764
B83: DC06 | C83: 1 | E83: 6.359 | F83: 6.386 | G83: 6.419 | H83: 6.458 | I83: 6.498 | J83: 6.538 | K83: 6.59 | L83: 6.64 | M83: 6.686 | N83: 6.686 | O83: 6.686 | P83: 6.686 | Q83: 6.686 | R83: 6.686 | S83: 6.686 | T83: 6.686 | U83: 6.686 | V83: 6.686 | W83: 6.686 | X83: 6.686
B84: DC07 | C84: 1 | E84: 6.008 | F84: 6.079 | G84: 6.172 | H84: 6.255 | I84: 6.328 | J84: 6.394 | K84: 6.477 | L84: 6.61 | M84: 6.697 | N84: 6.697 | O84: 6.697 | P84: 6.697 | Q84: 6.697 | R84: 6.697 | S84: 6.697 | T84: 6.697 | U84: 6.697 | V84: 6.697 | W84: 6.697 | X84: 6.697
B85: DC08 | C85: 1 | E85: 5.905 | F85: 5.935 | G85: 6.029 | H85: 6.113 | I85: 6.183 | J85: 6.262 | K85: 6.368 | L85: 6.497 | M85: 6.587 | N85: 6.587 | O85: 6.587 | P85: 6.587 | Q85: 6.587 | R85: 6.587 | S85: 6.587 | T85: 6.587 | U85: 6.587 | V85: 6.587 | W85: 6.587 | X85: 6.587
B86: DC10 | C86: 1 | E86: 8.205 | F86: 8.358 | G86: 8.554 | H86: 8.721 | I86: 8.851 | J86: 9.004 | K86: 9.197 | L86: 9.423 | M86: 9.577 | N86: 9.577 | O86: 9.577 | P86: 9.577 | Q86: 9.577 | R86: 9.577 | S86: 9.577 | T86: 9.577 | U86: 9.577 | V86: 9.577 | W86: 9.577 | X86: 9.577
B87: DC12 | C87: 0 | E87: 6.222 | F87: 6.185 | G87: 6.155 | H87: 6.13 | I87: 6.066 | J87: 6.021 | K87: 6.014 | L87: 6.04 | M87: 6.035 | N87: 6.035 | O87: 6.035 | P87: 6.035 | Q87: 6.035 | R87: 6.035 | S87: 6.035 | T87: 6.035 | U87: 6.035 | V87: 6.035 | W87: 6.035 | X87: 6.035
B88: DMA12 | C88: 0 | E88: 7.195 | F88: 7.36 | G88: 7.566 | H88: 7.769 | I88: 7.93 | J88: 8.065 | K88: 8.257 | L88: 8.489 | M88: 8.715 | N88: 8.715 | O88: 8.715 | P88: 8.715 | Q88: 8.715 | R88: 8.715 | S88: 8.715 | T88: 8.715 | U88: 8.715 | V88: 8.715 | W88: 8.715 | X88: 8.715
B89: DMA13 | C89: 1 | E89: 4.679 | F89: 4.791 | G89: 4.926 | H89: 5.056 | I89: 5.159 | J89: 5.262 | K89: 5.415 | L89: 5.611 | M89: 5.717 | N89: 5.717 | O89: 5.717 | P89: 5.717 | Q89: 5.717 | R89: 5.717 | S89: 5.717 | T89: 5.717 | U89: 5.717 | V89: 5.717 | W89: 5.717 | X89: 5.717
B90: DMA14 | C90: 1 | E90: 10.491 | F90: 10.557 | G90: 10.69 | H90: 10.803 | I90: 10.85 | J90: 10.867 | K90: 10.957 | L90: 11.156 | M90: 11.298 | N90: 11.298 | O90: 11.298 | P90: 11.298 | Q90: 11.298 | R90: 11.298 | S90: 11.298 | T90: 11.298 | U90: 11.298 | V90: 11.298 | W90: 11.298 | X90: 11.298
B91: DMA15 | C91: 2 | E91: 3.837 | F91: 3.836 | G91: 3.858 | H91: 3.877 | I91: 3.881 | J91: 3.891 | K91: 3.924 | L91: 3.969 | M91: 4.002 | N91: 4.002 | O91: 4.002 | P91: 4.002 | Q91: 4.002 | R91: 4.002 | S91: 4.002 | T91: 4.002 | U91: 4.002 | V91: 4.002 | W91: 4.002 | X91: 4.002
B92: DMA21 | C92: 1 | E92: 7.561 | F92: 7.691 | G92: 7.867 | H92: 8.018 | I92: 8.145 | J92: 8.286 | K92: 8.466 | L92: 8.678 | M92: 8.855 | N92: 8.855 | O92: 8.855 | P92: 8.855 | Q92: 8.855 | R92: 8.855 | S92: 8.855 | T92: 8.855 | U92: 8.855 | V92: 8.855 | W92: 8.855 | X92: 8.855
B93: DMA23 | C93: 3 | E93: 6.417 | F93: 6.448 | G93: 6.533 | H93: 6.606 | I93: 6.642 | J93: 6.691 | K93: 6.777 | L93: 6.876 | M93: 6.952 | N93: 6.952 | O93: 6.952 | P93: 6.952 | Q93: 6.952 | R93: 6.952 | S93: 6.952 | T93: 6.952 | U93: 6.952 | V93: 6.952 | W93: 6.952 | X93: 6.952
B94: DMA24 | C94: 2 | E94: 5.356 | F94: 5.322 | G94: 5.318 | H94: 5.34 | I94: 5.327 | J94: 5.327 | K94: 5.36 | L94: 5.416 | M94: 5.455 | N94: 5.455 | O94: 5.455 | P94: 5.455 | Q94: 5.455 | R94: 5.455 | S94: 5.455 | T94: 5.455 | U94: 5.455 | V94: 5.455 | W94: 5.455 | X94: 5.455
B95: DN02 | C95: 0 | E95: 11.171 | F95: 11.32 | G95: 11.521 | H95: 11.701 | I95: 11.78 | J95: 11.856 | K95: 12.086 | L95: 12.333 | M95: 12.435 | N95: 12.435 | O95: 12.435 | P95: 12.435 | Q95: 12.435 | R95: 12.435 | S95: 12.435 | T95: 12.435 | U95: 12.435 | V95: 12.435 | W95: 12.435 | X95: 12.435
B96: DN04 | C96: 0 | E96: 4.993 | F96: 5.023 | G96: 5.056 | H96: 5.076 | I96: 5.076 | J96: 5.096 | K96: 5.146 | L96: 5.179 | M96: 5.166 | N96: 5.166 | O96: 5.166 | P96: 5.166 | Q96: 5.166 | R96: 5.166 | S96: 5.166 | T96: 5.166 | U96: 5.166 | V96: 5.166 | W96: 5.166 | X96: 5.166
B97: DN06 | C97: 1 | E97: 4.72 | F97: 4.657 | G97: 4.611 | H97: 4.585 | I97: 4.546 | J97: 4.527 | K97: 4.514 | L97: 4.518 | M97: 4.512 | N97: 4.512 | O97: 4.512 | P97: 4.512 | Q97: 4.512 | R97: 4.512 | S97: 4.512 | T97: 4.512 | U97: 4.512 | V97: 4.512 | W97: 4.512 | X97: 4.512
B98: DN07 | C98: 0 | E98: 6.242 | F98: 6.129 | G98: 6.069 | H98: 6.022 | I98: 5.972 | J98: 5.925 | K98: 5.895 | L98: 5.872 | M98: 5.842 | N98: 5.842 | O98: 5.842 | P98: 5.842 | Q98: 5.842 | R98: 5.842 | S98: 5.842 | T98: 5.842 | U98: 5.842 | V98: 5.842 | W98: 5.842 | X98: 5.842
B99: DN08 | C99: 0 | E99: 4.276 | F99: 4.276 | G99: 4.286 | H99: 4.286 | I99: 4.286 | J99: 4.286 | K99: 4.296 | L99: 4.309 | M99: 4.316 | N99: 4.316 | O99: 4.316 | P99: 4.316 | Q99: 4.316 | R99: 4.316 | S99: 4.316 | T99: 4.316 | U99: 4.316 | V99: 4.316 | W99: 4.316 | X99: 4.316
B100: DN09 | C100: 0 | E100: 7.025 | F100: 7.028 | G100: 7.058 | H100: 7.081 | I100: 7.091 | J100: 7.091 | K100: 7.131 | L100: 7.171 | M100: 7.201 | N100: 7.201 | O100: 7.201 | P100: 7.201 | Q100: 7.201 | R100: 7.201 | S100: 7.201 | T100: 7.201 | U100: 7.201 | V100: 7.201 | W100: 7.201 | X100: 7.201
B101: DN10 | C101: 1 | E101: 5.536 | F101: 5.522 | G101: 5.555 | H101: 5.554 | I101: 5.544 | J101: 5.533 | K101: 5.549 | L101: 5.602 | M101: 5.595 | N101: 5.595 | O101: 5.595 | P101: 5.595 | Q101: 5.595 | R101: 5.595 | S101: 5.595 | T101: 5.595 | U101: 5.595 | V101: 5.595 | W101: 5.595 | X101: 5.595
B102: DN11 | C102: 0 | E102: 9.439 | F102: 9.56 | G102: 9.744 | H102: 9.833 | I102: 9.871 | J102: 9.996 | K102: 10.186 | L102: 10.344 | M102: 10.336 | N102: 10.336 | O102: 10.336 | P102: 10.336 | Q102: 10.336 | R102: 10.336 | S102: 10.336 | T102: 10.336 | U102: 10.336 | V102: 10.336 | W102: 10.336 | X102: 10.336
B103: DN13 | C103: 1 | E103: 9.625 | F103: 9.615 | G103: 9.665 | H103: 9.694 | I103: 9.674 | J103: 9.66 | K103: 9.693 | L103: 9.739 | M103: 9.719 | N103: 9.719 | O103: 9.719 | P103: 9.719 | Q103: 9.719 | R103: 9.719 | S103: 9.719 | T103: 9.719 | U103: 9.719 | V103: 9.719 | W103: 9.719 | X103: 9.719
B104: DN21 | C104: 1 | E104: 5.584 | F104: 5.594 | G104: 5.624 | H104: 5.634 | I104: 5.64 | J104: 5.65 | K104: 5.673 | L104: 5.707 | M104: 5.717 | N104: 5.717 | O104: 5.717 | P104: 5.717 | Q104: 5.717 | R104: 5.717 | S104: 5.717 | T104: 5.717 | U104: 5.717 | V104: 5.717 | W104: 5.717 | X104: 5.717
B105: DN22 | C105: 1 | E105: 9.321 | F105: 9.301 | G105: 9.331 | H105: 9.341 | I105: 9.318 | J105: 9.318 | K105: 9.348 | L105: 9.431 | M105: 9.431 | N105: 9.431 | O105: 9.431 | P105: 9.431 | Q105: 9.431 | R105: 9.431 | S105: 9.431 | T105: 9.431 | U105: 9.431 | V105: 9.431 | W105: 9.431 | X105: 9.431
B106: DN24 | C106: 0 | E106: 4.762 | F106: 4.786 | G106: 4.813 | H106: 4.843 | I106: 4.863 | J106: 4.89 | K106: 4.93 | L106: 4.973 | M106: 5.016 | N106: 5.016 | O106: 5.016 | P106: 5.016 | Q106: 5.016 | R106: 5.016 | S106: 5.016 | T106: 5.016 | U106: 5.016 | V106: 5.016 | W106: 5.016 | X106: 5.016
B107: DN25 | C107: 0 | E107: 5.475 | F107: 5.414 | G107: 5.4 | H107: 5.393 | I107: 5.373 | J107: 5.36 | K107: 5.373 | L107: 5.409 | M107: 5.42 | N107: 5.42 | O107: 5.42 | P107: 5.42 | Q107: 5.42 | R107: 5.42 | S107: 5.42 | T107: 5.42 | U107: 5.42 | V107: 5.42 | W107: 5.42 | X107: 5.42
B108: DSH14 | C108: 0 | E108: 9.055 | F108: 9.129 | G108: 9.219 | H108: 9.285 | I108: 9.321 | J108: 9.375 | K108: 9.495 | L108: 9.598 | M108: 9.65 | N108: 9.65 | O108: 9.65 | P108: 9.65 | Q108: 9.65 | R108: 9.65 | S108: 9.65 | T108: 9.65 | U108: 9.65 | V108: 9.65 | W108: 9.65 | X108: 9.65
B109: DSH21 | C109: 0 | E109: 13.173 | F109: 13.452 | G109: 13.907 | H109: 14.223 | I109: 14.329 | J109: 14.498 | K109: 15.005 | L109: 15.506 | M109: 15.574 | N109: 15.574 | O109: 15.574 | P109: 15.574 | Q109: 15.574 | R109: 15.574 | S109: 15.574 | T109: 15.574 | U109: 15.574 | V109: 15.574 | W109: 15.574 | X109: 15.574
B110: DSH22 | C110: 0 | E110: 6.838 | F110: 7.028 | G110: 7.287 | H110: 7.387 | I110: 7.42 | J110: 7.59 | K110: 7.896 | L110: 8.112 | M110: 7.946 | N110: 7.946 | O110: 7.946 | P110: 7.946 | Q110: 7.946 | R110: 7.946 | S110: 7.946 | T110: 7.946 | U110: 7.946 | V110: 7.946 | W110: 7.946 | X110: 7.946
B111: DSH23 | C111: 0 | E111: 2.62 | F111: 2.637 | G111: 2.657 | H111: 2.667 | I111: 2.677 | J111: 2.697 | K111: 2.727 | L111: 2.757 | M111: 2.777 | N111: 2.777 | O111: 2.777 | P111: 2.777 | Q111: 2.777 | R111: 2.777 | S111: 2.777 | T111: 2.777 | U111: 2.777 | V111: 2.777 | W111: 2.777 | X111: 2.777
B112: DSH24 | C112: 0 | E112: 3.924 | F112: 3.942 | G112: 3.976 | H112: 4.006 | I112: 4.029 | J112: 4.056 | K112: 4.096 | L112: 4.146 | M112: 4.185 | N112: 4.185 | O112: 4.185 | P112: 4.185 | Q112: 4.185 | R112: 4.185 | S112: 4.185 | T112: 4.185 | U112: 4.185 | V112: 4.185 | W112: 4.185 | X112: 4.185
B113: DSH31 | C113: 0 | E113: 6.067 | F113: 6.11 | G113: 6.17 | H113: 6.204 | I113: 6.234 | J113: 6.277 | K113: 6.35 | L113: 6.417 | M113: 6.447 | N113: 6.447 | O113: 6.447 | P113: 6.447 | Q113: 6.447 | R113: 6.447 | S113: 6.447 | T113: 6.447 | U113: 6.447 | V113: 6.447 | W113: 6.447 | X113: 6.447
B114: DSH32 | C114: 0 | E114: 6.464 | F114: 6.517 | G114: 6.623 | H114: 6.716 | I114: 6.756 | J114: 6.799 | K114: 6.922 | L114: 7.081 | M114: 7.134 | N114: 7.134 | O114: 7.134 | P114: 7.134 | Q114: 7.134 | R114: 7.134 | S114: 7.134 | T114: 7.134 | U114: 7.134 | V114: 7.134 | W114: 7.134 | X114: 7.134
B115: DSH33 | C115: 0 | E115: 10.895 | F115: 10.985 | G115: 11.105 | H115: 11.218 | I115: 11.298 | J115: 11.381 | K115: 11.521 | L115: 11.684 | M115: 11.804 | N115: 11.804 | O115: 11.804 | P115: 11.804 | Q115: 11.804 | R115: 11.804 | S115: 11.804 | T115: 11.804 | U115: 11.804 | V115: 11.804 | W115: 11.804 | X115: 11.804
B116: DSH34 | C116: 0 | E116: 5.906 | F116: 5.98 | G116: 6.077 | H116: 6.16 | I116: 6.19 | J116: 6.23 | K116: 6.333 | L116: 6.466 | M116: 6.491 | N116: 6.491 | O116: 6.491 | P116: 6.491 | Q116: 6.491 | R116: 6.491 | S116: 6.491 | T116: 6.491 | U116: 6.491 | V116: 6.491 | W116: 6.491 | X116: 6.491
B117: DVY11 | C117: 0 | E117: 5.578 | F117: 5.615 | G117: 5.662 | H117: 5.698 | I117: 5.721 | J117: 5.755 | K117: 5.805 | L117: 5.868 | M117: 5.911 | N117: 5.911 | O117: 5.911 | P117: 5.911 | Q117: 5.911 | R117: 5.911 | S117: 5.911 | T117: 5.911 | U117: 5.911 | V117: 5.911 | W117: 5.911 | X117: 5.911
B118: DVY13 | C118: 0 | E118: 8.73 | F118: 8.873 | G118: 9.089 | H118: 9.185 | I118: 9.222 | J118: 9.345 | K118: 9.591 | L118: 9.797 | M118: 9.727 | N118: 9.727 | O118: 9.727 | P118: 9.727 | Q118: 9.727 | R118: 9.727 | S118: 9.727 | T118: 9.727 | U118: 9.727 | V118: 9.727 | W118: 9.727 | X118: 9.727
B119: DVY14 | C119: 0 | E119: 8.55 | F119: 8.6 | G119: 8.683 | H119: 8.753 | I119: 8.786 | J119: 8.836 | K119: 8.926 | L119: 9.039 | M119: 9.099 | N119: 9.099 | O119: 9.099 | P119: 9.099 | Q119: 9.099 | R119: 9.099 | S119: 9.099 | T119: 9.099 | U119: 9.099 | V119: 9.099 | W119: 9.099 | X119: 9.099
B120: DVY21 | C120: 0 | E120: 7.754 | F120: 7.814 | G120: 7.877 | H120: 7.927 | I120: 7.96 | J120: 8.01 | K120: 8.09 | L120: 8.173 | M120: 8.223 | N120: 8.223 | O120: 8.223 | P120: 8.223 | Q120: 8.223 | R120: 8.223 | S120: 8.223 | T120: 8.223 | U120: 8.223 | V120: 8.223 | W120: 8.223 | X120: 8.223
B121: DVY22 | C121: 0 | E121: 6.97 | F121: 7 | G121: 7.056 | H121: 7.102 | I121: 7.132 | J121: 7.162 | K121: 7.222 | L121: 7.295 | M121: 7.358 | N121: 7.358 | O121: 7.358 | P121: 7.358 | Q121: 7.358 | R121: 7.358 | S121: 7.358 | T121: 7.358 | U121: 7.358 | V121: 7.358 | W121: 7.358 | X121: 7.358
B122: DVY23 | C122: 0 | E122: 8.773 | F122: 8.886 | G122: 9.052 | H122: 9.192 | I122: 9.249 | J122: 9.322 | K122: 9.508 | L122: 9.724 | M122: 9.788 | N122: 9.788 | O122: 9.788 | P122: 9.788 | Q122: 9.788 | R122: 9.788 | S122: 9.788 | T122: 9.788 | U122: 9.788 | V122: 9.788 | W122: 9.788 | X122: 9.788
B123: DVY24 | C123: 0 | E123: 12.215 | F123: 12.258 | G123: 12.311 | H123: 12.361 | I123: 12.391 | J123: 12.417 | K123: 12.48 | L123: 12.563 | M123: 12.633 | N123: 12.633 | O123: 12.633 | P123: 12.633 | Q123: 12.633 | R123: 12.633 | S123: 12.633 | T123: 12.633 | U123: 12.633 | V123: 12.633 | W123: 12.633 | X123: 12.633
B124: DVY31 | C124: 0 | E124: 8.084 | F124: 8.135 | G124: 8.202 | H124: 8.255 | I124: 8.285 | J124: 8.339 | K124: 8.426 | L124: 8.519 | M124: 8.568 | N124: 8.568 | O124: 8.568 | P124: 8.568 | Q124: 8.568 | R124: 8.568 | S124: 8.568 | T124: 8.568 | U124: 8.568 | V124: 8.568 | W124: 8.568 | X124: 8.568
B125: DVY32 | C125: 0 | E125: 6.205 | F125: 6.238 | G125: 6.288 | H125: 6.331 | I125: 6.361 | J125: 6.391 | K125: 6.444 | L125: 6.514 | M125: 6.567 | N125: 6.567 | O125: 6.567 | P125: 6.567 | Q125: 6.567 | R125: 6.567 | S125: 6.567 | T125: 6.567 | U125: 6.567 | V125: 6.567 | W125: 6.567 | X125: 6.567
B126: DVY33 | C126: 0 | E126: 7.517 | F126: 7.648 | G126: 7.771 | H126: 7.883 | I126: 7.926 | J126: 7.976 | K126: 8.102 | L126: 8.267 | M126: 8.342 | N126: 8.342 | O126: 8.342 | P126: 8.342 | Q126: 8.342 | R126: 8.342 | S126: 8.342 | T126: 8.342 | U126: 8.342 | V126: 8.342 | W126: 8.342 | X126: 8.342
B127: DVY34 | C127: 0 | E127: 6.422 | F127: 6.57 | G127: 6.663 | H127: 6.722 | I127: 6.752 | J127: 6.809 | K127: 6.923 | L127: 7.032 | M127: 7.047 | N127: 7.047 | O127: 7.047 | P127: 7.047 | Q127: 7.047 | R127: 7.047 | S127: 7.047 | T127: 7.047 | U127: 7.047 | V127: 7.047 | W127: 7.047 | X127: 7.047
B128: EB11 | C128: 1 | E128: 6.831 | F128: 6.811 | G128: 6.81 | H128: 6.813 | I128: 6.827 | J128: 6.82 | K128: 6.848 | L128: 6.877 | M128: 6.883 | N128: 6.883 | O128: 6.883 | P128: 6.883 | Q128: 6.883 | R128: 6.883 | S128: 6.883 | T128: 6.883 | U128: 6.883 | V128: 6.883 | W128: 6.883 | X128: 6.883
B129: EB12 | C129: 1 | E129: 3.816 | F129: 3.873 | G129: 3.956 | H129: 4.019 | I129: 4.062 | J129: 4.112 | K129: 4.181 | L129: 4.294 | M129: 4.347 | N129: 4.347 | O129: 4.347 | P129: 4.347 | Q129: 4.347 | R129: 4.347 | S129: 4.347 | T129: 4.347 | U129: 4.347 | V129: 4.347 | W129: 4.347 | X129: 4.347
B130: EB13 | C130: 0 | E130: 2.97 | F130: 2.99 | G130: 3.023 | H130: 3.053 | I130: 3.073 | J130: 3.103 | K130: 3.133 | L130: 3.176 | M130: 3.216 | N130: 3.216 | O130: 3.216 | P130: 3.216 | Q130: 3.216 | R130: 3.216 | S130: 3.216 | T130: 3.216 | U130: 3.216 | V130: 3.216 | W130: 3.216 | X130: 3.216
B131: EB14 | C131: 1 | E131: 4.275 | F131: 4.349 | G131: 4.445 | H131: 4.525 | I131: 4.595 | J131: 4.661 | K131: 4.761 | L131: 4.881 | M131: 4.947 | N131: 4.947 | O131: 4.947 | P131: 4.947 | Q131: 4.947 | R131: 4.947 | S131: 4.947 | T131: 4.947 | U131: 4.947 | V131: 4.947 | W131: 4.947 | X131: 4.947
B132: EB21 | C132: 1 | E132: 4.376 | F132: 4.351 | G132: 4.365 | H132: 4.378 | I132: 4.385 | J132: 4.422 | K132: 4.469 | L132: 4.532 | M132: 4.585 | N132: 4.585 | O132: 4.585 | P132: 4.585 | Q132: 4.585 | R132: 4.585 | S132: 4.585 | T132: 4.585 | U132: 4.585 | V132: 4.585 | W132: 4.585 | X132: 4.585
B133: EB22 | C133: 1 | E133: 4.899 | F133: 4.919 | G133: 4.979 | H133: 5.026 | I133: 5.059 | J133: 5.109 | K133: 5.178 | L133: 5.288 | M133: 5.325 | N133: 5.325 | O133: 5.325 | P133: 5.325 | Q133: 5.325 | R133: 5.325 | S133: 5.325 | T133: 5.325 | U133: 5.325 | V133: 5.325 | W133: 5.325 | X133: 5.325
B134: EB23 | C134: 0 | E134: 5.12 | F134: 5.127 | G134: 5.137 | H134: 5.157 | I134: 5.144 | J134: 5.144 | K134: 5.164 | L134: 5.194 | M134: 5.201 | N134: 5.201 | O134: 5.201 | P134: 5.201 | Q134: 5.201 | R134: 5.201 | S134: 5.201 | T134: 5.201 | U134: 5.201 | V134: 5.201 | W134: 5.201 | X134: 5.201
B135: EB24 | C135: 0 | E135: 3.934 | F135: 3.967 | G135: 4.01 | H135: 4.043 | I135: 4.073 | J135: 4.103 | K135: 4.146 | L135: 4.203 | M135: 4.239 | N135: 4.239 | O135: 4.239 | P135: 4.239 | Q135: 4.239 | R135: 4.239 | S135: 4.239 | T135: 4.239 | U135: 4.239 | V135: 4.239 | W135: 4.239 | X135: 4.239
B136: EB31 | C136: 1 | E136: 5.838 | F136: 5.815 | G136: 5.826 | H136: 5.826 | I136: 5.807 | J136: 5.801 | K136: 5.815 | L136: 5.829 | M136: 5.835 | N136: 5.835 | O136: 5.835 | P136: 5.835 | Q136: 5.835 | R136: 5.835 | S136: 5.835 | T136: 5.835 | U136: 5.835 | V136: 5.835 | W136: 5.835 | X136: 5.835
B137: EB32 | C137: 1 | E137: 8.079 | F137: 8.194 | G137: 8.353 | H137: 8.493 | I137: 8.59 | J137: 8.685 | K137: 8.846 | L137: 9.059 | M137: 9.216 | N137: 9.216 | O137: 9.216 | P137: 9.216 | Q137: 9.216 | R137: 9.216 | S137: 9.216 | T137: 9.216 | U137: 9.216 | V137: 9.216 | W137: 9.216 | X137: 9.216
B138: EB33 | C138: 1 | E138: 6.994 | F138: 7.037 | G138: 7.087 | H138: 7.117 | I138: 7.14 | J138: 7.163 | K138: 7.208 | L138: 7.295 | M138: 7.319 | N138: 7.319 | O138: 7.319 | P138: 7.319 | Q138: 7.319 | R138: 7.319 | S138: 7.319 | T138: 7.319 | U138: 7.319 | V138: 7.319 | W138: 7.319 | X138: 7.319
B139: EL22 | C139: 0 | E139: 3.299 | F139: 3.332 | G139: 3.381 | H139: 3.428 | I139: 3.454 | J139: 3.477 | K139: 3.527 | L139: 3.587 | M139: 3.623 | N139: 3.623 | O139: 3.623 | P139: 3.623 | Q139: 3.623 | R139: 3.623 | S139: 3.623 | T139: 3.623 | U139: 3.623 | V139: 3.623 | W139: 3.623 | X139: 3.623
B140: EL23 | C140: 1 | E140: 4.302 | F140: 4.324 | G140: 4.37 | H140: 4.41 | I140: 4.426 | J140: 4.459 | K140: 4.515 | L140: 4.585 | M140: 4.615 | N140: 4.615 | O140: 4.615 | P140: 4.615 | Q140: 4.615 | R140: 4.615 | S140: 4.615 | T140: 4.615 | U140: 4.615 | V140: 4.615 | W140: 4.615 | X140: 4.615
B141: EL24 | C141: 0 | E141: 2.883 | F141: 2.843 | G141: 2.842 | H141: 2.842 | I141: 2.845 | J141: 2.845 | K141: 2.868 | L141: 2.888 | M141: 2.898 | N141: 2.898 | O141: 2.898 | P141: 2.898 | Q141: 2.898 | R141: 2.898 | S141: 2.898 | T141: 2.898 | U141: 2.898 | V141: 2.898 | W141: 2.898 | X141: 2.898
B142: EL25 | C142: 0 | E142: 4.396 | F142: 4.442 | G142: 4.505 | H142: 4.555 | I142: 4.585 | J142: 4.618 | K142: 4.674 | L142: 4.744 | M142: 4.774 | N142: 4.774 | O142: 4.774 | P142: 4.774 | Q142: 4.774 | R142: 4.774 | S142: 4.774 | T142: 4.774 | U142: 4.774 | V142: 4.774 | W142: 4.774 | X142: 4.774
B143: EL26 | C143: 0 | E143: 2.952 | F143: 2.928 | G143: 2.918 | H143: 2.915 | I143: 2.905 | J143: 2.902 | K143: 2.895 | L143: 2.902 | M143: 2.902 | N143: 2.902 | O143: 2.902 | P143: 2.902 | Q143: 2.902 | R143: 2.902 | S143: 2.902 | T143: 2.902 | U143: 2.902 | V143: 2.902 | W143: 2.902 | X143: 2.902
B144: EL31 | C144: 1 | E144: 4.566 | F144: 4.599 | G144: 4.642 | H144: 4.682 | I144: 4.709 | J144: 4.735 | K144: 4.791 | L144: 4.848 | M144: 4.878 | N144: 4.878 | O144: 4.878 | P144: 4.878 | Q144: 4.878 | R144: 4.878 | S144: 4.878 | T144: 4.878 | U144: 4.878 | V144: 4.878 | W144: 4.878 | X144: 4.878
B145: EL32 | C145: 0 | E145: 3.073 | F145: 3.083 | G145: 3.12 | H145: 3.14 | I145: 3.153 | J145: 3.173 | K145: 3.213 | L145: 3.259 | M145: 3.276 | N145: 3.276 | O145: 3.276 | P145: 3.276 | Q145: 3.276 | R145: 3.276 | S145: 3.276 | T145: 3.276 | U145: 3.276 | V145: 3.276 | W145: 3.276 | X145: 3.276
B146: EL33 | C146: 0 | E146: 4.099 | F146: 4.112 | G146: 4.152 | H146: 4.188 | I146: 4.194 | J146: 4.21 | K146: 4.256 | L146: 4.309 | M146: 4.342 | N146: 4.342 | O146: 4.342 | P146: 4.342 | Q146: 4.342 | R146: 4.342 | S146: 4.342 | T146: 4.342 | U146: 4.342 | V146: 4.342 | W146: 4.342 | X146: 4.342
B147: EL34 | C147: 0 | E147: 2.661 | F147: 2.675 | G147: 2.705 | H147: 2.732 | I147: 2.749 | J147: 2.772 | K147: 2.805 | L147: 2.845 | M147: 2.865 | N147: 2.865 | O147: 2.865 | P147: 2.865 | Q147: 2.865 | R147: 2.865 | S147: 2.865 | T147: 2.865 | U147: 2.865 | V147: 2.865 | W147: 2.865 | X147: 2.865
B148: EL35 | C148: 1 | E148: 5.425 | F148: 5.41 | G148: 5.425 | H148: 5.44 | I148: 5.444 | J148: 5.445 | K148: 5.469 | L148: 5.516 | M148: 5.527 | N148: 5.527 | O148: 5.527 | P148: 5.527 | Q148: 5.527 | R148: 5.527 | S148: 5.527 | T148: 5.527 | U148: 5.527 | V148: 5.527 | W148: 5.527 | X148: 5.527
B149: EM01 | C149: 0 | E149: 3.744 | F149: 3.744 | G149: 3.753 | H149: 3.757 | I149: 3.737 | J149: 3.73 | K149: 3.736 | L149: 3.736 | M149: 3.723 | N149: 3.723 | O149: 3.723 | P149: 3.723 | Q149: 3.723 | R149: 3.723 | S149: 3.723 | T149: 3.723 | U149: 3.723 | V149: 3.723 | W149: 3.723 | X149: 3.723
B150: EM02 | C150: 0 | E150: 9.991 | F150: 10.048 | G150: 10.137 | H150: 10.2 | I150: 10.24 | J150: 10.281 | K150: 10.357 | L150: 10.44 | M150: 10.48 | N150: 10.48 | O150: 10.48 | P150: 10.48 | Q150: 10.48 | R150: 10.48 | S150: 10.48 | T150: 10.48 | U150: 10.48 | V150: 10.48 | W150: 10.48 | X150: 10.48
B151: EM03 | C151: 0 | E151: 3.977 | F151: 3.96 | G151: 3.96 | H151: 3.966 | I151: 3.956 | J151: 3.959 | K151: 3.969 | L151: 3.982 | M151: 3.979 | N151: 3.979 | O151: 3.979 | P151: 3.979 | Q151: 3.979 | R151: 3.979 | S151: 3.979 | T151: 3.979 | U151: 3.979 | V151: 3.979 | W151: 3.979 | X151: 3.979
B152: EM05 | C152: 1 | E152: 5.724 | F152: 5.791 | G152: 5.89 | H152: 5.956 | I152: 6.019 | J152: 6.099 | K152: 6.188 | L152: 6.323 | M152: 6.391 | N152: 6.391 | O152: 6.391 | P152: 6.391 | Q152: 6.391 | R152: 6.391 | S152: 6.391 | T152: 6.391 | U152: 6.391 | V152: 6.391 | W152: 6.391 | X152: 6.391
B153: EM06 | C153: 1 | E153: 4.169 | F153: 4.178 | G153: 4.224 | H153: 4.251 | I153: 4.274 | J153: 4.31 | K153: 4.369 | L153: 4.449 | M153: 4.485 | N153: 4.485 | O153: 4.485 | P153: 4.485 | Q153: 4.485 | R153: 4.485 | S153: 4.485 | T153: 4.485 | U153: 4.485 | V153: 4.485 | W153: 4.485 | X153: 4.485
B154: EM07 | C154: 1 | E154: 3.672 | F154: 3.706 | G154: 3.745 | H154: 3.781 | I154: 3.814 | J154: 3.864 | K154: 3.92 | L154: 3.997 | M154: 4.03 | N154: 4.03 | O154: 4.03 | P154: 4.03 | Q154: 4.03 | R154: 4.03 | S154: 4.03 | T154: 4.03 | U154: 4.03 | V154: 4.03 | W154: 4.03 | X154: 4.03
B155: EM08 | C155: 1 | E155: 4.012 | F155: 4.055 | G155: 4.125 | H155: 4.171 | I155: 4.218 | J155: 4.258 | K155: 4.321 | L155: 4.404 | M155: 4.441 | N155: 4.441 | O155: 4.441 | P155: 4.441 | Q155: 4.441 | R155: 4.441 | S155: 4.441 | T155: 4.441 | U155: 4.441 | V155: 4.441 | W155: 4.441 | X155: 4.441
B156: EM09 | C156: 1 | E156: 2.819 | F156: 2.852 | G156: 2.892 | H156: 2.935 | I156: 2.958 | J156: 2.988 | K156: 3.031 | L156: 3.088 | M156: 3.124 | N156: 3.124 | O156: 3.124 | P156: 3.124 | Q156: 3.124 | R156: 3.124 | S156: 3.124 | T156: 3.124 | U156: 3.124 | V156: 3.124 | W156: 3.124 | X156: 3.124
B157: EM10 | C157: 1 | E157: 4.327 | F157: 4.367 | G157: 4.437 | H157: 4.501 | I157: 4.537 | J157: 4.58 | K157: 4.643 | L157: 4.729 | M157: 4.797 | N157: 4.797 | O157: 4.797 | P157: 4.797 | Q157: 4.797 | R157: 4.797 | S157: 4.797 | T157: 4.797 | U157: 4.797 | V157: 4.797 | W157: 4.797 | X157: 4.797
B158: EM11 | C158: 0 | E158: 3.2 | F158: 3.226 | G158: 3.263 | H158: 3.283 | I158: 3.314 | J158: 3.34 | K158: 3.393 | L158: 3.454 | M158: 3.484 | N158: 3.484 | O158: 3.484 | P158: 3.484 | Q158: 3.484 | R158: 3.484 | S158: 3.484 | T158: 3.484 | U158: 3.484 | V158: 3.484 | W158: 3.484 | X158: 3.484
B159: EW01 | C159: 1 | E159: 4.984 | F159: 5.14 | G159: 5.313 | H159: 5.456 | I159: 5.586 | J159: 5.726 | K159: 5.919 | L159: 6.092 | M159: 6.229 | N159: 6.229 | O159: 6.229 | P159: 6.229 | Q159: 6.229 | R159: 6.229 | S159: 6.229 | T159: 6.229 | U159: 6.229 | V159: 6.229 | W159: 6.229 | X159: 6.229
B160: EW02 | C160: 1 | E160: 4.025 | F160: 4.098 | G160: 4.184 | H160: 4.244 | I160: 4.281 | J160: 4.344 | K160: 4.434 | L160: 4.511 | M160: 4.547 | N160: 4.547 | O160: 4.547 | P160: 4.547 | Q160: 4.547 | R160: 4.547 | S160: 4.547 | T160: 4.547 | U160: 4.547 | V160: 4.547 | W160: 4.547 | X160: 4.547
B161: EW03 | C161: 1 | E161: 1.783 | F161: 1.81 | G161: 1.833 | H161: 1.85 | I161: 1.863 | J161: 1.883 | K161: 1.916 | L161: 1.943 | M161: 1.956 | N161: 1.956 | O161: 1.956 | P161: 1.956 | Q161: 1.956 | R161: 1.956 | S161: 1.956 | T161: 1.956 | U161: 1.956 | V161: 1.956 | W161: 1.956 | X161: 1.956
B162: EW08 | C162: 1 | E162: 2.69 | F162: 2.766 | G162: 2.853 | H162: 2.916 | I162: 2.962 | J162: 3.032 | K162: 3.134 | L162: 3.214 | M162: 3.259 | N162: 3.259 | O162: 3.259 | P162: 3.259 | Q162: 3.259 | R162: 3.259 | S162: 3.259 | T162: 3.259 | U162: 3.259 | V162: 3.259 | W162: 3.259 | X162: 3.259
B163: EW09 | C163: 1 | E163: 4.06 | F163: 4.15 | G163: 4.25 | H163: 4.32 | I163: 4.37 | J163: 4.44 | K163: 4.55 | L163: 4.646 | M163: 4.703 | N163: 4.703 | O163: 4.703 | P163: 4.703 | Q163: 4.703 | R163: 4.703 | S163: 4.703 | T163: 4.703 | U163: 4.703 | V163: 4.703 | W163: 4.703 | X163: 4.703
B164: EW12 | C164: 1 | E164: 4.717 | F164: 4.84 | G164: 4.99 | H164: 5.093 | I164: 5.166 | J164: 5.276 | K164: 5.425 | L164: 5.568 | M164: 5.652 | N164: 5.652 | O164: 5.652 | P164: 5.652 | Q164: 5.652 | R164: 5.652 | S164: 5.652 | T164: 5.652 | U164: 5.652 | V164: 5.652 | W164: 5.652 | X164: 5.652
B165: EW14 | C165: 1 | E165: 4.119 | F165: 4.152 | G165: 4.208 | H165: 4.248 | I165: 4.265 | J165: 4.308 | K165: 4.371 | L165: 4.441 | M165: 4.474 | N165: 4.474 | O165: 4.474 | P165: 4.474 | Q165: 4.474 | R165: 4.474 | S165: 4.474 | T165: 4.474 | U165: 4.474 | V165: 4.474 | W165: 4.474 | X165: 4.474
B166: FSH11 | C166: 1 | E166: 3.033 | F166: 3.045 | G166: 3.071 | H166: 3.093 | I166: 3.129 | J166: 3.149 | K166: 3.201 | L166: 3.303 | M166: 3.335 | N166: 3.335 | O166: 3.335 | P166: 3.335 | Q166: 3.335 | R166: 3.335 | S166: 3.335 | T166: 3.335 | U166: 3.335 | V166: 3.335 | W166: 3.335 | X166: 3.335
B167: FSH12 | C167: 1 | E167: 6.982 | F167: 6.995 | G167: 7.032 | H167: 7.058 | I167: 7.054 | J167: 7.057 | K167: 7.104 | L167: 7.183 | M167: 7.2 | N167: 7.2 | O167: 7.2 | P167: 7.2 | Q167: 7.2 | R167: 7.2 | S167: 7.2 | T167: 7.2 | U167: 7.2 | V167: 7.2 | W167: 7.2 | X167: 7.2
B168: FSH13 | C168: 1 | E168: 8.324 | F168: 8.344 | G168: 8.41 | H168: 8.459 | I168: 8.462 | J168: 8.506 | K168: 8.576 | L168: 8.695 | M168: 8.734 | N168: 8.734 | O168: 8.734 | P168: 8.734 | Q168: 8.734 | R168: 8.734 | S168: 8.734 | T168: 8.734 | U168: 8.734 | V168: 8.734 | W168: 8.734 | X168: 8.734
B169: FSH21 | C169: 1 | E169: 5.171 | F169: 5.197 | G169: 5.246 | H169: 5.303 | I169: 5.322 | J169: 5.342 | K169: 5.408 | L169: 5.494 | M169: 5.536 | N169: 5.536 | O169: 5.536 | P169: 5.536 | Q169: 5.536 | R169: 5.536 | S169: 5.536 | T169: 5.536 | U169: 5.536 | V169: 5.536 | W169: 5.536 | X169: 5.536
B170: FSH22 | C170: 1 | E170: 8.702 | F170: 8.657 | G170: 8.635 | H170: 8.617 | I170: 8.569 | J170: 8.6 | K170: 8.645 | L170: 8.717 | M170: 8.77 | N170: 8.77 | O170: 8.77 | P170: 8.77 | Q170: 8.77 | R170: 8.77 | S170: 8.77 | T170: 8.77 | U170: 8.77 | V170: 8.77 | W170: 8.77 | X170: 8.77
B171: FSH23 | C171: 1 | E171: 2.527 | F171: 2.504 | G171: 2.494 | H171: 2.484 | I171: 2.461 | J171: 2.444 | K171: 2.444 | L171: 2.447 | M171: 2.444 | N171: 2.444 | O171: 2.444 | P171: 2.444 | Q171: 2.444 | R171: 2.444 | S171: 2.444 | T171: 2.444 | U171: 2.444 | V171: 2.444 | W171: 2.444 | X171: 2.444
B172: FSH31 | C172: 1 | E172: 8.406 | F172: 8.45 | G172: 8.53 | H172: 8.58 | I172: 8.616 | J172: 8.653 | K172: 8.733 | L172: 8.84 | M172: 8.887 | N172: 8.887 | O172: 8.887 | P172: 8.887 | Q172: 8.887 | R172: 8.887 | S172: 8.887 | T172: 8.887 | U172: 8.887 | V172: 8.887 | W172: 8.887 | X172: 8.887
B173: FSH32 | C173: 2 | E173: 8.592 | F173: 8.735 | G173: 8.954 | H173: 9.037 | I173: 9.04 | J173: 9.173 | K173: 9.436 | L173: 9.652 | M173: 9.539 | N173: 9.539 | O173: 9.539 | P173: 9.539 | Q173: 9.539 | R173: 9.539 | S173: 9.539 | T173: 9.539 | U173: 9.539 | V173: 9.539 | W173: 9.539 | X173: 9.539
B174: FSH33 | C174: 1 | E174: 6.812 | F174: 6.859 | G174: 6.899 | H174: 6.922 | I174: 6.929 | J174: 6.976 | K174: 7.049 | L174: 7.129 | M174: 7.15 | N174: 7.15 | O174: 7.15 | P174: 7.15 | Q174: 7.15 | R174: 7.15 | S174: 7.15 | T174: 7.15 | U174: 7.15 | V174: 7.15 | W174: 7.15 | X174: 7.15
B175: FSH34 | C175: 1 | E175: 5.806 | F175: 5.885 | G175: 5.981 | H175: 6.065 | I175: 6.132 | J175: 6.195 | K175: 6.298 | L175: 6.436 | M175: 6.517 | N175: 6.517 | O175: 6.517 | P175: 6.517 | Q175: 6.517 | R175: 6.517 | S175: 6.517 | T175: 6.517 | U175: 6.517 | V175: 6.517 | W175: 6.517 | X175: 6.517
B176: FTN11 | C176: 1 | E176: 6.929 | F176: 6.839 | G176: 6.805 | H176: 6.786 | I176: 6.744 | J176: 6.721 | K176: 6.728 | L176: 6.762 | M176: 6.766 | N176: 6.766 | O176: 6.766 | P176: 6.766 | Q176: 6.766 | R176: 6.766 | S176: 6.766 | T176: 6.766 | U176: 6.766 | V176: 6.766 | W176: 6.766 | X176: 6.766
B177: FTN12 | C177: 1 | E177: 5.442 | F177: 5.427 | G177: 5.449 | H177: 5.468 | I177: 5.468 | J177: 5.474 | K177: 5.524 | L177: 5.6 | M177: 5.633 | N177: 5.633 | O177: 5.633 | P177: 5.633 | Q177: 5.633 | R177: 5.633 | S177: 5.633 | T177: 5.633 | U177: 5.633 | V177: 5.633 | W177: 5.633 | X177: 5.633
B178: FTN13 | C178: 1 | E178: 3.422 | F178: 3.432 | G178: 3.452 | H178: 3.465 | I178: 3.462 | J178: 3.459 | K178: 3.475 | L178: 3.505 | M178: 3.512 | N178: 3.512 | O178: 3.512 | P178: 3.512 | Q178: 3.512 | R178: 3.512 | S178: 3.512 | T178: 3.512 | U178: 3.512 | V178: 3.512 | W178: 3.512 | X178: 3.512
B179: FTN14 | C179: 1 | E179: 4.629 | F179: 4.646 | G179: 4.679 | H179: 4.698 | I179: 4.717 | J179: 4.752 | K179: 4.815 | L179: 4.872 | M179: 4.908 | N179: 4.908 | O179: 4.908 | P179: 4.908 | Q179: 4.908 | R179: 4.908 | S179: 4.908 | T179: 4.908 | U179: 4.908 | V179: 4.908 | W179: 4.908 | X179: 4.908
B180: FTN21 | C180: 2 | E180: 3.792 | F180: 3.805 | G180: 3.845 | H180: 3.872 | I180: 3.882 | J180: 3.895 | K180: 3.932 | L180: 3.982 | M180: 4.005 | N180: 4.005 | O180: 4.005 | P180: 4.005 | Q180: 4.005 | R180: 4.005 | S180: 4.005 | T180: 4.005 | U180: 4.005 | V180: 4.005 | W180: 4.005 | X180: 4.005
B181: FTN22 | C181: 0 | E181: 5.843 | F181: 5.819 | G181: 5.815 | H181: 5.811 | I181: 5.797 | J181: 5.8 | K181: 5.8 | L181: 5.809 | M181: 5.822 | N181: 5.822 | O181: 5.822 | P181: 5.822 | Q181: 5.822 | R181: 5.822 | S181: 5.822 | T181: 5.822 | U181: 5.822 | V181: 5.822 | W181: 5.822 | X181: 5.822
B182: FTN23 | C182: 2 | E182: 6.726 | F182: 6.73 | G182: 6.776 | H182: 6.822 | I182: 6.849 | J182: 6.891 | K182: 6.951 | L182: 7.05 | M182: 7.107 | N182: 7.107 | O182: 7.107 | P182: 7.107 | Q182: 7.107 | R182: 7.107 | S182: 7.107 | T182: 7.107 | U182: 7.107 | V182: 7.107 | W182: 7.107 | X182: 7.107
B183: FTN24 | C183: 1 | E183: 6.881 | F183: 6.944 | G183: 7.02 | H183: 7.097 | I183: 7.137 | J183: 7.19 | K183: 7.273 | L183: 7.382 | M183: 7.449 | N183: 7.449 | O183: 7.449 | P183: 7.449 | Q183: 7.449 | R183: 7.449 | S183: 7.449 | T183: 7.449 | U183: 7.449 | V183: 7.449 | W183: 7.449 | X183: 7.449
B184: FTN25 | C184: 1 | E184: 11.24 | F184: 11.296 | G184: 11.41 | H184: 11.466 | I184: 11.506 | J184: 11.553 | K184: 11.662 | L184: 11.813 | M184: 11.88 | N184: 11.88 | O184: 11.88 | P184: 11.88 | Q184: 11.88 | R184: 11.88 | S184: 11.88 | T184: 11.88 | U184: 11.88 | V184: 11.88 | W184: 11.88 | X184: 11.88
B185: GW01 | C185: 0 | E185: 8.289 | F185: 8.341 | G185: 8.407 | H185: 8.477 | I185: 8.53 | J185: 8.583 | K185: 8.658 | L185: 8.741 | M185: 8.824 | N185: 8.824 | O185: 8.824 | P185: 8.824 | Q185: 8.824 | R185: 8.824 | S185: 8.824 | T185: 8.824 | U185: 8.824 | V185: 8.824 | W185: 8.824 | X185: 8.824
B186: GW02 | C186: 1 | E186: 8.478 | F186: 8.487 | G186: 8.493 | H186: 8.509 | I186: 8.539 | J186: 8.549 | K186: 8.589 | L186: 8.658 | M186: 8.706 | N186: 8.706 | O186: 8.706 | P186: 8.706 | Q186: 8.706 | R186: 8.706 | S186: 8.706 | T186: 8.706 | U186: 8.706 | V186: 8.706 | W186: 8.706 | X186: 8.706
B187: GW03 | C187: 1 | E187: 4.738 | F187: 4.755 | G187: 4.808 | H187: 4.858 | I187: 4.907 | J187: 4.947 | K187: 5.016 | L187: 5.126 | M187: 5.183 | N187: 5.183 | O187: 5.183 | P187: 5.183 | Q187: 5.183 | R187: 5.183 | S187: 5.183 | T187: 5.183 | U187: 5.183 | V187: 5.183 | W187: 5.183 | X187: 5.183
B188: GW04 | C188: 1 | E188: 5.757 | F188: 5.663 | G188: 5.599 | H188: 5.562 | I188: 5.526 | J188: 5.514 | K188: 5.51 | L188: 5.546 | M188: 5.541 | N188: 5.541 | O188: 5.541 | P188: 5.541 | Q188: 5.541 | R188: 5.541 | S188: 5.541 | T188: 5.541 | U188: 5.541 | V188: 5.541 | W188: 5.541 | X188: 5.541
B189: GW05 | C189: 1 | E189: 3.931 | F189: 3.914 | G189: 3.983 | H189: 4.035 | I189: 4.089 | J189: 4.16 | K189: 4.261 | L189: 4.354 | M189: 4.412 | N189: 4.412 | O189: 4.412 | P189: 4.412 | Q189: 4.412 | R189: 4.412 | S189: 4.412 | T189: 4.412 | U189: 4.412 | V189: 4.412 | W189: 4.412 | X189: 4.412
B190: GW06 | C190: 1 | E190: 6.131 | F190: 6.124 | G190: 6.16 | H190: 6.206 | I190: 6.235 | J190: 6.291 | K190: 6.367 | L190: 6.464 | M190: 6.526 | N190: 6.526 | O190: 6.526 | P190: 6.526 | Q190: 6.526 | R190: 6.526 | S190: 6.526 | T190: 6.526 | U190: 6.526 | V190: 6.526 | W190: 6.526 | X190: 6.526
B191: GW07 | C191: 1 | E191: 5.828 | F191: 5.897 | G191: 5.987 | H191: 6.06 | I191: 6.099 | J191: 6.145 | K191: 6.241 | L191: 6.398 | M191: 6.425 | N191: 6.425 | O191: 6.425 | P191: 6.425 | Q191: 6.425 | R191: 6.425 | S191: 6.425 | T191: 6.425 | U191: 6.425 | V191: 6.425 | W191: 6.425 | X191: 6.425
B192: GW08 | C192: 1 | E192: 3.186 | F192: 3.214 | G192: 3.27 | H192: 3.35 | I192: 3.39 | J192: 3.46 | K192: 3.555 | L192: 3.665 | M192: 3.75 | N192: 3.75 | O192: 3.75 | P192: 3.75 | Q192: 3.75 | R192: 3.75 | S192: 3.75 | T192: 3.75 | U192: 3.75 | V192: 3.75 | W192: 3.75 | X192: 3.75
B193: GW10 | C193: 0 | E193: 2.948 | F193: 2.965 | G193: 3.015 | H193: 3.048 | I193: 3.084 | J193: 3.124 | K193: 3.171 | L193: 3.238 | M193: 3.288 | N193: 3.288 | O193: 3.288 | P193: 3.288 | Q193: 3.288 | R193: 3.288 | S193: 3.288 | T193: 3.288 | U193: 3.288 | V193: 3.288 | W193: 3.288 | X193: 3.288
B194: GW11 | C194: 1 | E194: 7.332 | F194: 7.335 | G194: 7.382 | H194: 7.445 | I194: 7.495 | J194: 7.585 | K194: 7.675 | L194: 7.774 | M194: 7.87 | N194: 7.87 | O194: 7.87 | P194: 7.87 | Q194: 7.87 | R194: 7.87 | S194: 7.87 | T194: 7.87 | U194: 7.87 | V194: 7.87 | W194: 7.87 | X194: 7.87
B195: GW12 | C195: 1 | E195: 5.784 | F195: 5.824 | G195: 5.91 | H195: 5.99 | I195: 6.047 | J195: 6.096 | K195: 6.222 | L195: 6.375 | M195: 6.426 | N195: 6.426 | O195: 6.426 | P195: 6.426 | Q195: 6.426 | R195: 6.426 | S195: 6.426 | T195: 6.426 | U195: 6.426 | V195: 6.426 | W195: 6.426 | X195: 6.426
B196: HGS21 | C196: 2 | E196: 11.737 | F196: 11.78 | G196: 11.85 | H196: 11.896 | I196: 11.919 | J196: 11.95 | K196: 12.04 | L196: 12.159 | M196: 12.246 | N196: 12.246 | O196: 12.246 | P196: 12.246 | Q196: 12.246 | R196: 12.246 | S196: 12.246 | T196: 12.246 | U196: 12.246 | V196: 12.246 | W196: 12.246 | X196: 12.246
B197: HGS22 | C197: 2 | E197: 7.79 | F197: 7.704 | G197: 7.658 | H197: 7.605 | I197: 7.525 | J197: 7.445 | K197: 7.41 | L197: 7.43 | M197: 7.391 | N197: 7.391 | O197: 7.391 | P197: 7.391 | Q197: 7.391 | R197: 7.391 | S197: 7.391 | T197: 7.391 | U197: 7.391 | V197: 7.391 | W197: 7.391 | X197: 7.391
B198: HGS23 | C198: 3 | E198: 4.565 | F198: 4.595 | G198: 4.655 | H198: 4.698 | I198: 4.725 | J198: 4.765 | K198: 4.842 | L198: 4.938 | M198: 4.998 | N198: 4.998 | O198: 4.998 | P198: 4.998 | Q198: 4.998 | R198: 4.998 | S198: 4.998 | T198: 4.998 | U198: 4.998 | V198: 4.998 | W198: 4.998 | X198: 4.998
B199: HGS31 | C199: 1 | E199: 7.277 | F199: 7.246 | G199: 7.253 | H199: 7.268 | I199: 7.267 | J199: 7.296 | K199: 7.342 | L199: 7.404 | M199: 7.433 | N199: 7.433 | O199: 7.433 | P199: 7.433 | Q199: 7.433 | R199: 7.433 | S199: 7.433 | T199: 7.433 | U199: 7.433 | V199: 7.433 | W199: 7.433 | X199: 7.433
B200: HGS32 | C200: 1 | E200: 7.351 | F200: 7.454 | G200: 7.614 | H200: 7.681 | I200: 7.695 | J200: 7.788 | K200: 7.981 | L200: 8.138 | M200: 8.068 | N200: 8.068 | O200: 8.068 | P200: 8.068 | Q200: 8.068 | R200: 8.068 | S200: 8.068 | T200: 8.068 | U200: 8.068 | V200: 8.068 | W200: 8.068 | X200: 8.068
B201: HGS33 | C201: 4 | E201: 11.386 | F201: 11.292 | G201: 11.27 | H201: 11.2 | I201: 11.108 | J201: 11.029 | K201: 11.015 | L201: 11.036 | M201: 10.977 | N201: 10.977 | O201: 10.977 | P201: 10.977 | Q201: 10.977 | R201: 10.977 | S201: 10.977 | T201: 10.977 | U201: 10.977 | V201: 10.977 | W201: 10.977 | X201: 10.977
B202: HT01 | C202: 1 | E202: 5.973 | F202: 6.042 | G202: 6.135 | H202: 6.215 | I202: 6.278 | J202: 6.358 | K202: 6.454 | L202: 6.581 | M202: 6.657 | N202: 6.657 | O202: 6.657 | P202: 6.657 | Q202: 6.657 | R202: 6.657 | S202: 6.657 | T202: 6.657 | U202: 6.657 | V202: 6.657 | W202: 6.657 | X202: 6.657
B203: HT02 | C203: 1 | E203: 5.888 | F203: 5.793 | G203: 5.836 | H203: 5.853 | I203: 5.865 | J203: 5.935 | K203: 6.061 | L203: 6.17 | M203: 6.173 | N203: 6.173 | O203: 6.173 | P203: 6.173 | Q203: 6.173 | R203: 6.173 | S203: 6.173 | T203: 6.173 | U203: 6.173 | V203: 6.173 | W203: 6.173 | X203: 6.173
B204: HT03 | C204: 0 | E204: 2.958 | F204: 2.971 | G204: 3.004 | H204: 3.014 | I204: 3.017 | J204: 3.037 | K204: 3.08 | L204: 3.12 | M204: 3.117 | N204: 3.117 | O204: 3.117 | P204: 3.117 | Q204: 3.117 | R204: 3.117 | S204: 3.117 | T204: 3.117 | U204: 3.117 | V204: 3.117 | W204: 3.117 | X204: 3.117
... 224 more rows

Sheet Calcs
A1: =bus -> United Energy
A2: =proj -> Proactive replacement of HV conductor
F4: =SUMIF($BX9:$BX30523,TRUE, F9:F30523) -> 787728.4904 | BH4: =SUMIF($BX9:$BX30523,TRUE, BH9:BH30523) -> 139191624.3 | BJ4: =SUMIF($BX9:$BX30523,TRUE, BJ9:BJ30523) -> 78869072.69 | BT4: =SUMIF($BX9:$BX30523,TRUE, BT9:BT30523) -> 133473900.7 | BV4: =SUMIF($BX9:$BX30523,TRUE, BV9:BV30523) -> 54604828.03 | BX4: =COUNTIF($BX$9:$BX$30523, TRUE) -> 4423
L6: Option 1 | AG6: Option 1 | BB6: Option 1 | BD6: Option 1 | BH6: Option 2 | BJ6: Option 2 | BL6: Option 2 | BN6: Option 2 | BP6: Option 1 | BR6: Option 2 | BT6: Option 2 | BV6: Option 2 | BX6: Selected
B7: GIS ID | C7: Feeder ID | D7: ZSS | E7: Operating | F7: Section length | G7: ZSS VCR | H7: No. of ACRs | I7: % of | L7: Probability of aged conductor failure | AG7: Weighted energy at risk (MWh) | BB7: PV of energy at | BD7: PV of unplanned | BF7: Probability of new | BH7: Total replacement | BJ7: PV of annualised | BL7: PV of energy at | BN7: PV of unplanned | BP7: Total risk PV | BR7: Total risk PV | BT7: Total benefits PV | BV7: NPV
E8: voltage | F8: (m) | I8: demand | L8: 2026-27 | M8: 2027-28 | N8: 2028-29 | O8: 2029-30 | P8: 2030-31 | Q8: 2031-32 | R8: 2032-33 | S8: 2033-34 | T8: 2034-35 | U8: 2035-36 | V8: 2036-37 | W8: 2037-38 | X8: 2038-39 | Y8: 2039-40 | Z8: 2040-41 | AA8: 2041-42 | AB8: 2042-43 | AC8: 2043-44 | AD8: 2044-45 | AE8: 2045-46 | AG8: 2026-27 | AH8: 2027-28 | AI8: 2028-29 | AJ8: 2029-30 | AK8: 2030-31 | AL8: 2031-32 | AM8: 2032-33 | AN8: 2033-34 | AO8: 2034-35 | AP8: 2035-36 | AQ8: 2036-37 | AR8: 2037-38 | AS8: 2038-39 | AT8: 2039-40 | AU8: 2040-41 | AV8: 2041-42 | AW8: 2042-43 | AX8: 2043-44 | AY8: 2044-45 | AZ8: 2045-46 | BB8: risk ($ 2023) | BD8: replacement ($ 2023) | BF8: conductor failure | BH8: cost ($ 2023) | BJ8: capex ($ 2023) | BL8: risk ($ 2023) | BN8: replacement ($ 2023) | BP8: ($ 2023) | BR8: ($ 2023)
B9: 49218922 | C9: RBD12 | D9: RBD | E9: 12.7kV | F9: 367.84 | G9: 35928.55571 | H9: =INDEX(Demand!$C$9:$C$428, MATCH($C9, Demand!$B$9:$B$428,0)) -> 2 | I9: =1/(H9+1) -> 0.3333333333 | L9: 0.002533527471 | M9: 0.002792197903 | N9: 0.003080799468 | O9: 0.003402991303 | P9: 0.003762894809 | Q9: 0.004165153257 | R9: 0.004614999192 | S9: 0.005118330643 | T9: 0.005681797318 | U9: 0.00631289809 | V9: 0.00702009128 | W9: 0.007812919404 | X9: 0.008702150328 | Y9: 0.009699936966 | Z9: 0.01081999801 | AA9: 0.01207782246 | AB9: 0.01349090109 | AC9: 0.01507898848 | AD9: 0.01686439957 | AE9: 0.01887234542 | AG9: =INDEX(Demand!E$9:E$428,MATCH($C9,Demand!$B$9:$B$428,0))*$I9*Assumptions!$G$45*Assumptions!$G$48 -> 1.45175 | AH9: =INDEX(Demand!F$9:F$428,MATCH($C9,Demand!$B$9:$B$428,0))*$I9*Assumptions!$G$45*Assumptions!$G$48 -> 1.4625 | AI9: =INDEX(Demand!G$9:G$428,MATCH($C9,Demand!$B$9:$B$428,0))*$I9*Assumptions!$G$45*Assumptions!$G$48 -> 1.48075 | AJ9: =INDEX(Demand!H$9:H$428,MATCH($C9,Demand!$B$9:$B$428,0))*$I9*Assumptions!$G$45*Assumptions!$G$48 -> 1.49575 | AK9: =INDEX(Demand!I$9:I$428,MATCH($C9,Demand!$B$9:$B$428,0))*$I9*Assumptions!$G$45*Assumptions!$G$48 -> 1.505 | AL9: =INDEX(Demand!J$9:J$428,MATCH($C9,Demand!$B$9:$B$428,0))*$I9*Assumptions!$G$45*Assumptions!$G$48 -> 1.515 | AM9: =INDEX(Demand!K$9:K$428,MATCH($C9,Demand!$B$9:$B$428,0))*$I9*Assumptions!$G$45*Assumptions!$G$48 -> 1.53575 | AN9: =INDEX(Demand!L$9:L$428,MATCH($C9,Demand!$B$9:$B$428,0))*$I9*Assumptions!$G$45*Assumptions!$G$48 -> 1.5665 | AO9: =INDEX(Demand!M$9:M$428,MATCH($C9,Demand!$B$9:$B$428,0))*$I9*Assumptions!$G$45*Assumptions!$G$48 -> 1.578 | AP9: =INDEX(Demand!N$9:N$428,MATCH($C9,Demand!$B$9:$B$428,0))*$I9*Assumptions!$G$45*Assumptions!$G$48 -> 1.578 | AQ9: =INDEX(Demand!O$9:O$428,MATCH($C9,Demand!$B$9:$B$428,0))*$I9*Assumptions!$G$45*Assumptions!$G$48 -> 1.578 | AR9: =INDEX(Demand!P$9:P$428,MATCH($C9,Demand!$B$9:$B$428,0))*$I9*Assumptions!$G$45*Assumptions!$G$48 -> 1.578 | AS9: =INDEX(Demand!Q$9:Q$428,MATCH($C9,Demand!$B$9:$B$428,0))*$I9*Assumptions!$G$45*Assumptions!$G$48 -> 1.578 | AT9: =INDEX(Demand!R$9:R$428,MATCH($C9,Demand!$B$9:$B$428,0))*$I9*Assumptions!$G$45*Assumptions!$G$48 -> 1.578 | AU9: =INDEX(Demand!S$9:S$428,MATCH($C9,Demand!$B$9:$B$428,0))*$I9*Assumptions!$G$45*Assumptions!$G$48 -> 1.578 | AV9: =INDEX(Demand!T$9:T$428,MATCH($C9,Demand!$B$9:$B$428,0))*$I9*Assumptions!$G$45*Assumptions!$G$48 -> 1.578 | AW9: =INDEX(Demand!U$9:U$428,MATCH($C9,Demand!$B$9:$B$428,0))*$I9*Assumptions!$G$45*Assumptions!$G$48 -> 1.578 | AX9: =INDEX(Demand!V$9:V$428,MATCH($C9,Demand!$B$9:$B$428,0))*$I9*Assumptions!$G$45*Assumptions!$G$48 -> 1.578 | AY9: =INDEX(Demand!W$9:W$428,MATCH($C9,Demand!$B$9:$B$428,0))*$I9*Assumptions!$G$45*Assumptions!$G$48 -> 1.578 | AZ9: =INDEX(Demand!X$9:X$428,MATCH($C9,Demand!$B$9:$B$428,0))*$I9*Assumptions!$G$45*Assumptions!$G$48 -> 1.578 | BB9: =SUMPRODUCT(($AG9:$AZ9)*(Misc_calcs!$G$29:$Z$29)*($L9:$AE9))*Calcs!$G9 -> 5839.700637 | BD9: =SUMPRODUCT(($L9:$AE9)*(Misc_calcs!$G$29:$Z$29))*$F9*Assumptions!$G$37*(1+Assumptions!$G$83) -> 8122.642926 | BF9: =Assumptions!$G$86*$F9 -> 0.002167423632 | BH9: =($F9*Assumptions!$G$37) -> 64997.328 | BJ9: =-SUMPRODUCT((PMT(real_disc,Assumptions!$G$40,BH9))*(Misc_calcs!$G$29:$Z$29)) -> 36828.93288 | BL9: =SUMPRODUCT(($AG9:$AZ9)*(Misc_calcs!$G$29:$Z$29))*$BF9*$G9 -> 1733.672475 | BN9: =SUMPRODUCT($BF9*(Misc_calcs!$G$29:$Z$29))*$F9*Assumptions!$G$37*(1+Assumptions!$G$83) -> 2444.321071 | BP9: =BB9+BD9 -> 13962.34356 | BR9: =BL9+BN9 -> 4177.993546 | BT9: =BP9-BR9 -> 9784.350017 | BV9: =BT9-BJ9 -> -27044.58286 | BX9: =BV9>0 -> FALSE | CG9: =BB9 -> 5839.700637 | CH9: =BC9 -> 0
B10: 49228522 | C10: DMA23 | D10: DMA | E10: 12.7kV | F10: 194.48 | G10: 32746.91746 | H10: =INDEX(Demand!$C$9:$C$428, MATCH($C10, Demand!$B$9:$B$428,0)) -> 3 | I10: 0.25 | L10: 0.00557920297 | M10: 0.00624856099 | N10: 0.007003255626 | O10: 0.00785450617 | P10: 0.00881503469 | Q10: 0.009899269697 | R10: 0.01112357765 | S10: 0.01250652608 | T10: 0.01406918271 | U10: 0.01583545547 | V10: 0.01783247908 | W10: 0.0200910546 | X10: 0.02264614913 | Y10: 0.02553746411 | Z10: 0.02881008146 | AA10: 0.03251519847 | AB10: 0.03507095818 | AC10: 0.03507095818 | AD10: 0.03507095818 | AE10: 0.03507095818 | AG10: =INDEX(Demand!E$9:E$428,MATCH($C10,Demand!$B$9:$B$428,0))*$I10*Assumptions!$G$45*Assumptions!$G$48 -> 1.2031875 | AH10: =INDEX(Demand!F$9:F$428,MATCH($C10,Demand!$B$9:$B$428,0))*$I10*Assumptions!$G$45*Assumptions!$G$48 -> 1.209 | AI10: =INDEX(Demand!G$9:G$428,MATCH($C10,Demand!$B$9:$B$428,0))*$I10*Assumptions!$G$45*Assumptions!$G$48 -> 1.2249375 | AJ10: =INDEX(Demand!H$9:H$428,MATCH($C10,Demand!$B$9:$B$428,0))*$I10*Assumptions!$G$45*Assumptions!$G$48 -> 1.238625 | AK10: =INDEX(Demand!I$9:I$428,MATCH($C10,Demand!$B$9:$B$428,0))*$I10*Assumptions!$G$45*Assumptions!$G$48 -> 1.245375 | AL10: =INDEX(Demand!J$9:J$428,MATCH($C10,Demand!$B$9:$B$428,0))*$I10*Assumptions!$G$45*Assumptions!$G$48 -> 1.2545625 | AM10: =INDEX(Demand!K$9:K$428,MATCH($C10,Demand!$B$9:$B$428,0))*$I10*Assumptions!$G$45*Assumptions!$G$48 -> 1.2706875 | AN10: =INDEX(Demand!L$9:L$428,MATCH($C10,Demand!$B$9:$B$428,0))*$I10*Assumptions!$G$45*Assumptions!$G$48 -> 1.28925 | AO10: =INDEX(Demand!M$9:M$428,MATCH($C10,Demand!$B$9:$B$428,0))*$I10*Assumptions!$G$45*Assumptions!$G$48 -> 1.3035 | AP10: =INDEX(Demand!N$9:N$428,MATCH($C10,Demand!$B$9:$B$428,0))*$I10*Assumptions!$G$45*Assumptions!$G$48 -> 1.3035 | AQ10: =INDEX(Demand!O$9:O$428,MATCH($C10,Demand!$B$9:$B$428,0))*$I10*Assumptions!$G$45*Assumptions!$G$48 -> 1.3035 | AR10: =INDEX(Demand!P$9:P$428,MATCH($C10,Demand!$B$9:$B$428,0))*$I10*Assumptions!$G$45*Assumptions!$G$48 -> 1.3035 | AS10: =INDEX(Demand!Q$9:Q$428,MATCH($C10,Demand!$B$9:$B$428,0))*$I10*Assumptions!$G$45*Assumptions!$G$48 -> 1.3035 | AT10: =INDEX(Demand!R$9:R$428,MATCH($C10,Demand!$B$9:$B$428,0))*$I10*Assumptions!$G$45*Assumptions!$G$48 -> 1.3035 | AU10: =INDEX(Demand!S$9:S$428,MATCH($C10,Demand!$B$9:$B$428,0))*$I10*Assumptions!$G$45*Assumptions!$G$48 -> 1.3035 | AV10: =INDEX(Demand!T$9:T$428,MATCH($C10,Demand!$B$9:$B$428,0))*$I10*Assumptions!$G$45*Assumptions!$G$48 -> 1.3035 | AW10: =INDEX(Demand!U$9:U$428,MATCH($C10,Demand!$B$9:$B$428,0))*$I10*Assumptions!$G$45*Assumptions!$G$48 -> 1.3035 | AX10: =INDEX(Demand!V$9:V$428,MATCH($C10,Demand!$B$9:$B$428,0))*$I10*Assumptions!$G$45*Assumptions!$G$48 -> 1.3035 | AY10: =INDEX(Demand!W$9:W$428,MATCH($C10,Demand!$B$9:$B$428,0))*$I10*Assumptions!$G$45*Assumptions!$G$48 -> 1.3035 | AZ10: =INDEX(Demand!X$9:X$428,MATCH($C10,Demand!$B$9:$B$428,0))*$I10*Assumptions!$G$45*Assumptions!$G$48 -> 1.3035 | BB10: =SUMPRODUCT(($AG10:$AZ10)*(Misc_calcs!$G$29:$Z$29)*($L10:$AE10))*Calcs!$G10 -> 10558.58636 | BD10: =SUMPRODUCT(($L10:$AE10)*(Misc_calcs!$G$29:$Z$29))*$F10*Assumptions!$G$37*(1+Assumptions!$G$83) -> 10305.9625 | BF10: =Assumptions!$G$86*$F10 -> 0.001145934504 | BH10: =($F10*Assumptions!$G$37) -> 34364.616 | BJ10: =-SUMPRODUCT((PMT(real_disc,Assumptions!$G$40,BH10))*(Misc_calcs!$G$29:$Z$29)) -> 19471.75638 | BL10: =SUMPRODUCT(($AG10:$AZ10)*(Misc_calcs!$G$29:$Z$29))*$BF10*$G10 -> 690.5423793 | BN10: =SUMPRODUCT($BF10*(Misc_calcs!$G$29:$Z$29))*$F10*Assumptions!$G$37*(1+Assumptions!$G$83) -> 683.2666687 | BP10: =BB10+BD10 -> 20864.54886 | BR10: 1373.809048 | BT10: 19490.73981 | BV10: 18.98342936 | BX10: TRUE
B11: 49228533 | C11: DMA23 | D11: DMA | E11: 12.7kV | F11: 213.34 | G11: 32746.91746 | H11: =INDEX(Demand!$C$9:$C$428, MATCH($C11, Demand!$B$9:$B$428,0)) -> 3 | I11: 0.25 | L11: 0.005904325833 | M11: 0.00660734502 | N11: 0.007399407363 | O11: 0.008292148072 | P11: 0.009298751723 | Q11: 0.01043416106 | R11: 0.01171531415 | S11: 0.01316141377 | T11: 0.01479423342 | U11: 0.01663846495 | V11: 0.01872211358 | W11: 0.02107694658 | X11: 0.02373900328 | Y11: 0.02674917441 | Z11: 0.03015386059 | AA11: 0.03400572062 | AB11: 0.03836452191 | AC11: 0.03847201881 | AD11: 0.03847201881 | AE11: 0.03847201881 | AG11: =INDEX(Demand!E$9:E$428,MATCH($C11,Demand!$B$9:$B$428,0))*$I11*Assumptions!$G$45*Assumptions!$G$48 -> 1.2031875 | AH11: =INDEX(Demand!F$9:F$428,MATCH($C11,Demand!$B$9:$B$428,0))*$I11*Assumptions!$G$45*Assumptions!$G$48 -> 1.209 | AI11: =INDEX(Demand!G$9:G$428,MATCH($C11,Demand!$B$9:$B$428,0))*$I11*Assumptions!$G$45*Assumptions!$G$48 -> 1.2249375 | AJ11: =INDEX(Demand!H$9:H$428,MATCH($C11,Demand!$B$9:$B$428,0))*$I11*Assumptions!$G$45*Assumptions!$G$48 -> 1.238625 | AK11: =INDEX(Demand!I$9:I$428,MATCH($C11,Demand!$B$9:$B$428,0))*$I11*Assumptions!$G$45*Assumptions!$G$48 -> 1.245375 | AL11: =INDEX(Demand!J$9:J$428,MATCH($C11,Demand!$B$9:$B$428,0))*$I11*Assumptions!$G$45*Assumptions!$G$48 -> 1.2545625 | AM11: =INDEX(Demand!K$9:K$428,MATCH($C11,Demand!$B$9:$B$428,0))*$I11*Assumptions!$G$45*Assumptions!$G$48 -> 1.2706875 | AN11: =INDEX(Demand!L$9:L$428,MATCH($C11,Demand!$B$9:$B$428,0))*$I11*Assumptions!$G$45*Assumptions!$G$48 -> 1.28925 | AO11: =INDEX(Demand!M$9:M$428,MATCH($C11,Demand!$B$9:$B$428,0))*$I11*Assumptions!$G$45*Assumptions!$G$48 -> 1.3035 | AP11: =INDEX(Demand!N$9:N$428,MATCH($C11,Demand!$B$9:$B$428,0))*$I11*Assumptions!$G$45*Assumptions!$G$48 -> 1.3035 | AQ11: =INDEX(Demand!O$9:O$428,MATCH($C11,Demand!$B$9:$B$428,0))*$I11*Assumptions!$G$45*Assumptions!$G$48 -> 1.3035 | AR11: =INDEX(Demand!P$9:P$428,MATCH($C11,Demand!$B$9:$B$428,0))*$I11*Assumptions!$G$45*Assumptions!$G$48 -> 1.3035 | AS11: =INDEX(Demand!Q$9:Q$428,MATCH($C11,Demand!$B$9:$B$428,0))*$I11*Assumptions!$G$45*Assumptions!$G$48 -> 1.3035 | AT11: =INDEX(Demand!R$9:R$428,MATCH($C11,Demand!$B$9:$B$428,0))*$I11*Assumptions!$G$45*Assumptions!$G$48 -> 1.3035 | AU11: =INDEX(Demand!S$9:S$428,MATCH($C11,Demand!$B$9:$B$428,0))*$I11*Assumptions!$G$45*Assumptions!$G$48 -> 1.3035 | AV11: =INDEX(Demand!T$9:T$428,MATCH($C11,Demand!$B$9:$B$428,0))*$I11*Assumptions!$G$45*Assumptions!$G$48 -> 1.3035 | AW11: =INDEX(Demand!U$9:U$428,MATCH($C11,Demand!$B$9:$B$428,0))*$I11*Assumptions!$G$45*Assumptions!$G$48 -> 1.3035 | AX11: =INDEX(Demand!V$9:V$428,MATCH($C11,Demand!$B$9:$B$428,0))*$I11*Assumptions!$G$45*Assumptions!$G$48 -> 1.3035 | AY11: =INDEX(Demand!W$9:W$428,MATCH($C11,Demand!$B$9:$B$428,0))*$I11*Assumptions!$G$45*Assumptions!$G$48 -> 1.3035 | AZ11: =INDEX(Demand!X$9:X$428,MATCH($C11,Demand!$B$9:$B$428,0))*$I11*Assumptions!$G$45*Assumptions!$G$48 -> 1.3035 | BB11: =SUMPRODUCT(($AG11:$AZ11)*(Misc_calcs!$G$29:$Z$29)*($L11:$AE11))*Calcs!$G11 -> 11239.013 | BD11: =SUMPRODUCT(($L11:$AE11)*(Misc_calcs!$G$29:$Z$29))*$F11*Assumptions!$G$37*(1+Assumptions!$G$83) -> 12032.96124 | BF11: =Assumptions!$G$86*$F11 -> 0.001257063282 | BH11: =($F11*Assumptions!$G$37) -> 37697.178 | BJ11: =-SUMPRODUCT((PMT(real_disc,Assumptions!$G$40,BH11))*(Misc_calcs!$G$29:$Z$29)) -> 21360.06019 | BL11: =SUMPRODUCT(($AG11:$AZ11)*(Misc_calcs!$G$29:$Z$29))*$BF11*$G11 -> 757.5087988 | BN11: =SUMPRODUCT($BF11*(Misc_calcs!$G$29:$Z$29))*$F11*Assumptions!$G$37*(1+Assumptions!$G$83) -> 822.2141095 | BP11: 23271.97424 | BR11: 1579.722908 | BT11: 21692.25133 | BV11: 332.19114 | BX11: TRUE
B12: 49228539 | C12: DMA23 | D12: DMA | E12: 12.7kV | F12: 196.53 | G12: 32746.91746 | H12: =INDEX(Demand!$C$9:$C$428, MATCH($C12, Demand!$B$9:$B$428,0)) -> 3 | I12: 0.25 | L12: 0.005439097947 | M12: 0.00608672315 | N12: 0.006816375406 | O12: 0.007638773135 | P12: 0.008566062042 | Q12: 0.009612007468 | R12: 0.01079221286 | S12: 0.01212436791 | T12: 0.01362853049 | U12: 0.01532744688 | V12: 0.01724691563 | W12: 0.01941620096 | X12: 0.02186850246 | Y12: 0.02464148893 | Z12: 0.02777790486 | AA12: 0.03132625984 | AB12: 0.03534161193 | AC12: 0.03544063868 | AD12: 0.03544063868 | AE12: 0.03544063868 | AG12: =INDEX(Demand!E$9:E$428,MATCH($C12,Demand!$B$9:$B$428,0))*$I12*Assumptions!$G$45*Assumptions!$G$48 -> 1.2031875 | AH12: =INDEX(Demand!F$9:F$428,MATCH($C12,Demand!$B$9:$B$428,0))*$I12*Assumptions!$G$45*Assumptions!$G$48 -> 1.209 | AI12: =INDEX(Demand!G$9:G$428,MATCH($C12,Demand!$B$9:$B$428,0))*$I12*Assumptions!$G$45*Assumptions!$G$48 -> 1.2249375 | AJ12: =INDEX(Demand!H$9:H$428,MATCH($C12,Demand!$B$9:$B$428,0))*$I12*Assumptions!$G$45*Assumptions!$G$48 -> 1.238625 | AK12: =INDEX(Demand!I$9:I$428,MATCH($C12,Demand!$B$9:$B$428,0))*$I12*Assumptions!$G$45*Assumptions!$G$48 -> 1.245375 | AL12: =INDEX(Demand!J$9:J$428,MATCH($C12,Demand!$B$9:$B$428,0))*$I12*Assumptions!$G$45*Assumptions!$G$48 -> 1.2545625 | AM12: =INDEX(Demand!K$9:K$428,MATCH($C12,Demand!$B$9:$B$428,0))*$I12*Assumptions!$G$45*Assumptions!$G$48 -> 1.2706875 | AN12: =INDEX(Demand!L$9:L$428,MATCH($C12,Demand!$B$9:$B$428,0))*$I12*Assumptions!$G$45*Assumptions!$G$48 -> 1.28925 | AO12: =INDEX(Demand!M$9:M$428,MATCH($C12,Demand!$B$9:$B$428,0))*$I12*Assumptions!$G$45*Assumptions!$G$48 -> 1.3035 | AP12: =INDEX(Demand!N$9:N$428,MATCH($C12,Demand!$B$9:$B$428,0))*$I12*Assumptions!$G$45*Assumptions!$G$48 -> 1.3035 | AQ12: =INDEX(Demand!O$9:O$428,MATCH($C12,Demand!$B$9:$B$428,0))*$I12*Assumptions!$G$45*Assumptions!$G$48 -> 1.3035 | AR12: =INDEX(Demand!P$9:P$428,MATCH($C12,Demand!$B$9:$B$428,0))*$I12*Assumptions!$G$45*Assumptions!$G$48 -> 1.3035 | AS12: =INDEX(Demand!Q$9:Q$428,MATCH($C12,Demand!$B$9:$B$428,0))*$I12*Assumptions!$G$45*Assumptions!$G$48 -> 1.3035 | AT12: =INDEX(Demand!R$9:R$428,MATCH($C12,Demand!$B$9:$B$428,0))*$I12*Assumptions!$G$45*Assumptions!$G$48 -> 1.3035 | AU12: =INDEX(Demand!S$9:S$428,MATCH($C12,Demand!$B$9:$B$428,0))*$I12*Assumptions!$G$45*Assumptions!$G$48 -> 1.3035 | AV12: =INDEX(Demand!T$9:T$428,MATCH($C12,Demand!$B$9:$B$428,0))*$I12*Assumptions!$G$45*Assumptions!$G$48 -> 1.3035 | AW12: =INDEX(Demand!U$9:U$428,MATCH($C12,Demand!$B$9:$B$428,0))*$I12*Assumptions!$G$45*Assumptions!$G$48 -> 1.3035 | AX12: =INDEX(Demand!V$9:V$428,MATCH($C12,Demand!$B$9:$B$428,0))*$I12*Assumptions!$G$45*Assumptions!$G$48 -> 1.3035 | AY12: =INDEX(Demand!W$9:W$428,MATCH($C12,Demand!$B$9:$B$428,0))*$I12*Assumptions!$G$45*Assumptions!$G$48 -> 1.3035 | AZ12: =INDEX(Demand!X$9:X$428,MATCH($C12,Demand!$B$9:$B$428,0))*$I12*Assumptions!$G$45*Assumptions!$G$48 -> 1.3035 | BB12: =SUMPRODUCT(($AG12:$AZ12)*(Misc_calcs!$G$29:$Z$29)*($L12:$AE12))*Calcs!$G12 -> 10353.44157 | BD12: =SUMPRODUCT(($L12:$AE12)*(Misc_calcs!$G$29:$Z$29))*$F12*Assumptions!$G$37*(1+Assumptions!$G$83) -> 10211.40836 | BF12: =Assumptions!$G$86*$F12 -> 0.001158013719 | BH12: =($F12*Assumptions!$G$37) -> 34726.851 | BJ12: =-SUMPRODUCT((PMT(real_disc,Assumptions!$G$40,BH12))*(Misc_calcs!$G$29:$Z$29)) -> 19677.00679 | BL12: =SUMPRODUCT(($AG12:$AZ12)*(Misc_calcs!$G$29:$Z$29))*$BF12*$G12 -> 697.8213379 | BN12: =SUMPRODUCT($BF12*(Misc_calcs!$G$29:$Z$29))*$F12*Assumptions!$G$37*(1+Assumptions!$G$83) -> 697.747119 | BP12: 20564.84994 | BR12: 1395.568457 | BT12: 19169.28148 | BV12: -507.725311 | BX12: FALSE
B13: 49228555 | C13: DMA23 | D13: DMA | E13: 12.7kV | F13: 130.83 | G13: 32746.91746 | H13: =INDEX(Demand!$C$9:$C$428, MATCH($C13, Demand!$B$9:$B$428,0)) -> 3 | I13: 0.25 | L13: 0.003620806922 | M13: 0.004051930951 | N13: 0.004537660379 | O13: 0.00508513046 | P13: 0.005702426586 | Q13: 0.006398712345 | R13: 0.007184374944 | S13: 0.00807119042 | T13: 0.009072511289 | U13: 0.01020347975 | V13: 0.01148126989 | W13: 0.0129253629 | X13: 0.01455785975 | Y13: 0.01640383654 | Z13: 0.0184917483 | AA13: 0.02085388783 | AB13: 0.02352690729 | AC13: 0.02359282938 | AD13: 0.02359282938 | AE13: 0.02359282938 | AG13: =INDEX(Demand!E$9:E$428,MATCH($C13,Demand!$B$9:$B$428,0))*$I13*Assumptions!$G$45*Assumptions!$G$48 -> 1.2031875 | AH13: =INDEX(Demand!F$9:F$428,MATCH($C13,Demand!$B$9:$B$428,0))*$I13*Assumptions!$G$45*Assumptions!$G$48 -> 1.209 | AI13: =INDEX(Demand!G$9:G$428,MATCH($C13,Demand!$B$9:$B$428,0))*$I13*Assumptions!$G$45*Assumptions!$G$48 -> 1.2249375 | AJ13: =INDEX(Demand!H$9:H$428,MATCH($C13,Demand!$B$9:$B$428,0))*$I13*Assumptions!$G$45*Assumptions!$G$48 -> 1.238625 | AK13: =INDEX(Demand!I$9:I$428,MATCH($C13,Demand!$B$9:$B$428,0))*$I13*Assumptions!$G$45*Assumptions!$G$48 -> 1.245375 | AL13: =INDEX(Demand!J$9:J$428,MATCH($C13,Demand!$B$9:$B$428,0))*$I13*Assumptions!$G$45*Assumptions!$G$48 -> 1.2545625 | AM13: =INDEX(Demand!K$9:K$428,MATCH($C13,Demand!$B$9:$B$428,0))*$I13*Assumptions!$G$45*Assumptions!$G$48 -> 1.2706875 | AN13: =INDEX(Demand!L$9:L$428,MATCH($C13,Demand!$B$9:$B$428,0))*$I13*Assumptions!$G$45*Assumptions!$G$48 -> 1.28925 | AO13: =INDEX(Demand!M$9:M$428,MATCH($C13,Demand!$B$9:$B$428,0))*$I13*Assumptions!$G$45*Assumptions!$G$48 -> 1.3035 | AP13: =INDEX(Demand!N$9:N$428,MATCH($C13,Demand!$B$9:$B$428,0))*$I13*Assumptions!$G$45*Assumptions!$G$48 -> 1.3035 | AQ13: =INDEX(Demand!O$9:O$428,MATCH($C13,Demand!$B$9:$B$428,0))*$I13*Assumptions!$G$45*Assumptions!$G$48 -> 1.3035 | AR13: =INDEX(Demand!P$9:P$428,MATCH($C13,Demand!$B$9:$B$428,0))*$I13*Assumptions!$G$45*Assumptions!$G$48 -> 1.3035 | AS13: =INDEX(Demand!Q$9:Q$428,MATCH($C13,Demand!$B$9:$B$428,0))*$I13*Assumptions!$G$45*Assumptions!$G$48 -> 1.3035 | AT13: =INDEX(Demand!R$9:R$428,MATCH($C13,Demand!$B$9:$B$428,0))*$I13*Assumptions!$G$45*Assumptions!$G$48 -> 1.3035 | AU13: =INDEX(Demand!S$9:S$428,MATCH($C13,Demand!$B$9:$B$428,0))*$I13*Assumptions!$G$45*Assumptions!$G$48 -> 1.3035 | AV13: =INDEX(Demand!T$9:T$428,MATCH($C13,Demand!$B$9:$B$428,0))*$I13*Assumptions!$G$45*Assumptions!$G$48 -> 1.3035 | AW13: =INDEX(Demand!U$9:U$428,MATCH($C13,Demand!$B$9:$B$428,0))*$I13*Assumptions!$G$45*Assumptions!$G$48 -> 1.3035 | AX13: =INDEX(Demand!V$9:V$428,MATCH($C13,Demand!$B$9:$B$428,0))*$I13*Assumptions!$G$45*Assumptions!$G$48 -> 1.3035 | AY13: =INDEX(Demand!W$9:W$428,MATCH($C13,Demand!$B$9:$B$428,0))*$I13*Assumptions!$G$45*Assumptions!$G$48 -> 1.3035 | AZ13: =INDEX(Demand!X$9:X$428,MATCH($C13,Demand!$B$9:$B$428,0))*$I13*Assumptions!$G$45*Assumptions!$G$48 -> 1.3035 | BB13: =SUMPRODUCT(($AG13:$AZ13)*(Misc_calcs!$G$29:$Z$29)*($L13:$AE13))*Calcs!$G13 -> 6892.284949 | BD13: =SUMPRODUCT(($L13:$AE13)*(Misc_calcs!$G$29:$Z$29))*$F13*Assumptions!$G$37*(1+Assumptions!$G$83) -> 4525.250436 | BF13: =Assumptions!$G$86*$F13 -> 0.000770889609 | BH13: =($F13*Assumptions!$G$37) -> 23117.661 | BJ13: =-SUMPRODUCT((PMT(real_disc,Assumptions!$G$40,BH13))*(Misc_calcs!$G$29:$Z$29)) -> 13098.98132 | BL13: =SUMPRODUCT(($AG13:$AZ13)*(Misc_calcs!$G$29:$Z$29))*$BF13*$G13 -> 464.5395901 | BN13: =SUMPRODUCT($BF13*(Misc_calcs!$G$29:$Z$29))*$F13*Assumptions!$G$37*(1+Assumptions!$G$83) -> 309.2110649 | BP13: 11417.53539 | BR13: 773.750655 | BT13: 10643.78473 | BV13: -2455.196589 | BX13: FALSE
B14: 49228577 | C14: DMA23 | D14: DMA | E14: 12.7kV | F14: 209.7 | G14: 32746.91746 | H14: =INDEX(Demand!$C$9:$C$428, MATCH($C14, Demand!$B$9:$B$428,0)) -> 3 | I14: 0.25 | L14: 0.004877603246 | M14: 0.00543853541 | N14: 0.006068451033 | O14: 0.006776121527 | P14: 0.007571456349 | Q14: 0.008465652547 | R14: 0.009471364124 | S14: 0.01060289386 | T14: 0.01187641059 | U14: 0.0133101953 | V14: 0.01492491991 | W14: 0.01674396318 | X14: 0.01879376848 | Y14: 0.02110424926 | Z14: 0.02370924849 | AA14: 0.02664705918 | AB14: 0.02996101432 | AC14: 0.03370015541 | AD14: 0.0378156105 | AE14: 0.0378156105 | AG14: =INDEX(Demand!E$9:E$428,MATCH($C14,Demand!$B$9:$B$428,0))*$I14*Assumptions!$G$45*Assumptions!$G$48 -> 1.2031875 | AH14: =INDEX(Demand!F$9:F$428,MATCH($C14,Demand!$B$9:$B$428,0))*$I14*Assumptions!$G$45*Assumptions!$G$48 -> 1.209 | AI14: =INDEX(Demand!G$9:G$428,MATCH($C14,Demand!$B$9:$B$428,0))*$I14*Assumptions!$G$45*Assumptions!$G$48 -> 1.2249375 | AJ14: =INDEX(Demand!H$9:H$428,MATCH($C14,Demand!$B$9:$B$428,0))*$I14*Assumptions!$G$45*Assumptions!$G$48 -> 1.238625 | AK14: =INDEX(Demand!I$9:I$428,MATCH($C14,Demand!$B$9:$B$428,0))*$I14*Assumptions!$G$45*Assumptions!$G$48 -> 1.245375 | AL14: =INDEX(Demand!J$9:J$428,MATCH($C14,Demand!$B$9:$B$428,0))*$I14*Assumptions!$G$45*Assumptions!$G$48 -> 1.2545625 | AM14: =INDEX(Demand!K$9:K$428,MATCH($C14,Demand!$B$9:$B$428,0))*$I14*Assumptions!$G$45*Assumptions!$G$48 -> 1.2706875 | AN14: =INDEX(Demand!L$9:L$428,MATCH($C14,Demand!$B$9:$B$428,0))*$I14*Assumptions!$G$45*Assumptions!$G$48 -> 1.28925 | AO14: =INDEX(Demand!M$9:M$428,MATCH($C14,Demand!$B$9:$B$428,0))*$I14*Assumptions!$G$45*Assumptions!$G$48 -> 1.3035 | AP14: =INDEX(Demand!N$9:N$428,MATCH($C14,Demand!$B$9:$B$428,0))*$I14*Assumptions!$G$45*Assumptions!$G$48 -> 1.3035 | AQ14: =INDEX(Demand!O$9:O$428,MATCH($C14,Demand!$B$9:$B$428,0))*$I14*Assumptions!$G$45*Assumptions!$G$48 -> 1.3035 | AR14: =INDEX(Demand!P$9:P$428,MATCH($C14,Demand!$B$9:$B$428,0))*$I14*Assumptions!$G$45*Assumptions!$G$48 -> 1.3035 | AS14: =INDEX(Demand!Q$9:Q$428,MATCH($C14,Demand!$B$9:$B$428,0))*$I14*Assumptions!$G$45*Assumptions!$G$48 -> 1.3035 | AT14: =INDEX(Demand!R$9:R$428,MATCH($C14,Demand!$B$9:$B$428,0))*$I14*Assumptions!$G$45*Assumptions!$G$48 -> 1.3035 | AU14: =INDEX(Demand!S$9:S$428,MATCH($C14,Demand!$B$9:$B$428,0))*$I14*Assumptions!$G$45*Assumptions!$G$48 -> 1.3035 | AV14: =INDEX(Demand!T$9:T$428,MATCH($C14,Demand!$B$9:$B$428,0))*$I14*Assumptions!$G$45*Assumptions!$G$48 -> 1.3035 | AW14: =INDEX(Demand!U$9:U$428,MATCH($C14,Demand!$B$9:$B$428,0))*$I14*Assumptions!$G$45*Assumptions!$G$48 -> 1.3035 | AX14: =INDEX(Demand!V$9:V$428,MATCH($C14,Demand!$B$9:$B$428,0))*$I14*Assumptions!$G$45*Assumptions!$G$48 -> 1.3035 | AY14: =INDEX(Demand!W$9:W$428,MATCH($C14,Demand!$B$9:$B$428,0))*$I14*Assumptions!$G$45*Assumptions!$G$48 -> 1.3035 | AZ14: =INDEX(Demand!X$9:X$428,MATCH($C14,Demand!$B$9:$B$428,0))*$I14*Assumptions!$G$45*Assumptions!$G$48 -> 1.3035 | BB14: =SUMPRODUCT(($AG14:$AZ14)*(Misc_calcs!$G$29:$Z$29)*($L14:$AE14))*Calcs!$G14 -> 9349.353497 | BD14: =SUMPRODUCT(($L14:$AE14)*(Misc_calcs!$G$29:$Z$29))*$F14*Assumptions!$G$37*(1+Assumptions!$G$83) -> 9837.331341 | BF14: =Assumptions!$G$86*$F14 -> 0.00123561531 | BH14: =($F14*Assumptions!$G$37) -> 37053.99 | BJ14: =-SUMPRODUCT((PMT(real_disc,Assumptions!$G$40,BH14))*(Misc_calcs!$G$29:$Z$29)) -> 20995.61555 | BL14: =SUMPRODUCT(($AG14:$AZ14)*(Misc_calcs!$G$29:$Z$29))*$BF14*$G14 -> 744.5842088 | BN14: =SUMPRODUCT($BF14*(Misc_calcs!$G$29:$Z$29))*$F14*Assumptions!$G$37*(1+Assumptions!$G$83) -> 794.3962852 | BP14: 19186.68484 | BR14: 1538.980494 | BT14: 17647.70434 | BV14: -3347.911207 | BX14: FALSE
B15: 49228617 | C15: DMA23 | D15: DMA | E15: 12.7kV | F15: 271.25 | G15: 32746.91746 | H15: =INDEX(Demand!$C$9:$C$428, MATCH($C15, Demand!$B$9:$B$428,0)) -> 3 | I15: 0.25 | L15: 0.007507023447 | M15: 0.008400873426 | N15: 0.009407936849 | O15: 0.01054300724 | P15: 0.01182284806 | Q15: 0.01326645818 | R15: 0.01489537341 | S15: 0.01673400903 | T15: 0.01881004882 | U15: 0.02115488712 | V15: 0.023804131 | W15: 0.02679817081 | X15: 0.03018282854 | Y15: 0.03401009449 | Z15: 0.0383389645 | AA15: 0.0432363913 | AB15: 0.04877836583 | AC15: 0.04891504219 | AD15: 0.04891504219 | AE15: 0.04891504219 | AG15: =INDEX(Demand!E$9:E$428,MATCH($C15,Demand!$B$9:$B$428,0))*$I15*Assumptions!$G$45*Assumptions!$G$48 -> 1.2031875 | AH15: =INDEX(Demand!F$9:F$428,MATCH($C15,Demand!$B$9:$B$428,0))*$I15*Assumptions!$G$45*Assumptions!$G$48 -> 1.209 | AI15: =INDEX(Demand!G$9:G$428,MATCH($C15,Demand!$B$9:$B$428,0))*$I15*Assumptions!$G$45*Assumptions!$G$48 -> 1.2249375 | AJ15: =INDEX(Demand!H$9:H$428,MATCH($C15,Demand!$B$9:$B$428,0))*$I15*Assumptions!$G$45*Assumptions!$G$48 -> 1.238625 | AK15: =INDEX(Demand!I$9:I$428,MATCH($C15,Demand!$B$9:$B$428,0))*$I15*Assumptions!$G$45*Assumptions!$G$48 -> 1.245375 | AL15: =INDEX(Demand!J$9:J$428,MATCH($C15,Demand!$B$9:$B$428,0))*$I15*Assumptions!$G$45*Assumptions!$G$48 -> 1.2545625 | AM15: =INDEX(Demand!K$9:K$428,MATCH($C15,Demand!$B$9:$B$428,0))*$I15*Assumptions!$G$45*Assumptions!$G$48 -> 1.2706875 | AN15: =INDEX(Demand!L$9:L$428,MATCH($C15,Demand!$B$9:$B$428,0))*$I15*Assumptions!$G$45*Assumptions!$G$48 -> 1.28925 | AO15: =INDEX(Demand!M$9:M$428,MATCH($C15,Demand!$B$9:$B$428,0))*$I15*Assumptions!$G$45*Assumptions!$G$48 -> 1.3035 | AP15: =INDEX(Demand!N$9:N$428,MATCH($C15,Demand!$B$9:$B$428,0))*$I15*Assumptions!$G$45*Assumptions!$G$48 -> 1.3035 | AQ15: =INDEX(Demand!O$9:O$428,MATCH($C15,Demand!$B$9:$B$428,0))*$I15*Assumptions!$G$45*Assumptions!$G$48 -> 1.3035 | AR15: =INDEX(Demand!P$9:P$428,MATCH($C15,Demand!$B$9:$B$428,0))*$I15*Assumptions!$G$45*Assumptions!$G$48 -> 1.3035 | AS15: =INDEX(Demand!Q$9:Q$428,MATCH($C15,Demand!$B$9:$B$428,0))*$I15*Assumptions!$G$45*Assumptions!$G$48 -> 1.3035 | AT15: =INDEX(Demand!R$9:R$428,MATCH($C15,Demand!$B$9:$B$428,0))*$I15*Assumptions!$G$45*Assumptions!$G$48 -> 1.3035 | AU15: =INDEX(Demand!S$9:S$428,MATCH($C15,Demand!$B$9:$B$428,0))*$I15*Assumptions!$G$45*Assumptions!$G$48 -> 1.3035 | AV15: =INDEX(Demand!T$9:T$428,MATCH($C15,Demand!$B$9:$B$428,0))*$I15*Assumptions!$G$45*Assumptions!$G$48 -> 1.3035 | AW15: =INDEX(Demand!U$9:U$428,MATCH($C15,Demand!$B$9:$B$428,0))*$I15*Assumptions!$G$45*Assumptions!$G$48 -> 1.3035 | AX15: =INDEX(Demand!V$9:V$428,MATCH($C15,Demand!$B$9:$B$428,0))*$I15*Assumptions!$G$45*Assumptions!$G$48 -> 1.3035 | AY15: =INDEX(Demand!W$9:W$428,MATCH($C15,Demand!$B$9:$B$428,0))*$I15*Assumptions!$G$45*Assumptions!$G$48 -> 1.3035 | AZ15: =INDEX(Demand!X$9:X$428,MATCH($C15,Demand!$B$9:$B$428,0))*$I15*Assumptions!$G$45*Assumptions!$G$48 -> 1.3035 | BB15: =SUMPRODUCT(($AG15:$AZ15)*(Misc_calcs!$G$29:$Z$29)*($L15:$AE15))*Calcs!$G15 -> 14289.78287 | BD15: =SUMPRODUCT(($L15:$AE15)*(Misc_calcs!$G$29:$Z$29))*$F15*Assumptions!$G$37*(1+Assumptions!$G$83) -> 19452.14194 | BF15: =Assumptions!$G$86*$F15 -> 0.001598286375 | BH15: =($F15*Assumptions!$G$37) -> 47929.875 | BJ15: =-SUMPRODUCT((PMT(real_disc,Assumptions!$G$40,BH15))*(Misc_calcs!$G$29:$Z$29)) -> 27158.13409 | BL15: =SUMPRODUCT(($AG15:$AZ15)*(Misc_calcs!$G$29:$Z$29))*$BF15*$G15 -> 963.1305038 | BN15: =SUMPRODUCT($BF15*(Misc_calcs!$G$29:$Z$29))*$F15*Assumptions!$G$37*(1+Assumptions!$G$83) -> 1329.167879 | BP15: 33741.9248 | BR15: 2292.298383 | BT15: 31449.62642 | BV15: 4291.492333 | BX15: TRUE
B16: 49228671 | C16: DMA23 | D16: DMA | E16: 12.7kV | F16: 237.74 | G16: 32746.91746 | H16: =INDEX(Demand!$C$9:$C$428, MATCH($C16, Demand!$B$9:$B$428,0)) -> 3 | I16: 0.25 | L16: 0.006579611998 | M16: 0.007363036491 | N16: 0.008245688134 | O16: 0.009240532871 | P16: 0.01036226322 | Q16: 0.01162753094 | R16: 0.01305521134 | S16: 0.01466670343 | T16: 0.01648627099 | U16: 0.01854142992 | V16: 0.0208633884 | W16: 0.02348754702 | X16: 0.02645406694 | Y16: 0.02980851563 | Z16: 0.03360260063 | AA16: 0.03789500338 | AB16: 0.04275232698 | AC16: 0.04287211845 | AD16: 0.04287211845 | AE16: 0.04287211845 | AG16: =INDEX(Demand!E$9:E$428,MATCH($C16,Demand!$B$9:$B$428,0))*$I16*Assumptions!$G$45*Assumptions!$G$48 -> 1.2031875 | AH16: =INDEX(Demand!F$9:F$428,MATCH($C16,Demand!$B$9:$B$428,0))*$I16*Assumptions!$G$45*Assumptions!$G$48 -> 1.209 | AI16: =INDEX(Demand!G$9:G$428,MATCH($C16,Demand!$B$9:$B$428,0))*$I16*Assumptions!$G$45*Assumptions!$G$48 -> 1.2249375 | AJ16: =INDEX(Demand!H$9:H$428,MATCH($C16,Demand!$B$9:$B$428,0))*$I16*Assumptions!$G$45*Assumptions!$G$48 -> 1.238625 | AK16: =INDEX(Demand!I$9:I$428,MATCH($C16,Demand!$B$9:$B$428,0))*$I16*Assumptions!$G$45*Assumptions!$G$48 -> 1.245375 | AL16: =INDEX(Demand!J$9:J$428,MATCH($C16,Demand!$B$9:$B$428,0))*$I16*Assumptions!$G$45*Assumptions!$G$48 -> 1.2545625 | AM16: =INDEX(Demand!K$9:K$428,MATCH($C16,Demand!$B$9:$B$428,0))*$I16*Assumptions!$G$45*Assumptions!$G$48 -> 1.2706875 | AN16: =INDEX(Demand!L$9:L$428,MATCH($C16,Demand!$B$9:$B$428,0))*$I16*Assumptions!$G$45*Assumptions!$G$48 -> 1.28925 | AO16: =INDEX(Demand!M$9:M$428,MATCH($C16,Demand!$B$9:$B$428,0))*$I16*Assumptions!$G$45*Assumptions!$G$48 -> 1.3035 | AP16: =INDEX(Demand!N$9:N$428,MATCH($C16,Demand!$B$9:$B$428,0))*$I16*Assumptions!$G$45*Assumptions!$G$48 -> 1.3035 | AQ16: =INDEX(Demand!O$9:O$428,MATCH($C16,Demand!$B$9:$B$428,0))*$I16*Assumptions!$G$45*Assumptions!$G$48 -> 1.3035 | AR16: =INDEX(Demand!P$9:P$428,MATCH($C16,Demand!$B$9:$B$428,0))*$I16*Assumptions!$G$45*Assumptions!$G$48 -> 1.3035 | AS16: =INDEX(Demand!Q$9:Q$428,MATCH($C16,Demand!$B$9:$B$428,0))*$I16*Assumptions!$G$45*Assumptions!$G$48 -> 1.3035 | AT16: =INDEX(Demand!R$9:R$428,MATCH($C16,Demand!$B$9:$B$428,0))*$I16*Assumptions!$G$45*Assumptions!$G$48 -> 1.3035 | AU16: =INDEX(Demand!S$9:S$428,MATCH($C16,Demand!$B$9:$B$428,0))*$I16*Assumptions!$G$45*Assumptions!$G$48 -> 1.3035 | AV16: =INDEX(Demand!T$9:T$428,MATCH($C16,Demand!$B$9:$B$428,0))*$I16*Assumptions!$G$45*Assumptions!$G$48 -> 1.3035 | AW16: =INDEX(Demand!U$9:U$428,MATCH($C16,Demand!$B$9:$B$428,0))*$I16*Assumptions!$G$45*Assumptions!$G$48 -> 1.3035 | AX16: =INDEX(Demand!V$9:V$428,MATCH($C16,Demand!$B$9:$B$428,0))*$I16*Assumptions!$G$45*Assumptions!$G$48 -> 1.3035 | AY16: =INDEX(Demand!W$9:W$428,MATCH($C16,Demand!$B$9:$B$428,0))*$I16*Assumptions!$G$45*Assumptions!$G$48 -> 1.3035 | AZ16: =INDEX(Demand!X$9:X$428,MATCH($C16,Demand!$B$9:$B$428,0))*$I16*Assumptions!$G$45*Assumptions!$G$48 -> 1.3035 | BB16: =SUMPRODUCT(($AG16:$AZ16)*(Misc_calcs!$G$29:$Z$29)*($L16:$AE16))*Calcs!$G16 -> 12524.43494 | BD16: =SUMPRODUCT(($L16:$AE16)*(Misc_calcs!$G$29:$Z$29))*$F16*Assumptions!$G$37*(1+Assumptions!$G$83) -> 14942.81614 | BF16: =Assumptions!$G$86*$F16 -> 0.001400835402 | BH16: =($F16*Assumptions!$G$37) -> 42008.658 | BJ16: =-SUMPRODUCT((PMT(real_disc,Assumptions!$G$40,BH16))*(Misc_calcs!$G$29:$Z$29)) -> 23803.04073 | BL16: =SUMPRODUCT(($AG16:$AZ16)*(Misc_calcs!$G$29:$Z$29))*$BF16*$G16 -> 844.1461603 | BN16: =SUMPRODUCT($BF16*(Misc_calcs!$G$29:$Z$29))*$F16*Assumptions!$G$37*(1+Assumptions!$G$83) -> 1021.044947 | BP16: 27467.25109 | BR16: 1865.191107 | BT16: 25602.05998 | BV16: 1799.019248 | BX16: TRUE
B17: 49229358 | C17: DMA15 | D17: DMA | E17: 22kV | F17: 542.82 | G17: 32746.91746 | H17: =INDEX(Demand!$C$9:$C$428, MATCH($C17, Demand!$B$9:$B$428,0)) -> 2 | I17: 0.3333333333 | L17: 0.01158665951 | M17: 0.01269432572 | N17: 0.01391548193 | O17: 0.01526216142 | P17: 0.01674770011 | Q17: 0.01838687941 | R17: 0.02019608493 | S17: 0.02219348274 | T17: 0.02439921507 | U17: 0.02683561785 | V17: 0.02952746223 | W17: 0.03250222294 | X17: 0.03579037644 | Y17: 0.03942573215 | Z17: 0.0434458005 | AA17: 0.04789220179 | AB17: 0.05281112063 | AC17: 0.05825381082 | AD17: 0.06427715641 | AE17: 0.07094429524 | AG17: =INDEX(Demand!E$9:E$428,MATCH($C17,Demand!$B$9:$B$428,0))*$I17*Assumptions!$G$45*Assumptions!$G$48 -> 0.95925 | AH17: =INDEX(Demand!F$9:F$428,MATCH($C17,Demand!$B$9:$B$428,0))*$I17*Assumptions!$G$45*Assumptions!$G$48 -> 0.959 | AI17: =INDEX(Demand!G$9:G$428,MATCH($C17,Demand!$B$9:$B$428,0))*$I17*Assumptions!$G$45*Assumptions!$G$48 -> 0.9645 | AJ17: =INDEX(Demand!H$9:H$428,MATCH($C17,Demand!$B$9:$B$428,0))*$I17*Assumptions!$G$45*Assumptions!$G$48 -> 0.96925 | AK17: =INDEX(Demand!I$9:I$428,MATCH($C17,Demand!$B$9:$B$428,0))*$I17*Assumptions!$G$45*Assumptions!$G$48 -> 0.97025 | AL17: =INDEX(Demand!J$9:J$428,MATCH($C17,Demand!$B$9:$B$428,0))*$I17*Assumptions!$G$45*Assumptions!$G$48 -> 0.97275 | AM17: =INDEX(Demand!K$9:K$428,MATCH($C17,Demand!$B$9:$B$428,0))*$I17*Assumptions!$G$45*Assumptions!$G$48 -> 0.981 | AN17: =INDEX(Demand!L$9:L$428,MATCH($C17,Demand!$B$9:$B$428,0))*$I17*Assumptions!$G$45*Assumptions!$G$48 -> 0.99225 | AO17: =INDEX(Demand!M$9:M$428,MATCH($C17,Demand!$B$9:$B$428,0))*$I17*Assumptions!$G$45*Assumptions!$G$48 -> 1.0005 | AP17: =INDEX(Demand!N$9:N$428,MATCH($C17,Demand!$B$9:$B$428,0))*$I17*Assumptions!$G$45*Assumptions!$G$48 -> 1.0005 | AQ17: =INDEX(Demand!O$9:O$428,MATCH($C17,Demand!$B$9:$B$428,0))*$I17*Assumptions!$G$45*Assumptions!$G$48 -> 1.0005 | AR17: =INDEX(Demand!P$9:P$428,MATCH($C17,Demand!$B$9:$B$428,0))*$I17*Assumptions!$G$45*Assumptions!$G$48 -> 1.0005 | AS17: =INDEX(Demand!Q$9:Q$428,MATCH($C17,Demand!$B$9:$B$428,0))*$I17*Assumptions!$G$45*Assumptions!$G$48 -> 1.0005 | AT17: =INDEX(Demand!R$9:R$428,MATCH($C17,Demand!$B$9:$B$428,0))*$I17*Assumptions!$G$45*Assumptions!$G$48 -> 1.0005 | AU17: =INDEX(Demand!S$9:S$428,MATCH($C17,Demand!$B$9:$B$428,0))*$I17*Assumptions!$G$45*Assumptions!$G$48 -> 1.0005 | AV17: =INDEX(Demand!T$9:T$428,MATCH($C17,Demand!$B$9:$B$428,0))*$I17*Assumptions!$G$45*Assumptions!$G$48 -> 1.0005 | AW17: =INDEX(Demand!U$9:U$428,MATCH($C17,Demand!$B$9:$B$428,0))*$I17*Assumptions!$G$45*Assumptions!$G$48 -> 1.0005 | AX17: =INDEX(Demand!V$9:V$428,MATCH($C17,Demand!$B$9:$B$428,0))*$I17*Assumptions!$G$45*Assumptions!$G$48 -> 1.0005 | AY17: =INDEX(Demand!W$9:W$428,MATCH($C17,Demand!$B$9:$B$428,0))*$I17*Assumptions!$G$45*Assumptions!$G$48 -> 1.0005 | AZ17: =INDEX(Demand!X$9:X$428,MATCH($C17,Demand!$B$9:$B$428,0))*$I17*Assumptions!$G$45*Assumptions!$G$48 -> 1.0005 | BB17: =SUMPRODUCT(($AG17:$AZ17)*(Misc_calcs!$G$29:$Z$29)*($L17:$AE17))*Calcs!$G17 -> 13896.11673 | BD17: =SUMPRODUCT(($L17:$AE17)*(Misc_calcs!$G$29:$Z$29))*$F17*Assumptions!$G$37*(1+Assumptions!$G$83) -> 49182.08927 | BF17: =Assumptions!$G$86*$F17 -> 0.003198458286 | BH17: =($F17*Assumptions!$G$37) -> 95916.294 | BJ17: =-SUMPRODUCT((PMT(real_disc,Assumptions!$G$40,BH17))*(Misc_calcs!$G$29:$Z$29)) -> 54348.30727 | BL17: =SUMPRODUCT(($AG17:$AZ17)*(Misc_calcs!$G$29:$Z$29))*$BF17*$G17 -> 1493.029005 | BN17: =SUMPRODUCT($BF17*(Misc_calcs!$G$29:$Z$29))*$F17*Assumptions!$G$37*(1+Assumptions!$G$83) -> 5322.945567 | BP17: 63078.206 | BR17: 6815.974572 | BT17: 56262.23143 | BV17: 1913.924164 | BX17: TRUE
B18: 49238758 | C18: DMA23 | D18: DMA | E18: 22kV | F18: 69.451 | G18: 32746.91746 | H18: =INDEX(Demand!$C$9:$C$428, MATCH($C18, Demand!$B$9:$B$428,0)) -> 3 | I18: 0.25 | L18: 0.0004092266073 | M18: 0.0004092266073 | N18: 0.0004092266073 | O18: 0.0004092266073 | P18: 0.0004092266073 | Q18: 0.0004092266073 | R18: 0.0004092266073 | S18: 0.0004269393736 | T18: 0.000517805622 | U18: 0.0006309125421 | V18: 0.0007720434137 | W18: 0.0009485397533 | X18: 0.00116973043 | Y18: 0.0014474806 | Z18: 0.001796894219 | AA18: 0.002237213451 | AB18: 0.002792970581 | AC18: 0.00349546382 | AD18: 0.004384648661 | AE18: 0.005511562503 | AG18: =INDEX(Demand!E$9:E$428,MATCH($C18,Demand!$B$9:$B$428,0))*$I18*Assumptions!$G$45*Assumptions!$G$48 -> 1.2031875 | AH18: =INDEX(Demand!F$9:F$428,MATCH($C18,Demand!$B$9:$B$428,0))*$I18*Assumptions!$G$45*Assumptions!$G$48 -> 1.209 | AI18: =INDEX(Demand!G$9:G$428,MATCH($C18,Demand!$B$9:$B$428,0))*$I18*Assumptions!$G$45*Assumptions!$G$48 -> 1.2249375 | AJ18: =INDEX(Demand!H$9:H$428,MATCH($C18,Demand!$B$9:$B$428,0))*$I18*Assumptions!$G$45*Assumptions!$G$48 -> 1.238625 | AK18: =INDEX(Demand!I$9:I$428,MATCH($C18,Demand!$B$9:$B$428,0))*$I18*Assumptions!$G$45*Assumptions!$G$48 -> 1.245375 | AL18: =INDEX(Demand!J$9:J$428,MATCH($C18,Demand!$B$9:$B$428,0))*$I18*Assumptions!$G$45*Assumptions!$G$48 -> 1.2545625 | AM18: =INDEX(Demand!K$9:K$428,MATCH($C18,Demand!$B$9:$B$428,0))*$I18*Assumptions!$G$45*Assumptions!$G$48 -> 1.2706875 | AN18: =INDEX(Demand!L$9:L$428,MATCH($C18,Demand!$B$9:$B$428,0))*$I18*Assumptions!$G$45*Assumptions!$G$48 -> 1.28925 | AO18: =INDEX(Demand!M$9:M$428,MATCH($C18,Demand!$B$9:$B$428,0))*$I18*Assumptions!$G$45*Assumptions!$G$48 -> 1.3035 | AP18: =INDEX(Demand!N$9:N$428,MATCH($C18,Demand!$B$9:$B$428,0))*$I18*Assumptions!$G$45*Assumptions!$G$48 -> 1.3035 | AQ18: =INDEX(Demand!O$9:O$428,MATCH($C18,Demand!$B$9:$B$428,0))*$I18*Assumptions!$G$45*Assumptions!$G$48 -> 1.3035 | AR18: =INDEX(Demand!P$9:P$428,MATCH($C18,Demand!$B$9:$B$428,0))*$I18*Assumptions!$G$45*Assumptions!$G$48 -> 1.3035 | AS18: =INDEX(Demand!Q$9:Q$428,MATCH($C18,Demand!$B$9:$B$428,0))*$I18*Assumptions!$G$45*Assumptions!$G$48 -> 1.3035 | AT18: =INDEX(Demand!R$9:R$428,MATCH($C18,Demand!$B$9:$B$428,0))*$I18*Assumptions!$G$45*Assumptions!$G$48 -> 1.3035 | AU18: =INDEX(Demand!S$9:S$428,MATCH($C18,Demand!$B$9:$B$428,0))*$I18*Assumptions!$G$45*Assumptions!$G$48 -> 1.3035 | AV18: =INDEX(Demand!T$9:T$428,MATCH($C18,Demand!$B$9:$B$428,0))*$I18*Assumptions!$G$45*Assumptions!$G$48 -> 1.3035 | AW18: =INDEX(Demand!U$9:U$428,MATCH($C18,Demand!$B$9:$B$428,0))*$I18*Assumptions!$G$45*Assumptions!$G$48 -> 1.3035 | AX18: =INDEX(Demand!V$9:V$428,MATCH($C18,Demand!$B$9:$B$428,0))*$I18*Assumptions!$G$45*Assumptions!$G$48 -> 1.3035 | AY18: =INDEX(Demand!W$9:W$428,MATCH($C18,Demand!$B$9:$B$428,0))*$I18*Assumptions!$G$45*Assumptions!$G$48 -> 1.3035 | AZ18: =INDEX(Demand!X$9:X$428,MATCH($C18,Demand!$B$9:$B$428,0))*$I18*Assumptions!$G$45*Assumptions!$G$48 -> 1.3035 | BB18: =SUMPRODUCT(($AG18:$AZ18)*(Misc_calcs!$G$29:$Z$29)*($L18:$AE18))*Calcs!$G18 -> 745.4619427 | BD18: =SUMPRODUCT(($L18:$AE18)*(Misc_calcs!$G$29:$Z$29))*$F18*Assumptions!$G$37*(1+Assumptions!$G$83) -> 259.2436737 | BF18: =Assumptions!$G$86*$F18 -> 0.0004092261273 | BH18: =($F18*Assumptions!$G$37) -> 12271.9917 | BJ18: =-SUMPRODUCT((PMT(real_disc,Assumptions!$G$40,BH18))*(Misc_calcs!$G$29:$Z$29)) -> 6953.58367 | BL18: =SUMPRODUCT(($AG18:$AZ18)*(Misc_calcs!$G$29:$Z$29))*$BF18*$G18 -> 246.6004668 | BN18: =SUMPRODUCT($BF18*(Misc_calcs!$G$29:$Z$29))*$F18*Assumptions!$G$37*(1+Assumptions!$G$83) -> 87.13594598 | BP18: 1004.705616 | BR18: 333.7364128 | BT18: 670.9692036 | BV18: -6282.614467 | BX18: FALSE
B19: 49238849 | C19: DMA23 | D19: DMA | E19: 12.7kV | F19: 181.34 | G19: 32746.91746 | H19: =INDEX(Demand!$C$9:$C$428, MATCH($C19, Demand!$B$9:$B$428,0)) -> 3 | I19: 0.25 | L19: 0.005018704634 | M19: 0.005616274238 | N19: 0.006289530943 | O19: 0.007048364729 | P19: 0.007903982551 | Q19: 0.00886908581 | R19: 0.009958071944 | S19: 0.0111872634 | T19: 0.01257516775 | U19: 0.0141427732 | V19: 0.0159138843 | W19: 0.01791550339 | X19: 0.02017826406 | Y19: 0.02273692363 | Z19: 0.02563092285 | AA19: 0.02890502193 | AB19: 0.03261002345 | AC19: 0.03270139632 | AD19: 0.03270139632 | AE19: 0.03270139632 | AG19: =INDEX(Demand!E$9:E$428,MATCH($C19,Demand!$B$9:$B$428,0))*$I19*Assumptions!$G$45*Assumptions!$G$48 -> 1.2031875 | AH19: =INDEX(Demand!F$9:F$428,MATCH($C19,Demand!$B$9:$B$428,0))*$I19*Assumptions!$G$45*Assumptions!$G$48 -> 1.209 | AI19: =INDEX(Demand!G$9:G$428,MATCH($C19,Demand!$B$9:$B$428,0))*$I19*Assumptions!$G$45*Assumptions!$G$48 -> 1.2249375 | AJ19: =INDEX(Demand!H$9:H$428,MATCH($C19,Demand!$B$9:$B$428,0))*$I19*Assumptions!$G$45*Assumptions!$G$48 -> 1.238625 | AK19: =INDEX(Demand!I$9:I$428,MATCH($C19,Demand!$B$9:$B$428,0))*$I19*Assumptions!$G$45*Assumptions!$G$48 -> 1.245375 | AL19: =INDEX(Demand!J$9:J$428,MATCH($C19,Demand!$B$9:$B$428,0))*$I19*Assumptions!$G$45*Assumptions!$G$48 -> 1.2545625 | AM19: =INDEX(Demand!K$9:K$428,MATCH($C19,Demand!$B$9:$B$428,0))*$I19*Assumptions!$G$45*Assumptions!$G$48 -> 1.2706875 | AN19: =INDEX(Demand!L$9:L$428,MATCH($C19,Demand!$B$9:$B$428,0))*$I19*Assumptions!$G$45*Assumptions!$G$48 -> 1.28925 | AO19: =INDEX(Demand!M$9:M$428,MATCH($C19,Demand!$B$9:$B$428,0))*$I19*Assumptions!$G$45*Assumptions!$G$48 -> 1.3035 | AP19: =INDEX(Demand!N$9:N$428,MATCH($C19,Demand!$B$9:$B$428,0))*$I19*Assumptions!$G$45*Assumptions!$G$48 -> 1.3035 | AQ19: =INDEX(Demand!O$9:O$428,MATCH($C19,Demand!$B$9:$B$428,0))*$I19*Assumptions!$G$45*Assumptions!$G$48 -> 1.3035 | AR19: =INDEX(Demand!P$9:P$428,MATCH($C19,Demand!$B$9:$B$428,0))*$I19*Assumptions!$G$45*Assumptions!$G$48 -> 1.3035 | AS19: =INDEX(Demand!Q$9:Q$428,MATCH($C19,Demand!$B$9:$B$428,0))*$I19*Assumptions!$G$45*Assumptions!$G$48 -> 1.3035 | AT19: =INDEX(Demand!R$9:R$428,MATCH($C19,Demand!$B$9:$B$428,0))*$I19*Assumptions!$G$45*Assumptions!$G$48 -> 1.3035 | AU19: =INDEX(Demand!S$9:S$428,MATCH($C19,Demand!$B$9:$B$428,0))*$I19*Assumptions!$G$45*Assumptions!$G$48 -> 1.3035 | AV19: =INDEX(Demand!T$9:T$428,MATCH($C19,Demand!$B$9:$B$428,0))*$I19*Assumptions!$G$45*Assumptions!$G$48 -> 1.3035 | AW19: =INDEX(Demand!U$9:U$428,MATCH($C19,Demand!$B$9:$B$428,0))*$I19*Assumptions!$G$45*Assumptions!$G$48 -> 1.3035 | AX19: =INDEX(Demand!V$9:V$428,MATCH($C19,Demand!$B$9:$B$428,0))*$I19*Assumptions!$G$45*Assumptions!$G$48 -> 1.3035 | AY19: =INDEX(Demand!W$9:W$428,MATCH($C19,Demand!$B$9:$B$428,0))*$I19*Assumptions!$G$45*Assumptions!$G$48 -> 1.3035 | AZ19: =INDEX(Demand!X$9:X$428,MATCH($C19,Demand!$B$9:$B$428,0))*$I19*Assumptions!$G$45*Assumptions!$G$48 -> 1.3035 | BB19: =SUMPRODUCT(($AG19:$AZ19)*(Misc_calcs!$G$29:$Z$29)*($L19:$AE19))*Calcs!$G19 -> 9553.213733 | BD19: =SUMPRODUCT(($L19:$AE19)*(Misc_calcs!$G$29:$Z$29))*$F19*Assumptions!$G$37*(1+Assumptions!$G$83) -> 8693.910378 | BF19: =Assumptions!$G$86*$F19 -> 0.001068509682 | BH19: =($F19*Assumptions!$G$37) -> 32042.778 | BJ19: =-SUMPRODUCT((PMT(real_disc,Assumptions!$G$40,BH19))*(Misc_calcs!$G$29:$Z$29)) -> 18156.15128 | BL19: =SUMPRODUCT(($AG19:$AZ19)*(Misc_calcs!$G$29:$Z$29))*$BF19*$G19 -> 643.8860297 | BN19: =SUMPRODUCT($BF19*(Misc_calcs!$G$29:$Z$29))*$F19*Assumptions!$G$37*(1+Assumptions!$G$83) -> 594.056246 | BP19: 18247.12411 | BR19: 1237.942276 | BT19: 17009.18184 | BV19: -1146.969448 | BX19: FALSE
B20: 49238875 | C20: DMA23 | D20: DMA | E20: 12.7kV | F20: 309.69 | G20: 32746.91746 | H20: =INDEX(Demand!$C$9:$C$428, MATCH($C20, Demand!$B$9:$B$428,0)) -> 3 | I20: 0.25 | L20: 0.007203361704 | M20: 0.008031759806 | N20: 0.008962034337 | O20: 0.01000713913 | P20: 0.01118170871 | Q20: 0.01250227915 | R20: 0.01398753818 | S20: 0.01565860849 | T20: 0.01753936861 | U20: 0.01965681632 | V20: 0.02204148044 | W20: 0.02472788726 | X20: 0.02775508898 | Y20: 0.03116726254 | Z20: 0.03501438801 | AA20: 0.03935301744 | AB20: 0.04424714604 | AC20: 0.04976919947 | AD20: 0.05584700246 | AE20: 0.05584700246 | AG20: =INDEX(Demand!E$9:E$428,MATCH($C20,Demand!$B$9:$B$428,0))*$I20*Assumptions!$G$45*Assumptions!$G$48 -> 1.2031875 | AH20: =INDEX(Demand!F$9:F$428,MATCH($C20,Demand!$B$9:$B$428,0))*$I20*Assumptions!$G$45*Assumptions!$G$48 -> 1.209 | AI20: =INDEX(Demand!G$9:G$428,MATCH($C20,Demand!$B$9:$B$428,0))*$I20*Assumptions!$G$45*Assumptions!$G$48 -> 1.2249375 | AJ20: =INDEX(Demand!H$9:H$428,MATCH($C20,Demand!$B$9:$B$428,0))*$I20*Assumptions!$G$45*Assumptions!$G$48 -> 1.238625 | AK20: =INDEX(Demand!I$9:I$428,MATCH($C20,Demand!$B$9:$B$428,0))*$I20*Assumptions!$G$45*Assumptions!$G$48 -> 1.245375 | AL20: =INDEX(Demand!J$9:J$428,MATCH($C20,Demand!$B$9:$B$428,0))*$I20*Assumptions!$G$45*Assumptions!$G$48 -> 1.2545625 | AM20: =INDEX(Demand!K$9:K$428,MATCH($C20,Demand!$B$9:$B$428,0))*$I20*Assumptions!$G$45*Assumptions!$G$48 -> 1.2706875 | AN20: =INDEX(Demand!L$9:L$428,MATCH($C20,Demand!$B$9:$B$428,0))*$I20*Assumptions!$G$45*Assumptions!$G$48 -> 1.28925 | AO20: =INDEX(Demand!M$9:M$428,MATCH($C20,Demand!$B$9:$B$428,0))*$I20*Assumptions!$G$45*Assumptions!$G$48 -> 1.3035 | AP20: =INDEX(Demand!N$9:N$428,MATCH($C20,Demand!$B$9:$B$428,0))*$I20*Assumptions!$G$45*Assumptions!$G$48 -> 1.3035 | AQ20: =INDEX(Demand!O$9:O$428,MATCH($C20,Demand!$B$9:$B$428,0))*$I20*Assumptions!$G$45*Assumptions!$G$48 -> 1.3035 | AR20: =INDEX(Demand!P$9:P$428,MATCH($C20,Demand!$B$9:$B$428,0))*$I20*Assumptions!$G$45*Assumptions!$G$48 -> 1.3035 | AS20: =INDEX(Demand!Q$9:Q$428,MATCH($C20,Demand!$B$9:$B$428,0))*$I20*Assumptions!$G$45*Assumptions!$G$48 -> 1.3035 | AT20: =INDEX(Demand!R$9:R$428,MATCH($C20,Demand!$B$9:$B$428,0))*$I20*Assumptions!$G$45*Assumptions!$G$48 -> 1.3035 | AU20: =INDEX(Demand!S$9:S$428,MATCH($C20,Demand!$B$9:$B$428,0))*$I20*Assumptions!$G$45*Assumptions!$G$48 -> 1.3035 | AV20: =INDEX(Demand!T$9:T$428,MATCH($C20,Demand!$B$9:$B$428,0))*$I20*Assumptions!$G$45*Assumptions!$G$48 -> 1.3035 | AW20: =INDEX(Demand!U$9:U$428,MATCH($C20,Demand!$B$9:$B$428,0))*$I20*Assumptions!$G$45*Assumptions!$G$48 -> 1.3035 | AX20: =INDEX(Demand!V$9:V$428,MATCH($C20,Demand!$B$9:$B$428,0))*$I20*Assumptions!$G$45*Assumptions!$G$48 -> 1.3035 | AY20: =INDEX(Demand!W$9:W$428,MATCH($C20,Demand!$B$9:$B$428,0))*$I20*Assumptions!$G$45*Assumptions!$G$48 -> 1.3035 | AZ20: =INDEX(Demand!X$9:X$428,MATCH($C20,Demand!$B$9:$B$428,0))*$I20*Assumptions!$G$45*Assumptions!$G$48 -> 1.3035 | BB20: =SUMPRODUCT(($AG20:$AZ20)*(Misc_calcs!$G$29:$Z$29)*($L20:$AE20))*Calcs!$G20 -> 13807.34995 | BD20: =SUMPRODUCT(($L20:$AE20)*(Misc_calcs!$G$29:$Z$29))*$F20*Assumptions!$G$37*(1+Assumptions!$G$83) -> 21455.31044 | BF20: =Assumptions!$G$86*$F20 -> 0.001824786387 | BH20: =($F20*Assumptions!$G$37) -> 54722.223 | BJ20: =-SUMPRODUCT((PMT(real_disc,Assumptions!$G$40,BH20))*(Misc_calcs!$G$29:$Z$29)) -> 31006.82966 | BL20: =SUMPRODUCT(($AG20:$AZ20)*(Misc_calcs!$G$29:$Z$29))*$BF20*$G20 -> 1099.619855 | BN20: =SUMPRODUCT($BF20*(Misc_calcs!$G$29:$Z$29))*$F20*Assumptions!$G$37*(1+Assumptions!$G$83) -> 1732.585629 | BP20: 35262.66039 | BR20: 2832.205484 | BT20: 32430.4549 | BV20: 1423.625242 | BX20: TRUE
B21: 49238881 | C21: DMA23 | D21: DMA | E21: 12.7kV | F21: 257.6 | G21: 32746.91746 | H21: =INDEX(Demand!$C$9:$C$428, MATCH($C21, Demand!$B$9:$B$428,0)) -> 3 | I21: 0.25 | L21: 0.007129250654 | M21: 0.007978119796 | N21: 0.008934505188 | O21: 0.01001245591 | P21: 0.01122789183 | Q21: 0.01259885577 | R21: 0.01414579978 | S21: 0.01589191051 | T21: 0.01786347862 | U21: 0.02009031861 | V21: 0.0226062457 | W21: 0.0254496177 | X21: 0.02866395072 | Y21: 0.03229861877 | Z21: 0.03640964887 | AA21: 0.04106062451 | AB21: 0.04632371258 | AC21: 0.04645351104 | AD21: 0.04645351104 | AE21: 0.04645351104 | AG21: =INDEX(Demand!E$9:E$428,MATCH($C21,Demand!$B$9:$B$428,0))*$I21*Assumptions!$G$45*Assumptions!$G$48 -> 1.2031875 | AH21: =INDEX(Demand!F$9:F$428,MATCH($C21,Demand!$B$9:$B$428,0))*$I21*Assumptions!$G$45*Assumptions!$G$48 -> 1.209 | AI21: =INDEX(Demand!G$9:G$428,MATCH($C21,Demand!$B$9:$B$428,0))*$I21*Assumptions!$G$45*Assumptions!$G$48 -> 1.2249375 | AJ21: =INDEX(Demand!H$9:H$428,MATCH($C21,Demand!$B$9:$B$428,0))*$I21*Assumptions!$G$45*Assumptions!$G$48 -> 1.238625 | AK21: =INDEX(Demand!I$9:I$428,MATCH($C21,Demand!$B$9:$B$428,0))*$I21*Assumptions!$G$45*Assumptions!$G$48 -> 1.245375 | AL21: =INDEX(Demand!J$9:J$428,MATCH($C21,Demand!$B$9:$B$428,0))*$I21*Assumptions!$G$45*Assumptions!$G$48 -> 1.2545625 | AM21: =INDEX(Demand!K$9:K$428,MATCH($C21,Demand!$B$9:$B$428,0))*$I21*Assumptions!$G$45*Assumptions!$G$48 -> 1.2706875 | AN21: =INDEX(Demand!L$9:L$428,MATCH($C21,Demand!$B$9:$B$428,0))*$I21*Assumptions!$G$45*Assumptions!$G$48 -> 1.28925 | AO21: =INDEX(Demand!M$9:M$428,MATCH($C21,Demand!$B$9:$B$428,0))*$I21*Assumptions!$G$45*Assumptions!$G$48 -> 1.3035 | AP21: =INDEX(Demand!N$9:N$428,MATCH($C21,Demand!$B$9:$B$428,0))*$I21*Assumptions!$G$45*Assumptions!$G$48 -> 1.3035 | AQ21: =INDEX(Demand!O$9:O$428,MATCH($C21,Demand!$B$9:$B$428,0))*$I21*Assumptions!$G$45*Assumptions!$G$48 -> 1.3035 | AR21: =INDEX(Demand!P$9:P$428,MATCH($C21,Demand!$B$9:$B$428,0))*$I21*Assumptions!$G$45*Assumptions!$G$48 -> 1.3035 | AS21: =INDEX(Demand!Q$9:Q$428,MATCH($C21,Demand!$B$9:$B$428,0))*$I21*Assumptions!$G$45*Assumptions!$G$48 -> 1.3035 | AT21: =INDEX(Demand!R$9:R$428,MATCH($C21,Demand!$B$9:$B$428,0))*$I21*Assumptions!$G$45*Assumptions!$G$48 -> 1.3035 | AU21: =INDEX(Demand!S$9:S$428,MATCH($C21,Demand!$B$9:$B$428,0))*$I21*Assumptions!$G$45*Assumptions!$G$48 -> 1.3035 | AV21: =INDEX(Demand!T$9:T$428,MATCH($C21,Demand!$B$9:$B$428,0))*$I21*Assumptions!$G$45*Assumptions!$G$48 -> 1.3035 | AW21: =INDEX(Demand!U$9:U$428,MATCH($C21,Demand!$B$9:$B$428,0))*$I21*Assumptions!$G$45*Assumptions!$G$48 -> 1.3035 | AX21: =INDEX(Demand!V$9:V$428,MATCH($C21,Demand!$B$9:$B$428,0))*$I21*Assumptions!$G$45*Assumptions!$G$48 -> 1.3035 | AY21: =INDEX(Demand!W$9:W$428,MATCH($C21,Demand!$B$9:$B$428,0))*$I21*Assumptions!$G$45*Assumptions!$G$48 -> 1.3035 | AZ21: =INDEX(Demand!X$9:X$428,MATCH($C21,Demand!$B$9:$B$428,0))*$I21*Assumptions!$G$45*Assumptions!$G$48 -> 1.3035 | BB21: =SUMPRODUCT(($AG21:$AZ21)*(Misc_calcs!$G$29:$Z$29)*($L21:$AE21))*Calcs!$G21 -> 13570.68412 | BD21: =SUMPRODUCT(($L21:$AE21)*(Misc_calcs!$G$29:$Z$29))*$F21*Assumptions!$G$37*(1+Assumptions!$G$83) -> 17543.63784 | BF21: =Assumptions!$G$86*$F21 -> 0.00151785648 | BH21: =($F21*Assumptions!$G$37) -> 45517.92 | BJ21: =-SUMPRODUCT((PMT(real_disc,Assumptions!$G$40,BH21))*(Misc_calcs!$G$29:$Z$29)) -> 25791.4667 | BL21: =SUMPRODUCT(($AG21:$AZ21)*(Misc_calcs!$G$29:$Z$29))*$BF21*$G21 -> 914.6632914 | BN21: =SUMPRODUCT($BF21*(Misc_calcs!$G$29:$Z$29))*$F21*Assumptions!$G$37*(1+Assumptions!$G$83) -> 1198.759498 | BP21: 31114.32196 | BR21: 2113.422789 | BT21: 29000.89917 | BV21: 3209.432473 | BX21: TRUE
B22: 49238892 | C22: DMA23 | D22: DMA | E22: 12.7kV | F22: 134.9 | G22: 32746.91746 | H22: =INDEX(Demand!$C$9:$C$428, MATCH($C22, Demand!$B$9:$B$428,0)) -> 3 | I22: 0.25 | L22: 0.003733446868 | M22: 0.004177982766 | N22: 0.004678822787 | O22: 0.005243324153 | P22: 0.00587982379 | Q22: 0.006597770353 | R22: 0.007407874188 | S22: 0.00832227767 | T22: 0.009354748704 | U22: 0.01052090055 | V22: 0.01183844156 | W22: 0.01332745896 | X22: 0.01501074127 | Y22: 0.01691414469 | Z22: 0.01906700944 | AA22: 0.02150263294 | AB22: 0.02425880756 | AC22: 0.02432678043 | AD22: 0.02432678043 | AE22: 0.02432678043 | AG22: =INDEX(Demand!E$9:E$428,MATCH($C22,Demand!$B$9:$B$428,0))*$I22*Assumptions!$G$45*Assumptions!$G$48 -> 1.2031875 | AH22: =INDEX(Demand!F$9:F$428,MATCH($C22,Demand!$B$9:$B$428,0))*$I22*Assumptions!$G$45*Assumptions!$G$48 -> 1.209 | AI22: =INDEX(Demand!G$9:G$428,MATCH($C22,Demand!$B$9:$B$428,0))*$I22*Assumptions!$G$45*Assumptions!$G$48 -> 1.2249375 | AJ22: =INDEX(Demand!H$9:H$428,MATCH($C22,Demand!$B$9:$B$428,0))*$I22*Assumptions!$G$45*Assumptions!$G$48 -> 1.238625 | AK22: =INDEX(Demand!I$9:I$428,MATCH($C22,Demand!$B$9:$B$428,0))*$I22*Assumptions!$G$45*Assumptions!$G$48 -> 1.245375 | AL22: =INDEX(Demand!J$9:J$428,MATCH($C22,Demand!$B$9:$B$428,0))*$I22*Assumptions!$G$45*Assumptions!$G$48 -> 1.2545625 | AM22: =INDEX(Demand!K$9:K$428,MATCH($C22,Demand!$B$9:$B$428,0))*$I22*Assumptions!$G$45*Assumptions!$G$48 -> 1.2706875 | AN22: =INDEX(Demand!L$9:L$428,MATCH($C22,Demand!$B$9:$B$428,0))*$I22*Assumptions!$G$45*Assumptions!$G$48 -> 1.28925 | AO22: =INDEX(Demand!M$9:M$428,MATCH($C22,Demand!$B$9:$B$428,0))*$I22*Assumptions!$G$45*Assumptions!$G$48 -> 1.3035 | AP22: =INDEX(Demand!N$9:N$428,MATCH($C22,Demand!$B$9:$B$428,0))*$I22*Assumptions!$G$45*Assumptions!$G$48 -> 1.3035 | AQ22: =INDEX(Demand!O$9:O$428,MATCH($C22,Demand!$B$9:$B$428,0))*$I22*Assumptions!$G$45*Assumptions!$G$48 -> 1.3035 | AR22: =INDEX(Demand!P$9:P$428,MATCH($C22,Demand!$B$9:$B$428,0))*$I22*Assumptions!$G$45*Assumptions!$G$48 -> 1.3035 | AS22: =INDEX(Demand!Q$9:Q$428,MATCH($C22,Demand!$B$9:$B$428,0))*$I22*Assumptions!$G$45*Assumptions!$G$48 -> 1.3035 | AT22: =INDEX(Demand!R$9:R$428,MATCH($C22,Demand!$B$9:$B$428,0))*$I22*Assumptions!$G$45*Assumptions!$G$48 -> 1.3035 | AU22: =INDEX(Demand!S$9:S$428,MATCH($C22,Demand!$B$9:$B$428,0))*$I22*Assumptions!$G$45*Assumptions!$G$48 -> 1.3035 | AV22: =INDEX(Demand!T$9:T$428,MATCH($C22,Demand!$B$9:$B$428,0))*$I22*Assumptions!$G$45*Assumptions!$G$48 -> 1.3035 | AW22: =INDEX(Demand!U$9:U$428,MATCH($C22,Demand!$B$9:$B$428,0))*$I22*Assumptions!$G$45*Assumptions!$G$48 -> 1.3035 | AX22: =INDEX(Demand!V$9:V$428,MATCH($C22,Demand!$B$9:$B$428,0))*$I22*Assumptions!$G$45*Assumptions!$G$48 -> 1.3035 | AY22: =INDEX(Demand!W$9:W$428,MATCH($C22,Demand!$B$9:$B$428,0))*$I22*Assumptions!$G$45*Assumptions!$G$48 -> 1.3035 | AZ22: =INDEX(Demand!X$9:X$428,MATCH($C22,Demand!$B$9:$B$428,0))*$I22*Assumptions!$G$45*Assumptions!$G$48 -> 1.3035 | BB22: =SUMPRODUCT(($AG22:$AZ22)*(Misc_calcs!$G$29:$Z$29)*($L22:$AE22))*Calcs!$G22 -> 7106.697544 | BD22: =SUMPRODUCT(($L22:$AE22)*(Misc_calcs!$G$29:$Z$29))*$F22*Assumptions!$G$37*(1+Assumptions!$G$83) -> 4811.182549 | BF22: =Assumptions!$G$86*$F22 -> 0.00079487127 | BH22: =($F22*Assumptions!$G$37) -> 23836.83 | BJ22: =-SUMPRODUCT((PMT(real_disc,Assumptions!$G$40,BH22))*(Misc_calcs!$G$29:$Z$29)) -> 13506.47848 | BL22: =SUMPRODUCT(($AG22:$AZ22)*(Misc_calcs!$G$29:$Z$29))*$BF22*$G22 -> 478.990986 | BN22: =SUMPRODUCT($BF22*(Misc_calcs!$G$29:$Z$29))*$F22*Assumptions!$G$37*(1+Assumptions!$G$83) -> 328.7488506 | BP22: 11917.88009 | BR22: 807.7398366 | BT22: 11110.14026 | BV22: -2396.338227 | BX22: FALSE
B23: 49275052 | C23: DMA15 | D23: DMA | E23: 22kV | F23: 434.93 | G23: 32746.91746 | H23: =INDEX(Demand!$C$9:$C$428, MATCH($C23, Demand!$B$9:$B$428,0)) -> 2 | I23: 0.3333333333 | L23: 0.003101362026 | M23: 0.0034116574 | N23: 0.003757050213 | O23: 0.004141731095 | P23: 0.004570407481 | Q23: 0.005048368639 | R23: 0.005581559001 | S23: 0.006176660847 | T23: 0.006841187554 | U23: 0.007583588765 | V23: 0.008413369018 | W23: 0.009341221572 | X23: 0.01037917938 | Y23: 0.01154078542 | Z23: 0.01284128494 | AA23: 0.01429784232 | AB23: 0.01592978588 | AC23: 0.01775888418 | AD23: 0.01980965781 | AE23: 0.02210973143 | AG23: =INDEX(Demand!E$9:E$428,MATCH($C23,Demand!$B$9:$B$428,0))*$I23*Assumptions!$G$45*Assumptions!$G$48 -> 0.95925 | AH23: =INDEX(Demand!F$9:F$428,MATCH($C23,Demand!$B$9:$B$428,0))*$I23*Assumptions!$G$45*Assumptions!$G$48 -> 0.959 | AI23: =INDEX(Demand!G$9:G$428,MATCH($C23,Demand!$B$9:$B$428,0))*$I23*Assumptions!$G$45*Assumptions!$G$48 -> 0.9645 | AJ23: =INDEX(Demand!H$9:H$428,MATCH($C23,Demand!$B$9:$B$428,0))*$I23*Assumptions!$G$45*Assumptions!$G$48 -> 0.96925 | AK23: =INDEX(Demand!I$9:I$428,MATCH($C23,Demand!$B$9:$B$428,0))*$I23*Assumptions!$G$45*Assumptions!$G$48 -> 0.97025 | AL23: =INDEX(Demand!J$9:J$428,MATCH($C23,Demand!$B$9:$B$428,0))*$I23*Assumptions!$G$45*Assumptions!$G$48 -> 0.97275 | AM23: =INDEX(Demand!K$9:K$428,MATCH($C23,Demand!$B$9:$B$428,0))*$I23*Assumptions!$G$45*Assumptions!$G$48 -> 0.981 | AN23: =INDEX(Demand!L$9:L$428,MATCH($C23,Demand!$B$9:$B$428,0))*$I23*Assumptions!$G$45*Assumptions!$G$48 -> 0.99225 | AO23: =INDEX(Demand!M$9:M$428,MATCH($C23,Demand!$B$9:$B$428,0))*$I23*Assumptions!$G$45*Assumptions!$G$48 -> 1.0005 | AP23: =INDEX(Demand!N$9:N$428,MATCH($C23,Demand!$B$9:$B$428,0))*$I23*Assumptions!$G$45*Assumptions!$G$48 -> 1.0005 | AQ23: =INDEX(Demand!O$9:O$428,MATCH($C23,Demand!$B$9:$B$428,0))*$I23*Assumptions!$G$45*Assumptions!$G$48 -> 1.0005 | AR23: =INDEX(Demand!P$9:P$428,MATCH($C23,Demand!$B$9:$B$428,0))*$I23*Assumptions!$G$45*Assumptions!$G$48 -> 1.0005 | AS23: =INDEX(Demand!Q$9:Q$428,MATCH($C23,Demand!$B$9:$B$428,0))*$I23*Assumptions!$G$45*Assumptions!$G$48 -> 1.0005 | AT23: =INDEX(Demand!R$9:R$428,MATCH($C23,Demand!$B$9:$B$428,0))*$I23*Assumptions!$G$45*Assumptions!$G$48 -> 1.0005 | AU23: =INDEX(Demand!S$9:S$428,MATCH($C23,Demand!$B$9:$B$428,0))*$I23*Assumptions!$G$45*Assumptions!$G$48 -> 1.0005 | AV23: =INDEX(Demand!T$9:T$428,MATCH($C23,Demand!$B$9:$B$428,0))*$I23*Assumptions!$G$45*Assumptions!$G$48 -> 1.0005 | AW23: =INDEX(Demand!U$9:U$428,MATCH($C23,Demand!$B$9:$B$428,0))*$I23*Assumptions!$G$45*Assumptions!$G$48 -> 1.0005 | AX23: =INDEX(Demand!V$9:V$428,MATCH($C23,Demand!$B$9:$B$428,0))*$I23*Assumptions!$G$45*Assumptions!$G$48 -> 1.0005 | AY23: =INDEX(Demand!W$9:W$428,MATCH($C23,Demand!$B$9:$B$428,0))*$I23*Assumptions!$G$45*Assumptions!$G$48 -> 1.0005 | AZ23: =INDEX(Demand!X$9:X$428,MATCH($C23,Demand!$B$9:$B$428,0))*$I23*Assumptions!$G$45*Assumptions!$G$48 -> 1.0005 | BB23: =SUMPRODUCT(($AG23:$AZ23)*(Misc_calcs!$G$29:$Z$29)*($L23:$AE23))*Calcs!$G23 -> 4041.026738 | BD23: =SUMPRODUCT(($L23:$AE23)*(Misc_calcs!$G$29:$Z$29))*$F23*Assumptions!$G$37*(1+Assumptions!$G$83) -> 11453.99377 | BF23: =Assumptions!$G$86*$F23 -> 0.002562738039 | BH23: =($F23*Assumptions!$G$37) -> 76852.131 | BJ23: =-SUMPRODUCT((PMT(real_disc,Assumptions!$G$40,BH23))*(Misc_calcs!$G$29:$Z$29)) -> 43546.12814 | BL23: =SUMPRODUCT(($AG23:$AZ23)*(Misc_calcs!$G$29:$Z$29))*$BF23*$G23 -> 1196.277044 | BN23: =SUMPRODUCT($BF23*(Misc_calcs!$G$29:$Z$29))*$F23*Assumptions!$G$37*(1+Assumptions!$G$83) -> 3417.268265 | BP23: 15495.02051 | BR23: 4613.545309 | BT23: 10881.4752 | BV23: -32664.65294 | BX23: FALSE
B24: 49275186 | C24: MTN32 | D24: MTN | E24: 22kV | F24: 181.94 | G24: 37411.3138 | H24: =INDEX(Demand!$C$9:$C$428, MATCH($C24, Demand!$B$9:$B$428,0)) -> 4 | I24: 0.2 | L24: 0.001512825461 | M24: 0.001672322065 | N24: 0.001850647995 | O24: 0.002050141989 | P24: 0.002273442226 | Q24: 0.002523525402 | R24: 0.002803750969 | S24: 0.003117911221 | T24: 0.003470288006 | U24: 0.003865716964 | V24: 0.004309660262 | W24: 0.004808288995 | X24: 0.005368576523 | Y24: 0.005998404213 | Z24: 0.006706681239 | AA24: 0.007503480331 | AB24: 0.008400191592 | AC24: 0.00940969682 | AD24: 0.01054656706 | AE24: 0.01182728654 | AG24: =INDEX(Demand!E$9:E$428,MATCH($C24,Demand!$B$9:$B$428,0))*$I24*Assumptions!$G$45*Assumptions!$G$48 -> 1.0089 | AH24: =INDEX(Demand!F$9:F$428,MATCH($C24,Demand!$B$9:$B$428,0))*$I24*Assumptions!$G$45*Assumptions!$G$48 -> 1.01175 | AI24: =INDEX(Demand!G$9:G$428,MATCH($C24,Demand!$B$9:$B$428,0))*$I24*Assumptions!$G$45*Assumptions!$G$48 -> 1.02015 | AJ24: =INDEX(Demand!H$9:H$428,MATCH($C24,Demand!$B$9:$B$428,0))*$I24*Assumptions!$G$45*Assumptions!$G$48 -> 1.02675 | AK24: =INDEX(Demand!I$9:I$428,MATCH($C24,Demand!$B$9:$B$428,0))*$I24*Assumptions!$G$45*Assumptions!$G$48 -> 1.0269 | AL24: =INDEX(Demand!J$9:J$428,MATCH($C24,Demand!$B$9:$B$428,0))*$I24*Assumptions!$G$45*Assumptions!$G$48 -> 1.0299 | AM24: =INDEX(Demand!K$9:K$428,MATCH($C24,Demand!$B$9:$B$428,0))*$I24*Assumptions!$G$45*Assumptions!$G$48 -> 1.0398 | AN24: =INDEX(Demand!L$9:L$428,MATCH($C24,Demand!$B$9:$B$428,0))*$I24*Assumptions!$G$45*Assumptions!$G$48 -> 1.0557 | AO24: =INDEX(Demand!M$9:M$428,MATCH($C24,Demand!$B$9:$B$428,0))*$I24*Assumptions!$G$45*Assumptions!$G$48 -> 1.0647 | AP24: =INDEX(Demand!N$9:N$428,MATCH($C24,Demand!$B$9:$B$428,0))*$I24*Assumptions!$G$45*Assumptions!$G$48 -> 1.0647 | AQ24: =INDEX(Demand!O$9:O$428,MATCH($C24,Demand!$B$9:$B$428,0))*$I24*Assumptions!$G$45*Assumptions!$G$48 -> 1.0647 | AR24: =INDEX(Demand!P$9:P$428,MATCH($C24,Demand!$B$9:$B$428,0))*$I24*Assumptions!$G$45*Assumptions!$G$48 -> 1.0647 | AS24: =INDEX(Demand!Q$9:Q$428,MATCH($C24,Demand!$B$9:$B$428,0))*$I24*Assumptions!$G$45*Assumptions!$G$48 -> 1.0647 | AT24: =INDEX(Demand!R$9:R$428,MATCH($C24,Demand!$B$9:$B$428,0))*$I24*Assumptions!$G$45*Assumptions!$G$48 -> 1.0647 | AU24: =INDEX(Demand!S$9:S$428,MATCH($C24,Demand!$B$9:$B$428,0))*$I24*Assumptions!$G$45*Assumptions!$G$48 -> 1.0647 | AV24: =INDEX(Demand!T$9:T$428,MATCH($C24,Demand!$B$9:$B$428,0))*$I24*Assumptions!$G$45*Assumptions!$G$48 -> 1.0647 | AW24: =INDEX(Demand!U$9:U$428,MATCH($C24,Demand!$B$9:$B$428,0))*$I24*Assumptions!$G$45*Assumptions!$G$48 -> 1.0647 | AX24: =INDEX(Demand!V$9:V$428,MATCH($C24,Demand!$B$9:$B$428,0))*$I24*Assumptions!$G$45*Assumptions!$G$48 -> 1.0647 | AY24: =INDEX(Demand!W$9:W$428,MATCH($C24,Demand!$B$9:$B$428,0))*$I24*Assumptions!$G$45*Assumptions!$G$48 -> 1.0647 | AZ24: =INDEX(Demand!X$9:X$428,MATCH($C24,Demand!$B$9:$B$428,0))*$I24*Assumptions!$G$45*Assumptions!$G$48 -> 1.0647 | BB24: =SUMPRODUCT(($AG24:$AZ24)*(Misc_calcs!$G$29:$Z$29)*($L24:$AE24))*Calcs!$G24 -> 2536.268572 | BD24: =SUMPRODUCT(($L24:$AE24)*(Misc_calcs!$G$29:$Z$29))*$F24*Assumptions!$G$37*(1+Assumptions!$G$83) -> 2475.870743 | BF24: =Assumptions!$G$86*$F24 -> 0.001072045062 | BH24: =($F24*Assumptions!$G$37) -> 32148.798 | BJ24: =-SUMPRODUCT((PMT(real_disc,Assumptions!$G$40,BH24))*(Misc_calcs!$G$29:$Z$29)) -> 18216.22458 | BL24: =SUMPRODUCT(($AG24:$AZ24)*(Misc_calcs!$G$29:$Z$29))*$BF24*$G24 -> 606.683715 | BN24: =SUMPRODUCT($BF24*(Misc_calcs!$G$29:$Z$29))*$F24*Assumptions!$G$37*(1+Assumptions!$G$83) -> 597.9938595 | BP24: 5012.139315 | BR24: 1204.677574 | BT24: 3807.461741 | BV24: -14408.76283 | BX24: FALSE
B25: 49275216 | C25: MTN32 | D25: MTN | E25: 22kV | F25: 61.685 | G25: 37411.3138 | H25: =INDEX(Demand!$C$9:$C$428, MATCH($C25, Demand!$B$9:$B$428,0)) -> 4 | I25: 0.2 | L25: 0.0005129088632 | M25: 0.0005669846464 | N25: 0.0006274443311 | O25: 0.0006950808432 | P25: 0.0007707886321 | Q25: 0.0008555769179 | R25: 0.0009505846903 | S25: 0.00105709769 | T25: 0.001176567636 | U25: 0.001310634005 | V25: 0.001461148693 | W25: 0.00163020395 | X25: 0.001820164026 | Y25: 0.002033701022 | Z25: 0.002273835508 | AA25: 0.002543982545 | AB25: 0.002848003838 | AC25: 0.003190266837 | AD25: 0.003575711714 | AE25: 0.004009927284 | AG25: =INDEX(Demand!E$9:E$428,MATCH($C25,Demand!$B$9:$B$428,0))*$I25*Assumptions!$G$45*Assumptions!$G$48 -> 1.0089 | AH25: =INDEX(Demand!F$9:F$428,MATCH($C25,Demand!$B$9:$B$428,0))*$I25*Assumptions!$G$45*Assumptions!$G$48 -> 1.01175 | AI25: =INDEX(Demand!G$9:G$428,MATCH($C25,Demand!$B$9:$B$428,0))*$I25*Assumptions!$G$45*Assumptions!$G$48 -> 1.02015 | AJ25: =INDEX(Demand!H$9:H$428,MATCH($C25,Demand!$B$9:$B$428,0))*$I25*Assumptions!$G$45*Assumptions!$G$48 -> 1.02675 | AK25: =INDEX(Demand!I$9:I$428,MATCH($C25,Demand!$B$9:$B$428,0))*$I25*Assumptions!$G$45*Assumptions!$G$48 -> 1.0269 | AL25: =INDEX(Demand!J$9:J$428,MATCH($C25,Demand!$B$9:$B$428,0))*$I25*Assumptions!$G$45*Assumptions!$G$48 -> 1.0299 | AM25: =INDEX(Demand!K$9:K$428,MATCH($C25,Demand!$B$9:$B$428,0))*$I25*Assumptions!$G$45*Assumptions!$G$48 -> 1.0398 | AN25: =INDEX(Demand!L$9:L$428,MATCH($C25,Demand!$B$9:$B$428,0))*$I25*Assumptions!$G$45*Assumptions!$G$48 -> 1.0557 | AO25: =INDEX(Demand!M$9:M$428,MATCH($C25,Demand!$B$9:$B$428,0))*$I25*Assumptions!$G$45*Assumptions!$G$48 -> 1.0647 | AP25: =INDEX(Demand!N$9:N$428,MATCH($C25,Demand!$B$9:$B$428,0))*$I25*Assumptions!$G$45*Assumptions!$G$48 -> 1.0647 | AQ25: =INDEX(Demand!O$9:O$428,MATCH($C25,Demand!$B$9:$B$428,0))*$I25*Assumptions!$G$45*Assumptions!$G$48 -> 1.0647 | AR25: =INDEX(Demand!P$9:P$428,MATCH($C25,Demand!$B$9:$B$428,0))*$I25*Assumptions!$G$45*Assumptions!$G$48 -> 1.0647 | AS25: =INDEX(Demand!Q$9:Q$428,MATCH($C25,Demand!$B$9:$B$428,0))*$I25*Assumptions!$G$45*Assumptions!$G$48 -> 1.0647 | AT25: =INDEX(Demand!R$9:R$428,MATCH($C25,Demand!$B$9:$B$428,0))*$I25*Assumptions!$G$45*Assumptions!$G$48 -> 1.0647 | AU25: =INDEX(Demand!S$9:S$428,MATCH($C25,Demand!$B$9:$B$428,0))*$I25*Assumptions!$G$45*Assumptions!$G$48 -> 1.0647 | AV25: =INDEX(Demand!T$9:T$428,MATCH($C25,Demand!$B$9:$B$428,0))*$I25*Assumptions!$G$45*Assumptions!$G$48 -> 1.0647 | AW25: =INDEX(Demand!U$9:U$428,MATCH($C25,Demand!$B$9:$B$428,0))*$I25*Assumptions!$G$45*Assumptions!$G$48 -> 1.0647 | AX25: =INDEX(Demand!V$9:V$428,MATCH($C25,Demand!$B$9:$B$428,0))*$I25*Assumptions!$G$45*Assumptions!$G$48 -> 1.0647 | AY25: =INDEX(Demand!W$9:W$428,MATCH($C25,Demand!$B$9:$B$428,0))*$I25*Assumptions!$G$45*Assumptions!$G$48 -> 1.0647 | AZ25: =INDEX(Demand!X$9:X$428,MATCH($C25,Demand!$B$9:$B$428,0))*$I25*Assumptions!$G$45*Assumptions!$G$48 -> 1.0647 | BB25: =SUMPRODUCT(($AG25:$AZ25)*(Misc_calcs!$G$29:$Z$29)*($L25:$AE25))*Calcs!$G25 -> 859.8973665 | BD25: =SUMPRODUCT(($L25:$AE25)*(Misc_calcs!$G$29:$Z$29))*$F25*Assumptions!$G$37*(1+Assumptions!$G$83) -> 284.597267 | BF25: =Assumptions!$G$86*$F25 -> 0.0003634665255 | BH25: =($F25*Assumptions!$G$37) -> 10899.7395 | BJ25: =-SUMPRODUCT((PMT(real_disc,Assumptions!$G$40,BH25))*(Misc_calcs!$G$29:$Z$29)) -> 6176.035028 | BL25: =SUMPRODUCT(($AG25:$AZ25)*(Misc_calcs!$G$29:$Z$29))*$BF25*$G25 -> 205.6902548 | BN25: =SUMPRODUCT($BF25*(Misc_calcs!$G$29:$Z$29))*$F25*Assumptions!$G$37*(1+Assumptions!$G$83) -> 68.73840994 | BP25: 1144.494634 | BR25: 274.4286648 | BT25: 870.0659688 | BV25: -5305.969059 | BX25: FALSE
B26: 49275222 | C26: MTN32 | D26: MTN | E26: 22kV | F26: 457.36 | G26: 37411.3138 | H26: =INDEX(Demand!$C$9:$C$428, MATCH($C26, Demand!$B$9:$B$428,0)) -> 4 | I26: 0.2 | L26: 0.003689158541 | M26: 0.004076250394 | N26: 0.004508906444 | O26: 0.004992773185 | P26: 0.00553421869 | Q26: 0.006140426619 | R26: 0.006819502621 | S26: 0.007580594787 | T26: 0.008434030026 | U26: 0.009391468469 | V26: 0.01046607832 | W26: 0.01167273388 | X26: 0.01302823981 | Y26: 0.01455158518 | Z26: 0.0162642312 | AA26: 0.01819043727 | AB26: 0.0203576303 | AC26: 0.02279682323 | AD26: 0.02554308924 | AE26: 0.02863609914 | AG26: =INDEX(Demand!E$9:E$428,MATCH($C26,Demand!$B$9:$B$428,0))*$I26*Assumptions!$G$45*Assumptions!$G$48 -> 1.0089 | AH26: =INDEX(Demand!F$9:F$428,MATCH($C26,Demand!$B$9:$B$428,0))*$I26*Assumptions!$G$45*Assumptions!$G$48 -> 1.01175 | AI26: =INDEX(Demand!G$9:G$428,MATCH($C26,Demand!$B$9:$B$428,0))*$I26*Assumptions!$G$45*Assumptions!$G$48 -> 1.02015 | AJ26: =INDEX(Demand!H$9:H$428,MATCH($C26,Demand!$B$9:$B$428,0))*$I26*Assumptions!$G$45*Assumptions!$G$48 -> 1.02675 | AK26: =INDEX(Demand!I$9:I$428,MATCH($C26,Demand!$B$9:$B$428,0))*$I26*Assumptions!$G$45*Assumptions!$G$48 -> 1.0269 | AL26: =INDEX(Demand!J$9:J$428,MATCH($C26,Demand!$B$9:$B$428,0))*$I26*Assumptions!$G$45*Assumptions!$G$48 -> 1.0299 | AM26: =INDEX(Demand!K$9:K$428,MATCH($C26,Demand!$B$9:$B$428,0))*$I26*Assumptions!$G$45*Assumptions!$G$48 -> 1.0398 | AN26: =INDEX(Demand!L$9:L$428,MATCH($C26,Demand!$B$9:$B$428,0))*$I26*Assumptions!$G$45*Assumptions!$G$48 -> 1.0557 | AO26: =INDEX(Demand!M$9:M$428,MATCH($C26,Demand!$B$9:$B$428,0))*$I26*Assumptions!$G$45*Assumptions!$G$48 -> 1.0647 | AP26: =INDEX(Demand!N$9:N$428,MATCH($C26,Demand!$B$9:$B$428,0))*$I26*Assumptions!$G$45*Assumptions!$G$48 -> 1.0647 | AQ26: =INDEX(Demand!O$9:O$428,MATCH($C26,Demand!$B$9:$B$428,0))*$I26*Assumptions!$G$45*Assumptions!$G$48 -> 1.0647 | AR26: =INDEX(Demand!P$9:P$428,MATCH($C26,Demand!$B$9:$B$428,0))*$I26*Assumptions!$G$45*Assumptions!$G$48 -> 1.0647 | AS26: =INDEX(Demand!Q$9:Q$428,MATCH($C26,Demand!$B$9:$B$428,0))*$I26*Assumptions!$G$45*Assumptions!$G$48 -> 1.0647 | AT26: =INDEX(Demand!R$9:R$428,MATCH($C26,Demand!$B$9:$B$428,0))*$I26*Assumptions!$G$45*Assumptions!$G$48 -> 1.0647 | AU26: =INDEX(Demand!S$9:S$428,MATCH($C26,Demand!$B$9:$B$428,0))*$I26*Assumptions!$G$45*Assumptions!$G$48 -> 1.0647 | AV26: =INDEX(Demand!T$9:T$428,MATCH($C26,Demand!$B$9:$B$428,0))*$I26*Assumptions!$G$45*Assumptions!$G$48 -> 1.0647 | AW26: =INDEX(Demand!U$9:U$428,MATCH($C26,Demand!$B$9:$B$428,0))*$I26*Assumptions!$G$45*Assumptions!$G$48 -> 1.0647 | AX26: =INDEX(Demand!V$9:V$428,MATCH($C26,Demand!$B$9:$B$428,0))*$I26*Assumptions!$G$45*Assumptions!$G$48 -> 1.0647 | AY26: =INDEX(Demand!W$9:W$428,MATCH($C26,Demand!$B$9:$B$428,0))*$I26*Assumptions!$G$45*Assumptions!$G$48 -> 1.0647 | AZ26: =INDEX(Demand!X$9:X$428,MATCH($C26,Demand!$B$9:$B$428,0))*$I26*Assumptions!$G$45*Assumptions!$G$48 -> 1.0647 | BB26: =SUMPRODUCT(($AG26:$AZ26)*(Misc_calcs!$G$29:$Z$29)*($L26:$AE26))*Calcs!$G26 -> 6155.725384 | BD26: =SUMPRODUCT(($L26:$AE26)*(Misc_calcs!$G$29:$Z$29))*$F26*Assumptions!$G$37*(1+Assumptions!$G$83) -> 15106.14499 | BF26: =Assumptions!$G$86*$F26 -> 0.002694902328 | BH26: =($F26*Assumptions!$G$37) -> 80815.512 | BJ26: =-SUMPRODUCT((PMT(real_disc,Assumptions!$G$40,BH26))*(Misc_calcs!$G$29:$Z$29)) -> 45791.86804 | BL26: =SUMPRODUCT(($AG26:$AZ26)*(Misc_calcs!$G$29:$Z$29))*$BF26*$G26 -> 1525.078949 | BN26: =SUMPRODUCT($BF26*(Misc_calcs!$G$29:$Z$29))*$F26*Assumptions!$G$37*(1+Assumptions!$G$83) -> 3778.824323 | BP26: 21261.87038 | BR26: 5303.903272 | BT26: 15957.96711 | BV26: -29833.90094 | BX26: FALSE
B27: 49275275 | C27: MTN32 | D27: MTN | E27: 22kV | F27: 90.763 | G27: 37411.3138 | H27: =INDEX(Demand!$C$9:$C$428, MATCH($C27, Demand!$B$9:$B$428,0)) -> 4 | I27: 0.2 | L27: 0.0008967423766 | M27: 0.0009862401999 | N27: 0.001085637949 | O27: 0.001196083545 | P27: 0.001318861826 | Q27: 0.001455411167 | R27: 0.001607342143 | S27: 0.001776458489 | T27: 0.001964780631 | U27: 0.002174572123 | V27: 0.002408369333 | W27: 0.002669014792 | X27: 0.002959694658 | Y27: 0.0032839808 | Z27: 0.00364587809 | AA27: 0.004049877527 | AB27: 0.004501015944 | AC27: 0.005004943096 | AD27: 0.005567997054 | AE27: 0.006197288943 | AG27: =INDEX(Demand!E$9:E$428,MATCH($C27,Demand!$B$9:$B$428,0))*$I27*Assumptions!$G$45*Assumptions!$G$48 -> 1.0089 | AH27: =INDEX(Demand!F$9:F$428,MATCH($C27,Demand!$B$9:$B$428,0))*$I27*Assumptions!$G$45*Assumptions!$G$48 -> 1.01175 | AI27: =INDEX(Demand!G$9:G$428,MATCH($C27,Demand!$B$9:$B$428,0))*$I27*Assumptions!$G$45*Assumptions!$G$48 -> 1.02015 | AJ27: =INDEX(Demand!H$9:H$428,MATCH($C27,Demand!$B$9:$B$428,0))*$I27*Assumptions!$G$45*Assumptions!$G$48 -> 1.02675 | AK27: =INDEX(Demand!I$9:I$428,MATCH($C27,Demand!$B$9:$B$428,0))*$I27*Assumptions!$G$45*Assumptions!$G$48 -> 1.0269 | AL27: =INDEX(Demand!J$9:J$428,MATCH($C27,Demand!$B$9:$B$428,0))*$I27*Assumptions!$G$45*Assumptions!$G$48 -> 1.0299 | AM27: =INDEX(Demand!K$9:K$428,MATCH($C27,Demand!$B$9:$B$428,0))*$I27*Assumptions!$G$45*Assumptions!$G$48 -> 1.0398 | AN27: =INDEX(Demand!L$9:L$428,MATCH($C27,Demand!$B$9:$B$428,0))*$I27*Assumptions!$G$45*Assumptions!$G$48 -> 1.0557 | AO27: =INDEX(Demand!M$9:M$428,MATCH($C27,Demand!$B$9:$B$428,0))*$I27*Assumptions!$G$45*Assumptions!$G$48 -> 1.0647 | AP27: =INDEX(Demand!N$9:N$428,MATCH($C27,Demand!$B$9:$B$428,0))*$I27*Assumptions!$G$45*Assumptions!$G$48 -> 1.0647 | AQ27: =INDEX(Demand!O$9:O$428,MATCH($C27,Demand!$B$9:$B$428,0))*$I27*Assumptions!$G$45*Assumptions!$G$48 -> 1.0647 | AR27: =INDEX(Demand!P$9:P$428,MATCH($C27,Demand!$B$9:$B$428,0))*$I27*Assumptions!$G$45*Assumptions!$G$48 -> 1.0647 | AS27: =INDEX(Demand!Q$9:Q$428,MATCH($C27,Demand!$B$9:$B$428,0))*$I27*Assumptions!$G$45*Assumptions!$G$48 -> 1.0647 | AT27: =INDEX(Demand!R$9:R$428,MATCH($C27,Demand!$B$9:$B$428,0))*$I27*Assumptions!$G$45*Assumptions!$G$48 -> 1.0647 | AU27: =INDEX(Demand!S$9:S$428,MATCH($C27,Demand!$B$9:$B$428,0))*$I27*Assumptions!$G$45*Assumptions!$G$48 -> 1.0647 | AV27: =INDEX(Demand!T$9:T$428,MATCH($C27,Demand!$B$9:$B$428,0))*$I27*Assumptions!$G$45*Assumptions!$G$48 -> 1.0647 | AW27: =INDEX(Demand!U$9:U$428,MATCH($C27,Demand!$B$9:$B$428,0))*$I27*Assumptions!$G$45*Assumptions!$G$48 -> 1.0647 | AX27: =INDEX(Demand!V$9:V$428,MATCH($C27,Demand!$B$9:$B$428,0))*$I27*Assumptions!$G$45*Assumptions!$G$48 -> 1.0647 | AY27: =INDEX(Demand!W$9:W$428,MATCH($C27,Demand!$B$9:$B$428,0))*$I27*Assumptions!$G$45*Assumptions!$G$48 -> 1.0647 | AZ27: =INDEX(Demand!X$9:X$428,MATCH($C27,Demand!$B$9:$B$428,0))*$I27*Assumptions!$G$45*Assumptions!$G$48 -> 1.0647 | BB27: =SUMPRODUCT(($AG27:$AZ27)*(Misc_calcs!$G$29:$Z$29)*($L27:$AE27))*Calcs!$G27 -> 1396.920738 | BD27: =SUMPRODUCT(($L27:$AE27)*(Misc_calcs!$G$29:$Z$29))*$F27*Assumptions!$G$37*(1+Assumptions!$G$83) -> 680.5911937 | BF27: =Assumptions!$G$86*$F27 -> 0.0005348028249 | BH27: =($F27*Assumptions!$G$37) -> 16037.8221 | BJ27: =-SUMPRODUCT((PMT(real_disc,Assumptions!$G$40,BH27))*(Misc_calcs!$G$29:$Z$29)) -> 9087.387002 | BL27: =SUMPRODUCT(($AG27:$AZ27)*(Misc_calcs!$G$29:$Z$29))*$BF27*$G27 -> 302.6516106 | BN27: =SUMPRODUCT($BF27*(Misc_calcs!$G$29:$Z$29))*$F27*Assumptions!$G$37*(1+Assumptions!$G$83) -> 148.8188788 | BP27: 2077.511931 | BR27: 451.4704893 | BT27: 1626.041442 | BV27: -7461.34556 | BX27: FALSE
B28: 49275281 | C28: MTN32 | D28: MTN | E28: 22kV | F28: 691.45 | G28: 37411.3138 | H28: =INDEX(Demand!$C$9:$C$428, MATCH($C28, Demand!$B$9:$B$428,0)) -> 4 | I28: 0.2 | L28: 0.007933924378 | M28: 0.008739357073 | N28: 0.009634718227 | O28: 0.01063050322 | P28: 0.01173846533 | Q28: 0.012971769 | R28: 0.01434516203 | S28: 0.01587516902 | T28: 0.01758030861 | U28: 0.0194813376 | V28: 0.02160152521 | W28: 0.02396696128 | X28: 0.02660690255 | Y28: 0.02955416188 | Z28: 0.0328455456 | AA28: 0.03652234513 | AB28: 0.04063088959 | AC28: 0.0452231669 | AD28: 0.05035752205 | AE28: 0.05609944209 | AG28: =INDEX(Demand!E$9:E$428,MATCH($C28,Demand!$B$9:$B$428,0))*$I28*Assumptions!$G$45*Assumptions!$G$48 -> 1.0089 | AH28: =INDEX(Demand!F$9:F$428,MATCH($C28,Demand!$B$9:$B$428,0))*$I28*Assumptions!$G$45*Assumptions!$G$48 -> 1.01175 | AI28: =INDEX(Demand!G$9:G$428,MATCH($C28,Demand!$B$9:$B$428,0))*$I28*Assumptions!$G$45*Assumptions!$G$48 -> 1.02015 | AJ28: =INDEX(Demand!H$9:H$428,MATCH($C28,Demand!$B$9:$B$428,0))*$I28*Assumptions!$G$45*Assumptions!$G$48 -> 1.02675 | AK28: =INDEX(Demand!I$9:I$428,MATCH($C28,Demand!$B$9:$B$428,0))*$I28*Assumptions!$G$45*Assumptions!$G$48 -> 1.0269 | AL28: =INDEX(Demand!J$9:J$428,MATCH($C28,Demand!$B$9:$B$428,0))*$I28*Assumptions!$G$45*Assumptions!$G$48 -> 1.0299 | AM28: =INDEX(Demand!K$9:K$428,MATCH($C28,Demand!$B$9:$B$428,0))*$I28*Assumptions!$G$45*Assumptions!$G$48 -> 1.0398 | AN28: =INDEX(Demand!L$9:L$428,MATCH($C28,Demand!$B$9:$B$428,0))*$I28*Assumptions!$G$45*Assumptions!$G$48 -> 1.0557 | AO28: =INDEX(Demand!M$9:M$428,MATCH($C28,Demand!$B$9:$B$428,0))*$I28*Assumptions!$G$45*Assumptions!$G$48 -> 1.0647 | AP28: =INDEX(Demand!N$9:N$428,MATCH($C28,Demand!$B$9:$B$428,0))*$I28*Assumptions!$G$45*Assumptions!$G$48 -> 1.0647 | AQ28: =INDEX(Demand!O$9:O$428,MATCH($C28,Demand!$B$9:$B$428,0))*$I28*Assumptions!$G$45*Assumptions!$G$48 -> 1.0647 | AR28: =INDEX(Demand!P$9:P$428,MATCH($C28,Demand!$B$9:$B$428,0))*$I28*Assumptions!$G$45*Assumptions!$G$48 -> 1.0647 | AS28: =INDEX(Demand!Q$9:Q$428,MATCH($C28,Demand!$B$9:$B$428,0))*$I28*Assumptions!$G$45*Assumptions!$G$48 -> 1.0647 | AT28: =INDEX(Demand!R$9:R$428,MATCH($C28,Demand!$B$9:$B$428,0))*$I28*Assumptions!$G$45*Assumptions!$G$48 -> 1.0647 | AU28: =INDEX(Demand!S$9:S$428,MATCH($C28,Demand!$B$9:$B$428,0))*$I28*Assumptions!$G$45*Assumptions!$G$48 -> 1.0647 | AV28: =INDEX(Demand!T$9:T$428,MATCH($C28,Demand!$B$9:$B$428,0))*$I28*Assumptions!$G$45*Assumptions!$G$48 -> 1.0647 | AW28: =INDEX(Demand!U$9:U$428,MATCH($C28,Demand!$B$9:$B$428,0))*$I28*Assumptions!$G$45*Assumptions!$G$48 -> 1.0647 | AX28: =INDEX(Demand!V$9:V$428,MATCH($C28,Demand!$B$9:$B$428,0))*$I28*Assumptions!$G$45*Assumptions!$G$48 -> 1.0647 | AY28: =INDEX(Demand!W$9:W$428,MATCH($C28,Demand!$B$9:$B$428,0))*$I28*Assumptions!$G$45*Assumptions!$G$48 -> 1.0647 | AZ28: =INDEX(Demand!X$9:X$428,MATCH($C28,Demand!$B$9:$B$428,0))*$I28*Assumptions!$G$45*Assumptions!$G$48 -> 1.0647 | BB28: =SUMPRODUCT(($AG28:$AZ28)*(Misc_calcs!$G$29:$Z$29)*($L28:$AE28))*Calcs!$G28 -> 12548.34439 | BD28: =SUMPRODUCT(($L28:$AE28)*(Misc_calcs!$G$29:$Z$29))*$F28*Assumptions!$G$37*(1+Assumptions!$G$83) -> 46570.84783 | BF28: =Assumptions!$G$86*$F28 -> 0.004074230835 | BH28: =($F28*Assumptions!$G$37) -> 122179.215 | BJ28: =-SUMPRODUCT((PMT(real_disc,Assumptions!$G$40,BH28))*(Misc_calcs!$G$29:$Z$29)) -> 69229.46291 | BL28: =SUMPRODUCT(($AG28:$AZ28)*(Misc_calcs!$G$29:$Z$29))*$BF28*$G28 -> 2305.65821 | BN28: =SUMPRODUCT($BF28*(Misc_calcs!$G$29:$Z$29))*$F28*Assumptions!$G$37*(1+Assumptions!$G$83) -> 8636.979834 | BP28: 59119.19222 | BR28: 10942.63804 | BT28: 48176.55418 | BV28: -21052.90874 | BX28: FALSE
B29: 49275294 | C29: MTN32 | D29: MTN | E29: 22kV | F29: 17.936 | G29: 37411.3138 | H29: =INDEX(Demand!$C$9:$C$428, MATCH($C29, Demand!$B$9:$B$428,0)) -> 4 | I29: 0.2 | L29: 0.0004038399829 | M29: 0.0004465758216 | N29: 0.0004941516187 | O29: 0.000547134286 | P29: 0.0006061585063 | Q29: 0.0006719349393 | R29: 0.0007452594312 | S29: 0.0008270233482 | T29: 0.0009182251742 | U29: 0.001019983527 | V29: 0.001133551766 | W29: 0.001260334392 | X29: 0.001401905456 | Y29: 0.001560029215 | Z29: 0.001736683339 | AA29: 0.001934084947 | AB29: 0.002154719848 | AC29: 0.002401375373 | AD29: 0.002677177235 | AE29: 0.002985630921 | AG29: =INDEX(Demand!E$9:E$428,MATCH($C29,Demand!$B$9:$B$428,0))*$I29*Assumptions!$G$45*Assumptions!$G$48 -> 1.0089 | AH29: =INDEX(Demand!F$9:F$428,MATCH($C29,Demand!$B$9:$B$428,0))*$I29*Assumptions!$G$45*Assumptions!$G$48 -> 1.01175 | AI29: =INDEX(Demand!G$9:G$428,MATCH($C29,Demand!$B$9:$B$428,0))*$I29*Assumptions!$G$45*Assumptions!$G$48 -> 1.02015 | AJ29: =INDEX(Demand!H$9:H$428,MATCH($C29,Demand!$B$9:$B$428,0))*$I29*Assumptions!$G$45*Assumptions!$G$48 -> 1.02675 | AK29: =INDEX(Demand!I$9:I$428,MATCH($C29,Demand!$B$9:$B$428,0))*$I29*Assumptions!$G$45*Assumptions!$G$48 -> 1.0269 | AL29: =INDEX(Demand!J$9:J$428,MATCH($C29,Demand!$B$9:$B$428,0))*$I29*Assumptions!$G$45*Assumptions!$G$48 -> 1.0299 | AM29: =INDEX(Demand!K$9:K$428,MATCH($C29,Demand!$B$9:$B$428,0))*$I29*Assumptions!$G$45*Assumptions!$G$48 -> 1.0398 | AN29: =INDEX(Demand!L$9:L$428,MATCH($C29,Demand!$B$9:$B$428,0))*$I29*Assumptions!$G$45*Assumptions!$G$48 -> 1.0557 | AO29: =INDEX(Demand!M$9:M$428,MATCH($C29,Demand!$B$9:$B$428,0))*$I29*Assumptions!$G$45*Assumptions!$G$48 -> 1.0647 | AP29: =INDEX(Demand!N$9:N$428,MATCH($C29,Demand!$B$9:$B$428,0))*$I29*Assumptions!$G$45*Assumptions!$G$48 -> 1.0647 | AQ29: =INDEX(Demand!O$9:O$428,MATCH($C29,Demand!$B$9:$B$428,0))*$I29*Assumptions!$G$45*Assumptions!$G$48 -> 1.0647 | AR29: =INDEX(Demand!P$9:P$428,MATCH($C29,Demand!$B$9:$B$428,0))*$I29*Assumptions!$G$45*Assumptions!$G$48 -> 1.0647 | AS29: =INDEX(Demand!Q$9:Q$428,MATCH($C29,Demand!$B$9:$B$428,0))*$I29*Assumptions!$G$45*Assumptions!$G$48 -> 1.0647 | AT29: =INDEX(Demand!R$9:R$428,MATCH($C29,Demand!$B$9:$B$428,0))*$I29*Assumptions!$G$45*Assumptions!$G$48 -> 1.0647 | AU29: =INDEX(Demand!S$9:S$428,MATCH($C29,Demand!$B$9:$B$428,0))*$I29*Assumptions!$G$45*Assumptions!$G$48 -> 1.0647 | AV29: =INDEX(Demand!T$9:T$428,MATCH($C29,Demand!$B$9:$B$428,0))*$I29*Assumptions!$G$45*Assumptions!$G$48 -> 1.0647 | AW29: =INDEX(Demand!U$9:U$428,MATCH($C29,Demand!$B$9:$B$428,0))*$I29*Assumptions!$G$45*Assumptions!$G$48 -> 1.0647 | AX29: =INDEX(Demand!V$9:V$428,MATCH($C29,Demand!$B$9:$B$428,0))*$I29*Assumptions!$G$45*Assumptions!$G$48 -> 1.0647 | AY29: =INDEX(Demand!W$9:W$428,MATCH($C29,Demand!$B$9:$B$428,0))*$I29*Assumptions!$G$45*Assumptions!$G$48 -> 1.0647 | AZ29: =INDEX(Demand!X$9:X$428,MATCH($C29,Demand!$B$9:$B$428,0))*$I29*Assumptions!$G$45*Assumptions!$G$48 -> 1.0647 | BB29: =SUMPRODUCT(($AG29:$AZ29)*(Misc_calcs!$G$29:$Z$29)*($L29:$AE29))*Calcs!$G29 -> 659.4877987 | BD29: =SUMPRODUCT(($L29:$AE29)*(Misc_calcs!$G$29:$Z$29))*$F29*Assumptions!$G$37*(1+Assumptions!$G$83) -> 63.47803523 | BF29: =Assumptions!$G$86*$F29 -> 0.0001056842928 | BH29: =($F29*Assumptions!$G$37) -> 3169.2912 | BJ29: =-SUMPRODUCT((PMT(real_disc,Assumptions!$G$40,BH29))*(Misc_calcs!$G$29:$Z$29)) -> 1795.790942 | BL29: =SUMPRODUCT(($AG29:$AZ29)*(Misc_calcs!$G$29:$Z$29))*$BF29*$G29 -> 59.80806372 | BN29: =SUMPRODUCT($BF29*(Misc_calcs!$G$29:$Z$29))*$F29*Assumptions!$G$37*(1+Assumptions!$G$83) -> 5.811544052 | BP29: 722.9658339 | BR29: 65.61960777 | BT29: 657.3462261 | BV29: -1138.444716 | BX29: FALSE
B30: 49275326 | C30: MTN32 | D30: MTN | E30: 22kV | F30: 255.56 | G30: 37411.3138 | H30: =INDEX(Demand!$C$9:$C$428, MATCH($C30, Demand!$B$9:$B$428,0)) -> 4 | I30: 0.2 | L30: 0.002524943884 | M30: 0.002776941545 | N30: 0.003056814276 | O30: 0.003367794263 | P30: 0.003713499204 | Q30: 0.004097979108 | R30: 0.00452576885 | S30: 0.005001947174 | T30: 0.005532202969 | U30: 0.006122909685 | V30: 0.006781208937 | W30: 0.007515104396 | X30: 0.008333567277 | Y30: 0.00924665484 | Z30: 0.01026564354 | AA30: 0.01140317862 | AB30: 0.0126734422 | AC30: 0.01409234223 | AD30: 0.0156777247 | AE30: 0.01744961231 | AG30: =INDEX(Demand!E$9:E$428,MATCH($C30,Demand!$B$9:$B$428,0))*$I30*Assumptions!$G$45*Assumptions!$G$48 -> 1.0089 | AH30: =INDEX(Demand!F$9:F$428,MATCH($C30,Demand!$B$9:$B$428,0))*$I30*Assumptions!$G$45*Assumptions!$G$48 -> 1.01175 | AI30: =INDEX(Demand!G$9:G$428,MATCH($C30,Demand!$B$9:$B$428,0))*$I30*Assumptions!$G$45*Assumptions!$G$48 -> 1.02015 | AJ30: =INDEX(Demand!H$9:H$428,MATCH($C30,Demand!$B$9:$B$428,0))*$I30*Assumptions!$G$45*Assumptions!$G$48 -> 1.02675 | AK30: =INDEX(Demand!I$9:I$428,MATCH($C30,Demand!$B$9:$B$428,0))*$I30*Assumptions!$G$45*Assumptions!$G$48 -> 1.0269 | AL30: =INDEX(Demand!J$9:J$428,MATCH($C30,Demand!$B$9:$B$428,0))*$I30*Assumptions!$G$45*Assumptions!$G$48 -> 1.0299 | AM30: =INDEX(Demand!K$9:K$428,MATCH($C30,Demand!$B$9:$B$428,0))*$I30*Assumptions!$G$45*Assumptions!$G$48 -> 1.0398 | AN30: =INDEX(Demand!L$9:L$428,MATCH($C30,Demand!$B$9:$B$428,0))*$I30*Assumptions!$G$45*Assumptions!$G$48 -> 1.0557 | AO30: =INDEX(Demand!M$9:M$428,MATCH($C30,Demand!$B$9:$B$428,0))*$I30*Assumptions!$G$45*Assumptions!$G$48 -> 1.0647 | AP30: =INDEX(Demand!N$9:N$428,MATCH($C30,Demand!$B$9:$B$428,0))*$I30*Assumptions!$G$45*Assumptions!$G$48 -> 1.0647 | AQ30: =INDEX(Demand!O$9:O$428,MATCH($C30,Demand!$B$9:$B$428,0))*$I30*Assumptions!$G$45*Assumptions!$G$48 -> 1.0647 | AR30: =INDEX(Demand!P$9:P$428,MATCH($C30,Demand!$B$9:$B$428,0))*$I30*Assumptions!$G$45*Assumptions!$G$48 -> 1.0647 | AS30: =INDEX(Demand!Q$9:Q$428,MATCH($C30,Demand!$B$9:$B$428,0))*$I30*Assumptions!$G$45*Assumptions!$G$48 -> 1.0647 | AT30: =INDEX(Demand!R$9:R$428,MATCH($C30,Demand!$B$9:$B$428,0))*$I30*Assumptions!$G$45*Assumptions!$G$48 -> 1.0647 | AU30: =INDEX(Demand!S$9:S$428,MATCH($C30,Demand!$B$9:$B$428,0))*$I30*Assumptions!$G$45*Assumptions!$G$48 -> 1.0647 | AV30: =INDEX(Demand!T$9:T$428,MATCH($C30,Demand!$B$9:$B$428,0))*$I30*Assumptions!$G$45*Assumptions!$G$48 -> 1.0647 | AW30: =INDEX(Demand!U$9:U$428,MATCH($C30,Demand!$B$9:$B$428,0))*$I30*Assumptions!$G$45*Assumptions!$G$48 -> 1.0647 | AX30: =INDEX(Demand!V$9:V$428,MATCH($C30,Demand!$B$9:$B$428,0))*$I30*Assumptions!$G$45*Assumptions!$G$48 -> 1.0647 | AY30: =INDEX(Demand!W$9:W$428,MATCH($C30,Demand!$B$9:$B$428,0))*$I30*Assumptions!$G$45*Assumptions!$G$48 -> 1.0647 | AZ30: =INDEX(Demand!X$9:X$428,MATCH($C30,Demand!$B$9:$B$428,0))*$I30*Assumptions!$G$45*Assumptions!$G$48 -> 1.0647 | BB30: =SUMPRODUCT(($AG30:$AZ30)*(Misc_calcs!$G$29:$Z$29)*($L30:$AE30))*Calcs!$G30 -> 3933.288495 | BD30: =SUMPRODUCT(($L30:$AE30)*(Misc_calcs!$G$29:$Z$29))*$F30*Assumptions!$G$37*(1+Assumptions!$G$83) -> 5395.782059 | BF30: =Assumptions!$G$86*$F30 -> 0.001505836188 | BH30: =($F30*Assumptions!$G$37) -> 45157.452 | BJ30: =-SUMPRODUCT((PMT(real_disc,Assumptions!$G$40,BH30))*(Misc_calcs!$G$29:$Z$29)) -> 25587.2175 | BL30: =SUMPRODUCT(($AG30:$AZ30)*(Misc_calcs!$G$29:$Z$29))*$BF30*$G30 -> 852.1715413 | BN30: =SUMPRODUCT($BF30*(Misc_calcs!$G$29:$Z$29))*$F30*Assumptions!$G$37*(1+Assumptions!$G$83) -> 1179.848114 | BP30: 9329.070555 | BR30: 2032.019655 | BT30: 7297.0509 | BV30: -18290.1666 | BX30: FALSE
B31: 49275349 | C31: MTN32 | D31: MTN | E31: 22kV | F31: 208.06 | G31: 37411.3138 | H31: =INDEX(Demand!$C$9:$C$428, MATCH($C31, Demand!$B$9:$B$428,0)) -> 4 | I31: 0.2 | L31: 0.002055641824 | M31: 0.002260801604 | N31: 0.002488655417 | O31: 0.002741834694 | P31: 0.003023284725 | Q31: 0.00333630276 | R31: 0.003684580791 | S31: 0.004072253596 | T31: 0.004503952691 | U31: 0.004984866916 | V31: 0.005520810501 | W31: 0.006118299502 | X31: 0.006784637688 | Y31: 0.007528013015 | Z31: 0.008357606021 | AA31: 0.009283711625 | AB31: 0.01031787598 | AC31: 0.01147305026 | AD31: 0.01276376351 | AE31: 0.01420631686 | AG31: =INDEX(Demand!E$9:E$428,MATCH($C31,Demand!$B$9:$B$428,0))*$I31*Assumptions!$G$45*Assumptions!$G$48 -> 1.0089 | AH31: =INDEX(Demand!F$9:F$428,MATCH($C31,Demand!$B$9:$B$428,0))*$I31*Assumptions!$G$45*Assumptions!$G$48 -> 1.01175 | AI31: =INDEX(Demand!G$9:G$428,MATCH($C31,Demand!$B$9:$B$428,0))*$I31*Assumptions!$G$45*Assumptions!$G$48 -> 1.02015 | AJ31: =INDEX(Demand!H$9:H$428,MATCH($C31,Demand!$B$9:$B$428,0))*$I31*Assumptions!$G$45*Assumptions!$G$48 -> 1.02675 | AK31: =INDEX(Demand!I$9:I$428,MATCH($C31,Demand!$B$9:$B$428,0))*$I31*Assumptions!$G$45*Assumptions!$G$48 -> 1.0269 | AL31: =INDEX(Demand!J$9:J$428,MATCH($C31,Demand!$B$9:$B$428,0))*$I31*Assumptions!$G$45*Assumptions!$G$48 -> 1.0299 | AM31: =INDEX(Demand!K$9:K$428,MATCH($C31,Demand!$B$9:$B$428,0))*$I31*Assumptions!$G$45*Assumptions!$G$48 -> 1.0398 | AN31: =INDEX(Demand!L$9:L$428,MATCH($C31,Demand!$B$9:$B$428,0))*$I31*Assumptions!$G$45*Assumptions!$G$48 -> 1.0557 | AO31: =INDEX(Demand!M$9:M$428,MATCH($C31,Demand!$B$9:$B$428,0))*$I31*Assumptions!$G$45*Assumptions!$G$48 -> 1.0647 | AP31: =INDEX(Demand!N$9:N$428,MATCH($C31,Demand!$B$9:$B$428,0))*$I31*Assumptions!$G$45*Assumptions!$G$48 -> 1.0647 | AQ31: =INDEX(Demand!O$9:O$428,MATCH($C31,Demand!$B$9:$B$428,0))*$I31*Assumptions!$G$45*Assumptions!$G$48 -> 1.0647 | AR31: =INDEX(Demand!P$9:P$428,MATCH($C31,Demand!$B$9:$B$428,0))*$I31*Assumptions!$G$45*Assumptions!$G$48 -> 1.0647 | AS31: =INDEX(Demand!Q$9:Q$428,MATCH($C31,Demand!$B$9:$B$428,0))*$I31*Assumptions!$G$45*Assumptions!$G$48 -> 1.0647 | AT31: =INDEX(Demand!R$9:R$428,MATCH($C31,Demand!$B$9:$B$428,0))*$I31*Assumptions!$G$45*Assumptions!$G$48 -> 1.0647 | AU31: =INDEX(Demand!S$9:S$428,MATCH($C31,Demand!$B$9:$B$428,0))*$I31*Assumptions!$G$45*Assumptions!$G$48 -> 1.0647 | AV31: =INDEX(Demand!T$9:T$428,MATCH($C31,Demand!$B$9:$B$428,0))*$I31*Assumptions!$G$45*Assumptions!$G$48 -> 1.0647 | AW31: =INDEX(Demand!U$9:U$428,MATCH($C31,Demand!$B$9:$B$428,0))*$I31*Assumptions!$G$45*Assumptions!$G$48 -> 1.0647 | AX31: =INDEX(Demand!V$9:V$428,MATCH($C31,Demand!$B$9:$B$428,0))*$I31*Assumptions!$G$45*Assumptions!$G$48 -> 1.0647 | AY31: =INDEX(Demand!W$9:W$428,MATCH($C31,Demand!$B$9:$B$428,0))*$I31*Assumptions!$G$45*Assumptions!$G$48 -> 1.0647 | AZ31: =INDEX(Demand!X$9:X$428,MATCH($C31,Demand!$B$9:$B$428,0))*$I31*Assumptions!$G$45*Assumptions!$G$48 -> 1.0647 | BB31: =SUMPRODUCT(($AG31:$AZ31)*(Misc_calcs!$G$29:$Z$29)*($L31:$AE31))*Calcs!$G31 -> 3202.222587 | BD31: =SUMPRODUCT(($L31:$AE31)*(Misc_calcs!$G$29:$Z$29))*$F31*Assumptions!$G$37*(1+Assumptions!$G$83) -> 3576.397883 | BF31: =Assumptions!$G$86*$F31 -> 0.001225951938 | BH31: =($F31*Assumptions!$G$37) -> 36764.202 | BJ31: =-SUMPRODUCT((PMT(real_disc,Assumptions!$G$40,BH31))*(Misc_calcs!$G$29:$Z$29)) -> 20831.41522 | BL31: =SUMPRODUCT(($AG31:$AZ31)*(Misc_calcs!$G$29:$Z$29))*$BF31*$G31 -> 693.781542 | BN31: =SUMPRODUCT($BF31*(Misc_calcs!$G$29:$Z$29))*$F31*Assumptions!$G$37*(1+Assumptions!$G$83) -> 782.019409 | BP31: 6778.62047 | BR31: 1475.800951 | BT31: 5302.819519 | BV31: -15528.5957 | BX31: FALSE
B32: 49299446 | C32: STO21 | D32: STO | E32: 22kV | F32: 359 | G32: 31697.31094 | H32: =INDEX(Demand!$C$9:$C$428, MATCH($C32, Demand!$B$9:$B$428,0)) -> 3 | I32: 0.25 | L32: 0.004807668098 | M32: 0.00541156806 | N32: 0.006098371758 | O32: 0.006879947982 | P32: 0.00776990796 | Q32: 0.008783865235 | R32: 0.009939734697 | S32: 0.0112580767 | T32: 0.01276249313 | U32: 0.01448008328 | V32: 0.01644196868 | W32: 0.01868389724 | X32: 0.02124693896 | Y32: 0.0241782869 | Z32: 0.0275321797 | AA32: 0.03137096386 | AB32: 0.03576631742 | AC32: 0.04080065925 | AD32: 0.04656877258 | AE32: 0.05317967528 | AG32: =INDEX(Demand!E$9:E$428,MATCH($C32,Demand!$B$9:$B$428,0))*$I32*Assumptions!$G$45*Assumptions!$G$48 -> 2.125875 | AH32: =INDEX(Demand!F$9:F$428,MATCH($C32,Demand!$B$9:$B$428,0))*$I32*Assumptions!$G$45*Assumptions!$G$48 -> 2.127 | AI32: =INDEX(Demand!G$9:G$428,MATCH($C32,Demand!$B$9:$B$428,0))*$I32*Assumptions!$G$45*Assumptions!$G$48 -> 2.1526875 | AJ32: =INDEX(Demand!H$9:H$428,MATCH($C32,Demand!$B$9:$B$428,0))*$I32*Assumptions!$G$45*Assumptions!$G$48 -> 2.1781875 | AK32: =INDEX(Demand!I$9:I$428,MATCH($C32,Demand!$B$9:$B$428,0))*$I32*Assumptions!$G$45*Assumptions!$G$48 -> 2.197875 | AL32: =INDEX(Demand!J$9:J$428,MATCH($C32,Demand!$B$9:$B$428,0))*$I32*Assumptions!$G$45*Assumptions!$G$48 -> 2.21625 | AM32: =INDEX(Demand!K$9:K$428,MATCH($C32,Demand!$B$9:$B$428,0))*$I32*Assumptions!$G$45*Assumptions!$G$48 -> 2.2423125 | AN32: =INDEX(Demand!L$9:L$428,MATCH($C32,Demand!$B$9:$B$428,0))*$I32*Assumptions!$G$45*Assumptions!$G$48 -> 2.279625 | AO32: =INDEX(Demand!M$9:M$428,MATCH($C32,Demand!$B$9:$B$428,0))*$I32*Assumptions!$G$45*Assumptions!$G$48 -> 2.307375 | AP32: =INDEX(Demand!N$9:N$428,MATCH($C32,Demand!$B$9:$B$428,0))*$I32*Assumptions!$G$45*Assumptions!$G$48 -> 2.307375 | AQ32: =INDEX(Demand!O$9:O$428,MATCH($C32,Demand!$B$9:$B$428,0))*$I32*Assumptions!$G$45*Assumptions!$G$48 -> 2.307375 | AR32: =INDEX(Demand!P$9:P$428,MATCH($C32,Demand!$B$9:$B$428,0))*$I32*Assumptions!$G$45*Assumptions!$G$48 -> 2.307375 | AS32: =INDEX(Demand!Q$9:Q$428,MATCH($C32,Demand!$B$9:$B$428,0))*$I32*Assumptions!$G$45*Assumptions!$G$48 -> 2.307375 | AT32: =INDEX(Demand!R$9:R$428,MATCH($C32,Demand!$B$9:$B$428,0))*$I32*Assumptions!$G$45*Assumptions!$G$48 -> 2.307375 | AU32: =INDEX(Demand!S$9:S$428,MATCH($C32,Demand!$B$9:$B$428,0))*$I32*Assumptions!$G$45*Assumptions!$G$48 -> 2.307375 | AV32: =INDEX(Demand!T$9:T$428,MATCH($C32,Demand!$B$9:$B$428,0))*$I32*Assumptions!$G$45*Assumptions!$G$48 -> 2.307375 | AW32: =INDEX(Demand!U$9:U$428,MATCH($C32,Demand!$B$9:$B$428,0))*$I32*Assumptions!$G$45*Assumptions!$G$48 -> 2.307375 | AX32: =INDEX(Demand!V$9:V$428,MATCH($C32,Demand!$B$9:$B$428,0))*$I32*Assumptions!$G$45*Assumptions!$G$48 -> 2.307375 | AY32: =INDEX(Demand!W$9:W$428,MATCH($C32,Demand!$B$9:$B$428,0))*$I32*Assumptions!$G$45*Assumptions!$G$48 -> 2.307375 | AZ32: =INDEX(Demand!X$9:X$428,MATCH($C32,Demand!$B$9:$B$428,0))*$I32*Assumptions!$G$45*Assumptions!$G$48 -> 2.307375 | BB32: =SUMPRODUCT(($AG32:$AZ32)*(Misc_calcs!$G$29:$Z$29)*($L32:$AE32))*Calcs!$G32 -> 18453.52928 | BD32: =SUMPRODUCT(($L32:$AE32)*(Misc_calcs!$G$29:$Z$29))*$F32*Assumptions!$G$37*(1+Assumptions!$G$83) -> 19390.98005 | BF32: =Assumptions!$G$86*$F32 -> 0.0021153357 | BH32: =($F32*Assumptions!$G$37) -> 63435.3 | BJ32: =-SUMPRODUCT((PMT(real_disc,Assumptions!$G$40,BH32))*(Misc_calcs!$G$29:$Z$29)) -> 35943.85304 | BL32: =SUMPRODUCT(($AG32:$AZ32)*(Misc_calcs!$G$29:$Z$29))*$BF32*$G32 -> 2180.040524 | BN32: =SUMPRODUCT($BF32*(Misc_calcs!$G$29:$Z$29))*$F32*Assumptions!$G$37*(1+Assumptions!$G$83) -> 2328.248012 | BP32: 37844.50932 | BR32: 4508.288537 | BT32: 33336.22079 | BV32: -2607.632254 | BX32: FALSE
B33: 49306555 | C33: MTN32 | D33: MTN | E33: 22kV | F33: 159.41 | G33: 37411.3138 | H33: =INDEX(Demand!$C$9:$C$428, MATCH($C33, Demand!$B$9:$B$428,0)) -> 4 | I33: 0.2 | L33: 0.0009392926448 | M33: 0.0009392926448 | N33: 0.0009392926448 | O33: 0.0009392926448 | P33: 0.0009392926448 | Q33: 0.0009392926448 | R33: 0.0009392926448 | S33: 0.0009392926448 | T33: 0.0009392926448 | U33: 0.0009392926448 | V33: 0.001018115047 | W33: 0.00114308708 | X33: 0.001285558893 | Y33: 0.001448125561 | Z33: 0.001633780341 | AA33: 0.001845977077 | AB33: 0.002088702523 | AC33: 0.00236656017 | AD33: 0.002684867429 | AE33: 0.003049768303 | AG33: =INDEX(Demand!E$9:E$428,MATCH($C33,Demand!$B$9:$B$428,0))*$I33*Assumptions!$G$45*Assumptions!$G$48 -> 1.0089 | AH33: =INDEX(Demand!F$9:F$428,MATCH($C33,Demand!$B$9:$B$428,0))*$I33*Assumptions!$G$45*Assumptions!$G$48 -> 1.01175 | AI33: =INDEX(Demand!G$9:G$428,MATCH($C33,Demand!$B$9:$B$428,0))*$I33*Assumptions!$G$45*Assumptions!$G$48 -> 1.02015 | AJ33: =INDEX(Demand!H$9:H$428,MATCH($C33,Demand!$B$9:$B$428,0))*$I33*Assumptions!$G$45*Assumptions!$G$48 -> 1.02675 | AK33: =INDEX(Demand!I$9:I$428,MATCH($C33,Demand!$B$9:$B$428,0))*$I33*Assumptions!$G$45*Assumptions!$G$48 -> 1.0269 | AL33: =INDEX(Demand!J$9:J$428,MATCH($C33,Demand!$B$9:$B$428,0))*$I33*Assumptions!$G$45*Assumptions!$G$48 -> 1.0299 | AM33: =INDEX(Demand!K$9:K$428,MATCH($C33,Demand!$B$9:$B$428,0))*$I33*Assumptions!$G$45*Assumptions!$G$48 -> 1.0398 | AN33: =INDEX(Demand!L$9:L$428,MATCH($C33,Demand!$B$9:$B$428,0))*$I33*Assumptions!$G$45*Assumptions!$G$48 -> 1.0557 | AO33: =INDEX(Demand!M$9:M$428,MATCH($C33,Demand!$B$9:$B$428,0))*$I33*Assumptions!$G$45*Assumptions!$G$48 -> 1.0647 | AP33: =INDEX(Demand!N$9:N$428,MATCH($C33,Demand!$B$9:$B$428,0))*$I33*Assumptions!$G$45*Assumptions!$G$48 -> 1.0647 | AQ33: =INDEX(Demand!O$9:O$428,MATCH($C33,Demand!$B$9:$B$428,0))*$I33*Assumptions!$G$45*Assumptions!$G$48 -> 1.0647 | AR33: =INDEX(Demand!P$9:P$428,MATCH($C33,Demand!$B$9:$B$428,0))*$I33*Assumptions!$G$45*Assumptions!$G$48 -> 1.0647 | AS33: =INDEX(Demand!Q$9:Q$428,MATCH($C33,Demand!$B$9:$B$428,0))*$I33*Assumptions!$G$45*Assumptions!$G$48 -> 1.0647 | AT33: =INDEX(Demand!R$9:R$428,MATCH($C33,Demand!$B$9:$B$428,0))*$I33*Assumptions!$G$45*Assumptions!$G$48 -> 1.0647 | AU33: =INDEX(Demand!S$9:S$428,MATCH($C33,Demand!$B$9:$B$428,0))*$I33*Assumptions!$G$45*Assumptions!$G$48 -> 1.0647 | AV33: =INDEX(Demand!T$9:T$428,MATCH($C33,Demand!$B$9:$B$428,0))*$I33*Assumptions!$G$45*Assumptions!$G$48 -> 1.0647 | AW33: =INDEX(Demand!U$9:U$428,MATCH($C33,Demand!$B$9:$B$428,0))*$I33*Assumptions!$G$45*Assumptions!$G$48 -> 1.0647 | AX33: =INDEX(Demand!V$9:V$428,MATCH($C33,Demand!$B$9:$B$428,0))*$I33*Assumptions!$G$45*Assumptions!$G$48 -> 1.0647 | AY33: =INDEX(Demand!W$9:W$428,MATCH($C33,Demand!$B$9:$B$428,0))*$I33*Assumptions!$G$45*Assumptions!$G$48 -> 1.0647 | AZ33: =INDEX(Demand!X$9:X$428,MATCH($C33,Demand!$B$9:$B$428,0))*$I33*Assumptions!$G$45*Assumptions!$G$48 -> 1.0647 | BB33: =SUMPRODUCT(($AG33:$AZ33)*(Misc_calcs!$G$29:$Z$29)*($L33:$AE33))*Calcs!$G33 -> 735.7724208 | BD33: =SUMPRODUCT(($L33:$AE33)*(Misc_calcs!$G$29:$Z$29))*$F33*Assumptions!$G$37*(1+Assumptions!$G$83) -> 632.3595295 | BF33: =Assumptions!$G$86*$F33 -> 0.000939291543 | BH33: =($F33*Assumptions!$G$37) -> 28167.747 | BJ33: =-SUMPRODUCT((PMT(real_disc,Assumptions!$G$40,BH33))*(Misc_calcs!$G$29:$Z$29)) -> 15960.47246 | BL33: =SUMPRODUCT(($AG33:$AZ33)*(Misc_calcs!$G$29:$Z$29))*$BF33*$G33 -> 531.5568375 | BN33: =SUMPRODUCT($BF33*(Misc_calcs!$G$29:$Z$29))*$F33*Assumptions!$G$37*(1+Assumptions!$G$83) -> 459.0621298 | BP33: 1368.13195 | BR33: 990.6189673 | BT33: 377.512983 | BV33: -15582.95948 | BX33: FALSE
B34: 49306645 | C34: MTN32 | D34: MTN | E34: 22kV | F34: 231.28 | G34: 37411.3138 | H34: =INDEX(Demand!$C$9:$C$428, MATCH($C34, Demand!$B$9:$B$428,0)) -> 4 | I34: 0.2 | L34: 0.001659779886 | M34: 0.001830519991 | N34: 0.002021110953 | O34: 0.002233988853 | P34: 0.002471898534 | Q34: 0.002737933525 | R34: 0.003035581207 | S34: 0.003368773899 | T34: 0.003741946651 | U34: 0.004160102628 | V34: 0.0046288871 | W34: 0.005154671165 | X34: 0.005744646504 | Y34: 0.006406932629 | Z34: 0.007150698282 | AA34: 0.007986298861 | AB34: 0.008925432006 | AC34: 0.009981313752 | AD34: 0.011168878 | AE34: 0.01250500238 | AG34: =INDEX(Demand!E$9:E$428,MATCH($C34,Demand!$B$9:$B$428,0))*$I34*Assumptions!$G$45*Assumptions!$G$48 -> 1.0089 | AH34: =INDEX(Demand!F$9:F$428,MATCH($C34,Demand!$B$9:$B$428,0))*$I34*Assumptions!$G$45*Assumptions!$G$48 -> 1.01175 | AI34: =INDEX(Demand!G$9:G$428,MATCH($C34,Demand!$B$9:$B$428,0))*$I34*Assumptions!$G$45*Assumptions!$G$48 -> 1.02015 | AJ34: =INDEX(Demand!H$9:H$428,MATCH($C34,Demand!$B$9:$B$428,0))*$I34*Assumptions!$G$45*Assumptions!$G$48 -> 1.02675 | AK34: =INDEX(Demand!I$9:I$428,MATCH($C34,Demand!$B$9:$B$428,0))*$I34*Assumptions!$G$45*Assumptions!$G$48 -> 1.0269 | AL34: =INDEX(Demand!J$9:J$428,MATCH($C34,Demand!$B$9:$B$428,0))*$I34*Assumptions!$G$45*Assumptions!$G$48 -> 1.0299 | AM34: =INDEX(Demand!K$9:K$428,MATCH($C34,Demand!$B$9:$B$428,0))*$I34*Assumptions!$G$45*Assumptions!$G$48 -> 1.0398 | AN34: =INDEX(Demand!L$9:L$428,MATCH($C34,Demand!$B$9:$B$428,0))*$I34*Assumptions!$G$45*Assumptions!$G$48 -> 1.0557 | AO34: =INDEX(Demand!M$9:M$428,MATCH($C34,Demand!$B$9:$B$428,0))*$I34*Assumptions!$G$45*Assumptions!$G$48 -> 1.0647 | AP34: =INDEX(Demand!N$9:N$428,MATCH($C34,Demand!$B$9:$B$428,0))*$I34*Assumptions!$G$45*Assumptions!$G$48 -> 1.0647 | AQ34: =INDEX(Demand!O$9:O$428,MATCH($C34,Demand!$B$9:$B$428,0))*$I34*Assumptions!$G$45*Assumptions!$G$48 -> 1.0647 | AR34: =INDEX(Demand!P$9:P$428,MATCH($C34,Demand!$B$9:$B$428,0))*$I34*Assumptions!$G$45*Assumptions!$G$48 -> 1.0647 | AS34: =INDEX(Demand!Q$9:Q$428,MATCH($C34,Demand!$B$9:$B$428,0))*$I34*Assumptions!$G$45*Assumptions!$G$48 -> 1.0647 | AT34: =INDEX(Demand!R$9:R$428,MATCH($C34,Demand!$B$9:$B$428,0))*$I34*Assumptions!$G$45*Assumptions!$G$48 -> 1.0647 | AU34: =INDEX(Demand!S$9:S$428,MATCH($C34,Demand!$B$9:$B$428,0))*$I34*Assumptions!$G$45*Assumptions!$G$48 -> 1.0647 | AV34: =INDEX(Demand!T$9:T$428,MATCH($C34,Demand!$B$9:$B$428,0))*$I34*Assumptions!$G$45*Assumptions!$G$48 -> 1.0647 | AW34: =INDEX(Demand!U$9:U$428,MATCH($C34,Demand!$B$9:$B$428,0))*$I34*Assumptions!$G$45*Assumptions!$G$48 -> 1.0647 | AX34: =INDEX(Demand!V$9:V$428,MATCH($C34,Demand!$B$9:$B$428,0))*$I34*Assumptions!$G$45*Assumptions!$G$48 -> 1.0647 | AY34: =INDEX(Demand!W$9:W$428,MATCH($C34,Demand!$B$9:$B$428,0))*$I34*Assumptions!$G$45*Assumptions!$G$48 -> 1.0647 | AZ34: =INDEX(Demand!X$9:X$428,MATCH($C34,Demand!$B$9:$B$428,0))*$I34*Assumptions!$G$45*Assumptions!$G$48 -> 1.0647 | BB34: =SUMPRODUCT(($AG34:$AZ34)*(Misc_calcs!$G$29:$Z$29)*($L34:$AE34))*Calcs!$G34 -> 2715.799008 | BD34: =SUMPRODUCT(($L34:$AE34)*(Misc_calcs!$G$29:$Z$29))*$F34*Assumptions!$G$37*(1+Assumptions!$G$83) -> 3370.551219 | BF34: =Assumptions!$G$86*$F34 -> 0.001362771144 | BH34: =($F34*Assumptions!$G$37) -> 40867.176 | BJ34: =-SUMPRODUCT((PMT(real_disc,Assumptions!$G$40,BH34))*(Misc_calcs!$G$29:$Z$29)) -> 23156.25162 | BL34: =SUMPRODUCT(($AG34:$AZ34)*(Misc_calcs!$G$29:$Z$29))*$BF34*$G34 -> 771.2092427 | BN34: =SUMPRODUCT($BF34*(Misc_calcs!$G$29:$Z$29))*$F34*Assumptions!$G$37*(1+Assumptions!$G$83) -> 966.3100602 | BP34: 6086.350227 | BR34: 1737.519303 | BT34: 4348.830924 | BV34: -18807.4207 | BX34: FALSE
B35: 49306656 | C35: MTN32 | D35: MTN | E35: 22kV | F35: 619.37 | G35: 37411.3138 | H35: =INDEX(Demand!$C$9:$C$428, MATCH($C35, Demand!$B$9:$B$428,0)) -> 4 | I35: 0.2 | L35: 0.004444906037 | M35: 0.004902149633 | N35: 0.005412554007 | O35: 0.005982643013 | P35: 0.00661976736 | Q35: 0.00733221155 | R35: 0.008129314822 | S35: 0.009021607964 | T35: 0.01002096808 | U35: 0.01114079369 | V35: 0.01239620288 | W35: 0.01380425752 | X35: 0.01538421699 | Y35: 0.01715782542 | Z35: 0.01914963678 | AA35: 0.02138738294 | AB35: 0.02390239027 | AC35: 0.02673005145 | AD35: 0.02991035959 | AE35: 0.03348851316 | AG35: =INDEX(Demand!E$9:E$428,MATCH($C35,Demand!$B$9:$B$428,0))*$I35*Assumptions!$G$45*Assumptions!$G$48 -> 1.0089 | AH35: =INDEX(Demand!F$9:F$428,MATCH($C35,Demand!$B$9:$B$428,0))*$I35*Assumptions!$G$45*Assumptions!$G$48 -> 1.01175 | AI35: =INDEX(Demand!G$9:G$428,MATCH($C35,Demand!$B$9:$B$428,0))*$I35*Assumptions!$G$45*Assumptions!$G$48 -> 1.02015 | AJ35: =INDEX(Demand!H$9:H$428,MATCH($C35,Demand!$B$9:$B$428,0))*$I35*Assumptions!$G$45*Assumptions!$G$48 -> 1.02675 | AK35: =INDEX(Demand!I$9:I$428,MATCH($C35,Demand!$B$9:$B$428,0))*$I35*Assumptions!$G$45*Assumptions!$G$48 -> 1.0269 | AL35: =INDEX(Demand!J$9:J$428,MATCH($C35,Demand!$B$9:$B$428,0))*$I35*Assumptions!$G$45*Assumptions!$G$48 -> 1.0299 | AM35: =INDEX(Demand!K$9:K$428,MATCH($C35,Demand!$B$9:$B$428,0))*$I35*Assumptions!$G$45*Assumptions!$G$48 -> 1.0398 | AN35: =INDEX(Demand!L$9:L$428,MATCH($C35,Demand!$B$9:$B$428,0))*$I35*Assumptions!$G$45*Assumptions!$G$48 -> 1.0557 | AO35: =INDEX(Demand!M$9:M$428,MATCH($C35,Demand!$B$9:$B$428,0))*$I35*Assumptions!$G$45*Assumptions!$G$48 -> 1.0647 | AP35: =INDEX(Demand!N$9:N$428,MATCH($C35,Demand!$B$9:$B$428,0))*$I35*Assumptions!$G$45*Assumptions!$G$48 -> 1.0647 | AQ35: =INDEX(Demand!O$9:O$428,MATCH($C35,Demand!$B$9:$B$428,0))*$I35*Assumptions!$G$45*Assumptions!$G$48 -> 1.0647 | AR35: =INDEX(Demand!P$9:P$428,MATCH($C35,Demand!$B$9:$B$428,0))*$I35*Assumptions!$G$45*Assumptions!$G$48 -> 1.0647 | AS35: =INDEX(Demand!Q$9:Q$428,MATCH($C35,Demand!$B$9:$B$428,0))*$I35*Assumptions!$G$45*Assumptions!$G$48 -> 1.0647 | AT35: =INDEX(Demand!R$9:R$428,MATCH($C35,Demand!$B$9:$B$428,0))*$I35*Assumptions!$G$45*Assumptions!$G$48 -> 1.0647 | AU35: =INDEX(Demand!S$9:S$428,MATCH($C35,Demand!$B$9:$B$428,0))*$I35*Assumptions!$G$45*Assumptions!$G$48 -> 1.0647 | AV35: =INDEX(Demand!T$9:T$428,MATCH($C35,Demand!$B$9:$B$428,0))*$I35*Assumptions!$G$45*Assumptions!$G$48 -> 1.0647 | AW35: =INDEX(Demand!U$9:U$428,MATCH($C35,Demand!$B$9:$B$428,0))*$I35*Assumptions!$G$45*Assumptions!$G$48 -> 1.0647 | AX35: =INDEX(Demand!V$9:V$428,MATCH($C35,Demand!$B$9:$B$428,0))*$I35*Assumptions!$G$45*Assumptions!$G$48 -> 1.0647 | AY35: =INDEX(Demand!W$9:W$428,MATCH($C35,Demand!$B$9:$B$428,0))*$I35*Assumptions!$G$45*Assumptions!$G$48 -> 1.0647 | AZ35: =INDEX(Demand!X$9:X$428,MATCH($C35,Demand!$B$9:$B$428,0))*$I35*Assumptions!$G$45*Assumptions!$G$48 -> 1.0647 | BB35: =SUMPRODUCT(($AG35:$AZ35)*(Misc_calcs!$G$29:$Z$29)*($L35:$AE35))*Calcs!$G35 -> 7272.935108 | BD35: =SUMPRODUCT(($L35:$AE35)*(Misc_calcs!$G$29:$Z$29))*$F35*Assumptions!$G$37*(1+Assumptions!$G$83) -> 24172.69685 | BF35: =Assumptions!$G$86*$F35 -> 0.003649513851 | BH35: =($F35*Assumptions!$G$37) -> 109442.679 | BJ35: =-SUMPRODUCT((PMT(real_disc,Assumptions!$G$40,BH35))*(Misc_calcs!$G$29:$Z$29)) -> 62012.6581 | BL35: =SUMPRODUCT(($AG35:$AZ35)*(Misc_calcs!$G$29:$Z$29))*$BF35*$G35 -> 2065.305555 | BN35: =SUMPRODUCT($BF35*(Misc_calcs!$G$29:$Z$29))*$F35*Assumptions!$G$37*(1+Assumptions!$G$83) -> 6930.118734 | BP35: 31445.63195 | BR35: 8995.424289 | BT35: 22450.20767 | BV35: -39562.45044 | BX35: FALSE
B36: 49306679 | C36: MTN32 | D36: MTN | E36: 22kV | F36: 151 | G36: 37411.3138 | H36: =INDEX(Demand!$C$9:$C$428, MATCH($C36, Demand!$B$9:$B$428,0)) -> 4 | I36: 0.2 | L36: 0.001083650825 | M36: 0.001195125038 | N36: 0.001319559641 | O36: 0.001458545126 | P36: 0.001613873567 | Q36: 0.001787564693 | R36: 0.001981895375 | S36: 0.002199432976 | T36: 0.00244307309 | U36: 0.002716082224 | V36: 0.003022146109 | W36: 0.003365424359 | X36: 0.00375061234 | Y36: 0.004183011185 | Z36: 0.004668607059 | AA36: 0.005214160879 | AB36: 0.005827309896 | AC36: 0.006516682708 | AD36: 0.00729202948 | AE36: 0.008164369418 | AG36: =INDEX(Demand!E$9:E$428,MATCH($C36,Demand!$B$9:$B$428,0))*$I36*Assumptions!$G$45*Assumptions!$G$48 -> 1.0089 | AH36: =INDEX(Demand!F$9:F$428,MATCH($C36,Demand!$B$9:$B$428,0))*$I36*Assumptions!$G$45*Assumptions!$G$48 -> 1.01175 | AI36: =INDEX(Demand!G$9:G$428,MATCH($C36,Demand!$B$9:$B$428,0))*$I36*Assumptions!$G$45*Assumptions!$G$48 -> 1.02015 | AJ36: =INDEX(Demand!H$9:H$428,MATCH($C36,Demand!$B$9:$B$428,0))*$I36*Assumptions!$G$45*Assumptions!$G$48 -> 1.02675 | AK36: =INDEX(Demand!I$9:I$428,MATCH($C36,Demand!$B$9:$B$428,0))*$I36*Assumptions!$G$45*Assumptions!$G$48 -> 1.0269 | AL36: =INDEX(Demand!J$9:J$428,MATCH($C36,Demand!$B$9:$B$428,0))*$I36*Assumptions!$G$45*Assumptions!$G$48 -> 1.0299 | AM36: =INDEX(Demand!K$9:K$428,MATCH($C36,Demand!$B$9:$B$428,0))*$I36*Assumptions!$G$45*Assumptions!$G$48 -> 1.0398 | AN36: =INDEX(Demand!L$9:L$428,MATCH($C36,Demand!$B$9:$B$428,0))*$I36*Assumptions!$G$45*Assumptions!$G$48 -> 1.0557 | AO36: =INDEX(Demand!M$9:M$428,MATCH($C36,Demand!$B$9:$B$428,0))*$I36*Assumptions!$G$45*Assumptions!$G$48 -> 1.0647 | AP36: =INDEX(Demand!N$9:N$428,MATCH($C36,Demand!$B$9:$B$428,0))*$I36*Assumptions!$G$45*Assumptions!$G$48 -> 1.0647 | AQ36: =INDEX(Demand!O$9:O$428,MATCH($C36,Demand!$B$9:$B$428,0))*$I36*Assumptions!$G$45*Assumptions!$G$48 -> 1.0647 | AR36: =INDEX(Demand!P$9:P$428,MATCH($C36,Demand!$B$9:$B$428,0))*$I36*Assumptions!$G$45*Assumptions!$G$48 -> 1.0647 | AS36: =INDEX(Demand!Q$9:Q$428,MATCH($C36,Demand!$B$9:$B$428,0))*$I36*Assumptions!$G$45*Assumptions!$G$48 -> 1.0647 | AT36: =INDEX(Demand!R$9:R$428,MATCH($C36,Demand!$B$9:$B$428,0))*$I36*Assumptions!$G$45*Assumptions!$G$48 -> 1.0647 | AU36: =INDEX(Demand!S$9:S$428,MATCH($C36,Demand!$B$9:$B$428,0))*$I36*Assumptions!$G$45*Assumptions!$G$48 -> 1.0647 | AV36: =INDEX(Demand!T$9:T$428,MATCH($C36,Demand!$B$9:$B$428,0))*$I36*Assumptions!$G$45*Assumptions!$G$48 -> 1.0647 | AW36: =INDEX(Demand!U$9:U$428,MATCH($C36,Demand!$B$9:$B$428,0))*$I36*Assumptions!$G$45*Assumptions!$G$48 -> 1.0647 | AX36: =INDEX(Demand!V$9:V$428,MATCH($C36,Demand!$B$9:$B$428,0))*$I36*Assumptions!$G$45*Assumptions!$G$48 -> 1.0647 | AY36: =INDEX(Demand!W$9:W$428,MATCH($C36,Demand!$B$9:$B$428,0))*$I36*Assumptions!$G$45*Assumptions!$G$48 -> 1.0647 | AZ36: =INDEX(Demand!X$9:X$428,MATCH($C36,Demand!$B$9:$B$428,0))*$I36*Assumptions!$G$45*Assumptions!$G$48 -> 1.0647 | BB36: =SUMPRODUCT(($AG36:$AZ36)*(Misc_calcs!$G$29:$Z$29)*($L36:$AE36))*Calcs!$G36 -> 1773.113327 | BD36: =SUMPRODUCT(($L36:$AE36)*(Misc_calcs!$G$29:$Z$29))*$F36*Assumptions!$G$37*(1+Assumptions!$G$83) -> 1436.741605 | BF36: =Assumptions!$G$86*$F36 -> 0.0008897373 | BH36: =($F36*Assumptions!$G$37) -> 26681.7 | BJ36: =-SUMPRODUCT((PMT(real_disc,Assumptions!$G$40,BH36))*(Misc_calcs!$G$29:$Z$29)) -> 15118.44515 | BL36: =SUMPRODUCT(($AG36:$AZ36)*(Misc_calcs!$G$29:$Z$29))*$BF36*$G36 -> 503.5134713 | BN36: =SUMPRODUCT($BF36*(Misc_calcs!$G$29:$Z$29))*$F36*Assumptions!$G$37*(1+Assumptions!$G$83) -> 411.9023202 | BP36: 3209.854932 | BR36: 915.4157915 | BT36: 2294.439141 | BV36: -12824.00601 | BX36: FALSE
B37: 49317347 | C37: STO21 | D37: STO | E37: 22kV | F37: 215.8 | G37: 31697.31094 | H37: =INDEX(Demand!$C$9:$C$428, MATCH($C37, Demand!$B$9:$B$428,0)) -> 3 | I37: 0.25 | L37: 0.005502259141 | M37: 0.006218253513 | N37: 0.00703363765 | O37: 0.007962661957 | P37: 0.009021660405 | Q37: 0.01022935896 | R37: 0.01160723001 | S37: 0.01317989977 | T37: 0.0149756165 | U37: 0.01702678874 | V37: 0.01937060406 | W37: 0.02204974049 | X37: 0.02511318434 | Y37: 0.02861717076 | Z37: 0.03262626509 | AA37: 0.03721460659 | AB37: 0.03891563541 | AC37: 0.03891563541 | AD37: 0.03891563541 | AE37: 0.03891563541 | AG37: =INDEX(Demand!E$9:E$428,MATCH($C37,Demand!$B$9:$B$428,0))*$I37*Assumptions!$G$45*Assumptions!$G$48 -> 2.125875 | AH37: =INDEX(Demand!F$9:F$428,MATCH($C37,Demand!$B$9:$B$428,0))*$I37*Assumptions!$G$45*Assumptions!$G$48 -> 2.127 | AI37: =INDEX(Demand!G$9:G$428,MATCH($C37,Demand!$B$9:$B$428,0))*$I37*Assumptions!$G$45*Assumptions!$G$48 -> 2.1526875 | AJ37: =INDEX(Demand!H$9:H$428,MATCH($C37,Demand!$B$9:$B$428,0))*$I37*Assumptions!$G$45*Assumptions!$G$48 -> 2.1781875 | AK37: =INDEX(Demand!I$9:I$428,MATCH($C37,Demand!$B$9:$B$428,0))*$I37*Assumptions!$G$45*Assumptions!$G$48 -> 2.197875 | AL37: =INDEX(Demand!J$9:J$428,MATCH($C37,Demand!$B$9:$B$428,0))*$I37*Assumptions!$G$45*Assumptions!$G$48 -> 2.21625 | AM37: =INDEX(Demand!K$9:K$428,MATCH($C37,Demand!$B$9:$B$428,0))*$I37*Assumptions!$G$45*Assumptions!$G$48 -> 2.2423125 | AN37: =INDEX(Demand!L$9:L$428,MATCH($C37,Demand!$B$9:$B$428,0))*$I37*Assumptions!$G$45*Assumptions!$G$48 -> 2.279625 | AO37: =INDEX(Demand!M$9:M$428,MATCH($C37,Demand!$B$9:$B$428,0))*$I37*Assumptions!$G$45*Assumptions!$G$48 -> 2.307375 | AP37: =INDEX(Demand!N$9:N$428,MATCH($C37,Demand!$B$9:$B$428,0))*$I37*Assumptions!$G$45*Assumptions!$G$48 -> 2.307375 | AQ37: =INDEX(Demand!O$9:O$428,MATCH($C37,Demand!$B$9:$B$428,0))*$I37*Assumptions!$G$45*Assumptions!$G$48 -> 2.307375 | AR37: =INDEX(Demand!P$9:P$428,MATCH($C37,Demand!$B$9:$B$428,0))*$I37*Assumptions!$G$45*Assumptions!$G$48 -> 2.307375 | AS37: =INDEX(Demand!Q$9:Q$428,MATCH($C37,Demand!$B$9:$B$428,0))*$I37*Assumptions!$G$45*Assumptions!$G$48 -> 2.307375 | AT37: =INDEX(Demand!R$9:R$428,MATCH($C37,Demand!$B$9:$B$428,0))*$I37*Assumptions!$G$45*Assumptions!$G$48 -> 2.307375 | AU37: =INDEX(Demand!S$9:S$428,MATCH($C37,Demand!$B$9:$B$428,0))*$I37*Assumptions!$G$45*Assumptions!$G$48 -> 2.307375 | AV37: =INDEX(Demand!T$9:T$428,MATCH($C37,Demand!$B$9:$B$428,0))*$I37*Assumptions!$G$45*Assumptions!$G$48 -> 2.307375 | AW37: =INDEX(Demand!U$9:U$428,MATCH($C37,Demand!$B$9:$B$428,0))*$I37*Assumptions!$G$45*Assumptions!$G$48 -> 2.307375 | AX37: =INDEX(Demand!V$9:V$428,MATCH($C37,Demand!$B$9:$B$428,0))*$I37*Assumptions!$G$45*Assumptions!$G$48 -> 2.307375 | AY37: =INDEX(Demand!W$9:W$428,MATCH($C37,Demand!$B$9:$B$428,0))*$I37*Assumptions!$G$45*Assumptions!$G$48 -> 2.307375 | AZ37: =INDEX(Demand!X$9:X$428,MATCH($C37,Demand!$B$9:$B$428,0))*$I37*Assumptions!$G$45*Assumptions!$G$48 -> 2.307375 | BB37: =SUMPRODUCT(($AG37:$AZ37)*(Misc_calcs!$G$29:$Z$29)*($L37:$AE37))*Calcs!$G37 -> 19697.41269 | BD37: =SUMPRODUCT(($L37:$AE37)*(Misc_calcs!$G$29:$Z$29))*$F37*Assumptions!$G$37*(1+Assumptions!$G$83) -> 12451.74171 | BF37: =Assumptions!$G$86*$F37 -> 0.00127155834 | BH37: =($F37*Assumptions!$G$37) -> 38131.86 | BJ37: =-SUMPRODUCT((PMT(real_disc,Assumptions!$G$40,BH37))*(Misc_calcs!$G$29:$Z$29)) -> 21606.36069 | BL37: =SUMPRODUCT(($AG37:$AZ37)*(Misc_calcs!$G$29:$Z$29))*$BF37*$G37 -> 1310.453329 | BN37: =SUMPRODUCT($BF37*(Misc_calcs!$G$29:$Z$29))*$F37*Assumptions!$G$37*(1+Assumptions!$G$83) -> 841.2851526 | BP37: 32149.1544 | BR37: 2151.738482 | BT37: 29997.41592 | BV37: 8391.055234 | BX37: TRUE
B38: 49327037 | C38: STO21 | D38: STO | E38: 22kV | F38: 151.2 | G38: 31697.31094 | H38: =INDEX(Demand!$C$9:$C$428, MATCH($C38, Demand!$B$9:$B$428,0)) -> 3 | I38: 0.25 | L38: 0.002661020493 | M38: 0.002981917251 | N38: 0.003344616093 | O38: 0.003754770124 | P38: 0.004218814368 | Q38: 0.004744075462 | R38: 0.005338896892 | S38: 0.006012781956 | T38: 0.006776557021 | U38: 0.007642557925 | V38: 0.008624842855 | W38: 0.009739435472 | X38: 0.01100460259 | Y38: 0.01244117135 | Z38: 0.01407289156 | AA38: 0.01592684961 | AB38: 0.01803394131 | AC38: 0.02042941226 | AD38: 0.02315347513 | AE38: 0.02625201508 | AG38: =INDEX(Demand!E$9:E$428,MATCH($C38,Demand!$B$9:$B$428,0))*$I38*Assumptions!$G$45*Assumptions!$G$48 -> 2.125875 | AH38: =INDEX(Demand!F$9:F$428,MATCH($C38,Demand!$B$9:$B$428,0))*$I38*Assumptions!$G$45*Assumptions!$G$48 -> 2.127 | AI38: =INDEX(Demand!G$9:G$428,MATCH($C38,Demand!$B$9:$B$428,0))*$I38*Assumptions!$G$45*Assumptions!$G$48 -> 2.1526875 | AJ38: =INDEX(Demand!H$9:H$428,MATCH($C38,Demand!$B$9:$B$428,0))*$I38*Assumptions!$G$45*Assumptions!$G$48 -> 2.1781875 | AK38: =INDEX(Demand!I$9:I$428,MATCH($C38,Demand!$B$9:$B$428,0))*$I38*Assumptions!$G$45*Assumptions!$G$48 -> 2.197875 | AL38: =INDEX(Demand!J$9:J$428,MATCH($C38,Demand!$B$9:$B$428,0))*$I38*Assumptions!$G$45*Assumptions!$G$48 -> 2.21625 | AM38: =INDEX(Demand!K$9:K$428,MATCH($C38,Demand!$B$9:$B$428,0))*$I38*Assumptions!$G$45*Assumptions!$G$48 -> 2.2423125 | AN38: =INDEX(Demand!L$9:L$428,MATCH($C38,Demand!$B$9:$B$428,0))*$I38*Assumptions!$G$45*Assumptions!$G$48 -> 2.279625 | AO38: =INDEX(Demand!M$9:M$428,MATCH($C38,Demand!$B$9:$B$428,0))*$I38*Assumptions!$G$45*Assumptions!$G$48 -> 2.307375 | AP38: =INDEX(Demand!N$9:N$428,MATCH($C38,Demand!$B$9:$B$428,0))*$I38*Assumptions!$G$45*Assumptions!$G$48 -> 2.307375 | AQ38: =INDEX(Demand!O$9:O$428,MATCH($C38,Demand!$B$9:$B$428,0))*$I38*Assumptions!$G$45*Assumptions!$G$48 -> 2.307375 | AR38: =INDEX(Demand!P$9:P$428,MATCH($C38,Demand!$B$9:$B$428,0))*$I38*Assumptions!$G$45*Assumptions!$G$48 -> 2.307375 | AS38: =INDEX(Demand!Q$9:Q$428,MATCH($C38,Demand!$B$9:$B$428,0))*$I38*Assumptions!$G$45*Assumptions!$G$48 -> 2.307375 | AT38: =INDEX(Demand!R$9:R$428,MATCH($C38,Demand!$B$9:$B$428,0))*$I38*Assumptions!$G$45*Assumptions!$G$48 -> 2.307375 | AU38: =INDEX(Demand!S$9:S$428,MATCH($C38,Demand!$B$9:$B$428,0))*$I38*Assumptions!$G$45*Assumptions!$G$48 -> 2.307375 | AV38: =INDEX(Demand!T$9:T$428,MATCH($C38,Demand!$B$9:$B$428,0))*$I38*Assumptions!$G$45*Assumptions!$G$48 -> 2.307375 | AW38: =INDEX(Demand!U$9:U$428,MATCH($C38,Demand!$B$9:$B$428,0))*$I38*Assumptions!$G$45*Assumptions!$G$48 -> 2.307375 | AX38: =INDEX(Demand!V$9:V$428,MATCH($C38,Demand!$B$9:$B$428,0))*$I38*Assumptions!$G$45*Assumptions!$G$48 -> 2.307375 | AY38: =INDEX(Demand!W$9:W$428,MATCH($C38,Demand!$B$9:$B$428,0))*$I38*Assumptions!$G$45*Assumptions!$G$48 -> 2.307375 | AZ38: =INDEX(Demand!X$9:X$428,MATCH($C38,Demand!$B$9:$B$428,0))*$I38*Assumptions!$G$45*Assumptions!$G$48 -> 2.307375 | BB38: =SUMPRODUCT(($AG38:$AZ38)*(Misc_calcs!$G$29:$Z$29)*($L38:$AE38))*Calcs!$G38 -> 9513.022102 | BD38: =SUMPRODUCT(($L38:$AE38)*(Misc_calcs!$G$29:$Z$29))*$F38*Assumptions!$G$37*(1+Assumptions!$G$83) -> 4212.495603 | BF38: =Assumptions!$G$86*$F38 -> 0.00089091576 | BH38: =($F38*Assumptions!$G$37) -> 26717.04 | BJ38: =-SUMPRODUCT((PMT(real_disc,Assumptions!$G$40,BH38))*(Misc_calcs!$G$29:$Z$29)) -> 15138.46958 | BL38: =SUMPRODUCT(($AG38:$AZ38)*(Misc_calcs!$G$29:$Z$29))*$BF38*$G38 -> 918.1674855 | BN38: =SUMPRODUCT($BF38*(Misc_calcs!$G$29:$Z$29))*$F38*Assumptions!$G$37*(1+Assumptions!$G$83) -> 412.9941747 | BP38: 13725.51771 | BR38: 1331.16166 | BT38: 12394.35605 | BV38: -2744.113537 | BX38: FALSE
B39: 49327046 | C39: STO21 | D39: STO | E39: 22kV | F39: 258.37 | G39: 31697.31094 | H39: =INDEX(Demand!$C$9:$C$428, MATCH($C39, Demand!$B$9:$B$428,0)) -> 3 | I39: 0.25 | L39: 0.004547141962 | M39: 0.005095489155 | N39: 0.005715267593 | O39: 0.006416137282 | P39: 0.007209094366 | Q39: 0.00810665858 | R39: 0.009123087235 | S39: 0.01027461954 | T39: 0.01157975554 | U39: 0.01305957468 | V39: 0.01473809953 | W39: 0.01664271126 | X39: 0.01880462415 | Y39: 0.02125942753 | Z39: 0.02404770498 | AA39: 0.02721574162 | AB39: 0.03081633212 | AC39: 0.03490970401 | AD39: 0.03956457255 | AE39: 0.04485934614 | AG39: =INDEX(Demand!E$9:E$428,MATCH($C39,Demand!$B$9:$B$428,0))*$I39*Assumptions!$G$45*Assumptions!$G$48 -> 2.125875 | AH39: =INDEX(Demand!F$9:F$428,MATCH($C39,Demand!$B$9:$B$428,0))*$I39*Assumptions!$G$45*Assumptions!$G$48 -> 2.127 | AI39: =INDEX(Demand!G$9:G$428,MATCH($C39,Demand!$B$9:$B$428,0))*$I39*Assumptions!$G$45*Assumptions!$G$48 -> 2.1526875 | AJ39: =INDEX(Demand!H$9:H$428,MATCH($C39,Demand!$B$9:$B$428,0))*$I39*Assumptions!$G$45*Assumptions!$G$48 -> 2.1781875 | AK39: =INDEX(Demand!I$9:I$428,MATCH($C39,Demand!$B$9:$B$428,0))*$I39*Assumptions!$G$45*Assumptions!$G$48 -> 2.197875 | AL39: =INDEX(Demand!J$9:J$428,MATCH($C39,Demand!$B$9:$B$428,0))*$I39*Assumptions!$G$45*Assumptions!$G$48 -> 2.21625 | AM39: =INDEX(Demand!K$9:K$428,MATCH($C39,Demand!$B$9:$B$428,0))*$I39*Assumptions!$G$45*Assumptions!$G$48 -> 2.2423125 | AN39: =INDEX(Demand!L$9:L$428,MATCH($C39,Demand!$B$9:$B$428,0))*$I39*Assumptions!$G$45*Assumptions!$G$48 -> 2.279625 | AO39: =INDEX(Demand!M$9:M$428,MATCH($C39,Demand!$B$9:$B$428,0))*$I39*Assumptions!$G$45*Assumptions!$G$48 -> 2.307375 | AP39: =INDEX(Demand!N$9:N$428,MATCH($C39,Demand!$B$9:$B$428,0))*$I39*Assumptions!$G$45*Assumptions!$G$48 -> 2.307375 | AQ39: =INDEX(Demand!O$9:O$428,MATCH($C39,Demand!$B$9:$B$428,0))*$I39*Assumptions!$G$45*Assumptions!$G$48 -> 2.307375 | AR39: =INDEX(Demand!P$9:P$428,MATCH($C39,Demand!$B$9:$B$428,0))*$I39*Assumptions!$G$45*Assumptions!$G$48 -> 2.307375 | AS39: =INDEX(Demand!Q$9:Q$428,MATCH($C39,Demand!$B$9:$B$428,0))*$I39*Assumptions!$G$45*Assumptions!$G$48 -> 2.307375 | AT39: =INDEX(Demand!R$9:R$428,MATCH($C39,Demand!$B$9:$B$428,0))*$I39*Assumptions!$G$45*Assumptions!$G$48 -> 2.307375 | AU39: =INDEX(Demand!S$9:S$428,MATCH($C39,Demand!$B$9:$B$428,0))*$I39*Assumptions!$G$45*Assumptions!$G$48 -> 2.307375 | AV39: =INDEX(Demand!T$9:T$428,MATCH($C39,Demand!$B$9:$B$428,0))*$I39*Assumptions!$G$45*Assumptions!$G$48 -> 2.307375 | AW39: =INDEX(Demand!U$9:U$428,MATCH($C39,Demand!$B$9:$B$428,0))*$I39*Assumptions!$G$45*Assumptions!$G$48 -> 2.307375 | AX39: =INDEX(Demand!V$9:V$428,MATCH($C39,Demand!$B$9:$B$428,0))*$I39*Assumptions!$G$45*Assumptions!$G$48 -> 2.307375 | AY39: =INDEX(Demand!W$9:W$428,MATCH($C39,Demand!$B$9:$B$428,0))*$I39*Assumptions!$G$45*Assumptions!$G$48 -> 2.307375 | AZ39: =INDEX(Demand!X$9:X$428,MATCH($C39,Demand!$B$9:$B$428,0))*$I39*Assumptions!$G$45*Assumptions!$G$48 -> 2.307375 | BB39: =SUMPRODUCT(($AG39:$AZ39)*(Misc_calcs!$G$29:$Z$29)*($L39:$AE39))*Calcs!$G39 -> 16255.81694 | BD39: =SUMPRODUCT(($L39:$AE39)*(Misc_calcs!$G$29:$Z$29))*$F39*Assumptions!$G$37*(1+Assumptions!$G$83) -> 12300.42306 | BF39: =Assumptions!$G$86*$F39 -> 0.001522393551 | BH39: =($F39*Assumptions!$G$37) -> 45653.979 | BJ39: =-SUMPRODUCT((PMT(real_disc,Assumptions!$G$40,BH39))*(Misc_calcs!$G$29:$Z$29)) -> 25868.56075 | BL39: =SUMPRODUCT(($AG39:$AZ39)*(Misc_calcs!$G$29:$Z$29))*$BF39*$G39 -> 1568.961199 | BN39: =SUMPRODUCT($BF39*(Misc_calcs!$G$29:$Z$29))*$F39*Assumptions!$G$37*(1+Assumptions!$G$83) -> 1205.936705 | BP39: 28556.23999 | BR39: 2774.897904 | BT39: 25781.34209 | BV39: -87.21866529 | BX39: FALSE
B40: 49327072 | C40: STO21 | D40: STO | E40: 22kV | F40: 177.52 | G40: 31697.31094 | H40: =INDEX(Demand!$C$9:$C$428, MATCH($C40, Demand!$B$9:$B$428,0)) -> 3 | I40: 0.25 | L40: 0.00427351517 | M40: 0.004795224123 | N40: 0.005384981197 | O40: 0.006051959938 | P40: 0.006806595499 | Q40: 0.007660760345 | R40: 0.008627964627 | S40: 0.009723584715 | T40: 0.01096512385 | U40: 0.01237250949 | V40: 0.01396843246 | W40: 0.01577873392 | X40: 0.01783284687 | Y40: 0.0201642998 | Z40: 0.02281129151 | AA40: 0.02581734698 | AB40: 0.02923206585 | AC40: 0.03201252826 | AD40: 0.03201252826 | AE40: 0.03201252826 | AG40: =INDEX(Demand!E$9:E$428,MATCH($C40,Demand!$B$9:$B$428,0))*$I40*Assumptions!$G$45*Assumptions!$G$48 -> 2.125875 | AH40: =INDEX(Demand!F$9:F$428,MATCH($C40,Demand!$B$9:$B$428,0))*$I40*Assumptions!$G$45*Assumptions!$G$48 -> 2.127 | AI40: =INDEX(Demand!G$9:G$428,MATCH($C40,Demand!$B$9:$B$428,0))*$I40*Assumptions!$G$45*Assumptions!$G$48 -> 2.1526875 | AJ40: =INDEX(Demand!H$9:H$428,MATCH($C40,Demand!$B$9:$B$428,0))*$I40*Assumptions!$G$45*Assumptions!$G$48 -> 2.1781875 | AK40: =INDEX(Demand!I$9:I$428,MATCH($C40,Demand!$B$9:$B$428,0))*$I40*Assumptions!$G$45*Assumptions!$G$48 -> 2.197875 | AL40: =INDEX(Demand!J$9:J$428,MATCH($C40,Demand!$B$9:$B$428,0))*$I40*Assumptions!$G$45*Assumptions!$G$48 -> 2.21625 | AM40: =INDEX(Demand!K$9:K$428,MATCH($C40,Demand!$B$9:$B$428,0))*$I40*Assumptions!$G$45*Assumptions!$G$48 -> 2.2423125 | AN40: =INDEX(Demand!L$9:L$428,MATCH($C40,Demand!$B$9:$B$428,0))*$I40*Assumptions!$G$45*Assumptions!$G$48 -> 2.279625 | AO40: =INDEX(Demand!M$9:M$428,MATCH($C40,Demand!$B$9:$B$428,0))*$I40*Assumptions!$G$45*Assumptions!$G$48 -> 2.307375 | AP40: =INDEX(Demand!N$9:N$428,MATCH($C40,Demand!$B$9:$B$428,0))*$I40*Assumptions!$G$45*Assumptions!$G$48 -> 2.307375 | AQ40: =INDEX(Demand!O$9:O$428,MATCH($C40,Demand!$B$9:$B$428,0))*$I40*Assumptions!$G$45*Assumptions!$G$48 -> 2.307375 | AR40: =INDEX(Demand!P$9:P$428,MATCH($C40,Demand!$B$9:$B$428,0))*$I40*Assumptions!$G$45*Assumptions!$G$48 -> 2.307375 | AS40: =INDEX(Demand!Q$9:Q$428,MATCH($C40,Demand!$B$9:$B$428,0))*$I40*Assumptions!$G$45*Assumptions!$G$48 -> 2.307375 | AT40: =INDEX(Demand!R$9:R$428,MATCH($C40,Demand!$B$9:$B$428,0))*$I40*Assumptions!$G$45*Assumptions!$G$48 -> 2.307375 | AU40: =INDEX(Demand!S$9:S$428,MATCH($C40,Demand!$B$9:$B$428,0))*$I40*Assumptions!$G$45*Assumptions!$G$48 -> 2.307375 | AV40: =INDEX(Demand!T$9:T$428,MATCH($C40,Demand!$B$9:$B$428,0))*$I40*Assumptions!$G$45*Assumptions!$G$48 -> 2.307375 | AW40: =INDEX(Demand!U$9:U$428,MATCH($C40,Demand!$B$9:$B$428,0))*$I40*Assumptions!$G$45*Assumptions!$G$48 -> 2.307375 | AX40: =INDEX(Demand!V$9:V$428,MATCH($C40,Demand!$B$9:$B$428,0))*$I40*Assumptions!$G$45*Assumptions!$G$48 -> 2.307375 | AY40: =INDEX(Demand!W$9:W$428,MATCH($C40,Demand!$B$9:$B$428,0))*$I40*Assumptions!$G$45*Assumptions!$G$48 -> 2.307375 | AZ40: =INDEX(Demand!X$9:X$428,MATCH($C40,Demand!$B$9:$B$428,0))*$I40*Assumptions!$G$45*Assumptions!$G$48 -> 2.307375 | BB40: =SUMPRODUCT(($AG40:$AZ40)*(Misc_calcs!$G$29:$Z$29)*($L40:$AE40))*Calcs!$G40 -> 14749.17552 | BD40: =SUMPRODUCT(($L40:$AE40)*(Misc_calcs!$G$29:$Z$29))*$F40*Assumptions!$G$37*(1+Assumptions!$G$83) -> 7671.060306 | BF40: =Assumptions!$G$86*$F40 -> 0.001046001096 | BH40: =($F40*Assumptions!$G$37) -> 31367.784 | BJ40: =-SUMPRODUCT((PMT(real_disc,Assumptions!$G$40,BH40))*(Misc_calcs!$G$29:$Z$29)) -> 17773.68466 | BL40: =SUMPRODUCT(($AG40:$AZ40)*(Misc_calcs!$G$29:$Z$29))*$BF40*$G40 -> 1077.99664 | BN40: =SUMPRODUCT($BF40*(Misc_calcs!$G$29:$Z$29))*$F40*Assumptions!$G$37*(1+Assumptions!$G$83) -> 569.2917919 | BP40: 22420.23583 | BR40: 1647.288432 | BT40: 20772.94739 | BV40: 2999.262736 | BX40: TRUE
B41: 49327094 | C41: STO21 | D41: STO | E41: 22kV | F41: 296.56 | G41: 31697.31094 | H41: =INDEX(Demand!$C$9:$C$428, MATCH($C41, Demand!$B$9:$B$428,0)) -> 3 | I41: 0.25 | L41: 0.005219260829 | M41: 0.005848659921 | N41: 0.006560048602 | O41: 0.007364514736 | P41: 0.008274679821 | Q41: 0.009304914148 | R41: 0.01047158242 | S41: 0.01179332419 | T41: 0.01329137401 | U41: 0.0149899271 | V41: 0.01691655686 | W41: 0.01910269169 | X41: 0.02158415968 | Y41: 0.02440181069 | Z41: 0.027602227 | AA41: 0.03123853518 | AB41: 0.03537133357 | AC41: 0.04006975199 | AD41: 0.0454126626 | AE41: 0.05149006344 | AG41: =INDEX(Demand!E$9:E$428,MATCH($C41,Demand!$B$9:$B$428,0))*$I41*Assumptions!$G$45*Assumptions!$G$48 -> 2.125875 | AH41: =INDEX(Demand!F$9:F$428,MATCH($C41,Demand!$B$9:$B$428,0))*$I41*Assumptions!$G$45*Assumptions!$G$48 -> 2.127 | AI41: =INDEX(Demand!G$9:G$428,MATCH($C41,Demand!$B$9:$B$428,0))*$I41*Assumptions!$G$45*Assumptions!$G$48 -> 2.1526875 | AJ41: =INDEX(Demand!H$9:H$428,MATCH($C41,Demand!$B$9:$B$428,0))*$I41*Assumptions!$G$45*Assumptions!$G$48 -> 2.1781875 | AK41: =INDEX(Demand!I$9:I$428,MATCH($C41,Demand!$B$9:$B$428,0))*$I41*Assumptions!$G$45*Assumptions!$G$48 -> 2.197875 | AL41: =INDEX(Demand!J$9:J$428,MATCH($C41,Demand!$B$9:$B$428,0))*$I41*Assumptions!$G$45*Assumptions!$G$48 -> 2.21625 | AM41: =INDEX(Demand!K$9:K$428,MATCH($C41,Demand!$B$9:$B$428,0))*$I41*Assumptions!$G$45*Assumptions!$G$48 -> 2.2423125 | AN41: =INDEX(Demand!L$9:L$428,MATCH($C41,Demand!$B$9:$B$428,0))*$I41*Assumptions!$G$45*Assumptions!$G$48 -> 2.279625 | AO41: =INDEX(Demand!M$9:M$428,MATCH($C41,Demand!$B$9:$B$428,0))*$I41*Assumptions!$G$45*Assumptions!$G$48 -> 2.307375 | AP41: =INDEX(Demand!N$9:N$428,MATCH($C41,Demand!$B$9:$B$428,0))*$I41*Assumptions!$G$45*Assumptions!$G$48 -> 2.307375 | AQ41: =INDEX(Demand!O$9:O$428,MATCH($C41,Demand!$B$9:$B$428,0))*$I41*Assumptions!$G$45*Assumptions!$G$48 -> 2.307375 | AR41: =INDEX(Demand!P$9:P$428,MATCH($C41,Demand!$B$9:$B$428,0))*$I41*Assumptions!$G$45*Assumptions!$G$48 -> 2.307375 | AS41: =INDEX(Demand!Q$9:Q$428,MATCH($C41,Demand!$B$9:$B$428,0))*$I41*Assumptions!$G$45*Assumptions!$G$48 -> 2.307375 | AT41: =INDEX(Demand!R$9:R$428,MATCH($C41,Demand!$B$9:$B$428,0))*$I41*Assumptions!$G$45*Assumptions!$G$48 -> 2.307375 | AU41: =INDEX(Demand!S$9:S$428,MATCH($C41,Demand!$B$9:$B$428,0))*$I41*Assumptions!$G$45*Assumptions!$G$48 -> 2.307375 | AV41: =INDEX(Demand!T$9:T$428,MATCH($C41,Demand!$B$9:$B$428,0))*$I41*Assumptions!$G$45*Assumptions!$G$48 -> 2.307375 | AW41: =INDEX(Demand!U$9:U$428,MATCH($C41,Demand!$B$9:$B$428,0))*$I41*Assumptions!$G$45*Assumptions!$G$48 -> 2.307375 | AX41: =INDEX(Demand!V$9:V$428,MATCH($C41,Demand!$B$9:$B$428,0))*$I41*Assumptions!$G$45*Assumptions!$G$48 -> 2.307375 | AY41: =INDEX(Demand!W$9:W$428,MATCH($C41,Demand!$B$9:$B$428,0))*$I41*Assumptions!$G$45*Assumptions!$G$48 -> 2.307375 | AZ41: =INDEX(Demand!X$9:X$428,MATCH($C41,Demand!$B$9:$B$428,0))*$I41*Assumptions!$G$45*Assumptions!$G$48 -> 2.307375 | BB41: =SUMPRODUCT(($AG41:$AZ41)*(Misc_calcs!$G$29:$Z$29)*($L41:$AE41))*Calcs!$G41 -> 18658.61002 | BD41: =SUMPRODUCT(($L41:$AE41)*(Misc_calcs!$G$29:$Z$29))*$F41*Assumptions!$G$37*(1+Assumptions!$G$83) -> 16205.44735 | BF41: =Assumptions!$G$86*$F41 -> 0.001747420488 | BH41: =($F41*Assumptions!$G$37) -> 52402.152 | BJ41: =-SUMPRODUCT((PMT(real_disc,Assumptions!$G$40,BH41))*(Misc_calcs!$G$29:$Z$29)) -> 29692.22579 | BL41: =SUMPRODUCT(($AG41:$AZ41)*(Misc_calcs!$G$29:$Z$29))*$BF41*$G41 -> 1800.871359 | BN41: =SUMPRODUCT($BF41*(Misc_calcs!$G$29:$Z$29))*$F41*Assumptions!$G$37*(1+Assumptions!$G$83) -> 1588.786313 | BP41: 34864.05737 | BR41: 3389.657672 | BT41: 31474.3997 | BV41: 1782.173912 | BX41: TRUE
B42: 49327100 | C42: STO21 | D42: STO | E42: 22kV | F42: 256.15 | G42: 31697.31094 | H42: =INDEX(Demand!$C$9:$C$428, MATCH($C42, Demand!$B$9:$B$428,0)) -> 3 | I42: 0.25 | L42: 0.004508071423 | M42: 0.005051707037 | N42: 0.005666160134 | O42: 0.00636100772 | P42: 0.007147151457 | Q42: 0.008037003503 | R42: 0.009044698669 | S42: 0.01018633663 | T42: 0.01148025847 | U42: 0.01294736252 | V42: 0.01461146493 | W42: 0.01649971162 | X42: 0.01864304863 | Y42: 0.02107675953 | Z42: 0.02384107919 | AA42: 0.02698189502 | AB42: 0.03055154806 | AC42: 0.03460974836 | AD42: 0.03922462074 | AE42: 0.04447389989 | AG42: =INDEX(Demand!E$9:E$428,MATCH($C42,Demand!$B$9:$B$428,0))*$I42*Assumptions!$G$45*Assumptions!$G$48 -> 2.125875 | AH42: =INDEX(Demand!F$9:F$428,MATCH($C42,Demand!$B$9:$B$428,0))*$I42*Assumptions!$G$45*Assumptions!$G$48 -> 2.127 | AI42: =INDEX(Demand!G$9:G$428,MATCH($C42,Demand!$B$9:$B$428,0))*$I42*Assumptions!$G$45*Assumptions!$G$48 -> 2.1526875 | AJ42: =INDEX(Demand!H$9:H$428,MATCH($C42,Demand!$B$9:$B$428,0))*$I42*Assumptions!$G$45*Assumptions!$G$48 -> 2.1781875 | AK42: =INDEX(Demand!I$9:I$428,MATCH($C42,Demand!$B$9:$B$428,0))*$I42*Assumptions!$G$45*Assumptions!$G$48 -> 2.197875 | AL42: =INDEX(Demand!J$9:J$428,MATCH($C42,Demand!$B$9:$B$428,0))*$I42*Assumptions!$G$45*Assumptions!$G$48 -> 2.21625 | AM42: =INDEX(Demand!K$9:K$428,MATCH($C42,Demand!$B$9:$B$428,0))*$I42*Assumptions!$G$45*Assumptions!$G$48 -> 2.2423125 | AN42: =INDEX(Demand!L$9:L$428,MATCH($C42,Demand!$B$9:$B$428,0))*$I42*Assumptions!$G$45*Assumptions!$G$48 -> 2.279625 | AO42: =INDEX(Demand!M$9:M$428,MATCH($C42,Demand!$B$9:$B$428,0))*$I42*Assumptions!$G$45*Assumptions!$G$48 -> 2.307375 | AP42: =INDEX(Demand!N$9:N$428,MATCH($C42,Demand!$B$9:$B$428,0))*$I42*Assumptions!$G$45*Assumptions!$G$48 -> 2.307375 | AQ42: =INDEX(Demand!O$9:O$428,MATCH($C42,Demand!$B$9:$B$428,0))*$I42*Assumptions!$G$45*Assumptions!$G$48 -> 2.307375 | AR42: =INDEX(Demand!P$9:P$428,MATCH($C42,Demand!$B$9:$B$428,0))*$I42*Assumptions!$G$45*Assumptions!$G$48 -> 2.307375 | AS42: =INDEX(Demand!Q$9:Q$428,MATCH($C42,Demand!$B$9:$B$428,0))*$I42*Assumptions!$G$45*Assumptions!$G$48 -> 2.307375 | AT42: =INDEX(Demand!R$9:R$428,MATCH($C42,Demand!$B$9:$B$428,0))*$I42*Assumptions!$G$45*Assumptions!$G$48 -> 2.307375 | AU42: =INDEX(Demand!S$9:S$428,MATCH($C42,Demand!$B$9:$B$428,0))*$I42*Assumptions!$G$45*Assumptions!$G$48 -> 2.307375 | AV42: =INDEX(Demand!T$9:T$428,MATCH($C42,Demand!$B$9:$B$428,0))*$I42*Assumptions!$G$45*Assumptions!$G$48 -> 2.307375 | AW42: =INDEX(Demand!U$9:U$428,MATCH($C42,Demand!$B$9:$B$428,0))*$I42*Assumptions!$G$45*Assumptions!$G$48 -> 2.307375 | AX42: =INDEX(Demand!V$9:V$428,MATCH($C42,Demand!$B$9:$B$428,0))*$I42*Assumptions!$G$45*Assumptions!$G$48 -> 2.307375 | AY42: =INDEX(Demand!W$9:W$428,MATCH($C42,Demand!$B$9:$B$428,0))*$I42*Assumptions!$G$45*Assumptions!$G$48 -> 2.307375 | AZ42: =INDEX(Demand!X$9:X$428,MATCH($C42,Demand!$B$9:$B$428,0))*$I42*Assumptions!$G$45*Assumptions!$G$48 -> 2.307375 | BB42: =SUMPRODUCT(($AG42:$AZ42)*(Misc_calcs!$G$29:$Z$29)*($L42:$AE42))*Calcs!$G42 -> 16116.14161 | BD42: =SUMPRODUCT(($L42:$AE42)*(Misc_calcs!$G$29:$Z$29))*$F42*Assumptions!$G$37*(1+Assumptions!$G$83) -> 12089.95261 | BF42: =Assumptions!$G$86*$F42 -> 0.001509312645 | BH42: =($F42*Assumptions!$G$37) -> 45261.705 | BJ42: =-SUMPRODUCT((PMT(real_disc,Assumptions!$G$40,BH42))*(Misc_calcs!$G$29:$Z$29)) -> 25646.28957 | BL42: =SUMPRODUCT(($AG42:$AZ42)*(Misc_calcs!$G$29:$Z$29))*$BF42*$G42 -> 1555.480168 | BN42: =SUMPRODUCT($BF42*(Misc_calcs!$G$29:$Z$29))*$F42*Assumptions!$G$37*(1+Assumptions!$G$83) -> 1185.302128 | BP42: 28206.09423 | BR42: 2740.782296 | BT42: 25465.31193 | BV42: -180.9776438 | BX42: FALSE
B43: 49327326 | C43: STO21 | D43: STO | E43: 22kV | F43: 254.26 | G43: 31697.31094 | H43: =INDEX(Demand!$C$9:$C$428, MATCH($C43, Demand!$B$9:$B$428,0)) -> 3 | I43: 0.25 | L43: 0.002285764235 | M43: 0.002586963043 | N43: 0.002932455677 | O43: 0.003329087882 | P43: 0.003784795236 | Q43: 0.004308779896 | R43: 0.004911716336 | S43: 0.005605990897 | T43: 0.006405980731 | U43: 0.007328378663 | V43: 0.008392571597 | W43: 0.009621081322 | X43: 0.0110400781 | Y43: 0.01267997907 | Z43: 0.01457614568 | AA43: 0.01676969639 | AB43: 0.01930845407 | AC43: 0.02224805028 | AD43: 0.02565321273 | AE43: 0.02959926623 | AG43: =INDEX(Demand!E$9:E$428,MATCH($C43,Demand!$B$9:$B$428,0))*$I43*Assumptions!$G$45*Assumptions!$G$48 -> 2.125875 | AH43: =INDEX(Demand!F$9:F$428,MATCH($C43,Demand!$B$9:$B$428,0))*$I43*Assumptions!$G$45*Assumptions!$G$48 -> 2.127 | AI43: =INDEX(Demand!G$9:G$428,MATCH($C43,Demand!$B$9:$B$428,0))*$I43*Assumptions!$G$45*Assumptions!$G$48 -> 2.1526875 | AJ43: =INDEX(Demand!H$9:H$428,MATCH($C43,Demand!$B$9:$B$428,0))*$I43*Assumptions!$G$45*Assumptions!$G$48 -> 2.1781875 | AK43: =INDEX(Demand!I$9:I$428,MATCH($C43,Demand!$B$9:$B$428,0))*$I43*Assumptions!$G$45*Assumptions!$G$48 -> 2.197875 | AL43: =INDEX(Demand!J$9:J$428,MATCH($C43,Demand!$B$9:$B$428,0))*$I43*Assumptions!$G$45*Assumptions!$G$48 -> 2.21625 | AM43: =INDEX(Demand!K$9:K$428,MATCH($C43,Demand!$B$9:$B$428,0))*$I43*Assumptions!$G$45*Assumptions!$G$48 -> 2.2423125 | AN43: =INDEX(Demand!L$9:L$428,MATCH($C43,Demand!$B$9:$B$428,0))*$I43*Assumptions!$G$45*Assumptions!$G$48 -> 2.279625 | AO43: =INDEX(Demand!M$9:M$428,MATCH($C43,Demand!$B$9:$B$428,0))*$I43*Assumptions!$G$45*Assumptions!$G$48 -> 2.307375 | AP43: =INDEX(Demand!N$9:N$428,MATCH($C43,Demand!$B$9:$B$428,0))*$I43*Assumptions!$G$45*Assumptions!$G$48 -> 2.307375 | AQ43: =INDEX(Demand!O$9:O$428,MATCH($C43,Demand!$B$9:$B$428,0))*$I43*Assumptions!$G$45*Assumptions!$G$48 -> 2.307375 | AR43: =INDEX(Demand!P$9:P$428,MATCH($C43,Demand!$B$9:$B$428,0))*$I43*Assumptions!$G$45*Assumptions!$G$48 -> 2.307375 | AS43: =INDEX(Demand!Q$9:Q$428,MATCH($C43,Demand!$B$9:$B$428,0))*$I43*Assumptions!$G$45*Assumptions!$G$48 -> 2.307375 | AT43: =INDEX(Demand!R$9:R$428,MATCH($C43,Demand!$B$9:$B$428,0))*$I43*Assumptions!$G$45*Assumptions!$G$48 -> 2.307375 | AU43: =INDEX(Demand!S$9:S$428,MATCH($C43,Demand!$B$9:$B$428,0))*$I43*Assumptions!$G$45*Assumptions!$G$48 -> 2.307375 | AV43: =INDEX(Demand!T$9:T$428,MATCH($C43,Demand!$B$9:$B$428,0))*$I43*Assumptions!$G$45*Assumptions!$G$48 -> 2.307375 | AW43: =INDEX(Demand!U$9:U$428,MATCH($C43,Demand!$B$9:$B$428,0))*$I43*Assumptions!$G$45*Assumptions!$G$48 -> 2.307375 | AX43: =INDEX(Demand!V$9:V$428,MATCH($C43,Demand!$B$9:$B$428,0))*$I43*Assumptions!$G$45*Assumptions!$G$48 -> 2.307375 | AY43: =INDEX(Demand!W$9:W$428,MATCH($C43,Demand!$B$9:$B$428,0))*$I43*Assumptions!$G$45*Assumptions!$G$48 -> 2.307375 | AZ43: =INDEX(Demand!X$9:X$428,MATCH($C43,Demand!$B$9:$B$428,0))*$I43*Assumptions!$G$45*Assumptions!$G$48 -> 2.307375 | BB43: =SUMPRODUCT(($AG43:$AZ43)*(Misc_calcs!$G$29:$Z$29)*($L43:$AE43))*Calcs!$G43 -> 9677.140099 | BD43: =SUMPRODUCT(($L43:$AE43)*(Misc_calcs!$G$29:$Z$29))*$F43*Assumptions!$G$37*(1+Assumptions!$G$83) -> 7196.677408 | BF43: =Assumptions!$G$86*$F43 -> 0.001498176198 | BH43: =($F43*Assumptions!$G$37) -> 44927.742 | BJ43: =-SUMPRODUCT((PMT(real_disc,Assumptions!$G$40,BH43))*(Misc_calcs!$G$29:$Z$29)) -> 25457.0587 | BL43: =SUMPRODUCT(($AG43:$AZ43)*(Misc_calcs!$G$29:$Z$29))*$BF43*$G43 -> 1544.003074 | BN43: =SUMPRODUCT($BF43*(Misc_calcs!$G$29:$Z$29))*$F43*Assumptions!$G$37*(1+Assumptions!$G$83) -> 1167.875181 | BP43: 16873.81751 | BR43: 2711.878255 | BT43: 14161.93925 | BV43: -11295.11945 | BX43: FALSE
B44: 49332113 | C44: MTN32 | D44: MTN | E44: 22kV | F44: 300.1 | G44: 37411.3138 | H44: =INDEX(Demand!$C$9:$C$428, MATCH($C44, Demand!$B$9:$B$428,0)) -> 4 | I44: 0.2 | L44: 0.005281562499 | M44: 0.005918474651 | N44: 0.00663835509 | O44: 0.007452424036 | P44: 0.008373453649 | Q44: 0.009415985756 | R44: 0.0105965804 | S44: 0.01193409964 | T44: 0.01345003149 | U44: 0.01516886001 | V44: 0.0171184877 | W44: 0.01933071816 | X44: 0.02184180712 | Y44: 0.02469309208 | Z44: 0.02793171137 | AA44: 0.03161142571 | AB44: 0.0357935568 | AC44: 0.04054805966 | AD44: 0.04595474793 | AE44: 0.05210469395 | AG44: =INDEX(Demand!E$9:E$428,MATCH($C44,Demand!$B$9:$B$428,0))*$I44*Assumptions!$G$45*Assumptions!$G$48 -> 1.0089 | AH44: =INDEX(Demand!F$9:F$428,MATCH($C44,Demand!$B$9:$B$428,0))*$I44*Assumptions!$G$45*Assumptions!$G$48 -> 1.01175 | AI44: =INDEX(Demand!G$9:G$428,MATCH($C44,Demand!$B$9:$B$428,0))*$I44*Assumptions!$G$45*Assumptions!$G$48 -> 1.02015 | AJ44: =INDEX(Demand!H$9:H$428,MATCH($C44,Demand!$B$9:$B$428,0))*$I44*Assumptions!$G$45*Assumptions!$G$48 -> 1.02675 | AK44: =INDEX(Demand!I$9:I$428,MATCH($C44,Demand!$B$9:$B$428,0))*$I44*Assumptions!$G$45*Assumptions!$G$48 -> 1.0269 | AL44: =INDEX(Demand!J$9:J$428,MATCH($C44,Demand!$B$9:$B$428,0))*$I44*Assumptions!$G$45*Assumptions!$G$48 -> 1.0299 | AM44: =INDEX(Demand!K$9:K$428,MATCH($C44,Demand!$B$9:$B$428,0))*$I44*Assumptions!$G$45*Assumptions!$G$48 -> 1.0398 | AN44: =INDEX(Demand!L$9:L$428,MATCH($C44,Demand!$B$9:$B$428,0))*$I44*Assumptions!$G$45*Assumptions!$G$48 -> 1.0557 | AO44: =INDEX(Demand!M$9:M$428,MATCH($C44,Demand!$B$9:$B$428,0))*$I44*Assumptions!$G$45*Assumptions!$G$48 -> 1.0647 | AP44: =INDEX(Demand!N$9:N$428,MATCH($C44,Demand!$B$9:$B$428,0))*$I44*Assumptions!$G$45*Assumptions!$G$48 -> 1.0647 | AQ44: =INDEX(Demand!O$9:O$428,MATCH($C44,Demand!$B$9:$B$428,0))*$I44*Assumptions!$G$45*Assumptions!$G$48 -> 1.0647 | AR44: =INDEX(Demand!P$9:P$428,MATCH($C44,Demand!$B$9:$B$428,0))*$I44*Assumptions!$G$45*Assumptions!$G$48 -> 1.0647 | AS44: =INDEX(Demand!Q$9:Q$428,MATCH($C44,Demand!$B$9:$B$428,0))*$I44*Assumptions!$G$45*Assumptions!$G$48 -> 1.0647 | AT44: =INDEX(Demand!R$9:R$428,MATCH($C44,Demand!$B$9:$B$428,0))*$I44*Assumptions!$G$45*Assumptions!$G$48 -> 1.0647 | AU44: =INDEX(Demand!S$9:S$428,MATCH($C44,Demand!$B$9:$B$428,0))*$I44*Assumptions!$G$45*Assumptions!$G$48 -> 1.0647 | AV44: =INDEX(Demand!T$9:T$428,MATCH($C44,Demand!$B$9:$B$428,0))*$I44*Assumptions!$G$45*Assumptions!$G$48 -> 1.0647 | AW44: =INDEX(Demand!U$9:U$428,MATCH($C44,Demand!$B$9:$B$428,0))*$I44*Assumptions!$G$45*Assumptions!$G$48 -> 1.0647 | AX44: =INDEX(Demand!V$9:V$428,MATCH($C44,Demand!$B$9:$B$428,0))*$I44*Assumptions!$G$45*Assumptions!$G$48 -> 1.0647 | AY44: =INDEX(Demand!W$9:W$428,MATCH($C44,Demand!$B$9:$B$428,0))*$I44*Assumptions!$G$45*Assumptions!$G$48 -> 1.0647 | AZ44: =INDEX(Demand!X$9:X$428,MATCH($C44,Demand!$B$9:$B$428,0))*$I44*Assumptions!$G$45*Assumptions!$G$48 -> 1.0647 | BB44: =SUMPRODUCT(($AG44:$AZ44)*(Misc_calcs!$G$29:$Z$29)*($L44:$AE44))*Calcs!$G44 -> 10314.78704 | BD44: =SUMPRODUCT(($L44:$AE44)*(Misc_calcs!$G$29:$Z$29))*$F44*Assumptions!$G$37*(1+Assumptions!$G$83) -> 16594.64129 | BF44: =Assumptions!$G$86*$F44 -> 0.00176827923 | BH44: =($F44*Assumptions!$G$37) -> 53027.67 | BJ44: =-SUMPRODUCT((PMT(real_disc,Assumptions!$G$40,BH44))*(Misc_calcs!$G$29:$Z$29)) -> 30046.65821 | BL44: =SUMPRODUCT(($AG44:$AZ44)*(Misc_calcs!$G$29:$Z$29))*$BF44*$G44 -> 1000.691343 | BN44: =SUMPRODUCT($BF44*(Misc_calcs!$G$29:$Z$29))*$F44*Assumptions!$G$37*(1+Assumptions!$G$83) -> 1626.942988 | BP44: 26909.42833 | BR44: 2627.634331 | BT44: 24281.794 | BV44: -5764.864208 | BX44: FALSE
B45: 49332119 | C45: MTN32 | D45: MTN | E45: 22kV | F45: 364.6 | G45: 37411.3138 | H45: =INDEX(Demand!$C$9:$C$428, MATCH($C45, Demand!$B$9:$B$428,0)) -> 4 | I45: 0.2 | L45: 0.006416720051 | M45: 0.007190522684 | N45: 0.008065125844 | O45: 0.009054161292 | P45: 0.01017314629 | Q45: 0.01143974811 | R45: 0.01287408602 | S45: 0.01449907607 | T45: 0.01634082467 | U45: 0.01842907817 | V45: 0.02079773614 | W45: 0.02348543765 | X45: 0.02653623084 | Y45: 0.03000033779 | Z45: 0.0339350282 | AA45: 0.0384056175 | AB45: 0.04348660716 | AC45: 0.04926298751 | AD45: 0.05583172641 | AE45: 0.06330347023 | AG45: =INDEX(Demand!E$9:E$428,MATCH($C45,Demand!$B$9:$B$428,0))*$I45*Assumptions!$G$45*Assumptions!$G$48 -> 1.0089 | AH45: =INDEX(Demand!F$9:F$428,MATCH($C45,Demand!$B$9:$B$428,0))*$I45*Assumptions!$G$45*Assumptions!$G$48 -> 1.01175 | AI45: =INDEX(Demand!G$9:G$428,MATCH($C45,Demand!$B$9:$B$428,0))*$I45*Assumptions!$G$45*Assumptions!$G$48 -> 1.02015 | AJ45: =INDEX(Demand!H$9:H$428,MATCH($C45,Demand!$B$9:$B$428,0))*$I45*Assumptions!$G$45*Assumptions!$G$48 -> 1.02675 | AK45: =INDEX(Demand!I$9:I$428,MATCH($C45,Demand!$B$9:$B$428,0))*$I45*Assumptions!$G$45*Assumptions!$G$48 -> 1.0269 | AL45: =INDEX(Demand!J$9:J$428,MATCH($C45,Demand!$B$9:$B$428,0))*$I45*Assumptions!$G$45*Assumptions!$G$48 -> 1.0299 | AM45: =INDEX(Demand!K$9:K$428,MATCH($C45,Demand!$B$9:$B$428,0))*$I45*Assumptions!$G$45*Assumptions!$G$48 -> 1.0398 | AN45: =INDEX(Demand!L$9:L$428,MATCH($C45,Demand!$B$9:$B$428,0))*$I45*Assumptions!$G$45*Assumptions!$G$48 -> 1.0557 | AO45: =INDEX(Demand!M$9:M$428,MATCH($C45,Demand!$B$9:$B$428,0))*$I45*Assumptions!$G$45*Assumptions!$G$48 -> 1.0647 | AP45: =INDEX(Demand!N$9:N$428,MATCH($C45,Demand!$B$9:$B$428,0))*$I45*Assumptions!$G$45*Assumptions!$G$48 -> 1.0647 | AQ45: =INDEX(Demand!O$9:O$428,MATCH($C45,Demand!$B$9:$B$428,0))*$I45*Assumptions!$G$45*Assumptions!$G$48 -> 1.0647 | AR45: =INDEX(Demand!P$9:P$428,MATCH($C45,Demand!$B$9:$B$428,0))*$I45*Assumptions!$G$45*Assumptions!$G$48 -> 1.0647 | AS45: =INDEX(Demand!Q$9:Q$428,MATCH($C45,Demand!$B$9:$B$428,0))*$I45*Assumptions!$G$45*Assumptions!$G$48 -> 1.0647 | AT45: =INDEX(Demand!R$9:R$428,MATCH($C45,Demand!$B$9:$B$428,0))*$I45*Assumptions!$G$45*Assumptions!$G$48 -> 1.0647 | AU45: =INDEX(Demand!S$9:S$428,MATCH($C45,Demand!$B$9:$B$428,0))*$I45*Assumptions!$G$45*Assumptions!$G$48 -> 1.0647 | AV45: =INDEX(Demand!T$9:T$428,MATCH($C45,Demand!$B$9:$B$428,0))*$I45*Assumptions!$G$45*Assumptions!$G$48 -> 1.0647 | AW45: =INDEX(Demand!U$9:U$428,MATCH($C45,Demand!$B$9:$B$428,0))*$I45*Assumptions!$G$45*Assumptions!$G$48 -> 1.0647 | AX45: =INDEX(Demand!V$9:V$428,MATCH($C45,Demand!$B$9:$B$428,0))*$I45*Assumptions!$G$45*Assumptions!$G$48 -> 1.0647 | AY45: =INDEX(Demand!W$9:W$428,MATCH($C45,Demand!$B$9:$B$428,0))*$I45*Assumptions!$G$45*Assumptions!$G$48 -> 1.0647 | AZ45: =INDEX(Demand!X$9:X$428,MATCH($C45,Demand!$B$9:$B$428,0))*$I45*Assumptions!$G$45*Assumptions!$G$48 -> 1.0647 | BB45: =SUMPRODUCT(($AG45:$AZ45)*(Misc_calcs!$G$29:$Z$29)*($L45:$AE45))*Calcs!$G45 -> 12531.72728 | BD45: =SUMPRODUCT(($L45:$AE45)*(Misc_calcs!$G$29:$Z$29))*$F45*Assumptions!$G$37*(1+Assumptions!$G$83) -> 24494.53543 | BF45: =Assumptions!$G$86*$F45 -> 0.00214833258 | BH45: =($F45*Assumptions!$G$37) -> 64424.82 | BJ45: =-SUMPRODUCT((PMT(real_disc,Assumptions!$G$40,BH45))*(Misc_calcs!$G$29:$Z$29)) -> 36504.5371 | BL45: =SUMPRODUCT(($AG45:$AZ45)*(Misc_calcs!$G$29:$Z$29))*$BF45*$G45 -> 1215.768289 | BN45: =SUMPRODUCT($BF45*(Misc_calcs!$G$29:$Z$29))*$F45*Assumptions!$G$37*(1+Assumptions!$G$83) -> 2401.450683 | BP45: 37026.26271 | BR45: 3617.218972 | BT45: 33409.04374 | BV45: -3095.493365 | BX45: FALSE
B46: 49332163 | C46: MTN32 | D46: MTN | E46: 22kV | F46: 454.1 | G46: 37411.3138 | H46: =INDEX(Demand!$C$9:$C$428, MATCH($C46, Demand!$B$9:$B$428,0)) -> 4 | I46: 0.2 | L46: 0.007991861149 | M46: 0.008955612592 | N46: 0.01004490852 | O46: 0.01127672694 | P46: 0.01267039421 | Q46: 0.01424791447 | R46: 0.01603434576 | S46: 0.01805822941 | T46: 0.02035208031 | U46: 0.02295294678 | V46: 0.02590304987 | W46: 0.02925051354 | X46: 0.03305019865 | Y46: 0.03736465549 | Z46: 0.04226521203 | AA46: 0.04783321697 | AB46: 0.05416145998 | AC46: 0.06135579437 | AD46: 0.06953699112 | AE46: 0.07884285746 | AG46: =INDEX(Demand!E$9:E$428,MATCH($C46,Demand!$B$9:$B$428,0))*$I46*Assumptions!$G$45*Assumptions!$G$48 -> 1.0089 | AH46: =INDEX(Demand!F$9:F$428,MATCH($C46,Demand!$B$9:$B$428,0))*$I46*Assumptions!$G$45*Assumptions!$G$48 -> 1.01175 | AI46: =INDEX(Demand!G$9:G$428,MATCH($C46,Demand!$B$9:$B$428,0))*$I46*Assumptions!$G$45*Assumptions!$G$48 -> 1.02015 | AJ46: =INDEX(Demand!H$9:H$428,MATCH($C46,Demand!$B$9:$B$428,0))*$I46*Assumptions!$G$45*Assumptions!$G$48 -> 1.02675 | AK46: =INDEX(Demand!I$9:I$428,MATCH($C46,Demand!$B$9:$B$428,0))*$I46*Assumptions!$G$45*Assumptions!$G$48 -> 1.0269 | AL46: =INDEX(Demand!J$9:J$428,MATCH($C46,Demand!$B$9:$B$428,0))*$I46*Assumptions!$G$45*Assumptions!$G$48 -> 1.0299 | AM46: =INDEX(Demand!K$9:K$428,MATCH($C46,Demand!$B$9:$B$428,0))*$I46*Assumptions!$G$45*Assumptions!$G$48 -> 1.0398 | AN46: =INDEX(Demand!L$9:L$428,MATCH($C46,Demand!$B$9:$B$428,0))*$I46*Assumptions!$G$45*Assumptions!$G$48 -> 1.0557 | AO46: =INDEX(Demand!M$9:M$428,MATCH($C46,Demand!$B$9:$B$428,0))*$I46*Assumptions!$G$45*Assumptions!$G$48 -> 1.0647 | AP46: =INDEX(Demand!N$9:N$428,MATCH($C46,Demand!$B$9:$B$428,0))*$I46*Assumptions!$G$45*Assumptions!$G$48 -> 1.0647 | AQ46: =INDEX(Demand!O$9:O$428,MATCH($C46,Demand!$B$9:$B$428,0))*$I46*Assumptions!$G$45*Assumptions!$G$48 -> 1.0647 | AR46: =INDEX(Demand!P$9:P$428,MATCH($C46,Demand!$B$9:$B$428,0))*$I46*Assumptions!$G$45*Assumptions!$G$48 -> 1.0647 | AS46: =INDEX(Demand!Q$9:Q$428,MATCH($C46,Demand!$B$9:$B$428,0))*$I46*Assumptions!$G$45*Assumptions!$G$48 -> 1.0647 | AT46: =INDEX(Demand!R$9:R$428,MATCH($C46,Demand!$B$9:$B$428,0))*$I46*Assumptions!$G$45*Assumptions!$G$48 -> 1.0647 | AU46: =INDEX(Demand!S$9:S$428,MATCH($C46,Demand!$B$9:$B$428,0))*$I46*Assumptions!$G$45*Assumptions!$G$48 -> 1.0647 | AV46: =INDEX(Demand!T$9:T$428,MATCH($C46,Demand!$B$9:$B$428,0))*$I46*Assumptions!$G$45*Assumptions!$G$48 -> 1.0647 | AW46: =INDEX(Demand!U$9:U$428,MATCH($C46,Demand!$B$9:$B$428,0))*$I46*Assumptions!$G$45*Assumptions!$G$48 -> 1.0647 | AX46: =INDEX(Demand!V$9:V$428,MATCH($C46,Demand!$B$9:$B$428,0))*$I46*Assumptions!$G$45*Assumptions!$G$48 -> 1.0647 | AY46: =INDEX(Demand!W$9:W$428,MATCH($C46,Demand!$B$9:$B$428,0))*$I46*Assumptions!$G$45*Assumptions!$G$48 -> 1.0647 | AZ46: =INDEX(Demand!X$9:X$428,MATCH($C46,Demand!$B$9:$B$428,0))*$I46*Assumptions!$G$45*Assumptions!$G$48 -> 1.0647 | BB46: =SUMPRODUCT(($AG46:$AZ46)*(Misc_calcs!$G$29:$Z$29)*($L46:$AE46))*Calcs!$G46 -> 15607.94667 | BD46: =SUMPRODUCT(($L46:$AE46)*(Misc_calcs!$G$29:$Z$29))*$F46*Assumptions!$G$37*(1+Assumptions!$G$83) -> 37996.08776 | BF46: =Assumptions!$G$86*$F46 -> 0.00267569343 | BH46: =($F46*Assumptions!$G$37) -> 80239.47 | BJ46: =-SUMPRODUCT((PMT(real_disc,Assumptions!$G$40,BH46))*(Misc_calcs!$G$29:$Z$29)) -> 45465.46982 | BL46: =SUMPRODUCT(($AG46:$AZ46)*(Misc_calcs!$G$29:$Z$29))*$BF46*$G46 -> 1514.208393 | BN46: =SUMPRODUCT($BF46*(Misc_calcs!$G$29:$Z$29))*$F46*Assumptions!$G$37*(1+Assumptions!$G$83) -> 3725.146418 | BP46: 53604.03443 | BR46: 5239.354811 | BT46: 48364.67962 | BV46: 2899.209798 | BX46: TRUE
B47: 49332372 | C47: MTN32 | D47: MTN | E47: 22kV | F47: 267.24 | G47: 37411.3138 | H47: =INDEX(Demand!$C$9:$C$428, MATCH($C47, Demand!$B$9:$B$428,0)) -> 4 | I47: 0.2 | L47: 0.001917846665 | M47: 0.002115133874 | N47: 0.002335358401 | O47: 0.002581335097 | P47: 0.002856235577 | Q47: 0.003163634362 | R47: 0.003507561059 | S47: 0.003892559395 | T47: 0.00432375399 | U47: 0.004806925918 | V47: 0.005348598186 | W47: 0.005956132489 | X47: 0.006637838687 | Y47: 0.007403098736 | Z47: 0.008262506957 | AA47: 0.00922802883 | AB47: 0.01031318077 | AC47: 0.01153323369 | AD47: 0.01290544343 | AE47: 0.01444931181 | AG47: =INDEX(Demand!E$9:E$428,MATCH($C47,Demand!$B$9:$B$428,0))*$I47*Assumptions!$G$45*Assumptions!$G$48 -> 1.0089 | AH47: =INDEX(Demand!F$9:F$428,MATCH($C47,Demand!$B$9:$B$428,0))*$I47*Assumptions!$G$45*Assumptions!$G$48 -> 1.01175 | AI47: =INDEX(Demand!G$9:G$428,MATCH($C47,Demand!$B$9:$B$428,0))*$I47*Assumptions!$G$45*Assumptions!$G$48 -> 1.02015 | AJ47: =INDEX(Demand!H$9:H$428,MATCH($C47,Demand!$B$9:$B$428,0))*$I47*Assumptions!$G$45*Assumptions!$G$48 -> 1.02675 | AK47: =INDEX(Demand!I$9:I$428,MATCH($C47,Demand!$B$9:$B$428,0))*$I47*Assumptions!$G$45*Assumptions!$G$48 -> 1.0269 | AL47: =INDEX(Demand!J$9:J$428,MATCH($C47,Demand!$B$9:$B$428,0))*$I47*Assumptions!$G$45*Assumptions!$G$48 -> 1.0299 | AM47: =INDEX(Demand!K$9:K$428,MATCH($C47,Demand!$B$9:$B$428,0))*$I47*Assumptions!$G$45*Assumptions!$G$48 -> 1.0398 | AN47: =INDEX(Demand!L$9:L$428,MATCH($C47,Demand!$B$9:$B$428,0))*$I47*Assumptions!$G$45*Assumptions!$G$48 -> 1.0557 | AO47: =INDEX(Demand!M$9:M$428,MATCH($C47,Demand!$B$9:$B$428,0))*$I47*Assumptions!$G$45*Assumptions!$G$48 -> 1.0647 | AP47: =INDEX(Demand!N$9:N$428,MATCH($C47,Demand!$B$9:$B$428,0))*$I47*Assumptions!$G$45*Assumptions!$G$48 -> 1.0647 | AQ47: =INDEX(Demand!O$9:O$428,MATCH($C47,Demand!$B$9:$B$428,0))*$I47*Assumptions!$G$45*Assumptions!$G$48 -> 1.0647 | AR47: =INDEX(Demand!P$9:P$428,MATCH($C47,Demand!$B$9:$B$428,0))*$I47*Assumptions!$G$45*Assumptions!$G$48 -> 1.0647 | AS47: =INDEX(Demand!Q$9:Q$428,MATCH($C47,Demand!$B$9:$B$428,0))*$I47*Assumptions!$G$45*Assumptions!$G$48 -> 1.0647 | AT47: =INDEX(Demand!R$9:R$428,MATCH($C47,Demand!$B$9:$B$428,0))*$I47*Assumptions!$G$45*Assumptions!$G$48 -> 1.0647 | AU47: =INDEX(Demand!S$9:S$428,MATCH($C47,Demand!$B$9:$B$428,0))*$I47*Assumptions!$G$45*Assumptions!$G$48 -> 1.0647 | AV47: =INDEX(Demand!T$9:T$428,MATCH($C47,Demand!$B$9:$B$428,0))*$I47*Assumptions!$G$45*Assumptions!$G$48 -> 1.0647 | AW47: =INDEX(Demand!U$9:U$428,MATCH($C47,Demand!$B$9:$B$428,0))*$I47*Assumptions!$G$45*Assumptions!$G$48 -> 1.0647 | AX47: =INDEX(Demand!V$9:V$428,MATCH($C47,Demand!$B$9:$B$428,0))*$I47*Assumptions!$G$45*Assumptions!$G$48 -> 1.0647 | AY47: =INDEX(Demand!W$9:W$428,MATCH($C47,Demand!$B$9:$B$428,0))*$I47*Assumptions!$G$45*Assumptions!$G$48 -> 1.0647 | AZ47: =INDEX(Demand!X$9:X$428,MATCH($C47,Demand!$B$9:$B$428,0))*$I47*Assumptions!$G$45*Assumptions!$G$48 -> 1.0647 | BB47: =SUMPRODUCT(($AG47:$AZ47)*(Misc_calcs!$G$29:$Z$29)*($L47:$AE47))*Calcs!$G47 -> 3138.058315 | BD47: =SUMPRODUCT(($L47:$AE47)*(Misc_calcs!$G$29:$Z$29))*$F47*Assumptions!$G$37*(1+Assumptions!$G$83) -> 4500.157356 | BF47: =Assumptions!$G$86*$F47 -> 0.001574658252 | BH47: =($F47*Assumptions!$G$37) -> 47221.308 | BJ47: =-SUMPRODUCT((PMT(real_disc,Assumptions!$G$40,BH47))*(Misc_calcs!$G$29:$Z$29)) -> 26756.64425 | BL47: =SUMPRODUCT(($AG47:$AZ47)*(Misc_calcs!$G$29:$Z$29))*$BF47*$G47 -> 891.1188084 | BN47: =SUMPRODUCT($BF47*(Misc_calcs!$G$29:$Z$29))*$F47*Assumptions!$G$37*(1+Assumptions!$G$83) -> 1290.1591 | BP47: 7638.21567 | BR47: 2181.277908 | BT47: 5456.937762 | BV47: -21299.70649 | BX47: FALSE
B48: 49332674 | C48: MTN32 | D48: MTN | E48: 22kV | F48: 563.6 | G48: 37411.3138 | H48: =INDEX(Demand!$C$9:$C$428, MATCH($C48, Demand!$B$9:$B$428,0)) -> 4 | I48: 0.2 | L48: 0.003320904176 | M48: 0.003320904176 | N48: 0.003320904176 | O48: 0.003320904176 | P48: 0.003333121099 | Q48: 0.003708974274 | R48: 0.004133427253 | S48: 0.004613146274 | T48: 0.005155744663 | U48: 0.005769920369 | V48: 0.006465613752 | W48: 0.007254188645 | X48: 0.00814864014 | Y48: 0.009163833082 | Z48: 0.01031677585 | AA48: 0.01162693469 | AB48: 0.01311659461 | AC48: 0.01481127387 | AD48: 0.01674019998 | AE48: 0.01893685647 | AG48: =INDEX(Demand!E$9:E$428,MATCH($C48,Demand!$B$9:$B$428,0))*$I48*Assumptions!$G$45*Assumptions!$G$48 -> 1.0089 | AH48: =INDEX(Demand!F$9:F$428,MATCH($C48,Demand!$B$9:$B$428,0))*$I48*Assumptions!$G$45*Assumptions!$G$48 -> 1.01175 | AI48: =INDEX(Demand!G$9:G$428,MATCH($C48,Demand!$B$9:$B$428,0))*$I48*Assumptions!$G$45*Assumptions!$G$48 -> 1.02015 | AJ48: =INDEX(Demand!H$9:H$428,MATCH($C48,Demand!$B$9:$B$428,0))*$I48*Assumptions!$G$45*Assumptions!$G$48 -> 1.02675 | AK48: =INDEX(Demand!I$9:I$428,MATCH($C48,Demand!$B$9:$B$428,0))*$I48*Assumptions!$G$45*Assumptions!$G$48 -> 1.0269 | AL48: =INDEX(Demand!J$9:J$428,MATCH($C48,Demand!$B$9:$B$428,0))*$I48*Assumptions!$G$45*Assumptions!$G$48 -> 1.0299 | AM48: =INDEX(Demand!K$9:K$428,MATCH($C48,Demand!$B$9:$B$428,0))*$I48*Assumptions!$G$45*Assumptions!$G$48 -> 1.0398 | AN48: =INDEX(Demand!L$9:L$428,MATCH($C48,Demand!$B$9:$B$428,0))*$I48*Assumptions!$G$45*Assumptions!$G$48 -> 1.0557 | AO48: =INDEX(Demand!M$9:M$428,MATCH($C48,Demand!$B$9:$B$428,0))*$I48*Assumptions!$G$45*Assumptions!$G$48 -> 1.0647 | AP48: =INDEX(Demand!N$9:N$428,MATCH($C48,Demand!$B$9:$B$428,0))*$I48*Assumptions!$G$45*Assumptions!$G$48 -> 1.0647 | AQ48: =INDEX(Demand!O$9:O$428,MATCH($C48,Demand!$B$9:$B$428,0))*$I48*Assumptions!$G$45*Assumptions!$G$48 -> 1.0647 | AR48: =INDEX(Demand!P$9:P$428,MATCH($C48,Demand!$B$9:$B$428,0))*$I48*Assumptions!$G$45*Assumptions!$G$48 -> 1.0647 | AS48: =INDEX(Demand!Q$9:Q$428,MATCH($C48,Demand!$B$9:$B$428,0))*$I48*Assumptions!$G$45*Assumptions!$G$48 -> 1.0647 | AT48: =INDEX(Demand!R$9:R$428,MATCH($C48,Demand!$B$9:$B$428,0))*$I48*Assumptions!$G$45*Assumptions!$G$48 -> 1.0647 | AU48: =INDEX(Demand!S$9:S$428,MATCH($C48,Demand!$B$9:$B$428,0))*$I48*Assumptions!$G$45*Assumptions!$G$48 -> 1.0647 | AV48: =INDEX(Demand!T$9:T$428,MATCH($C48,Demand!$B$9:$B$428,0))*$I48*Assumptions!$G$45*Assumptions!$G$48 -> 1.0647 | AW48: =INDEX(Demand!U$9:U$428,MATCH($C48,Demand!$B$9:$B$428,0))*$I48*Assumptions!$G$45*Assumptions!$G$48 -> 1.0647 | AX48: =INDEX(Demand!V$9:V$428,MATCH($C48,Demand!$B$9:$B$428,0))*$I48*Assumptions!$G$45*Assumptions!$G$48 -> 1.0647 | AY48: =INDEX(Demand!W$9:W$428,MATCH($C48,Demand!$B$9:$B$428,0))*$I48*Assumptions!$G$45*Assumptions!$G$48 -> 1.0647 | AZ48: =INDEX(Demand!X$9:X$428,MATCH($C48,Demand!$B$9:$B$428,0))*$I48*Assumptions!$G$45*Assumptions!$G$48 -> 1.0647 | BB48: =SUMPRODUCT(($AG48:$AZ48)*(Misc_calcs!$G$29:$Z$29)*($L48:$AE48))*Calcs!$G48 -> 3981.919295 | BD48: =SUMPRODUCT(($L48:$AE48)*(Misc_calcs!$G$29:$Z$29))*$F48*Assumptions!$G$37*(1+Assumptions!$G$83) -> 12050.69383 | BF48: =Assumptions!$G$86*$F48 -> 0.00332090028 | BH48: =($F48*Assumptions!$G$37) -> 99588.12 | BJ48: =-SUMPRODUCT((PMT(real_disc,Assumptions!$G$40,BH48))*(Misc_calcs!$G$29:$Z$29)) -> 56428.84561 | BL48: =SUMPRODUCT(($AG48:$AZ48)*(Misc_calcs!$G$29:$Z$29))*$BF48*$G48 -> 1879.339023 | BN48: =SUMPRODUCT($BF48*(Misc_calcs!$G$29:$Z$29))*$F48*Assumptions!$G$37*(1+Assumptions!$G$83) -> 5738.28762 | BP48: 16032.61312 | BR48: 7617.626642 | BT48: 8414.986482 | BV48: -48013.85913 | BX48: FALSE
B49: 49332685 | C49: MTN32 | D49: MTN | E49: 22kV | F49: 94.904 | G49: 37411.3138 | H49: =INDEX(Demand!$C$9:$C$428, MATCH($C49, Demand!$B$9:$B$428,0)) -> 4 | I49: 0.2 | L49: 0.0005592034952 | M49: 0.0005592034952 | N49: 0.0005592034952 | O49: 0.0005592034952 | P49: 0.0005612606899 | Q49: 0.0006245502031 | R49: 0.0006960233854 | S49: 0.0007768027573 | T49: 0.0008681703185 | U49: 0.0009715907074 | V49: 0.001088737771 | W49: 0.001221525052 | X49: 0.00137214078 | Y49: 0.001543088032 | Z49: 0.00173723083 | AA49: 0.001957847072 | AB49: 0.002208689309 | AC49: 0.002494054533 | AD49: 0.002818864334 | AE49: 0.003188756966 | AG49: =INDEX(Demand!E$9:E$428,MATCH($C49,Demand!$B$9:$B$428,0))*$I49*Assumptions!$G$45*Assumptions!$G$48 -> 1.0089 | AH49: =INDEX(Demand!F$9:F$428,MATCH($C49,Demand!$B$9:$B$428,0))*$I49*Assumptions!$G$45*Assumptions!$G$48 -> 1.01175 | AI49: =INDEX(Demand!G$9:G$428,MATCH($C49,Demand!$B$9:$B$428,0))*$I49*Assumptions!$G$45*Assumptions!$G$48 -> 1.02015 | AJ49: =INDEX(Demand!H$9:H$428,MATCH($C49,Demand!$B$9:$B$428,0))*$I49*Assumptions!$G$45*Assumptions!$G$48 -> 1.02675 | AK49: =INDEX(Demand!I$9:I$428,MATCH($C49,Demand!$B$9:$B$428,0))*$I49*Assumptions!$G$45*Assumptions!$G$48 -> 1.0269 | AL49: =INDEX(Demand!J$9:J$428,MATCH($C49,Demand!$B$9:$B$428,0))*$I49*Assumptions!$G$45*Assumptions!$G$48 -> 1.0299 | AM49: =INDEX(Demand!K$9:K$428,MATCH($C49,Demand!$B$9:$B$428,0))*$I49*Assumptions!$G$45*Assumptions!$G$48 -> 1.0398 | AN49: =INDEX(Demand!L$9:L$428,MATCH($C49,Demand!$B$9:$B$428,0))*$I49*Assumptions!$G$45*Assumptions!$G$48 -> 1.0557 | AO49: =INDEX(Demand!M$9:M$428,MATCH($C49,Demand!$B$9:$B$428,0))*$I49*Assumptions!$G$45*Assumptions!$G$48 -> 1.0647 | AP49: =INDEX(Demand!N$9:N$428,MATCH($C49,Demand!$B$9:$B$428,0))*$I49*Assumptions!$G$45*Assumptions!$G$48 -> 1.0647 | AQ49: =INDEX(Demand!O$9:O$428,MATCH($C49,Demand!$B$9:$B$428,0))*$I49*Assumptions!$G$45*Assumptions!$G$48 -> 1.0647 | AR49: =INDEX(Demand!P$9:P$428,MATCH($C49,Demand!$B$9:$B$428,0))*$I49*Assumptions!$G$45*Assumptions!$G$48 -> 1.0647 | AS49: =INDEX(Demand!Q$9:Q$428,MATCH($C49,Demand!$B$9:$B$428,0))*$I49*Assumptions!$G$45*Assumptions!$G$48 -> 1.0647 | AT49: =INDEX(Demand!R$9:R$428,MATCH($C49,Demand!$B$9:$B$428,0))*$I49*Assumptions!$G$45*Assumptions!$G$48 -> 1.0647 | AU49: =INDEX(Demand!S$9:S$428,MATCH($C49,Demand!$B$9:$B$428,0))*$I49*Assumptions!$G$45*Assumptions!$G$48 -> 1.0647 | AV49: =INDEX(Demand!T$9:T$428,MATCH($C49,Demand!$B$9:$B$428,0))*$I49*Assumptions!$G$45*Assumptions!$G$48 -> 1.0647 | AW49: =INDEX(Demand!U$9:U$428,MATCH($C49,Demand!$B$9:$B$428,0))*$I49*Assumptions!$G$45*Assumptions!$G$48 -> 1.0647 | AX49: =INDEX(Demand!V$9:V$428,MATCH($C49,Demand!$B$9:$B$428,0))*$I49*Assumptions!$G$45*Assumptions!$G$48 -> 1.0647 | AY49: =INDEX(Demand!W$9:W$428,MATCH($C49,Demand!$B$9:$B$428,0))*$I49*Assumptions!$G$45*Assumptions!$G$48 -> 1.0647 | AZ49: =INDEX(Demand!X$9:X$428,MATCH($C49,Demand!$B$9:$B$428,0))*$I49*Assumptions!$G$45*Assumptions!$G$48 -> 1.0647 | BB49: =SUMPRODUCT(($AG49:$AZ49)*(Misc_calcs!$G$29:$Z$29)*($L49:$AE49))*Calcs!$G49 -> 670.5111228 | BD49: =SUMPRODUCT(($L49:$AE49)*(Misc_calcs!$G$29:$Z$29))*$F49*Assumptions!$G$37*(1+Assumptions!$G$83) -> 341.6953891 | BF49: =Assumptions!$G$86*$F49 -> 0.0005592028392 | BH49: =($F49*Assumptions!$G$37) -> 16769.5368 | BJ49: =-SUMPRODUCT((PMT(real_disc,Assumptions!$G$40,BH49))*(Misc_calcs!$G$29:$Z$29)) -> 9501.992839 | BL49: =SUMPRODUCT(($AG49:$AZ49)*(Misc_calcs!$G$29:$Z$29))*$BF49*$G49 -> 316.459884 | BN49: =SUMPRODUCT($BF49*(Misc_calcs!$G$29:$Z$29))*$F49*Assumptions!$G$37*(1+Assumptions!$G$83) -> 162.7081767 | BP49: 1012.206512 | BR49: 479.1680607 | BT49: 533.0384512 | BV49: -8968.954388 | BX49: FALSE
B50: 49332980 | C50: MTN24 | D50: MTN | E50: 22kV | F50: 172 | G50: 37411.3138 | H50: =INDEX(Demand!$C$9:$C$428, MATCH($C50, Demand!$B$9:$B$428,0)) -> 2 | I50: 0.3333333333 | L50: 0.001596699572 | M50: 0.001767773889 | N50: 0.001959241322 | O50: 0.002173653723 | P50: 0.002413891665 | Q50: 0.002683207568 | R50: 0.002985274546 | S50: 0.003324241741 | T50: 0.003704797018 | U50: 0.004132238003 | V50: 0.004612552582 | W50: 0.005152510128 | X50: 0.005759764903 | Y50: 0.006442973256 | Z50: 0.007211926479 | AA50: 0.008077701421 | AB50: 0.009052831248 | AC50: 0.01015149906 | AD50: 0.01138975741 | AE50: 0.01278577729 | AG50: =INDEX(Demand!E$9:E$428,MATCH($C50,Demand!$B$9:$B$428,0))*$I50*Assumptions!$G$45*Assumptions!$G$48 -> 2.0345 | AH50: =INDEX(Demand!F$9:F$428,MATCH($C50,Demand!$B$9:$B$428,0))*$I50*Assumptions!$G$45*Assumptions!$G$48 -> 2.0405 | AI50: =INDEX(Demand!G$9:G$428,MATCH($C50,Demand!$B$9:$B$428,0))*$I50*Assumptions!$G$45*Assumptions!$G$48 -> 2.053 | AJ50: =INDEX(Demand!H$9:H$428,MATCH($C50,Demand!$B$9:$B$428,0))*$I50*Assumptions!$G$45*Assumptions!$G$48 -> 2.06125 | AK50: =INDEX(Demand!I$9:I$428,MATCH($C50,Demand!$B$9:$B$428,0))*$I50*Assumptions!$G$45*Assumptions!$G$48 -> 2.062 | AL50: =INDEX(Demand!J$9:J$428,MATCH($C50,Demand!$B$9:$B$428,0))*$I50*Assumptions!$G$45*Assumptions!$G$48 -> 2.06875 | AM50: =INDEX(Demand!K$9:K$428,MATCH($C50,Demand!$B$9:$B$428,0))*$I50*Assumptions!$G$45*Assumptions!$G$48 -> 2.091 | AN50: =INDEX(Demand!L$9:L$428,MATCH($C50,Demand!$B$9:$B$428,0))*$I50*Assumptions!$G$45*Assumptions!$G$48 -> 2.1175 | AO50: =INDEX(Demand!M$9:M$428,MATCH($C50,Demand!$B$9:$B$428,0))*$I50*Assumptions!$G$45*Assumptions!$G$48 -> 2.1265 | AP50: =INDEX(Demand!N$9:N$428,MATCH($C50,Demand!$B$9:$B$428,0))*$I50*Assumptions!$G$45*Assumptions!$G$48 -> 2.1265 | AQ50: =INDEX(Demand!O$9:O$428,MATCH($C50,Demand!$B$9:$B$428,0))*$I50*Assumptions!$G$45*Assumptions!$G$48 -> 2.1265 | AR50: =INDEX(Demand!P$9:P$428,MATCH($C50,Demand!$B$9:$B$428,0))*$I50*Assumptions!$G$45*Assumptions!$G$48 -> 2.1265 | AS50: =INDEX(Demand!Q$9:Q$428,MATCH($C50,Demand!$B$9:$B$428,0))*$I50*Assumptions!$G$45*Assumptions!$G$48 -> 2.1265 | AT50: =INDEX(Demand!R$9:R$428,MATCH($C50,Demand!$B$9:$B$428,0))*$I50*Assumptions!$G$45*Assumptions!$G$48 -> 2.1265 | AU50: =INDEX(Demand!S$9:S$428,MATCH($C50,Demand!$B$9:$B$428,0))*$I50*Assumptions!$G$45*Assumptions!$G$48 -> 2.1265 | AV50: =INDEX(Demand!T$9:T$428,MATCH($C50,Demand!$B$9:$B$428,0))*$I50*Assumptions!$G$45*Assumptions!$G$48 -> 2.1265 | AW50: =INDEX(Demand!U$9:U$428,MATCH($C50,Demand!$B$9:$B$428,0))*$I50*Assumptions!$G$45*Assumptions!$G$48 -> 2.1265 | AX50: =INDEX(Demand!V$9:V$428,MATCH($C50,Demand!$B$9:$B$428,0))*$I50*Assumptions!$G$45*Assumptions!$G$48 -> 2.1265 | AY50: =INDEX(Demand!W$9:W$428,MATCH($C50,Demand!$B$9:$B$428,0))*$I50*Assumptions!$G$45*Assumptions!$G$48 -> 2.1265 | AZ50: =INDEX(Demand!X$9:X$428,MATCH($C50,Demand!$B$9:$B$428,0))*$I50*Assumptions!$G$45*Assumptions!$G$48 -> 2.1265 | BB50: =SUMPRODUCT(($AG50:$AZ50)*(Misc_calcs!$G$29:$Z$29)*($L50:$AE50))*Calcs!$G50 -> 5440.460485 | BD50: =SUMPRODUCT(($L50:$AE50)*(Misc_calcs!$G$29:$Z$29))*$F50*Assumptions!$G$37*(1+Assumptions!$G$83) -> 2509.810281 | BF50: =Assumptions!$G$86*$F50 -> 0.0010134756 | BH50: =($F50*Assumptions!$G$37) -> 30392.4 | BJ50: =-SUMPRODUCT((PMT(real_disc,Assumptions!$G$40,BH50))*(Misc_calcs!$G$29:$Z$29)) -> 17221.01037 | BL50: =SUMPRODUCT(($AG50:$AZ50)*(Misc_calcs!$G$29:$Z$29))*$BF50*$G50 -> 1149.264519 | BN50: =SUMPRODUCT($BF50*(Misc_calcs!$G$29:$Z$29))*$F50*Assumptions!$G$37*(1+Assumptions!$G$83) -> 534.437886 | BP50: 7950.270765 | BR50: 1683.702405 | BT50: 6266.568361 | BV50: -10954.44201 | BX50: FALSE
B51: 49333215 | C51: MTN24 | D51: MTN | E51: 22kV | F51: 643.53 | G51: 37411.3138 | H51: =INDEX(Demand!$C$9:$C$428, MATCH($C51, Demand!$B$9:$B$428,0)) -> 2 | I51: 0.3333333333 | L51: 0.003791876267 | M51: 0.003858815017 | N51: 0.00441332227 | O51: 0.005059274405 | P51: 0.005812675707 | Q51: 0.006692431971 | R51: 0.00772088817 | S51: 0.00892446716 | T51: 0.01033442858 | U51: 0.0119877708 | V51: 0.01392830298 | W51: 0.01620791983 | X51: 0.01888811734 | Y51: 0.02204179559 | Z51: 0.02575540335 | AA51: 0.03013148953 | AB51: 0.03529173926 | AC51: 0.04138058705 | AD51: 0.04856951745 | AE51: 0.05706218444 | AG51: =INDEX(Demand!E$9:E$428,MATCH($C51,Demand!$B$9:$B$428,0))*$I51*Assumptions!$G$45*Assumptions!$G$48 -> 2.0345 | AH51: =INDEX(Demand!F$9:F$428,MATCH($C51,Demand!$B$9:$B$428,0))*$I51*Assumptions!$G$45*Assumptions!$G$48 -> 2.0405 | AI51: =INDEX(Demand!G$9:G$428,MATCH($C51,Demand!$B$9:$B$428,0))*$I51*Assumptions!$G$45*Assumptions!$G$48 -> 2.053 | AJ51: =INDEX(Demand!H$9:H$428,MATCH($C51,Demand!$B$9:$B$428,0))*$I51*Assumptions!$G$45*Assumptions!$G$48 -> 2.06125 | AK51: =INDEX(Demand!I$9:I$428,MATCH($C51,Demand!$B$9:$B$428,0))*$I51*Assumptions!$G$45*Assumptions!$G$48 -> 2.062 | AL51: =INDEX(Demand!J$9:J$428,MATCH($C51,Demand!$B$9:$B$428,0))*$I51*Assumptions!$G$45*Assumptions!$G$48 -> 2.06875 | AM51: =INDEX(Demand!K$9:K$428,MATCH($C51,Demand!$B$9:$B$428,0))*$I51*Assumptions!$G$45*Assumptions!$G$48 -> 2.091 | AN51: =INDEX(Demand!L$9:L$428,MATCH($C51,Demand!$B$9:$B$428,0))*$I51*Assumptions!$G$45*Assumptions!$G$48 -> 2.1175 | AO51: =INDEX(Demand!M$9:M$428,MATCH($C51,Demand!$B$9:$B$428,0))*$I51*Assumptions!$G$45*Assumptions!$G$48 -> 2.1265 | AP51: =INDEX(Demand!N$9:N$428,MATCH($C51,Demand!$B$9:$B$428,0))*$I51*Assumptions!$G$45*Assumptions!$G$48 -> 2.1265 | AQ51: =INDEX(Demand!O$9:O$428,MATCH($C51,Demand!$B$9:$B$428,0))*$I51*Assumptions!$G$45*Assumptions!$G$48 -> 2.1265 | AR51: =INDEX(Demand!P$9:P$428,MATCH($C51,Demand!$B$9:$B$428,0))*$I51*Assumptions!$G$45*Assumptions!$G$48 -> 2.1265 | AS51: =INDEX(Demand!Q$9:Q$428,MATCH($C51,Demand!$B$9:$B$428,0))*$I51*Assumptions!$G$45*Assumptions!$G$48 -> 2.1265 | AT51: =INDEX(Demand!R$9:R$428,MATCH($C51,Demand!$B$9:$B$428,0))*$I51*Assumptions!$G$45*Assumptions!$G$48 -> 2.1265 | AU51: =INDEX(Demand!S$9:S$428,MATCH($C51,Demand!$B$9:$B$428,0))*$I51*Assumptions!$G$45*Assumptions!$G$48 -> 2.1265 | AV51: =INDEX(Demand!T$9:T$428,MATCH($C51,Demand!$B$9:$B$428,0))*$I51*Assumptions!$G$45*Assumptions!$G$48 -> 2.1265 | AW51: =INDEX(Demand!U$9:U$428,MATCH($C51,Demand!$B$9:$B$428,0))*$I51*Assumptions!$G$45*Assumptions!$G$48 -> 2.1265 | AX51: =INDEX(Demand!V$9:V$428,MATCH($C51,Demand!$B$9:$B$428,0))*$I51*Assumptions!$G$45*Assumptions!$G$48 -> 2.1265 | AY51: =INDEX(Demand!W$9:W$428,MATCH($C51,Demand!$B$9:$B$428,0))*$I51*Assumptions!$G$45*Assumptions!$G$48 -> 2.1265 | AZ51: =INDEX(Demand!X$9:X$428,MATCH($C51,Demand!$B$9:$B$428,0))*$I51*Assumptions!$G$45*Assumptions!$G$48 -> 2.1265 | BB51: =SUMPRODUCT(($AG51:$AZ51)*(Misc_calcs!$G$29:$Z$29)*($L51:$AE51))*Calcs!$G51 -> 18494.67242 | BD51: =SUMPRODUCT(($L51:$AE51)*(Misc_calcs!$G$29:$Z$29))*$F51*Assumptions!$G$37*(1+Assumptions!$G$83) -> 31861.60167 | BF51: =Assumptions!$G$86*$F51 -> 0.003791871819 | BH51: =($F51*Assumptions!$G$37) -> 113711.751 | BJ51: =-SUMPRODUCT((PMT(real_disc,Assumptions!$G$40,BH51))*(Misc_calcs!$G$29:$Z$29)) -> 64431.60933 | BL51: =SUMPRODUCT(($AG51:$AZ51)*(Misc_calcs!$G$29:$Z$29))*$BF51*$G51 -> 4299.919742 | BN51: =SUMPRODUCT($BF51*(Misc_calcs!$G$29:$Z$29))*$F51*Assumptions!$G$37*(1+Assumptions!$G$83) -> 7481.314962 | BP51: 50356.27409 | BR51: 11781.2347 | BT51: 38575.03939 | BV51: -25856.56994 | BX51: FALSE
B52: 49333248 | C52: MTN24 | D52: MTN | E52: 22kV | F52: 303.63 | G52: 37411.3138 | H52: =INDEX(Demand!$C$9:$C$428, MATCH($C52, Demand!$B$9:$B$428,0)) -> 2 | I52: 0.3333333333 | L52: 0.006137246099 | M52: 0.006660657561 | N52: 0.007231984421 | O52: 0.007855768694 | P52: 0.008536992137 | Q52: 0.009281119397 | R52: 0.01009414543 | S52: 0.01098264761 | T52: 0.01195384303 | U52: 0.01301565143 | V52: 0.01417676441 | W52: 0.0154467215 | X52: 0.01683599378 | Y52: 0.01835607579 | Z52: 0.0200195866 | AA52: 0.0218403809 | AB52: 0.02383367113 | AC52: 0.02601616182 | AD52: 0.0284061972 | AE52: 0.03102392356 | AG52: =INDEX(Demand!E$9:E$428,MATCH($C52,Demand!$B$9:$B$428,0))*$I52*Assumptions!$G$45*Assumptions!$G$48 -> 2.0345 | AH52: =INDEX(Demand!F$9:F$428,MATCH($C52,Demand!$B$9:$B$428,0))*$I52*Assumptions!$G$45*Assumptions!$G$48 -> 2.0405 | AI52: =INDEX(Demand!G$9:G$428,MATCH($C52,Demand!$B$9:$B$428,0))*$I52*Assumptions!$G$45*Assumptions!$G$48 -> 2.053 | AJ52: =INDEX(Demand!H$9:H$428,MATCH($C52,Demand!$B$9:$B$428,0))*$I52*Assumptions!$G$45*Assumptions!$G$48 -> 2.06125 | AK52: =INDEX(Demand!I$9:I$428,MATCH($C52,Demand!$B$9:$B$428,0))*$I52*Assumptions!$G$45*Assumptions!$G$48 -> 2.062 | AL52: =INDEX(Demand!J$9:J$428,MATCH($C52,Demand!$B$9:$B$428,0))*$I52*Assumptions!$G$45*Assumptions!$G$48 -> 2.06875 | AM52: =INDEX(Demand!K$9:K$428,MATCH($C52,Demand!$B$9:$B$428,0))*$I52*Assumptions!$G$45*Assumptions!$G$48 -> 2.091 | AN52: =INDEX(Demand!L$9:L$428,MATCH($C52,Demand!$B$9:$B$428,0))*$I52*Assumptions!$G$45*Assumptions!$G$48 -> 2.1175 | AO52: =INDEX(Demand!M$9:M$428,MATCH($C52,Demand!$B$9:$B$428,0))*$I52*Assumptions!$G$45*Assumptions!$G$48 -> 2.1265 | AP52: =INDEX(Demand!N$9:N$428,MATCH($C52,Demand!$B$9:$B$428,0))*$I52*Assumptions!$G$45*Assumptions!$G$48 -> 2.1265 | AQ52: =INDEX(Demand!O$9:O$428,MATCH($C52,Demand!$B$9:$B$428,0))*$I52*Assumptions!$G$45*Assumptions!$G$48 -> 2.1265 | AR52: =INDEX(Demand!P$9:P$428,MATCH($C52,Demand!$B$9:$B$428,0))*$I52*Assumptions!$G$45*Assumptions!$G$48 -> 2.1265 | AS52: =INDEX(Demand!Q$9:Q$428,MATCH($C52,Demand!$B$9:$B$428,0))*$I52*Assumptions!$G$45*Assumptions!$G$48 -> 2.1265 | AT52: =INDEX(Demand!R$9:R$428,MATCH($C52,Demand!$B$9:$B$428,0))*$I52*Assumptions!$G$45*Assumptions!$G$48 -> 2.1265 | AU52: =INDEX(Demand!S$9:S$428,MATCH($C52,Demand!$B$9:$B$428,0))*$I52*Assumptions!$G$45*Assumptions!$G$48 -> 2.1265 | AV52: =INDEX(Demand!T$9:T$428,MATCH($C52,Demand!$B$9:$B$428,0))*$I52*Assumptions!$G$45*Assumptions!$G$48 -> 2.1265 | AW52: =INDEX(Demand!U$9:U$428,MATCH($C52,Demand!$B$9:$B$428,0))*$I52*Assumptions!$G$45*Assumptions!$G$48 -> 2.1265 | AX52: =INDEX(Demand!V$9:V$428,MATCH($C52,Demand!$B$9:$B$428,0))*$I52*Assumptions!$G$45*Assumptions!$G$48 -> 2.1265 | AY52: =INDEX(Demand!W$9:W$428,MATCH($C52,Demand!$B$9:$B$428,0))*$I52*Assumptions!$G$45*Assumptions!$G$48 -> 2.1265 | AZ52: =INDEX(Demand!X$9:X$428,MATCH($C52,Demand!$B$9:$B$428,0))*$I52*Assumptions!$G$45*Assumptions!$G$48 -> 2.1265 | BB52: =SUMPRODUCT(($AG52:$AZ52)*(Misc_calcs!$G$29:$Z$29)*($L52:$AE52))*Calcs!$G52 -> 15962.76114 | BD52: =SUMPRODUCT(($L52:$AE52)*(Misc_calcs!$G$29:$Z$29))*$F52*Assumptions!$G$37*(1+Assumptions!$G$83) -> 13018.70051 | BF52: =Assumptions!$G$86*$F52 -> 0.001789079049 | BH52: =($F52*Assumptions!$G$37) -> 53651.421 | BJ52: =-SUMPRODUCT((PMT(real_disc,Assumptions!$G$40,BH52))*(Misc_calcs!$G$29:$Z$29)) -> 30400.08941 | BL52: =SUMPRODUCT(($AG52:$AZ52)*(Misc_calcs!$G$29:$Z$29))*$BF52*$G52 -> 2028.785964 | BN52: =SUMPRODUCT($BF52*(Misc_calcs!$G$29:$Z$29))*$F52*Assumptions!$G$37*(1+Assumptions!$G$83) -> 1665.442729 | BP52: 28981.46166 | BR52: 3694.228693 | BT52: 25287.23296 | BV52: -5112.856449 | BX52: FALSE
B53: 49333571 | C53: MTN35 | D53: MTN | E53: 22kV | F53: 35.826 | G53: 37411.3138 | H53: =INDEX(Demand!$C$9:$C$428, MATCH($C53, Demand!$B$9:$B$428,0)) -> 1 | I53: 0.5 | L53: 0.0007581313726 | M53: 0.0008503373558 | N53: 0.0009545764874 | O53: 0.001072474662 | P53: 0.001205882117 | Q53: 0.001356904802 | R53: 0.001527940166 | S53: 0.001721718003 | T53: 0.00194134706 | U53: 0.00219036823 | V53: 0.002472815272 | W53: 0.002793284115 | X53: 0.003157011973 | Y53: 0.003569967669 | Z53: 0.004038954757 | AA53: 0.004571729255 | AB53: 0.005177134093 | AC53: 0.005865252623 | AD53: 0.00646057254 | AE53: 0.00646057254 | AG53: =INDEX(Demand!E$9:E$428,MATCH($C53,Demand!$B$9:$B$428,0))*$I53*Assumptions!$G$45*Assumptions!$G$48 -> 2.76375 | AH53: =INDEX(Demand!F$9:F$428,MATCH($C53,Demand!$B$9:$B$428,0))*$I53*Assumptions!$G$45*Assumptions!$G$48 -> 2.749875 | AI53: =INDEX(Demand!G$9:G$428,MATCH($C53,Demand!$B$9:$B$428,0))*$I53*Assumptions!$G$45*Assumptions!$G$48 -> 2.75625 | AJ53: =INDEX(Demand!H$9:H$428,MATCH($C53,Demand!$B$9:$B$428,0))*$I53*Assumptions!$G$45*Assumptions!$G$48 -> 2.76225 | AK53: =INDEX(Demand!I$9:I$428,MATCH($C53,Demand!$B$9:$B$428,0))*$I53*Assumptions!$G$45*Assumptions!$G$48 -> 2.766 | AL53: =INDEX(Demand!J$9:J$428,MATCH($C53,Demand!$B$9:$B$428,0))*$I53*Assumptions!$G$45*Assumptions!$G$48 -> 2.76975 | AM53: =INDEX(Demand!K$9:K$428,MATCH($C53,Demand!$B$9:$B$428,0))*$I53*Assumptions!$G$45*Assumptions!$G$48 -> 2.793375 | AN53: =INDEX(Demand!L$9:L$428,MATCH($C53,Demand!$B$9:$B$428,0))*$I53*Assumptions!$G$45*Assumptions!$G$48 -> 2.8245 | AO53: =INDEX(Demand!M$9:M$428,MATCH($C53,Demand!$B$9:$B$428,0))*$I53*Assumptions!$G$45*Assumptions!$G$48 -> 2.838375 | AP53: =INDEX(Demand!N$9:N$428,MATCH($C53,Demand!$B$9:$B$428,0))*$I53*Assumptions!$G$45*Assumptions!$G$48 -> 2.838375 | AQ53: =INDEX(Demand!O$9:O$428,MATCH($C53,Demand!$B$9:$B$428,0))*$I53*Assumptions!$G$45*Assumptions!$G$48 -> 2.838375 | AR53: =INDEX(Demand!P$9:P$428,MATCH($C53,Demand!$B$9:$B$428,0))*$I53*Assumptions!$G$45*Assumptions!$G$48 -> 2.838375 | AS53: =INDEX(Demand!Q$9:Q$428,MATCH($C53,Demand!$B$9:$B$428,0))*$I53*Assumptions!$G$45*Assumptions!$G$48 -> 2.838375 | AT53: =INDEX(Demand!R$9:R$428,MATCH($C53,Demand!$B$9:$B$428,0))*$I53*Assumptions!$G$45*Assumptions!$G$48 -> 2.838375 | AU53: =INDEX(Demand!S$9:S$428,MATCH($C53,Demand!$B$9:$B$428,0))*$I53*Assumptions!$G$45*Assumptions!$G$48 -> 2.838375 | AV53: =INDEX(Demand!T$9:T$428,MATCH($C53,Demand!$B$9:$B$428,0))*$I53*Assumptions!$G$45*Assumptions!$G$48 -> 2.838375 | AW53: =INDEX(Demand!U$9:U$428,MATCH($C53,Demand!$B$9:$B$428,0))*$I53*Assumptions!$G$45*Assumptions!$G$48 -> 2.838375 | AX53: =INDEX(Demand!V$9:V$428,MATCH($C53,Demand!$B$9:$B$428,0))*$I53*Assumptions!$G$45*Assumptions!$G$48 -> 2.838375 | AY53: =INDEX(Demand!W$9:W$428,MATCH($C53,Demand!$B$9:$B$428,0))*$I53*Assumptions!$G$45*Assumptions!$G$48 -> 2.838375 | AZ53: =INDEX(Demand!X$9:X$428,MATCH($C53,Demand!$B$9:$B$428,0))*$I53*Assumptions!$G$45*Assumptions!$G$48 -> 2.838375 | BB53: =SUMPRODUCT(($AG53:$AZ53)*(Misc_calcs!$G$29:$Z$29)*($L53:$AE53))*Calcs!$G53 -> 3912.63044 | BD53: =SUMPRODUCT(($L53:$AE53)*(Misc_calcs!$G$29:$Z$29))*$F53*Assumptions!$G$37*(1+Assumptions!$G$83) -> 281.2352403 | BF53: =Assumptions!$G$86*$F53 -> 0.0002110975398 | BH53: =($F53*Assumptions!$G$37) -> 6330.4542 | BJ53: =-SUMPRODUCT((PMT(real_disc,Assumptions!$G$40,BH53))*(Misc_calcs!$G$29:$Z$29)) -> 3586.976265 | BL53: =SUMPRODUCT(($AG53:$AZ53)*(Misc_calcs!$G$29:$Z$29))*$BF53*$G53 -> 320.4327143 | BN53: =SUMPRODUCT($BF53*(Misc_calcs!$G$29:$Z$29))*$F53*Assumptions!$G$37*(1+Assumptions!$G$83) -> 23.18659556 | BP53: 4193.86568 | BR53: 343.6193099 | BT53: 3850.24637 | BV53: 263.2701051 | BX53: TRUE
B54: 49333605 | C54: MTN35 | D54: MTN | E54: 22kV | F54: 67.28 | G54: 37411.3138 | H54: =INDEX(Demand!$C$9:$C$428, MATCH($C54, Demand!$B$9:$B$428,0)) -> 1 | I54: 0.5 | L54: 0.001423744731 | M54: 0.001596904407 | N54: 0.001792661924 | O54: 0.002014070654 | P54: 0.002264605282 | Q54: 0.002548220707 | R54: 0.002869419258 | S54: 0.003233327394 | T54: 0.003645783235 | U54: 0.004113436458 | V54: 0.004643862321 | W54: 0.005245691823 | X54: 0.005928760272 | Y54: 0.006704276916 | Z54: 0.00758501859 | AA54: 0.008585550837 | AB54: 0.009722480371 | AC54: 0.01101474338 | AD54: 0.01213273378 | AE54: 0.01213273378 | AG54: =INDEX(Demand!E$9:E$428,MATCH($C54,Demand!$B$9:$B$428,0))*$I54*Assumptions!$G$45*Assumptions!$G$48 -> 2.76375 | AH54: =INDEX(Demand!F$9:F$428,MATCH($C54,Demand!$B$9:$B$428,0))*$I54*Assumptions!$G$45*Assumptions!$G$48 -> 2.749875 | AI54: =INDEX(Demand!G$9:G$428,MATCH($C54,Demand!$B$9:$B$428,0))*$I54*Assumptions!$G$45*Assumptions!$G$48 -> 2.75625 | AJ54: =INDEX(Demand!H$9:H$428,MATCH($C54,Demand!$B$9:$B$428,0))*$I54*Assumptions!$G$45*Assumptions!$G$48 -> 2.76225 | AK54: =INDEX(Demand!I$9:I$428,MATCH($C54,Demand!$B$9:$B$428,0))*$I54*Assumptions!$G$45*Assumptions!$G$48 -> 2.766 | AL54: =INDEX(Demand!J$9:J$428,MATCH($C54,Demand!$B$9:$B$428,0))*$I54*Assumptions!$G$45*Assumptions!$G$48 -> 2.76975 | AM54: =INDEX(Demand!K$9:K$428,MATCH($C54,Demand!$B$9:$B$428,0))*$I54*Assumptions!$G$45*Assumptions!$G$48 -> 2.793375 | AN54: =INDEX(Demand!L$9:L$428,MATCH($C54,Demand!$B$9:$B$428,0))*$I54*Assumptions!$G$45*Assumptions!$G$48 -> 2.8245 | AO54: =INDEX(Demand!M$9:M$428,MATCH($C54,Demand!$B$9:$B$428,0))*$I54*Assumptions!$G$45*Assumptions!$G$48 -> 2.838375 | AP54: =INDEX(Demand!N$9:N$428,MATCH($C54,Demand!$B$9:$B$428,0))*$I54*Assumptions!$G$45*Assumptions!$G$48 -> 2.838375 | AQ54: =INDEX(Demand!O$9:O$428,MATCH($C54,Demand!$B$9:$B$428,0))*$I54*Assumptions!$G$45*Assumptions!$G$48 -> 2.838375 | AR54: =INDEX(Demand!P$9:P$428,MATCH($C54,Demand!$B$9:$B$428,0))*$I54*Assumptions!$G$45*Assumptions!$G$48 -> 2.838375 | AS54: =INDEX(Demand!Q$9:Q$428,MATCH($C54,Demand!$B$9:$B$428,0))*$I54*Assumptions!$G$45*Assumptions!$G$48 -> 2.838375 | AT54: =INDEX(Demand!R$9:R$428,MATCH($C54,Demand!$B$9:$B$428,0))*$I54*Assumptions!$G$45*Assumptions!$G$48 -> 2.838375 | AU54: =INDEX(Demand!S$9:S$428,MATCH($C54,Demand!$B$9:$B$428,0))*$I54*Assumptions!$G$45*Assumptions!$G$48 -> 2.838375 | AV54: =INDEX(Demand!T$9:T$428,MATCH($C54,Demand!$B$9:$B$428,0))*$I54*Assumptions!$G$45*Assumptions!$G$48 -> 2.838375 | AW54: =INDEX(Demand!U$9:U$428,MATCH($C54,Demand!$B$9:$B$428,0))*$I54*Assumptions!$G$45*Assumptions!$G$48 -> 2.838375 | AX54: =INDEX(Demand!V$9:V$428,MATCH($C54,Demand!$B$9:$B$428,0))*$I54*Assumptions!$G$45*Assumptions!$G$48 -> 2.838375 | AY54: =INDEX(Demand!W$9:W$428,MATCH($C54,Demand!$B$9:$B$428,0))*$I54*Assumptions!$G$45*Assumptions!$G$48 -> 2.838375 | AZ54: =INDEX(Demand!X$9:X$428,MATCH($C54,Demand!$B$9:$B$428,0))*$I54*Assumptions!$G$45*Assumptions!$G$48 -> 2.838375 | BB54: =SUMPRODUCT(($AG54:$AZ54)*(Misc_calcs!$G$29:$Z$29)*($L54:$AE54))*Calcs!$G54 -> 7347.785853 | BD54: =SUMPRODUCT(($L54:$AE54)*(Misc_calcs!$G$29:$Z$29))*$F54*Assumptions!$G$37*(1+Assumptions!$G$83) -> 991.8478624 | BF54: =Assumptions!$G$86*$F54 -> 0.000396433944 | BH54: =($F54*Assumptions!$G$37) -> 11888.376 | BJ54: =-SUMPRODUCT((PMT(real_disc,Assumptions!$G$40,BH54))*(Misc_calcs!$G$29:$Z$29)) -> 6736.218476 | BL54: =SUMPRODUCT(($AG54:$AZ54)*(Misc_calcs!$G$29:$Z$29))*$BF54*$G54 -> 601.7616541 | BN54: =SUMPRODUCT($BF54*(Misc_calcs!$G$29:$Z$29))*$F54*Assumptions!$G$37*(1+Assumptions!$G$83) -> 81.77344781 | BP54: 8339.633716 | BR54: 683.5351019 | BT54: 7656.098614 | BV54: 919.8801382 | BX54: TRUE
B55: 49333611 | C55: MTN35 | D55: MTN | E55: 22kV | F55: 71.65 | G55: 37411.3138 | H55: =INDEX(Demand!$C$9:$C$428, MATCH($C55, Demand!$B$9:$B$428,0)) -> 1 | I55: 0.5 | L55: 0.001442895769 | M55: 0.001618048502 | N55: 0.001816054955 | O55: 0.002040004668 | P55: 0.00229341387 | Q55: 0.002580285212 | R55: 0.002905175932 | S55: 0.003273275648 | T55: 0.00369049516 | U55: 0.004163567806 | V55: 0.004700165177 | W55: 0.005309029226 | X55: 0.006000123096 | Y55: 0.006784803347 | Z55: 0.007676016621 | AA55: 0.008688524222 | AB55: 0.009839158609 | AC55: 0.01114711632 | AD55: 0.01263429258 | AE55: 0.01292078442 | AG55: =INDEX(Demand!E$9:E$428,MATCH($C55,Demand!$B$9:$B$428,0))*$I55*Assumptions!$G$45*Assumptions!$G$48 -> 2.76375 | AH55: =INDEX(Demand!F$9:F$428,MATCH($C55,Demand!$B$9:$B$428,0))*$I55*Assumptions!$G$45*Assumptions!$G$48 -> 2.749875 | AI55: =INDEX(Demand!G$9:G$428,MATCH($C55,Demand!$B$9:$B$428,0))*$I55*Assumptions!$G$45*Assumptions!$G$48 -> 2.75625 | AJ55: =INDEX(Demand!H$9:H$428,MATCH($C55,Demand!$B$9:$B$428,0))*$I55*Assumptions!$G$45*Assumptions!$G$48 -> 2.76225 | AK55: =INDEX(Demand!I$9:I$428,MATCH($C55,Demand!$B$9:$B$428,0))*$I55*Assumptions!$G$45*Assumptions!$G$48 -> 2.766 | AL55: =INDEX(Demand!J$9:J$428,MATCH($C55,Demand!$B$9:$B$428,0))*$I55*Assumptions!$G$45*Assumptions!$G$48 -> 2.76975 | AM55: =INDEX(Demand!K$9:K$428,MATCH($C55,Demand!$B$9:$B$428,0))*$I55*Assumptions!$G$45*Assumptions!$G$48 -> 2.793375 | AN55: =INDEX(Demand!L$9:L$428,MATCH($C55,Demand!$B$9:$B$428,0))*$I55*Assumptions!$G$45*Assumptions!$G$48 -> 2.8245 | AO55: =INDEX(Demand!M$9:M$428,MATCH($C55,Demand!$B$9:$B$428,0))*$I55*Assumptions!$G$45*Assumptions!$G$48 -> 2.838375 | AP55: =INDEX(Demand!N$9:N$428,MATCH($C55,Demand!$B$9:$B$428,0))*$I55*Assumptions!$G$45*Assumptions!$G$48 -> 2.838375 | AQ55: =INDEX(Demand!O$9:O$428,MATCH($C55,Demand!$B$9:$B$428,0))*$I55*Assumptions!$G$45*Assumptions!$G$48 -> 2.838375 | AR55: =INDEX(Demand!P$9:P$428,MATCH($C55,Demand!$B$9:$B$428,0))*$I55*Assumptions!$G$45*Assumptions!$G$48 -> 2.838375 | AS55: =INDEX(Demand!Q$9:Q$428,MATCH($C55,Demand!$B$9:$B$428,0))*$I55*Assumptions!$G$45*Assumptions!$G$48 -> 2.838375 | AT55: =INDEX(Demand!R$9:R$428,MATCH($C55,Demand!$B$9:$B$428,0))*$I55*Assumptions!$G$45*Assumptions!$G$48 -> 2.838375 | AU55: =INDEX(Demand!S$9:S$428,MATCH($C55,Demand!$B$9:$B$428,0))*$I55*Assumptions!$G$45*Assumptions!$G$48 -> 2.838375 | AV55: =INDEX(Demand!T$9:T$428,MATCH($C55,Demand!$B$9:$B$428,0))*$I55*Assumptions!$G$45*Assumptions!$G$48 -> 2.838375 | AW55: =INDEX(Demand!U$9:U$428,MATCH($C55,Demand!$B$9:$B$428,0))*$I55*Assumptions!$G$45*Assumptions!$G$48 -> 2.838375 | AX55: =INDEX(Demand!V$9:V$428,MATCH($C55,Demand!$B$9:$B$428,0))*$I55*Assumptions!$G$45*Assumptions!$G$48 -> 2.838375 | AY55: =INDEX(Demand!W$9:W$428,MATCH($C55,Demand!$B$9:$B$428,0))*$I55*Assumptions!$G$45*Assumptions!$G$48 -> 2.838375 | AZ55: =INDEX(Demand!X$9:X$428,MATCH($C55,Demand!$B$9:$B$428,0))*$I55*Assumptions!$G$45*Assumptions!$G$48 -> 2.838375 | BB55: =SUMPRODUCT(($AG55:$AZ55)*(Misc_calcs!$G$29:$Z$29)*($L55:$AE55))*Calcs!$G55 -> 7492.294906 | BD55: =SUMPRODUCT(($L55:$AE55)*(Misc_calcs!$G$29:$Z$29))*$F55*Assumptions!$G$37*(1+Assumptions!$G$83) -> 1077.010635 | BF55: =Assumptions!$G$86*$F55 -> 0.000422183295 | BH55: =($F55*Assumptions!$G$37) -> 12660.555 | BJ55: =-SUMPRODUCT((PMT(real_disc,Assumptions!$G$40,BH55))*(Misc_calcs!$G$29:$Z$29)) -> 7173.752286 | BL55: =SUMPRODUCT(($AG55:$AZ55)*(Misc_calcs!$G$29:$Z$29))*$BF55*$G55 -> 640.8475404 | BN55: =SUMPRODUCT($BF55*(Misc_calcs!$G$29:$Z$29))*$F55*Assumptions!$G$37*(1+Assumptions!$G$83) -> 92.74120472 | BP55: 8569.305541 | BR55: 733.5887451 | BT55: 7835.716796 | BV55: 661.9645102 | BX55: TRUE
B56: 49333622 | C56: MTN35 | D56: MTN | E56: 22kV | F56: 62.52 | G56: 37411.3138 | H56: =INDEX(Demand!$C$9:$C$428, MATCH($C56, Demand!$B$9:$B$428,0)) -> 1 | I56: 0.5 | L56: 0.0012590348 | M56: 0.001411868699 | N56: 0.001584644184 | O56: 0.001780057109 | P56: 0.002001175647 | Q56: 0.002251492414 | R56: 0.002534983939 | S56: 0.002856178556 | T56: 0.003220233879 | U56: 0.003633025251 | V56: 0.004101246711 | W56: 0.004632526269 | X56: 0.005235557515 | Y56: 0.005920249899 | Z56: 0.006697900337 | AA56: 0.007581389175 | AB56: 0.008585403995 | AC56: 0.009726695221 | AD56: 0.01102436807 | AE56: 0.01127435369 | AG56: =INDEX(Demand!E$9:E$428,MATCH($C56,Demand!$B$9:$B$428,0))*$I56*Assumptions!$G$45*Assumptions!$G$48 -> 2.76375 | AH56: =INDEX(Demand!F$9:F$428,MATCH($C56,Demand!$B$9:$B$428,0))*$I56*Assumptions!$G$45*Assumptions!$G$48 -> 2.749875 | AI56: =INDEX(Demand!G$9:G$428,MATCH($C56,Demand!$B$9:$B$428,0))*$I56*Assumptions!$G$45*Assumptions!$G$48 -> 2.75625 | AJ56: =INDEX(Demand!H$9:H$428,MATCH($C56,Demand!$B$9:$B$428,0))*$I56*Assumptions!$G$45*Assumptions!$G$48 -> 2.76225 | AK56: =INDEX(Demand!I$9:I$428,MATCH($C56,Demand!$B$9:$B$428,0))*$I56*Assumptions!$G$45*Assumptions!$G$48 -> 2.766 | AL56: =INDEX(Demand!J$9:J$428,MATCH($C56,Demand!$B$9:$B$428,0))*$I56*Assumptions!$G$45*Assumptions!$G$48 -> 2.76975 | AM56: =INDEX(Demand!K$9:K$428,MATCH($C56,Demand!$B$9:$B$428,0))*$I56*Assumptions!$G$45*Assumptions!$G$48 -> 2.793375 | AN56: =INDEX(Demand!L$9:L$428,MATCH($C56,Demand!$B$9:$B$428,0))*$I56*Assumptions!$G$45*Assumptions!$G$48 -> 2.8245 | AO56: =INDEX(Demand!M$9:M$428,MATCH($C56,Demand!$B$9:$B$428,0))*$I56*Assumptions!$G$45*Assumptions!$G$48 -> 2.838375 | AP56: =INDEX(Demand!N$9:N$428,MATCH($C56,Demand!$B$9:$B$428,0))*$I56*Assumptions!$G$45*Assumptions!$G$48 -> 2.838375 | AQ56: =INDEX(Demand!O$9:O$428,MATCH($C56,Demand!$B$9:$B$428,0))*$I56*Assumptions!$G$45*Assumptions!$G$48 -> 2.838375 | AR56: =INDEX(Demand!P$9:P$428,MATCH($C56,Demand!$B$9:$B$428,0))*$I56*Assumptions!$G$45*Assumptions!$G$48 -> 2.838375 | AS56: =INDEX(Demand!Q$9:Q$428,MATCH($C56,Demand!$B$9:$B$428,0))*$I56*Assumptions!$G$45*Assumptions!$G$48 -> 2.838375 | AT56: =INDEX(Demand!R$9:R$428,MATCH($C56,Demand!$B$9:$B$428,0))*$I56*Assumptions!$G$45*Assumptions!$G$48 -> 2.838375 | AU56: =INDEX(Demand!S$9:S$428,MATCH($C56,Demand!$B$9:$B$428,0))*$I56*Assumptions!$G$45*Assumptions!$G$48 -> 2.838375 | AV56: =INDEX(Demand!T$9:T$428,MATCH($C56,Demand!$B$9:$B$428,0))*$I56*Assumptions!$G$45*Assumptions!$G$48 -> 2.838375 | AW56: =INDEX(Demand!U$9:U$428,MATCH($C56,Demand!$B$9:$B$428,0))*$I56*Assumptions!$G$45*Assumptions!$G$48 -> 2.838375 | AX56: =INDEX(Demand!V$9:V$428,MATCH($C56,Demand!$B$9:$B$428,0))*$I56*Assumptions!$G$45*Assumptions!$G$48 -> 2.838375 | AY56: =INDEX(Demand!W$9:W$428,MATCH($C56,Demand!$B$9:$B$428,0))*$I56*Assumptions!$G$45*Assumptions!$G$48 -> 2.838375 | AZ56: =INDEX(Demand!X$9:X$428,MATCH($C56,Demand!$B$9:$B$428,0))*$I56*Assumptions!$G$45*Assumptions!$G$48 -> 2.838375 | BB56: =SUMPRODUCT(($AG56:$AZ56)*(Misc_calcs!$G$29:$Z$29)*($L56:$AE56))*Calcs!$G56 -> 6537.589358 | BD56: =SUMPRODUCT(($L56:$AE56)*(Misc_calcs!$G$29:$Z$29))*$F56*Assumptions!$G$37*(1+Assumptions!$G$83) -> 820.0220696 | BF56: =Assumptions!$G$86*$F56 -> 0.000368386596 | BH56: =($F56*Assumptions!$G$37) -> 11047.284 | BJ56: =-SUMPRODUCT((PMT(real_disc,Assumptions!$G$40,BH56))*(Misc_calcs!$G$29:$Z$29)) -> 6259.637026 | BL56: =SUMPRODUCT(($AG56:$AZ56)*(Misc_calcs!$G$29:$Z$29))*$BF56*$G56 -> 559.1875538 | BN56: =SUMPRODUCT($BF56*(Misc_calcs!$G$29:$Z$29))*$F56*Assumptions!$G$37*(1+Assumptions!$G$83) -> 70.61196258 | BP56: 7357.611428 | BR56: 629.7995163 | BT56: 6727.811912 | BV56: 468.174886 | BX56: TRUE
B57: 49333628 | C57: MTN35 | D57: MTN | E57: 22kV | F57: 48.855 | G57: 37411.3138 | H57: =INDEX(Demand!$C$9:$C$428, MATCH($C57, Demand!$B$9:$B$428,0)) -> 1 | I57: 0.5 | L57: 0.001246513068 | M57: 0.001400121387 | N57: 0.001573917791 | O57: 0.001770642502 | P57: 0.001993415018 | Q57: 0.002245787254 | R57: 0.002531804201 | S57: 0.002856073151 | T57: 0.003223842714 | U57: 0.003641093017 | V57: 0.004114638675 | W57: 0.004652246352 | X57: 0.005262768982 | Y57: 0.005956299028 | Z57: 0.006744343484 | AA57: 0.007640023722 | AB57: 0.008658303716 | AC57: 0.008810117553 | AD57: 0.008810117553 | AE57: 0.008810117553 | AG57: =INDEX(Demand!E$9:E$428,MATCH($C57,Demand!$B$9:$B$428,0))*$I57*Assumptions!$G$45*Assumptions!$G$48 -> 2.76375 | AH57: =INDEX(Demand!F$9:F$428,MATCH($C57,Demand!$B$9:$B$428,0))*$I57*Assumptions!$G$45*Assumptions!$G$48 -> 2.749875 | AI57: =INDEX(Demand!G$9:G$428,MATCH($C57,Demand!$B$9:$B$428,0))*$I57*Assumptions!$G$45*Assumptions!$G$48 -> 2.75625 | AJ57: =INDEX(Demand!H$9:H$428,MATCH($C57,Demand!$B$9:$B$428,0))*$I57*Assumptions!$G$45*Assumptions!$G$48 -> 2.76225 | AK57: =INDEX(Demand!I$9:I$428,MATCH($C57,Demand!$B$9:$B$428,0))*$I57*Assumptions!$G$45*Assumptions!$G$48 -> 2.766 | AL57: =INDEX(Demand!J$9:J$428,MATCH($C57,Demand!$B$9:$B$428,0))*$I57*Assumptions!$G$45*Assumptions!$G$48 -> 2.76975 | AM57: =INDEX(Demand!K$9:K$428,MATCH($C57,Demand!$B$9:$B$428,0))*$I57*Assumptions!$G$45*Assumptions!$G$48 -> 2.793375 | AN57: =INDEX(Demand!L$9:L$428,MATCH($C57,Demand!$B$9:$B$428,0))*$I57*Assumptions!$G$45*Assumptions!$G$48 -> 2.8245 | AO57: =INDEX(Demand!M$9:M$428,MATCH($C57,Demand!$B$9:$B$428,0))*$I57*Assumptions!$G$45*Assumptions!$G$48 -> 2.838375 | AP57: =INDEX(Demand!N$9:N$428,MATCH($C57,Demand!$B$9:$B$428,0))*$I57*Assumptions!$G$45*Assumptions!$G$48 -> 2.838375 | AQ57: =INDEX(Demand!O$9:O$428,MATCH($C57,Demand!$B$9:$B$428,0))*$I57*Assumptions!$G$45*Assumptions!$G$48 -> 2.838375 | AR57: =INDEX(Demand!P$9:P$428,MATCH($C57,Demand!$B$9:$B$428,0))*$I57*Assumptions!$G$45*Assumptions!$G$48 -> 2.838375 | AS57: =INDEX(Demand!Q$9:Q$428,MATCH($C57,Demand!$B$9:$B$428,0))*$I57*Assumptions!$G$45*Assumptions!$G$48 -> 2.838375 | AT57: =INDEX(Demand!R$9:R$428,MATCH($C57,Demand!$B$9:$B$428,0))*$I57*Assumptions!$G$45*Assumptions!$G$48 -> 2.838375 | AU57: =INDEX(Demand!S$9:S$428,MATCH($C57,Demand!$B$9:$B$428,0))*$I57*Assumptions!$G$45*Assumptions!$G$48 -> 2.838375 | AV57: =INDEX(Demand!T$9:T$428,MATCH($C57,Demand!$B$9:$B$428,0))*$I57*Assumptions!$G$45*Assumptions!$G$48 -> 2.838375 | AW57: =INDEX(Demand!U$9:U$428,MATCH($C57,Demand!$B$9:$B$428,0))*$I57*Assumptions!$G$45*Assumptions!$G$48 -> 2.838375 | AX57: =INDEX(Demand!V$9:V$428,MATCH($C57,Demand!$B$9:$B$428,0))*$I57*Assumptions!$G$45*Assumptions!$G$48 -> 2.838375 | AY57: =INDEX(Demand!W$9:W$428,MATCH($C57,Demand!$B$9:$B$428,0))*$I57*Assumptions!$G$45*Assumptions!$G$48 -> 2.838375 | AZ57: =INDEX(Demand!X$9:X$428,MATCH($C57,Demand!$B$9:$B$428,0))*$I57*Assumptions!$G$45*Assumptions!$G$48 -> 2.838375 | BB57: =SUMPRODUCT(($AG57:$AZ57)*(Misc_calcs!$G$29:$Z$29)*($L57:$AE57))*Calcs!$G57 -> 6238.946984 | BD57: =SUMPRODUCT(($L57:$AE57)*(Misc_calcs!$G$29:$Z$29))*$F57*Assumptions!$G$37*(1+Assumptions!$G$83) -> 611.6398517 | BF57: =Assumptions!$G$86*$F57 -> 0.0002878683165 | BH57: =($F57*Assumptions!$G$37) -> 8632.6785 | BJ57: =-SUMPRODUCT((PMT(real_disc,Assumptions!$G$40,BH57))*(Misc_calcs!$G$29:$Z$29)) -> 4891.467801 | BL57: =SUMPRODUCT(($AG57:$AZ57)*(Misc_calcs!$G$29:$Z$29))*$BF57*$G57 -> 436.9658979 | BN57: =SUMPRODUCT($BF57*(Misc_calcs!$G$29:$Z$29))*$F57*Assumptions!$G$37*(1+Assumptions!$G$83) -> 43.11797724 | BP57: 6850.586836 | BR57: 480.0838752 | BT57: 6370.50296 | BV57: 1479.03516 | BX57: TRUE
B58: 49333634 | C58: MTN35 | D58: MTN | E58: 22kV | F58: 40.662 | G58: 37411.3138 | H58: =INDEX(Demand!$C$9:$C$428, MATCH($C58, Demand!$B$9:$B$428,0)) -> 1 | I58: 0.5 | L58: 0.0009854329683 | M58: 0.001105751844 | N58: 0.001241763234 | O58: 0.001395582312 | P58: 0.001569615087 | Q58: 0.001766598895 | R58: 0.001989648578 | S58: 0.002242309152 | T58: 0.002528615876 | U58: 0.002853162766 | V58: 0.003221180755 | W58: 0.003638626858 | X58: 0.004112285894 | Y58: 0.004649886547 | Z58: 0.005260233801 | AA58: 0.005953360044 | AB58: 0.006740697512 | AC58: 0.007332657864 | AD58: 0.007332657864 | AE58: 0.007332657864 | AG58: =INDEX(Demand!E$9:E$428,MATCH($C58,Demand!$B$9:$B$428,0))*$I58*Assumptions!$G$45*Assumptions!$G$48 -> 2.76375 | AH58: =INDEX(Demand!F$9:F$428,MATCH($C58,Demand!$B$9:$B$428,0))*$I58*Assumptions!$G$45*Assumptions!$G$48 -> 2.749875 | AI58: =INDEX(Demand!G$9:G$428,MATCH($C58,Demand!$B$9:$B$428,0))*$I58*Assumptions!$G$45*Assumptions!$G$48 -> 2.75625 | AJ58: =INDEX(Demand!H$9:H$428,MATCH($C58,Demand!$B$9:$B$428,0))*$I58*Assumptions!$G$45*Assumptions!$G$48 -> 2.76225 | AK58: =INDEX(Demand!I$9:I$428,MATCH($C58,Demand!$B$9:$B$428,0))*$I58*Assumptions!$G$45*Assumptions!$G$48 -> 2.766 | AL58: =INDEX(Demand!J$9:J$428,MATCH($C58,Demand!$B$9:$B$428,0))*$I58*Assumptions!$G$45*Assumptions!$G$48 -> 2.76975 | AM58: =INDEX(Demand!K$9:K$428,MATCH($C58,Demand!$B$9:$B$428,0))*$I58*Assumptions!$G$45*Assumptions!$G$48 -> 2.793375 | AN58: =INDEX(Demand!L$9:L$428,MATCH($C58,Demand!$B$9:$B$428,0))*$I58*Assumptions!$G$45*Assumptions!$G$48 -> 2.8245 | AO58: =INDEX(Demand!M$9:M$428,MATCH($C58,Demand!$B$9:$B$428,0))*$I58*Assumptions!$G$45*Assumptions!$G$48 -> 2.838375 | AP58: =INDEX(Demand!N$9:N$428,MATCH($C58,Demand!$B$9:$B$428,0))*$I58*Assumptions!$G$45*Assumptions!$G$48 -> 2.838375 | AQ58: =INDEX(Demand!O$9:O$428,MATCH($C58,Demand!$B$9:$B$428,0))*$I58*Assumptions!$G$45*Assumptions!$G$48 -> 2.838375 | AR58: =INDEX(Demand!P$9:P$428,MATCH($C58,Demand!$B$9:$B$428,0))*$I58*Assumptions!$G$45*Assumptions!$G$48 -> 2.838375 | AS58: =INDEX(Demand!Q$9:Q$428,MATCH($C58,Demand!$B$9:$B$428,0))*$I58*Assumptions!$G$45*Assumptions!$G$48 -> 2.838375 | AT58: =INDEX(Demand!R$9:R$428,MATCH($C58,Demand!$B$9:$B$428,0))*$I58*Assumptions!$G$45*Assumptions!$G$48 -> 2.838375 | AU58: =INDEX(Demand!S$9:S$428,MATCH($C58,Demand!$B$9:$B$428,0))*$I58*Assumptions!$G$45*Assumptions!$G$48 -> 2.838375 | AV58: =INDEX(Demand!T$9:T$428,MATCH($C58,Demand!$B$9:$B$428,0))*$I58*Assumptions!$G$45*Assumptions!$G$48 -> 2.838375 | AW58: =INDEX(Demand!U$9:U$428,MATCH($C58,Demand!$B$9:$B$428,0))*$I58*Assumptions!$G$45*Assumptions!$G$48 -> 2.838375 | AX58: =INDEX(Demand!V$9:V$428,MATCH($C58,Demand!$B$9:$B$428,0))*$I58*Assumptions!$G$45*Assumptions!$G$48 -> 2.838375 | AY58: =INDEX(Demand!W$9:W$428,MATCH($C58,Demand!$B$9:$B$428,0))*$I58*Assumptions!$G$45*Assumptions!$G$48 -> 2.838375 | AZ58: =INDEX(Demand!X$9:X$428,MATCH($C58,Demand!$B$9:$B$428,0))*$I58*Assumptions!$G$45*Assumptions!$G$48 -> 2.838375 | BB58: =SUMPRODUCT(($AG58:$AZ58)*(Misc_calcs!$G$29:$Z$29)*($L58:$AE58))*Calcs!$G58 -> 4957.735882 | BD58: =SUMPRODUCT(($L58:$AE58)*(Misc_calcs!$G$29:$Z$29))*$F58*Assumptions!$G$37*(1+Assumptions!$G$83) -> 404.5106467 | BF58: =Assumptions!$G$86*$F58 -> 0.0002395927026 | BH58: =($F58*Assumptions!$G$37) -> 7184.9754 | BJ58: =-SUMPRODUCT((PMT(real_disc,Assumptions!$G$40,BH58))*(Misc_calcs!$G$29:$Z$29)) -> 4071.166998 | BL58: =SUMPRODUCT(($AG58:$AZ58)*(Misc_calcs!$G$29:$Z$29))*$BF58*$G58 -> 363.6865693 | BN58: =SUMPRODUCT($BF58*(Misc_calcs!$G$29:$Z$29))*$F58*Assumptions!$G$37*(1+Assumptions!$G$83) -> 29.86880281 | BP58: 5362.246529 | BR58: 393.5553721 | BT58: 4968.691157 | BV58: 897.5241584 | BX58: TRUE
B59: 49333736 | C59: MTN35 | D59: MTN | E59: 22kV | F59: 96.8 | G59: 37411.3138 | H59: =INDEX(Demand!$C$9:$C$428, MATCH($C59, Demand!$B$9:$B$428,0)) -> 1 | I59: 0.5 | L59: 0.002048431778 | M59: 0.002297567578 | N59: 0.002579216323 | O59: 0.002897771096 | P59: 0.003258231143 | Q59: 0.00366628663 | R59: 0.004128415342 | S59: 0.004651993041 | T59: 0.005245419399 | U59: 0.005918261728 | V59: 0.006681419036 | W59: 0.007547309281 | X59: 0.00853008315 | Y59: 0.009645868095 | Z59: 0.01091304696 | AA59: 0.01235257612 | AB59: 0.01398834869 | AC59: 0.01584760939 | AD59: 0.01745613303 | AE59: 0.01745613303 | AG59: =INDEX(Demand!E$9:E$428,MATCH($C59,Demand!$B$9:$B$428,0))*$I59*Assumptions!$G$45*Assumptions!$G$48 -> 2.76375 | AH59: =INDEX(Demand!F$9:F$428,MATCH($C59,Demand!$B$9:$B$428,0))*$I59*Assumptions!$G$45*Assumptions!$G$48 -> 2.749875 | AI59: =INDEX(Demand!G$9:G$428,MATCH($C59,Demand!$B$9:$B$428,0))*$I59*Assumptions!$G$45*Assumptions!$G$48 -> 2.75625 | AJ59: =INDEX(Demand!H$9:H$428,MATCH($C59,Demand!$B$9:$B$428,0))*$I59*Assumptions!$G$45*Assumptions!$G$48 -> 2.76225 | AK59: =INDEX(Demand!I$9:I$428,MATCH($C59,Demand!$B$9:$B$428,0))*$I59*Assumptions!$G$45*Assumptions!$G$48 -> 2.766 | AL59: =INDEX(Demand!J$9:J$428,MATCH($C59,Demand!$B$9:$B$428,0))*$I59*Assumptions!$G$45*Assumptions!$G$48 -> 2.76975 | AM59: =INDEX(Demand!K$9:K$428,MATCH($C59,Demand!$B$9:$B$428,0))*$I59*Assumptions!$G$45*Assumptions!$G$48 -> 2.793375 | AN59: =INDEX(Demand!L$9:L$428,MATCH($C59,Demand!$B$9:$B$428,0))*$I59*Assumptions!$G$45*Assumptions!$G$48 -> 2.8245 | AO59: =INDEX(Demand!M$9:M$428,MATCH($C59,Demand!$B$9:$B$428,0))*$I59*Assumptions!$G$45*Assumptions!$G$48 -> 2.838375 | AP59: =INDEX(Demand!N$9:N$428,MATCH($C59,Demand!$B$9:$B$428,0))*$I59*Assumptions!$G$45*Assumptions!$G$48 -> 2.838375 | AQ59: =INDEX(Demand!O$9:O$428,MATCH($C59,Demand!$B$9:$B$428,0))*$I59*Assumptions!$G$45*Assumptions!$G$48 -> 2.838375 | AR59: =INDEX(Demand!P$9:P$428,MATCH($C59,Demand!$B$9:$B$428,0))*$I59*Assumptions!$G$45*Assumptions!$G$48 -> 2.838375 | AS59: =INDEX(Demand!Q$9:Q$428,MATCH($C59,Demand!$B$9:$B$428,0))*$I59*Assumptions!$G$45*Assumptions!$G$48 -> 2.838375 | AT59: =INDEX(Demand!R$9:R$428,MATCH($C59,Demand!$B$9:$B$428,0))*$I59*Assumptions!$G$45*Assumptions!$G$48 -> 2.838375 | AU59: =INDEX(Demand!S$9:S$428,MATCH($C59,Demand!$B$9:$B$428,0))*$I59*Assumptions!$G$45*Assumptions!$G$48 -> 2.838375 | AV59: =INDEX(Demand!T$9:T$428,MATCH($C59,Demand!$B$9:$B$428,0))*$I59*Assumptions!$G$45*Assumptions!$G$48 -> 2.838375 | AW59: =INDEX(Demand!U$9:U$428,MATCH($C59,Demand!$B$9:$B$428,0))*$I59*Assumptions!$G$45*Assumptions!$G$48 -> 2.838375 | AX59: =INDEX(Demand!V$9:V$428,MATCH($C59,Demand!$B$9:$B$428,0))*$I59*Assumptions!$G$45*Assumptions!$G$48 -> 2.838375 | AY59: =INDEX(Demand!W$9:W$428,MATCH($C59,Demand!$B$9:$B$428,0))*$I59*Assumptions!$G$45*Assumptions!$G$48 -> 2.838375 | AZ59: =INDEX(Demand!X$9:X$428,MATCH($C59,Demand!$B$9:$B$428,0))*$I59*Assumptions!$G$45*Assumptions!$G$48 -> 2.838375 | BB59: =SUMPRODUCT(($AG59:$AZ59)*(Misc_calcs!$G$29:$Z$29)*($L59:$AE59))*Calcs!$G59 -> 10571.72519 | BD59: =SUMPRODUCT(($L59:$AE59)*(Misc_calcs!$G$29:$Z$29))*$F59*Assumptions!$G$37*(1+Assumptions!$G$83) -> 2053.164803 | BF59: =Assumptions!$G$86*$F59 -> 0.00057037464 | BH59: =($F59*Assumptions!$G$37) -> 17104.56 | BJ59: =-SUMPRODUCT((PMT(real_disc,Assumptions!$G$40,BH59))*(Misc_calcs!$G$29:$Z$29)) -> 9691.824442 | BL59: =SUMPRODUCT(($AG59:$AZ59)*(Misc_calcs!$G$29:$Z$29))*$BF59*$G59 -> 865.7926296 | BN59: =SUMPRODUCT($BF59*(Misc_calcs!$G$29:$Z$29))*$F59*Assumptions!$G$37*(1+Assumptions!$G$83) -> 169.2743124 | BP59: 12624.88999 | BR59: 1035.066942 | BT59: 11589.82305 | BV59: 1897.998607 | BX59: TRUE
B60: 49333762 | C60: MTN35 | D60: MTN | E60: 22kV | F60: 92.655 | G60: 37411.3138 | H60: =INDEX(Demand!$C$9:$C$428, MATCH($C60, Demand!$B$9:$B$428,0)) -> 1 | I60: 0.5 | L60: 0.001960717421 | M60: 0.002199185165 | N60: 0.00246877364 | O60: 0.002773687819 | P60: 0.003118712878 | Q60: 0.003509295327 | R60: 0.003951635573 | S60: 0.004452793545 | T60: 0.00502080924 | U60: 0.005664840294 | V60: 0.006395319016 | W60: 0.007224131627 | X60: 0.008164822875 | Y60: 0.009232829632 | Z60: 0.01044574758 | AA60: 0.01182363574 | AB60: 0.01338936413 | AC60: 0.01516901082 | AD60: 0.01670865708 | AE60: 0.01670865708 | AG60: =INDEX(Demand!E$9:E$428,MATCH($C60,Demand!$B$9:$B$428,0))*$I60*Assumptions!$G$45*Assumptions!$G$48 -> 2.76375 | AH60: =INDEX(Demand!F$9:F$428,MATCH($C60,Demand!$B$9:$B$428,0))*$I60*Assumptions!$G$45*Assumptions!$G$48 -> 2.749875 | AI60: =INDEX(Demand!G$9:G$428,MATCH($C60,Demand!$B$9:$B$428,0))*$I60*Assumptions!$G$45*Assumptions!$G$48 -> 2.75625 | AJ60: =INDEX(Demand!H$9:H$428,MATCH($C60,Demand!$B$9:$B$428,0))*$I60*Assumptions!$G$45*Assumptions!$G$48 -> 2.76225 | AK60: =INDEX(Demand!I$9:I$428,MATCH($C60,Demand!$B$9:$B$428,0))*$I60*Assumptions!$G$45*Assumptions!$G$48 -> 2.766 | AL60: =INDEX(Demand!J$9:J$428,MATCH($C60,Demand!$B$9:$B$428,0))*$I60*Assumptions!$G$45*Assumptions!$G$48 -> 2.76975 | AM60: =INDEX(Demand!K$9:K$428,MATCH($C60,Demand!$B$9:$B$428,0))*$I60*Assumptions!$G$45*Assumptions!$G$48 -> 2.793375 | AN60: =INDEX(Demand!L$9:L$428,MATCH($C60,Demand!$B$9:$B$428,0))*$I60*Assumptions!$G$45*Assumptions!$G$48 -> 2.8245 | AO60: =INDEX(Demand!M$9:M$428,MATCH($C60,Demand!$B$9:$B$428,0))*$I60*Assumptions!$G$45*Assumptions!$G$48 -> 2.838375 | AP60: =INDEX(Demand!N$9:N$428,MATCH($C60,Demand!$B$9:$B$428,0))*$I60*Assumptions!$G$45*Assumptions!$G$48 -> 2.838375 | AQ60: =INDEX(Demand!O$9:O$428,MATCH($C60,Demand!$B$9:$B$428,0))*$I60*Assumptions!$G$45*Assumptions!$G$48 -> 2.838375 | AR60: =INDEX(Demand!P$9:P$428,MATCH($C60,Demand!$B$9:$B$428,0))*$I60*Assumptions!$G$45*Assumptions!$G$48 -> 2.838375 | AS60: =INDEX(Demand!Q$9:Q$428,MATCH($C60,Demand!$B$9:$B$428,0))*$I60*Assumptions!$G$45*Assumptions!$G$48 -> 2.838375 | AT60: =INDEX(Demand!R$9:R$428,MATCH($C60,Demand!$B$9:$B$428,0))*$I60*Assumptions!$G$45*Assumptions!$G$48 -> 2.838375 | AU60: =INDEX(Demand!S$9:S$428,MATCH($C60,Demand!$B$9:$B$428,0))*$I60*Assumptions!$G$45*Assumptions!$G$48 -> 2.838375 | AV60: =INDEX(Demand!T$9:T$428,MATCH($C60,Demand!$B$9:$B$428,0))*$I60*Assumptions!$G$45*Assumptions!$G$48 -> 2.838375 | AW60: =INDEX(Demand!U$9:U$428,MATCH($C60,Demand!$B$9:$B$428,0))*$I60*Assumptions!$G$45*Assumptions!$G$48 -> 2.838375 | AX60: =INDEX(Demand!V$9:V$428,MATCH($C60,Demand!$B$9:$B$428,0))*$I60*Assumptions!$G$45*Assumptions!$G$48 -> 2.838375 | AY60: =INDEX(Demand!W$9:W$428,MATCH($C60,Demand!$B$9:$B$428,0))*$I60*Assumptions!$G$45*Assumptions!$G$48 -> 2.838375 | AZ60: =INDEX(Demand!X$9:X$428,MATCH($C60,Demand!$B$9:$B$428,0))*$I60*Assumptions!$G$45*Assumptions!$G$48 -> 2.838375 | BB60: =SUMPRODUCT(($AG60:$AZ60)*(Misc_calcs!$G$29:$Z$29)*($L60:$AE60))*Calcs!$G60 -> 10119.04129 | BD60: =SUMPRODUCT(($L60:$AE60)*(Misc_calcs!$G$29:$Z$29))*$F60*Assumptions!$G$37*(1+Assumptions!$G$83) -> 1881.09538 | BF60: =Assumptions!$G$86*$F60 -> 0.0005459510565 | BH60: =($F60*Assumptions!$G$37) -> 16372.1385 | BJ60: =-SUMPRODUCT((PMT(real_disc,Assumptions!$G$40,BH60))*(Misc_calcs!$G$29:$Z$29)) -> 9276.818116 | BL60: =SUMPRODUCT(($AG60:$AZ60)*(Misc_calcs!$G$29:$Z$29))*$BF60*$G60 -> 828.7191745 | BN60: =SUMPRODUCT($BF60*(Misc_calcs!$G$29:$Z$29))*$F60*Assumptions!$G$37*(1+Assumptions!$G$83) -> 155.0879532 | BP60: 12000.13667 | BR60: 983.8071278 | BT60: 11016.32955 | BV60: 1739.51143 | BX60: TRUE
B61: 49338096 | C61: MTN35 | D61: MTN | E61: 22kV | F61: 191.51 | G61: 37411.3138 | H61: =INDEX(Demand!$C$9:$C$428, MATCH($C61, Demand!$B$9:$B$428,0)) -> 1 | I61: 0.5 | L61: 0.004250673449 | M61: 0.004688786038 | N61: 0.005175243208 | O61: 0.005715563215 | P61: 0.006315907227 | Q61: 0.006983155199 | R61: 0.00772499079 | S61: 0.008549996383 | T61: 0.009467759433 | U61: 0.01048899149 | V61: 0.01162566144 | W61: 0.01289114459 | X61: 0.01430038966 | Y61: 0.0158701056 | Z61: 0.01761897084 | AA61: 0.01956786747 | AB61: 0.02174014356 | AC61: 0.02416190669 | AD61: 0.02686235282 | AE61: 0.02987413438 | AG61: =INDEX(Demand!E$9:E$428,MATCH($C61,Demand!$B$9:$B$428,0))*$I61*Assumptions!$G$45*Assumptions!$G$48 -> 2.76375 | AH61: =INDEX(Demand!F$9:F$428,MATCH($C61,Demand!$B$9:$B$428,0))*$I61*Assumptions!$G$45*Assumptions!$G$48 -> 2.749875 | AI61: =INDEX(Demand!G$9:G$428,MATCH($C61,Demand!$B$9:$B$428,0))*$I61*Assumptions!$G$45*Assumptions!$G$48 -> 2.75625 | AJ61: =INDEX(Demand!H$9:H$428,MATCH($C61,Demand!$B$9:$B$428,0))*$I61*Assumptions!$G$45*Assumptions!$G$48 -> 2.76225 | AK61: =INDEX(Demand!I$9:I$428,MATCH($C61,Demand!$B$9:$B$428,0))*$I61*Assumptions!$G$45*Assumptions!$G$48 -> 2.766 | AL61: =INDEX(Demand!J$9:J$428,MATCH($C61,Demand!$B$9:$B$428,0))*$I61*Assumptions!$G$45*Assumptions!$G$48 -> 2.76975 | AM61: =INDEX(Demand!K$9:K$428,MATCH($C61,Demand!$B$9:$B$428,0))*$I61*Assumptions!$G$45*Assumptions!$G$48 -> 2.793375 | AN61: =INDEX(Demand!L$9:L$428,MATCH($C61,Demand!$B$9:$B$428,0))*$I61*Assumptions!$G$45*Assumptions!$G$48 -> 2.8245 | AO61: =INDEX(Demand!M$9:M$428,MATCH($C61,Demand!$B$9:$B$428,0))*$I61*Assumptions!$G$45*Assumptions!$G$48 -> 2.838375 | AP61: =INDEX(Demand!N$9:N$428,MATCH($C61,Demand!$B$9:$B$428,0))*$I61*Assumptions!$G$45*Assumptions!$G$48 -> 2.838375 | AQ61: =INDEX(Demand!O$9:O$428,MATCH($C61,Demand!$B$9:$B$428,0))*$I61*Assumptions!$G$45*Assumptions!$G$48 -> 2.838375 | AR61: =INDEX(Demand!P$9:P$428,MATCH($C61,Demand!$B$9:$B$428,0))*$I61*Assumptions!$G$45*Assumptions!$G$48 -> 2.838375 | AS61: =INDEX(Demand!Q$9:Q$428,MATCH($C61,Demand!$B$9:$B$428,0))*$I61*Assumptions!$G$45*Assumptions!$G$48 -> 2.838375 | AT61: =INDEX(Demand!R$9:R$428,MATCH($C61,Demand!$B$9:$B$428,0))*$I61*Assumptions!$G$45*Assumptions!$G$48 -> 2.838375 | AU61: =INDEX(Demand!S$9:S$428,MATCH($C61,Demand!$B$9:$B$428,0))*$I61*Assumptions!$G$45*Assumptions!$G$48 -> 2.838375 | AV61: =INDEX(Demand!T$9:T$428,MATCH($C61,Demand!$B$9:$B$428,0))*$I61*Assumptions!$G$45*Assumptions!$G$48 -> 2.838375 | AW61: =INDEX(Demand!U$9:U$428,MATCH($C61,Demand!$B$9:$B$428,0))*$I61*Assumptions!$G$45*Assumptions!$G$48 -> 2.838375 | AX61: =INDEX(Demand!V$9:V$428,MATCH($C61,Demand!$B$9:$B$428,0))*$I61*Assumptions!$G$45*Assumptions!$G$48 -> 2.838375 | AY61: =INDEX(Demand!W$9:W$428,MATCH($C61,Demand!$B$9:$B$428,0))*$I61*Assumptions!$G$45*Assumptions!$G$48 -> 2.838375 | AZ61: =INDEX(Demand!X$9:X$428,MATCH($C61,Demand!$B$9:$B$428,0))*$I61*Assumptions!$G$45*Assumptions!$G$48 -> 2.838375 | BB61: =SUMPRODUCT(($AG61:$AZ61)*(Misc_calcs!$G$29:$Z$29)*($L61:$AE61))*Calcs!$G61 -> 17988.65264 | BD61: =SUMPRODUCT(($L61:$AE61)*(Misc_calcs!$G$29:$Z$29))*$F61*Assumptions!$G$37*(1+Assumptions!$G$83) -> 6916.917101 | BF61: =Assumptions!$G$86*$F61 -> 0.001128434373 | BH61: =($F61*Assumptions!$G$37) -> 33839.817 | BJ61: =-SUMPRODUCT((PMT(real_disc,Assumptions!$G$40,BH61))*(Misc_calcs!$G$29:$Z$29)) -> 19174.39358 | BL61: =SUMPRODUCT(($AG61:$AZ61)*(Misc_calcs!$G$29:$Z$29))*$BF61*$G61 -> 1712.892009 | BN61: =SUMPRODUCT($BF61*(Misc_calcs!$G$29:$Z$29))*$F61*Assumptions!$G$37*(1+Assumptions!$G$83) -> 662.5570145 | BP61: 24905.56974 | BR61: 2375.449024 | BT61: 22530.12071 | BV61: 3355.727132 | BX61: TRUE
B62: 49338133 | C62: MTN35 | D62: MTN | E62: 22kV | F62: 207.69 | G62: 37411.3138 | H62: =INDEX(Demand!$C$9:$C$428, MATCH($C62, Demand!$B$9:$B$428,0)) -> 1 | I62: 0.5 | L62: 0.004609797758 | M62: 0.005084924924 | N62: 0.005612481133 | O62: 0.00619845086 | P62: 0.006849515806 | Q62: 0.00757313719 | R62: 0.008377647837 | S62: 0.009272355223 | T62: 0.01026765681 | U62: 0.01137516915 | V62: 0.0126078723 | W62: 0.01398027163 | X62: 0.01550857881 | Y62: 0.01721091448 | Z62: 0.01910753513 | AA62: 0.02122108713 | AB62: 0.02357689111 | AC62: 0.02620326041 | AD62: 0.02913185764 | AE62: 0.03239809393 | AG62: =INDEX(Demand!E$9:E$428,MATCH($C62,Demand!$B$9:$B$428,0))*$I62*Assumptions!$G$45*Assumptions!$G$48 -> 2.76375 | AH62: =INDEX(Demand!F$9:F$428,MATCH($C62,Demand!$B$9:$B$428,0))*$I62*Assumptions!$G$45*Assumptions!$G$48 -> 2.749875 | AI62: =INDEX(Demand!G$9:G$428,MATCH($C62,Demand!$B$9:$B$428,0))*$I62*Assumptions!$G$45*Assumptions!$G$48 -> 2.75625 | AJ62: =INDEX(Demand!H$9:H$428,MATCH($C62,Demand!$B$9:$B$428,0))*$I62*Assumptions!$G$45*Assumptions!$G$48 -> 2.76225 | AK62: =INDEX(Demand!I$9:I$428,MATCH($C62,Demand!$B$9:$B$428,0))*$I62*Assumptions!$G$45*Assumptions!$G$48 -> 2.766 | AL62: =INDEX(Demand!J$9:J$428,MATCH($C62,Demand!$B$9:$B$428,0))*$I62*Assumptions!$G$45*Assumptions!$G$48 -> 2.76975 | AM62: =INDEX(Demand!K$9:K$428,MATCH($C62,Demand!$B$9:$B$428,0))*$I62*Assumptions!$G$45*Assumptions!$G$48 -> 2.793375 | AN62: =INDEX(Demand!L$9:L$428,MATCH($C62,Demand!$B$9:$B$428,0))*$I62*Assumptions!$G$45*Assumptions!$G$48 -> 2.8245 | AO62: =INDEX(Demand!M$9:M$428,MATCH($C62,Demand!$B$9:$B$428,0))*$I62*Assumptions!$G$45*Assumptions!$G$48 -> 2.838375 | AP62: =INDEX(Demand!N$9:N$428,MATCH($C62,Demand!$B$9:$B$428,0))*$I62*Assumptions!$G$45*Assumptions!$G$48 -> 2.838375 | AQ62: =INDEX(Demand!O$9:O$428,MATCH($C62,Demand!$B$9:$B$428,0))*$I62*Assumptions!$G$45*Assumptions!$G$48 -> 2.838375 | AR62: =INDEX(Demand!P$9:P$428,MATCH($C62,Demand!$B$9:$B$428,0))*$I62*Assumptions!$G$45*Assumptions!$G$48 -> 2.838375 | AS62: =INDEX(Demand!Q$9:Q$428,MATCH($C62,Demand!$B$9:$B$428,0))*$I62*Assumptions!$G$45*Assumptions!$G$48 -> 2.838375 | AT62: =INDEX(Demand!R$9:R$428,MATCH($C62,Demand!$B$9:$B$428,0))*$I62*Assumptions!$G$45*Assumptions!$G$48 -> 2.838375 | AU62: =INDEX(Demand!S$9:S$428,MATCH($C62,Demand!$B$9:$B$428,0))*$I62*Assumptions!$G$45*Assumptions!$G$48 -> 2.838375 | AV62: =INDEX(Demand!T$9:T$428,MATCH($C62,Demand!$B$9:$B$428,0))*$I62*Assumptions!$G$45*Assumptions!$G$48 -> 2.838375 | AW62: =INDEX(Demand!U$9:U$428,MATCH($C62,Demand!$B$9:$B$428,0))*$I62*Assumptions!$G$45*Assumptions!$G$48 -> 2.838375 | AX62: =INDEX(Demand!V$9:V$428,MATCH($C62,Demand!$B$9:$B$428,0))*$I62*Assumptions!$G$45*Assumptions!$G$48 -> 2.838375 | AY62: =INDEX(Demand!W$9:W$428,MATCH($C62,Demand!$B$9:$B$428,0))*$I62*Assumptions!$G$45*Assumptions!$G$48 -> 2.838375 | AZ62: =INDEX(Demand!X$9:X$428,MATCH($C62,Demand!$B$9:$B$428,0))*$I62*Assumptions!$G$45*Assumptions!$G$48 -> 2.838375 | BB62: =SUMPRODUCT(($AG62:$AZ62)*(Misc_calcs!$G$29:$Z$29)*($L62:$AE62))*Calcs!$G62 -> 19508.45004 | BD62: =SUMPRODUCT(($L62:$AE62)*(Misc_calcs!$G$29:$Z$29))*$F62*Assumptions!$G$37*(1+Assumptions!$G$83) -> 8135.061319 | BF62: =Assumptions!$G$86*$F62 -> 0.001223771787 | BH62: =($F62*Assumptions!$G$37) -> 36698.823 | BJ62: =-SUMPRODUCT((PMT(real_disc,Assumptions!$G$40,BH62))*(Misc_calcs!$G$29:$Z$29)) -> 20794.37002 | BL62: =SUMPRODUCT(($AG62:$AZ62)*(Misc_calcs!$G$29:$Z$29))*$BF62*$G62 -> 1857.608174 | BN62: =SUMPRODUCT($BF62*(Misc_calcs!$G$29:$Z$29))*$F62*Assumptions!$G$37*(1+Assumptions!$G$83) -> 779.2405 | BP62: 27643.51135 | BR62: 2636.848674 | BT62: 25006.66268 | BV62: 4212.292657 | BX62: TRUE
B63: 49372779 | C63: RBD21 | D63: RBD | E63: 22kV | F63: 132.41 | G63: 35928.55571 | H63: =INDEX(Demand!$C$9:$C$428, MATCH($C63, Demand!$B$9:$B$428,0)) -> 4 | I63: 0.2 | L63: 0.001566851674 | M63: 0.001755356279 | N63: 0.001968786186 | O63: 0.002210585684 | P63: 0.002484687738 | Q63: 0.002795584473 | R63: 0.003148407943 | S63: 0.003549022685 | T63: 0.004004131789 | U63: 0.004521398469 | V63: 0.005109585429 | W63: 0.005778714617 | X63: 0.006540250398 | Y63: 0.007407309566 | Z63: 0.008394902179 | AA63: 0.009520207731 | AB63: 0.0108028919 | AC63: 0.01226546985 | AD63: 0.01393372292 | AE63: 0.01583717668 | AG63: =INDEX(Demand!E$9:E$428,MATCH($C63,Demand!$B$9:$B$428,0))*$I63*Assumptions!$G$45*Assumptions!$G$48 -> 1.08945 | AH63: =INDEX(Demand!F$9:F$428,MATCH($C63,Demand!$B$9:$B$428,0))*$I63*Assumptions!$G$45*Assumptions!$G$48 -> 1.0884 | AI63: =INDEX(Demand!G$9:G$428,MATCH($C63,Demand!$B$9:$B$428,0))*$I63*Assumptions!$G$45*Assumptions!$G$48 -> 1.0917 | AJ63: =INDEX(Demand!H$9:H$428,MATCH($C63,Demand!$B$9:$B$428,0))*$I63*Assumptions!$G$45*Assumptions!$G$48 -> 1.09515 | AK63: =INDEX(Demand!I$9:I$428,MATCH($C63,Demand!$B$9:$B$428,0))*$I63*Assumptions!$G$45*Assumptions!$G$48 -> 1.0953 | AL63: =INDEX(Demand!J$9:J$428,MATCH($C63,Demand!$B$9:$B$428,0))*$I63*Assumptions!$G$45*Assumptions!$G$48 -> 1.0968 | AM63: =INDEX(Demand!K$9:K$428,MATCH($C63,Demand!$B$9:$B$428,0))*$I63*Assumptions!$G$45*Assumptions!$G$48 -> 1.1007 | AN63: =INDEX(Demand!L$9:L$428,MATCH($C63,Demand!$B$9:$B$428,0))*$I63*Assumptions!$G$45*Assumptions!$G$48 -> 1.11165 | AO63: =INDEX(Demand!M$9:M$428,MATCH($C63,Demand!$B$9:$B$428,0))*$I63*Assumptions!$G$45*Assumptions!$G$48 -> 1.1181 | AP63: =INDEX(Demand!N$9:N$428,MATCH($C63,Demand!$B$9:$B$428,0))*$I63*Assumptions!$G$45*Assumptions!$G$48 -> 1.1181 | AQ63: =INDEX(Demand!O$9:O$428,MATCH($C63,Demand!$B$9:$B$428,0))*$I63*Assumptions!$G$45*Assumptions!$G$48 -> 1.1181 | AR63: =INDEX(Demand!P$9:P$428,MATCH($C63,Demand!$B$9:$B$428,0))*$I63*Assumptions!$G$45*Assumptions!$G$48 -> 1.1181 | AS63: =INDEX(Demand!Q$9:Q$428,MATCH($C63,Demand!$B$9:$B$428,0))*$I63*Assumptions!$G$45*Assumptions!$G$48 -> 1.1181 | AT63: =INDEX(Demand!R$9:R$428,MATCH($C63,Demand!$B$9:$B$428,0))*$I63*Assumptions!$G$45*Assumptions!$G$48 -> 1.1181 | AU63: =INDEX(Demand!S$9:S$428,MATCH($C63,Demand!$B$9:$B$428,0))*$I63*Assumptions!$G$45*Assumptions!$G$48 -> 1.1181 | AV63: =INDEX(Demand!T$9:T$428,MATCH($C63,Demand!$B$9:$B$428,0))*$I63*Assumptions!$G$45*Assumptions!$G$48 -> 1.1181 | AW63: =INDEX(Demand!U$9:U$428,MATCH($C63,Demand!$B$9:$B$428,0))*$I63*Assumptions!$G$45*Assumptions!$G$48 -> 1.1181 | AX63: =INDEX(Demand!V$9:V$428,MATCH($C63,Demand!$B$9:$B$428,0))*$I63*Assumptions!$G$45*Assumptions!$G$48 -> 1.1181 | AY63: =INDEX(Demand!W$9:W$428,MATCH($C63,Demand!$B$9:$B$428,0))*$I63*Assumptions!$G$45*Assumptions!$G$48 -> 1.1181 | AZ63: =INDEX(Demand!X$9:X$428,MATCH($C63,Demand!$B$9:$B$428,0))*$I63*Assumptions!$G$45*Assumptions!$G$48 -> 1.1181 | BB63: =SUMPRODUCT(($AG63:$AZ63)*(Misc_calcs!$G$29:$Z$29)*($L63:$AE63))*Calcs!$G63 -> 3132.294464 | BD63: =SUMPRODUCT(($L63:$AE63)*(Misc_calcs!$G$29:$Z$29))*$F63*Assumptions!$G$37*(1+Assumptions!$G$83) -> 2197.854773 | BF63: =Assumptions!$G$86*$F63 -> 0.000780199443 | BH63: =($F63*Assumptions!$G$37) -> 23396.847 | BJ63: =-SUMPRODUCT((PMT(real_disc,Assumptions!$G$40,BH63))*(Misc_calcs!$G$29:$Z$29)) -> 13257.17432 | BL63: =SUMPRODUCT(($AG63:$AZ63)*(Misc_calcs!$G$29:$Z$29))*$BF63*$G63 -> 448.7719442 | BN63: =SUMPRODUCT($BF63*(Misc_calcs!$G$29:$Z$29))*$F63*Assumptions!$G$37*(1+Assumptions!$G$83) -> 316.7246864 | BP63: 5330.149237 | BR63: 765.4966306 | BT63: 4564.652607 | BV63: -8692.521715 | BX63: FALSE
B64: 49391765 | C64: RBD21 | D64: RBD | E64: 22kV | F64: 884.7 | G64: 35928.55571 | H64: =INDEX(Demand!$C$9:$C$428, MATCH($C64, Demand!$B$9:$B$428,0)) -> 4 | I64: 0.2 | L64: 0.01866140891 | M64: 0.02040329983 | N64: 0.02231950722 | O64: 0.02442808581 | P64: 0.02674899966 | Q64: 0.02930432684 | R64: 0.0321184861 | S64: 0.0352184881 | T64: 0.03863421387 | U64: 0.04239872335 | V64: 0.04654859736 | W64: 0.05112431668 | X64: 0.05617068213 | Y64: 0.06173728032 | Z64: 0.06787899983 | AA64: 0.07465660354 | AB64: 0.08213736302 | AC64: 0.09039576186 | AD64: 0.0995142755 | AE64: 0.1095842358 | AG64: =INDEX(Demand!E$9:E$428,MATCH($C64,Demand!$B$9:$B$428,0))*$I64*Assumptions!$G$45*Assumptions!$G$48 -> 1.08945 | AH64: =INDEX(Demand!F$9:F$428,MATCH($C64,Demand!$B$9:$B$428,0))*$I64*Assumptions!$G$45*Assumptions!$G$48 -> 1.0884 | AI64: =INDEX(Demand!G$9:G$428,MATCH($C64,Demand!$B$9:$B$428,0))*$I64*Assumptions!$G$45*Assumptions!$G$48 -> 1.0917 | AJ64: =INDEX(Demand!H$9:H$428,MATCH($C64,Demand!$B$9:$B$428,0))*$I64*Assumptions!$G$45*Assumptions!$G$48 -> 1.09515 | AK64: =INDEX(Demand!I$9:I$428,MATCH($C64,Demand!$B$9:$B$428,0))*$I64*Assumptions!$G$45*Assumptions!$G$48 -> 1.0953 | AL64: =INDEX(Demand!J$9:J$428,MATCH($C64,Demand!$B$9:$B$428,0))*$I64*Assumptions!$G$45*Assumptions!$G$48 -> 1.0968 | AM64: =INDEX(Demand!K$9:K$428,MATCH($C64,Demand!$B$9:$B$428,0))*$I64*Assumptions!$G$45*Assumptions!$G$48 -> 1.1007 | AN64: =INDEX(Demand!L$9:L$428,MATCH($C64,Demand!$B$9:$B$428,0))*$I64*Assumptions!$G$45*Assumptions!$G$48 -> 1.11165 | AO64: =INDEX(Demand!M$9:M$428,MATCH($C64,Demand!$B$9:$B$428,0))*$I64*Assumptions!$G$45*Assumptions!$G$48 -> 1.1181 | AP64: =INDEX(Demand!N$9:N$428,MATCH($C64,Demand!$B$9:$B$428,0))*$I64*Assumptions!$G$45*Assumptions!$G$48 -> 1.1181 | AQ64: =INDEX(Demand!O$9:O$428,MATCH($C64,Demand!$B$9:$B$428,0))*$I64*Assumptions!$G$45*Assumptions!$G$48 -> 1.1181 | AR64: =INDEX(Demand!P$9:P$428,MATCH($C64,Demand!$B$9:$B$428,0))*$I64*Assumptions!$G$45*Assumptions!$G$48 -> 1.1181 | AS64: =INDEX(Demand!Q$9:Q$428,MATCH($C64,Demand!$B$9:$B$428,0))*$I64*Assumptions!$G$45*Assumptions!$G$48 -> 1.1181 | AT64: =INDEX(Demand!R$9:R$428,MATCH($C64,Demand!$B$9:$B$428,0))*$I64*Assumptions!$G$45*Assumptions!$G$48 -> 1.1181 | AU64: =INDEX(Demand!S$9:S$428,MATCH($C64,Demand!$B$9:$B$428,0))*$I64*Assumptions!$G$45*Assumptions!$G$48 -> 1.1181 | AV64: =INDEX(Demand!T$9:T$428,MATCH($C64,Demand!$B$9:$B$428,0))*$I64*Assumptions!$G$45*Assumptions!$G$48 -> 1.1181 | AW64: =INDEX(Demand!U$9:U$428,MATCH($C64,Demand!$B$9:$B$428,0))*$I64*Assumptions!$G$45*Assumptions!$G$48 -> 1.1181 | AX64: =INDEX(Demand!V$9:V$428,MATCH($C64,Demand!$B$9:$B$428,0))*$I64*Assumptions!$G$45*Assumptions!$G$48 -> 1.1181 | AY64: =INDEX(Demand!W$9:W$428,MATCH($C64,Demand!$B$9:$B$428,0))*$I64*Assumptions!$G$45*Assumptions!$G$48 -> 1.1181 | AZ64: =INDEX(Demand!X$9:X$428,MATCH($C64,Demand!$B$9:$B$428,0))*$I64*Assumptions!$G$45*Assumptions!$G$48 -> 1.1181 | BB64: =SUMPRODUCT(($AG64:$AZ64)*(Misc_calcs!$G$29:$Z$29)*($L64:$AE64))*Calcs!$G64 -> 26831.23161 | BD64: =SUMPRODUCT(($L64:$AE64)*(Misc_calcs!$G$29:$Z$29))*$F64*Assumptions!$G$37*(1+Assumptions!$G$83) -> 125932.6541 | BF64: =Assumptions!$G$86*$F64 -> 0.00521291781 | BH64: =($F64*Assumptions!$G$37) -> 156326.49 | BJ64: =-SUMPRODUCT((PMT(real_disc,Assumptions!$G$40,BH64))*(Misc_calcs!$G$29:$Z$29)) -> 88578.06904 | BL64: =SUMPRODUCT(($AG64:$AZ64)*(Misc_calcs!$G$29:$Z$29))*$BF64*$G64 -> 2998.478506 | BN64: =SUMPRODUCT($BF64*(Misc_calcs!$G$29:$Z$29))*$F64*Assumptions!$G$37*(1+Assumptions!$G$83) -> 14139.44615 | BP64: 152763.8857 | BR64: 17137.92466 | BT64: 135625.961 | BV64: 47047.89199 | BX64: TRUE
B65: 49432724 | C65: MTN32 | D65: MTN | E65: 22kV | F65: 278.81 | G65: 37411.3138 | H65: =INDEX(Demand!$C$9:$C$428, MATCH($C65, Demand!$B$9:$B$428,0)) -> 4 | I65: 0.2 | L65: 0.006277577254 | M65: 0.006941893668 | N65: 0.007681445852 | O65: 0.008505046292 | P65: 0.009422560946 | Q65: 0.01044503682 | R65: 0.01158484512 | S65: 0.01285584187 | T65: 0.01427354822 | U65: 0.01585535276 | V65: 0.01762073861 | W65: 0.01959153836 | X65: 0.02179222012 | Y65: 0.02425020883 | Z65: 0.02699624676 | AA65: 0.0300647984 | AB65: 0.03349450496 | AC65: 0.03732869468 | AD65: 0.04161595589 | AE65: 0.04641078039 | AG65: =INDEX(Demand!E$9:E$428,MATCH($C65,Demand!$B$9:$B$428,0))*$I65*Assumptions!$G$45*Assumptions!$G$48 -> 1.0089 | AH65: =INDEX(Demand!F$9:F$428,MATCH($C65,Demand!$B$9:$B$428,0))*$I65*Assumptions!$G$45*Assumptions!$G$48 -> 1.01175 | AI65: =INDEX(Demand!G$9:G$428,MATCH($C65,Demand!$B$9:$B$428,0))*$I65*Assumptions!$G$45*Assumptions!$G$48 -> 1.02015 | AJ65: =INDEX(Demand!H$9:H$428,MATCH($C65,Demand!$B$9:$B$428,0))*$I65*Assumptions!$G$45*Assumptions!$G$48 -> 1.02675 | AK65: =INDEX(Demand!I$9:I$428,MATCH($C65,Demand!$B$9:$B$428,0))*$I65*Assumptions!$G$45*Assumptions!$G$48 -> 1.0269 | AL65: =INDEX(Demand!J$9:J$428,MATCH($C65,Demand!$B$9:$B$428,0))*$I65*Assumptions!$G$45*Assumptions!$G$48 -> 1.0299 | AM65: =INDEX(Demand!K$9:K$428,MATCH($C65,Demand!$B$9:$B$428,0))*$I65*Assumptions!$G$45*Assumptions!$G$48 -> 1.0398 | AN65: =INDEX(Demand!L$9:L$428,MATCH($C65,Demand!$B$9:$B$428,0))*$I65*Assumptions!$G$45*Assumptions!$G$48 -> 1.0557 | AO65: =INDEX(Demand!M$9:M$428,MATCH($C65,Demand!$B$9:$B$428,0))*$I65*Assumptions!$G$45*Assumptions!$G$48 -> 1.0647 | AP65: =INDEX(Demand!N$9:N$428,MATCH($C65,Demand!$B$9:$B$428,0))*$I65*Assumptions!$G$45*Assumptions!$G$48 -> 1.0647 | AQ65: =INDEX(Demand!O$9:O$428,MATCH($C65,Demand!$B$9:$B$428,0))*$I65*Assumptions!$G$45*Assumptions!$G$48 -> 1.0647 | AR65: =INDEX(Demand!P$9:P$428,MATCH($C65,Demand!$B$9:$B$428,0))*$I65*Assumptions!$G$45*Assumptions!$G$48 -> 1.0647 | AS65: =INDEX(Demand!Q$9:Q$428,MATCH($C65,Demand!$B$9:$B$428,0))*$I65*Assumptions!$G$45*Assumptions!$G$48 -> 1.0647 | AT65: =INDEX(Demand!R$9:R$428,MATCH($C65,Demand!$B$9:$B$428,0))*$I65*Assumptions!$G$45*Assumptions!$G$48 -> 1.0647 | AU65: =INDEX(Demand!S$9:S$428,MATCH($C65,Demand!$B$9:$B$428,0))*$I65*Assumptions!$G$45*Assumptions!$G$48 -> 1.0647 | AV65: =INDEX(Demand!T$9:T$428,MATCH($C65,Demand!$B$9:$B$428,0))*$I65*Assumptions!$G$45*Assumptions!$G$48 -> 1.0647 | AW65: =INDEX(Demand!U$9:U$428,MATCH($C65,Demand!$B$9:$B$428,0))*$I65*Assumptions!$G$45*Assumptions!$G$48 -> 1.0647 | AX65: =INDEX(Demand!V$9:V$428,MATCH($C65,Demand!$B$9:$B$428,0))*$I65*Assumptions!$G$45*Assumptions!$G$48 -> 1.0647 | AY65: =INDEX(Demand!W$9:W$428,MATCH($C65,Demand!$B$9:$B$428,0))*$I65*Assumptions!$G$45*Assumptions!$G$48 -> 1.0647 | AZ65: =INDEX(Demand!X$9:X$428,MATCH($C65,Demand!$B$9:$B$428,0))*$I65*Assumptions!$G$45*Assumptions!$G$48 -> 1.0647 | BB65: =SUMPRODUCT(($AG65:$AZ65)*(Misc_calcs!$G$29:$Z$29)*($L65:$AE65))*Calcs!$G65 -> 10251.54957 | BD65: =SUMPRODUCT(($L65:$AE65)*(Misc_calcs!$G$29:$Z$29))*$F65*Assumptions!$G$37*(1+Assumptions!$G$83) -> 15338.71501 | BF65: =Assumptions!$G$86*$F65 -> 0.001642832163 | BH65: =($F65*Assumptions!$G$37) -> 49265.727 | BJ65: =-SUMPRODUCT((PMT(real_disc,Assumptions!$G$40,BH65))*(Misc_calcs!$G$29:$Z$29)) -> 27915.05757 | BL65: =SUMPRODUCT(($AG65:$AZ65)*(Misc_calcs!$G$29:$Z$29))*$BF65*$G65 -> 929.6992777 | BN65: =SUMPRODUCT($BF65*(Misc_calcs!$G$29:$Z$29))*$F65*Assumptions!$G$37*(1+Assumptions!$G$83) -> 1404.290754 | BP65: 25590.26458 | BR65: 2333.990032 | BT65: 23256.27455 | BV65: -4658.783018 | BX65: FALSE
B66: 49436573 | C66: MTN24 | D66: MTN | E66: 22kV | F66: 272.72 | G66: 37411.3138 | H66: =INDEX(Demand!$C$9:$C$428, MATCH($C66, Demand!$B$9:$B$428,0)) -> 2 | I66: 0.3333333333 | L66: 0.001606949941 | M66: 0.001606949941 | N66: 0.001606949941 | O66: 0.001606949941 | P66: 0.001606949941 | Q66: 0.001606949941 | R66: 0.001606949941 | S66: 0.001606949941 | T66: 0.001606949941 | U66: 0.001606949941 | V66: 0.001606949941 | W66: 0.001606949941 | X66: 0.001606949941 | Y66: 0.001606949941 | Z66: 0.001606949941 | AA66: 0.001606949941 | AB66: 0.001606949941 | AC66: 0.001606949941 | AD66: 0.001606949941 | AE66: 0.001606949941 | AG66: =INDEX(Demand!E$9:E$428,MATCH($C66,Demand!$B$9:$B$428,0))*$I66*Assumptions!$G$45*Assumptions!$G$48 -> 2.0345 | AH66: =INDEX(Demand!F$9:F$428,MATCH($C66,Demand!$B$9:$B$428,0))*$I66*Assumptions!$G$45*Assumptions!$G$48 -> 2.0405 | AI66: =INDEX(Demand!G$9:G$428,MATCH($C66,Demand!$B$9:$B$428,0))*$I66*Assumptions!$G$45*Assumptions!$G$48 -> 2.053 | AJ66: =INDEX(Demand!H$9:H$428,MATCH($C66,Demand!$B$9:$B$428,0))*$I66*Assumptions!$G$45*Assumptions!$G$48 -> 2.06125 | AK66: =INDEX(Demand!I$9:I$428,MATCH($C66,Demand!$B$9:$B$428,0))*$I66*Assumptions!$G$45*Assumptions!$G$48 -> 2.062 | AL66: =INDEX(Demand!J$9:J$428,MATCH($C66,Demand!$B$9:$B$428,0))*$I66*Assumptions!$G$45*Assumptions!$G$48 -> 2.06875 | AM66: =INDEX(Demand!K$9:K$428,MATCH($C66,Demand!$B$9:$B$428,0))*$I66*Assumptions!$G$45*Assumptions!$G$48 -> 2.091 | AN66: =INDEX(Demand!L$9:L$428,MATCH($C66,Demand!$B$9:$B$428,0))*$I66*Assumptions!$G$45*Assumptions!$G$48 -> 2.1175 | AO66: =INDEX(Demand!M$9:M$428,MATCH($C66,Demand!$B$9:$B$428,0))*$I66*Assumptions!$G$45*Assumptions!$G$48 -> 2.1265 | AP66: =INDEX(Demand!N$9:N$428,MATCH($C66,Demand!$B$9:$B$428,0))*$I66*Assumptions!$G$45*Assumptions!$G$48 -> 2.1265 | AQ66: =INDEX(Demand!O$9:O$428,MATCH($C66,Demand!$B$9:$B$428,0))*$I66*Assumptions!$G$45*Assumptions!$G$48 -> 2.1265 | AR66: =INDEX(Demand!P$9:P$428,MATCH($C66,Demand!$B$9:$B$428,0))*$I66*Assumptions!$G$45*Assumptions!$G$48 -> 2.1265 | AS66: =INDEX(Demand!Q$9:Q$428,MATCH($C66,Demand!$B$9:$B$428,0))*$I66*Assumptions!$G$45*Assumptions!$G$48 -> 2.1265 | AT66: =INDEX(Demand!R$9:R$428,MATCH($C66,Demand!$B$9:$B$428,0))*$I66*Assumptions!$G$45*Assumptions!$G$48 -> 2.1265 | AU66: =INDEX(Demand!S$9:S$428,MATCH($C66,Demand!$B$9:$B$428,0))*$I66*Assumptions!$G$45*Assumptions!$G$48 -> 2.1265 | AV66: =INDEX(Demand!T$9:T$428,MATCH($C66,Demand!$B$9:$B$428,0))*$I66*Assumptions!$G$45*Assumptions!$G$48 -> 2.1265 | AW66: =INDEX(Demand!U$9:U$428,MATCH($C66,Demand!$B$9:$B$428,0))*$I66*Assumptions!$G$45*Assumptions!$G$48 -> 2.1265 | AX66: =INDEX(Demand!V$9:V$428,MATCH($C66,Demand!$B$9:$B$428,0))*$I66*Assumptions!$G$45*Assumptions!$G$48 -> 2.1265 | AY66: =INDEX(Demand!W$9:W$428,MATCH($C66,Demand!$B$9:$B$428,0))*$I66*Assumptions!$G$45*Assumptions!$G$48 -> 2.1265 | AZ66: =INDEX(Demand!X$9:X$428,MATCH($C66,Demand!$B$9:$B$428,0))*$I66*Assumptions!$G$45*Assumptions!$G$48 -> 2.1265 | BB66: =SUMPRODUCT(($AG66:$AZ66)*(Misc_calcs!$G$29:$Z$29)*($L66:$AE66))*Calcs!$G66 -> 1822.254577 | BD66: =SUMPRODUCT(($L66:$AE66)*(Misc_calcs!$G$29:$Z$29))*$F66*Assumptions!$G$37*(1+Assumptions!$G$83) -> 1343.614956 | BF66: =Assumptions!$G$86*$F66 -> 0.001606948056 | BH66: =($F66*Assumptions!$G$37) -> 48189.624 | BJ66: =-SUMPRODUCT((PMT(real_disc,Assumptions!$G$40,BH66))*(Misc_calcs!$G$29:$Z$29)) -> 27305.31365 | BL66: =SUMPRODUCT(($AG66:$AZ66)*(Misc_calcs!$G$29:$Z$29))*$BF66*$G66 -> 1822.252439 | BN66: =SUMPRODUCT($BF66*(Misc_calcs!$G$29:$Z$29))*$F66*Assumptions!$G$37*(1+Assumptions!$G$83) -> 1343.61338 | BP66: 3165.869533 | BR66: 3165.865819 | BT66: 0.003713661479 | BV66: -27305.30994 | BX66: FALSE
B67: 49453001 | C67: MTN24 | D67: MTN | E67: 22kV | F67: 99.899 | G67: 37411.3138 | H67: =INDEX(Demand!$C$9:$C$428, MATCH($C67, Demand!$B$9:$B$428,0)) -> 2 | I67: 0.3333333333 | L67: 0.001321828467 | M67: 0.001493024486 | N67: 0.00168846982 | O67: 0.001911747488 | P67: 0.002166983486 | Q67: 0.00245893039 | R67: 0.002793063957 | S67: 0.003175694771 | T67: 0.003614097282 | U67: 0.004116658971 | V67: 0.004693052795 | W67: 0.005354436568 | X67: 0.006113683505 | Y67: 0.006985648821 | Z67: 0.007987478069 | AA67: 0.009138963749 | AB67: 0.01046295781 | AC67: 0.01198584883 | AD67: 0.01373811404 | AE67: 0.01575495801 | AG67: =INDEX(Demand!E$9:E$428,MATCH($C67,Demand!$B$9:$B$428,0))*$I67*Assumptions!$G$45*Assumptions!$G$48 -> 2.0345 | AH67: =INDEX(Demand!F$9:F$428,MATCH($C67,Demand!$B$9:$B$428,0))*$I67*Assumptions!$G$45*Assumptions!$G$48 -> 2.0405 | AI67: =INDEX(Demand!G$9:G$428,MATCH($C67,Demand!$B$9:$B$428,0))*$I67*Assumptions!$G$45*Assumptions!$G$48 -> 2.053 | AJ67: =INDEX(Demand!H$9:H$428,MATCH($C67,Demand!$B$9:$B$428,0))*$I67*Assumptions!$G$45*Assumptions!$G$48 -> 2.06125 | AK67: =INDEX(Demand!I$9:I$428,MATCH($C67,Demand!$B$9:$B$428,0))*$I67*Assumptions!$G$45*Assumptions!$G$48 -> 2.062 | AL67: =INDEX(Demand!J$9:J$428,MATCH($C67,Demand!$B$9:$B$428,0))*$I67*Assumptions!$G$45*Assumptions!$G$48 -> 2.06875 | AM67: =INDEX(Demand!K$9:K$428,MATCH($C67,Demand!$B$9:$B$428,0))*$I67*Assumptions!$G$45*Assumptions!$G$48 -> 2.091 | AN67: =INDEX(Demand!L$9:L$428,MATCH($C67,Demand!$B$9:$B$428,0))*$I67*Assumptions!$G$45*Assumptions!$G$48 -> 2.1175 | AO67: =INDEX(Demand!M$9:M$428,MATCH($C67,Demand!$B$9:$B$428,0))*$I67*Assumptions!$G$45*Assumptions!$G$48 -> 2.1265 | AP67: =INDEX(Demand!N$9:N$428,MATCH($C67,Demand!$B$9:$B$428,0))*$I67*Assumptions!$G$45*Assumptions!$G$48 -> 2.1265 | AQ67: =INDEX(Demand!O$9:O$428,MATCH($C67,Demand!$B$9:$B$428,0))*$I67*Assumptions!$G$45*Assumptions!$G$48 -> 2.1265 | AR67: =INDEX(Demand!P$9:P$428,MATCH($C67,Demand!$B$9:$B$428,0))*$I67*Assumptions!$G$45*Assumptions!$G$48 -> 2.1265 | AS67: =INDEX(Demand!Q$9:Q$428,MATCH($C67,Demand!$B$9:$B$428,0))*$I67*Assumptions!$G$45*Assumptions!$G$48 -> 2.1265 | AT67: =INDEX(Demand!R$9:R$428,MATCH($C67,Demand!$B$9:$B$428,0))*$I67*Assumptions!$G$45*Assumptions!$G$48 -> 2.1265 | AU67: =INDEX(Demand!S$9:S$428,MATCH($C67,Demand!$B$9:$B$428,0))*$I67*Assumptions!$G$45*Assumptions!$G$48 -> 2.1265 | AV67: =INDEX(Demand!T$9:T$428,MATCH($C67,Demand!$B$9:$B$428,0))*$I67*Assumptions!$G$45*Assumptions!$G$48 -> 2.1265 | AW67: =INDEX(Demand!U$9:U$428,MATCH($C67,Demand!$B$9:$B$428,0))*$I67*Assumptions!$G$45*Assumptions!$G$48 -> 2.1265 | AX67: =INDEX(Demand!V$9:V$428,MATCH($C67,Demand!$B$9:$B$428,0))*$I67*Assumptions!$G$45*Assumptions!$G$48 -> 2.1265 | AY67: =INDEX(Demand!W$9:W$428,MATCH($C67,Demand!$B$9:$B$428,0))*$I67*Assumptions!$G$45*Assumptions!$G$48 -> 2.1265 | AZ67: =INDEX(Demand!X$9:X$428,MATCH($C67,Demand!$B$9:$B$428,0))*$I67*Assumptions!$G$45*Assumptions!$G$48 -> 2.1265 | BB67: =SUMPRODUCT(($AG67:$AZ67)*(Misc_calcs!$G$29:$Z$29)*($L67:$AE67))*Calcs!$G67 -> 5815.798709 | BD67: =SUMPRODUCT(($L67:$AE67)*(Misc_calcs!$G$29:$Z$29))*$F67*Assumptions!$G$37*(1+Assumptions!$G$83) -> 1556.545598 | BF67: =Assumptions!$G$86*$F67 -> 0.0005886348777 | BH67: =($F67*Assumptions!$G$37) -> 17652.1533 | BJ67: =-SUMPRODUCT((PMT(real_disc,Assumptions!$G$40,BH67))*(Misc_calcs!$G$29:$Z$29)) -> 10002.10299 | BL67: =SUMPRODUCT(($AG67:$AZ67)*(Misc_calcs!$G$29:$Z$29))*$BF67*$G67 -> 667.5021869 | BN67: =SUMPRODUCT($BF67*(Misc_calcs!$G$29:$Z$29))*$F67*Assumptions!$G$37*(1+Assumptions!$G$83) -> 180.2862583 | BP67: 7372.344307 | BR67: 847.7884452 | BT67: 6524.555862 | BV67: -3477.547133 | BX67: FALSE
B68: 49504844 | C68: RBD21 | D68: RBD | E68: 22kV | F68: 669.47 | G68: 35928.55571 | H68: =INDEX(Demand!$C$9:$C$428, MATCH($C68, Demand!$B$9:$B$428,0)) -> 4 | I68: 0.2 | L68: 0.006973358025 | M68: 0.007825394003 | N68: 0.008792607477 | O68: 0.009891309521 | P68: 0.01114018626 | Q68: 0.01256065078 | R68: 0.01417724773 | S68: 0.0160181187 | T68: 0.01811553734 | U68: 0.02050652499 | V68: 0.02323355884 | W68: 0.02634538666 | X68: 0.02989796426 | Y68: 0.03395553427 | Z68: 0.0385918676 | AA68: 0.04389169233 | AB68: 0.04995233833 | AC68: 0.0568856305 | AD68: 0.06482006826 | AE68: 0.07390333478 | AG68: =INDEX(Demand!E$9:E$428,MATCH($C68,Demand!$B$9:$B$428,0))*$I68*Assumptions!$G$45*Assumptions!$G$48 -> 1.08945 | AH68: =INDEX(Demand!F$9:F$428,MATCH($C68,Demand!$B$9:$B$428,0))*$I68*Assumptions!$G$45*Assumptions!$G$48 -> 1.0884 | AI68: =INDEX(Demand!G$9:G$428,MATCH($C68,Demand!$B$9:$B$428,0))*$I68*Assumptions!$G$45*Assumptions!$G$48 -> 1.0917 | AJ68: =INDEX(Demand!H$9:H$428,MATCH($C68,Demand!$B$9:$B$428,0))*$I68*Assumptions!$G$45*Assumptions!$G$48 -> 1.09515 | AK68: =INDEX(Demand!I$9:I$428,MATCH($C68,Demand!$B$9:$B$428,0))*$I68*Assumptions!$G$45*Assumptions!$G$48 -> 1.0953 | AL68: =INDEX(Demand!J$9:J$428,MATCH($C68,Demand!$B$9:$B$428,0))*$I68*Assumptions!$G$45*Assumptions!$G$48 -> 1.0968 | AM68: =INDEX(Demand!K$9:K$428,MATCH($C68,Demand!$B$9:$B$428,0))*$I68*Assumptions!$G$45*Assumptions!$G$48 -> 1.1007 | AN68: =INDEX(Demand!L$9:L$428,MATCH($C68,Demand!$B$9:$B$428,0))*$I68*Assumptions!$G$45*Assumptions!$G$48 -> 1.11165 | AO68: =INDEX(Demand!M$9:M$428,MATCH($C68,Demand!$B$9:$B$428,0))*$I68*Assumptions!$G$45*Assumptions!$G$48 -> 1.1181 | AP68: =INDEX(Demand!N$9:N$428,MATCH($C68,Demand!$B$9:$B$428,0))*$I68*Assumptions!$G$45*Assumptions!$G$48 -> 1.1181 | AQ68: =INDEX(Demand!O$9:O$428,MATCH($C68,Demand!$B$9:$B$428,0))*$I68*Assumptions!$G$45*Assumptions!$G$48 -> 1.1181 | AR68: =INDEX(Demand!P$9:P$428,MATCH($C68,Demand!$B$9:$B$428,0))*$I68*Assumptions!$G$45*Assumptions!$G$48 -> 1.1181 | AS68: =INDEX(Demand!Q$9:Q$428,MATCH($C68,Demand!$B$9:$B$428,0))*$I68*Assumptions!$G$45*Assumptions!$G$48 -> 1.1181 | AT68: =INDEX(Demand!R$9:R$428,MATCH($C68,Demand!$B$9:$B$428,0))*$I68*Assumptions!$G$45*Assumptions!$G$48 -> 1.1181 | AU68: =INDEX(Demand!S$9:S$428,MATCH($C68,Demand!$B$9:$B$428,0))*$I68*Assumptions!$G$45*Assumptions!$G$48 -> 1.1181 | AV68: =INDEX(Demand!T$9:T$428,MATCH($C68,Demand!$B$9:$B$428,0))*$I68*Assumptions!$G$45*Assumptions!$G$48 -> 1.1181 | AW68: =INDEX(Demand!U$9:U$428,MATCH($C68,Demand!$B$9:$B$428,0))*$I68*Assumptions!$G$45*Assumptions!$G$48 -> 1.1181 | AX68: =INDEX(Demand!V$9:V$428,MATCH($C68,Demand!$B$9:$B$428,0))*$I68*Assumptions!$G$45*Assumptions!$G$48 -> 1.1181 | AY68: =INDEX(Demand!W$9:W$428,MATCH($C68,Demand!$B$9:$B$428,0))*$I68*Assumptions!$G$45*Assumptions!$G$48 -> 1.1181 | AZ68: =INDEX(Demand!X$9:X$428,MATCH($C68,Demand!$B$9:$B$428,0))*$I68*Assumptions!$G$45*Assumptions!$G$48 -> 1.1181 | BB68: =SUMPRODUCT(($AG68:$AZ68)*(Misc_calcs!$G$29:$Z$29)*($L68:$AE68))*Calcs!$G68 -> 14347.93 | BD68: =SUMPRODUCT(($L68:$AE68)*(Misc_calcs!$G$29:$Z$29))*$F68*Assumptions!$G$37*(1+Assumptions!$G$83) -> 50897.60517 | BF68: =Assumptions!$G$86*$F68 -> 0.003944718081 | BH68: =($F68*Assumptions!$G$37) -> 118295.349 | BJ68: =-SUMPRODUCT((PMT(real_disc,Assumptions!$G$40,BH68))*(Misc_calcs!$G$29:$Z$29)) -> 67028.77798 | BL68: =SUMPRODUCT(($AG68:$AZ68)*(Misc_calcs!$G$29:$Z$29))*$BF68*$G68 -> 2269.008032 | BN68: =SUMPRODUCT($BF68*(Misc_calcs!$G$29:$Z$29))*$F68*Assumptions!$G$37*(1+Assumptions!$G$83) -> 8096.59814 | BP68: 65245.53517 | BR68: 10365.60617 | BT68: 54879.929 | BV68: -12148.84899 | BX68: FALSE
B69: 49644611 | C69: RBD21 | D69: RBD | E69: 12.7kV | F69: 146.32 | G69: 35928.55571 | H69: =INDEX(Demand!$C$9:$C$428, MATCH($C69, Demand!$B$9:$B$428,0)) -> 4 | I69: 0.2 | L69: 0.001048903308 | M69: 0.001181787423 | N69: 0.001333725049 | O69: 0.001507601574 | P69: 0.001706753775 | Q69: 0.001935041884 | R69: 0.002196933298 | S69: 0.002497599854 | T69: 0.00284303087 | U69: 0.003240164531 | V69: 0.003697040623 | W69: 0.004222978097 | X69: 0.004828781545 | Y69: 0.005526981306 | Z69: 0.006332112727 | AA69: 0.007261040995 | AB69: 0.008333339016 | AC69: 0.009571727055 | AD69: 0.01100258427 | AE69: 0.01265654399 | AG69: =INDEX(Demand!E$9:E$428,MATCH($C69,Demand!$B$9:$B$428,0))*$I69*Assumptions!$G$45*Assumptions!$G$48 -> 1.08945 | AH69: =INDEX(Demand!F$9:F$428,MATCH($C69,Demand!$B$9:$B$428,0))*$I69*Assumptions!$G$45*Assumptions!$G$48 -> 1.0884 | AI69: =INDEX(Demand!G$9:G$428,MATCH($C69,Demand!$B$9:$B$428,0))*$I69*Assumptions!$G$45*Assumptions!$G$48 -> 1.0917 | AJ69: =INDEX(Demand!H$9:H$428,MATCH($C69,Demand!$B$9:$B$428,0))*$I69*Assumptions!$G$45*Assumptions!$G$48 -> 1.09515 | AK69: =INDEX(Demand!I$9:I$428,MATCH($C69,Demand!$B$9:$B$428,0))*$I69*Assumptions!$G$45*Assumptions!$G$48 -> 1.0953 | AL69: =INDEX(Demand!J$9:J$428,MATCH($C69,Demand!$B$9:$B$428,0))*$I69*Assumptions!$G$45*Assumptions!$G$48 -> 1.0968 | AM69: =INDEX(Demand!K$9:K$428,MATCH($C69,Demand!$B$9:$B$428,0))*$I69*Assumptions!$G$45*Assumptions!$G$48 -> 1.1007 | AN69: =INDEX(Demand!L$9:L$428,MATCH($C69,Demand!$B$9:$B$428,0))*$I69*Assumptions!$G$45*Assumptions!$G$48 -> 1.11165 | AO69: =INDEX(Demand!M$9:M$428,MATCH($C69,Demand!$B$9:$B$428,0))*$I69*Assumptions!$G$45*Assumptions!$G$48 -> 1.1181 | AP69: =INDEX(Demand!N$9:N$428,MATCH($C69,Demand!$B$9:$B$428,0))*$I69*Assumptions!$G$45*Assumptions!$G$48 -> 1.1181 | AQ69: =INDEX(Demand!O$9:O$428,MATCH($C69,Demand!$B$9:$B$428,0))*$I69*Assumptions!$G$45*Assumptions!$G$48 -> 1.1181 | AR69: =INDEX(Demand!P$9:P$428,MATCH($C69,Demand!$B$9:$B$428,0))*$I69*Assumptions!$G$45*Assumptions!$G$48 -> 1.1181 | AS69: =INDEX(Demand!Q$9:Q$428,MATCH($C69,Demand!$B$9:$B$428,0))*$I69*Assumptions!$G$45*Assumptions!$G$48 -> 1.1181 | AT69: =INDEX(Demand!R$9:R$428,MATCH($C69,Demand!$B$9:$B$428,0))*$I69*Assumptions!$G$45*Assumptions!$G$48 -> 1.1181 | AU69: =INDEX(Demand!S$9:S$428,MATCH($C69,Demand!$B$9:$B$428,0))*$I69*Assumptions!$G$45*Assumptions!$G$48 -> 1.1181 | AV69: =INDEX(Demand!T$9:T$428,MATCH($C69,Demand!$B$9:$B$428,0))*$I69*Assumptions!$G$45*Assumptions!$G$48 -> 1.1181 | AW69: =INDEX(Demand!U$9:U$428,MATCH($C69,Demand!$B$9:$B$428,0))*$I69*Assumptions!$G$45*Assumptions!$G$48 -> 1.1181 | AX69: =INDEX(Demand!V$9:V$428,MATCH($C69,Demand!$B$9:$B$428,0))*$I69*Assumptions!$G$45*Assumptions!$G$48 -> 1.1181 | AY69: =INDEX(Demand!W$9:W$428,MATCH($C69,Demand!$B$9:$B$428,0))*$I69*Assumptions!$G$45*Assumptions!$G$48 -> 1.1181 | AZ69: =INDEX(Demand!X$9:X$428,MATCH($C69,Demand!$B$9:$B$428,0))*$I69*Assumptions!$G$45*Assumptions!$G$48 -> 1.1181 | BB69: =SUMPRODUCT(($AG69:$AZ69)*(Misc_calcs!$G$29:$Z$29)*($L69:$AE69))*Calcs!$G69 -> 2334.402391 | BD69: =SUMPRODUCT(($L69:$AE69)*(Misc_calcs!$G$29:$Z$29))*$F69*Assumptions!$G$37*(1+Assumptions!$G$83) -> 1809.47878 | BF69: =Assumptions!$G$86*$F69 -> 0.000862161336 | BH69: =($F69*Assumptions!$G$37) -> 25854.744 | BJ69: =-SUMPRODUCT((PMT(real_disc,Assumptions!$G$40,BH69))*(Misc_calcs!$G$29:$Z$29)) -> 14649.87347 | BL69: =SUMPRODUCT(($AG69:$AZ69)*(Misc_calcs!$G$29:$Z$29))*$BF69*$G69 -> 495.9165537 | BN69: =SUMPRODUCT($BF69*(Misc_calcs!$G$29:$Z$29))*$F69*Assumptions!$G$37*(1+Assumptions!$G$83) -> 386.765501 | BP69: 4143.881172 | BR69: 882.6820547 | BT69: 3261.199117 | BV69: -11388.67436 | BX69: FALSE
B70: 49644742 | C70: RBD21 | D70: RBD | E70: 22kV | F70: 284.93 | G70: 35928.55571 | H70: =INDEX(Demand!$C$9:$C$428, MATCH($C70, Demand!$B$9:$B$428,0)) -> 4 | I70: 0.2 | L70: 0.005694221833 | M70: 0.006327930873 | N70: 0.007037440365 | O70: 0.007832143941 | P70: 0.008722624507 | Q70: 0.009720806851 | R70: 0.01084013001 | S70: 0.01209574199 | T70: 0.01350471967 | U70: 0.01508631727 | V70: 0.01686224707 | W70: 0.01885699656 | X70: 0.02109818676 | Y70: 0.02361697722 | Z70: 0.02644852357 | AA70: 0.02963249468 | AB70: 0.03321365713 | AC70: 0.03724253576 | AD70: 0.04177616033 | AE70: 0.04687890947 | AG70: =INDEX(Demand!E$9:E$428,MATCH($C70,Demand!$B$9:$B$428,0))*$I70*Assumptions!$G$45*Assumptions!$G$48 -> 1.08945 | AH70: =INDEX(Demand!F$9:F$428,MATCH($C70,Demand!$B$9:$B$428,0))*$I70*Assumptions!$G$45*Assumptions!$G$48 -> 1.0884 | AI70: =INDEX(Demand!G$9:G$428,MATCH($C70,Demand!$B$9:$B$428,0))*$I70*Assumptions!$G$45*Assumptions!$G$48 -> 1.0917 | AJ70: =INDEX(Demand!H$9:H$428,MATCH($C70,Demand!$B$9:$B$428,0))*$I70*Assumptions!$G$45*Assumptions!$G$48 -> 1.09515 | AK70: =INDEX(Demand!I$9:I$428,MATCH($C70,Demand!$B$9:$B$428,0))*$I70*Assumptions!$G$45*Assumptions!$G$48 -> 1.0953 | AL70: =INDEX(Demand!J$9:J$428,MATCH($C70,Demand!$B$9:$B$428,0))*$I70*Assumptions!$G$45*Assumptions!$G$48 -> 1.0968 | AM70: =INDEX(Demand!K$9:K$428,MATCH($C70,Demand!$B$9:$B$428,0))*$I70*Assumptions!$G$45*Assumptions!$G$48 -> 1.1007 | AN70: =INDEX(Demand!L$9:L$428,MATCH($C70,Demand!$B$9:$B$428,0))*$I70*Assumptions!$G$45*Assumptions!$G$48 -> 1.11165 | AO70: =INDEX(Demand!M$9:M$428,MATCH($C70,Demand!$B$9:$B$428,0))*$I70*Assumptions!$G$45*Assumptions!$G$48 -> 1.1181 | AP70: =INDEX(Demand!N$9:N$428,MATCH($C70,Demand!$B$9:$B$428,0))*$I70*Assumptions!$G$45*Assumptions!$G$48 -> 1.1181 | AQ70: =INDEX(Demand!O$9:O$428,MATCH($C70,Demand!$B$9:$B$428,0))*$I70*Assumptions!$G$45*Assumptions!$G$48 -> 1.1181 | AR70: =INDEX(Demand!P$9:P$428,MATCH($C70,Demand!$B$9:$B$428,0))*$I70*Assumptions!$G$45*Assumptions!$G$48 -> 1.1181 | AS70: =INDEX(Demand!Q$9:Q$428,MATCH($C70,Demand!$B$9:$B$428,0))*$I70*Assumptions!$G$45*Assumptions!$G$48 -> 1.1181 | AT70: =INDEX(Demand!R$9:R$428,MATCH($C70,Demand!$B$9:$B$428,0))*$I70*Assumptions!$G$45*Assumptions!$G$48 -> 1.1181 | AU70: =INDEX(Demand!S$9:S$428,MATCH($C70,Demand!$B$9:$B$428,0))*$I70*Assumptions!$G$45*Assumptions!$G$48 -> 1.1181 | AV70: =INDEX(Demand!T$9:T$428,MATCH($C70,Demand!$B$9:$B$428,0))*$I70*Assumptions!$G$45*Assumptions!$G$48 -> 1.1181 | AW70: =INDEX(Demand!U$9:U$428,MATCH($C70,Demand!$B$9:$B$428,0))*$I70*Assumptions!$G$45*Assumptions!$G$48 -> 1.1181 | AX70: =INDEX(Demand!V$9:V$428,MATCH($C70,Demand!$B$9:$B$428,0))*$I70*Assumptions!$G$45*Assumptions!$G$48 -> 1.1181 | AY70: =INDEX(Demand!W$9:W$428,MATCH($C70,Demand!$B$9:$B$428,0))*$I70*Assumptions!$G$45*Assumptions!$G$48 -> 1.1181 | AZ70: =INDEX(Demand!X$9:X$428,MATCH($C70,Demand!$B$9:$B$428,0))*$I70*Assumptions!$G$45*Assumptions!$G$48 -> 1.1181 | BB70: =SUMPRODUCT(($AG70:$AZ70)*(Misc_calcs!$G$29:$Z$29)*($L70:$AE70))*Calcs!$G70 -> 10049.66823 | BD70: =SUMPRODUCT(($L70:$AE70)*(Misc_calcs!$G$29:$Z$29))*$F70*Assumptions!$G$37*(1+Assumptions!$G$83) -> 15180.27741 | BF70: =Assumptions!$G$86*$F70 -> 0.001678893039 | BH70: =($F70*Assumptions!$G$37) -> 50347.131 | BJ70: =-SUMPRODUCT((PMT(real_disc,Assumptions!$G$40,BH70))*(Misc_calcs!$G$29:$Z$29)) -> 28527.80515 | BL70: =SUMPRODUCT(($AG70:$AZ70)*(Misc_calcs!$G$29:$Z$29))*$BF70*$G70 -> 965.7019112 | BN70: =SUMPRODUCT($BF70*(Misc_calcs!$G$29:$Z$29))*$F70*Assumptions!$G$37*(1+Assumptions!$G$83) -> 1466.61695 | BP70: 25229.94565 | BR70: 2432.318861 | BT70: 22797.62678 | BV70: -5730.178361 | BX70: FALSE
B71: 49644748 | C71: RBD21 | D71: RBD | E71: 22kV | F71: 118.91 | G71: 35928.55571 | H71: =INDEX(Demand!$C$9:$C$428, MATCH($C71, Demand!$B$9:$B$428,0)) -> 4 | I71: 0.2 | L71: 0.002376372857 | M71: 0.002640839013 | N71: 0.002936939016 | O71: 0.003268593114 | P71: 0.003640217879 | Q71: 0.004056789887 | R71: 0.004523917664 | S71: 0.00504792293 | T71: 0.005635932391 | U71: 0.006295981423 | V71: 0.007037131223 | W71: 0.007869601167 | X71: 0.008804918357 | Y71: 0.009856086621 | Z71: 0.01103777748 | AA71: 0.01236654597 | AB71: 0.01386107454 | AC71: 0.01554244877 | AD71: 0.0174344689 | AE71: 0.01956400212 | AG71: =INDEX(Demand!E$9:E$428,MATCH($C71,Demand!$B$9:$B$428,0))*$I71*Assumptions!$G$45*Assumptions!$G$48 -> 1.08945 | AH71: =INDEX(Demand!F$9:F$428,MATCH($C71,Demand!$B$9:$B$428,0))*$I71*Assumptions!$G$45*Assumptions!$G$48 -> 1.0884 | AI71: =INDEX(Demand!G$9:G$428,MATCH($C71,Demand!$B$9:$B$428,0))*$I71*Assumptions!$G$45*Assumptions!$G$48 -> 1.0917 | AJ71: =INDEX(Demand!H$9:H$428,MATCH($C71,Demand!$B$9:$B$428,0))*$I71*Assumptions!$G$45*Assumptions!$G$48 -> 1.09515 | AK71: =INDEX(Demand!I$9:I$428,MATCH($C71,Demand!$B$9:$B$428,0))*$I71*Assumptions!$G$45*Assumptions!$G$48 -> 1.0953 | AL71: =INDEX(Demand!J$9:J$428,MATCH($C71,Demand!$B$9:$B$428,0))*$I71*Assumptions!$G$45*Assumptions!$G$48 -> 1.0968 | AM71: =INDEX(Demand!K$9:K$428,MATCH($C71,Demand!$B$9:$B$428,0))*$I71*Assumptions!$G$45*Assumptions!$G$48 -> 1.1007 | AN71: =INDEX(Demand!L$9:L$428,MATCH($C71,Demand!$B$9:$B$428,0))*$I71*Assumptions!$G$45*Assumptions!$G$48 -> 1.11165 | AO71: =INDEX(Demand!M$9:M$428,MATCH($C71,Demand!$B$9:$B$428,0))*$I71*Assumptions!$G$45*Assumptions!$G$48 -> 1.1181 | AP71: =INDEX(Demand!N$9:N$428,MATCH($C71,Demand!$B$9:$B$428,0))*$I71*Assumptions!$G$45*Assumptions!$G$48 -> 1.1181 | AQ71: =INDEX(Demand!O$9:O$428,MATCH($C71,Demand!$B$9:$B$428,0))*$I71*Assumptions!$G$45*Assumptions!$G$48 -> 1.1181 | AR71: =INDEX(Demand!P$9:P$428,MATCH($C71,Demand!$B$9:$B$428,0))*$I71*Assumptions!$G$45*Assumptions!$G$48 -> 1.1181 | AS71: =INDEX(Demand!Q$9:Q$428,MATCH($C71,Demand!$B$9:$B$428,0))*$I71*Assumptions!$G$45*Assumptions!$G$48 -> 1.1181 | AT71: =INDEX(Demand!R$9:R$428,MATCH($C71,Demand!$B$9:$B$428,0))*$I71*Assumptions!$G$45*Assumptions!$G$48 -> 1.1181 | AU71: =INDEX(Demand!S$9:S$428,MATCH($C71,Demand!$B$9:$B$428,0))*$I71*Assumptions!$G$45*Assumptions!$G$48 -> 1.1181 | AV71: =INDEX(Demand!T$9:T$428,MATCH($C71,Demand!$B$9:$B$428,0))*$I71*Assumptions!$G$45*Assumptions!$G$48 -> 1.1181 | AW71: =INDEX(Demand!U$9:U$428,MATCH($C71,Demand!$B$9:$B$428,0))*$I71*Assumptions!$G$45*Assumptions!$G$48 -> 1.1181 | AX71: =INDEX(Demand!V$9:V$428,MATCH($C71,Demand!$B$9:$B$428,0))*$I71*Assumptions!$G$45*Assumptions!$G$48 -> 1.1181 | AY71: =INDEX(Demand!W$9:W$428,MATCH($C71,Demand!$B$9:$B$428,0))*$I71*Assumptions!$G$45*Assumptions!$G$48 -> 1.1181 | AZ71: =INDEX(Demand!X$9:X$428,MATCH($C71,Demand!$B$9:$B$428,0))*$I71*Assumptions!$G$45*Assumptions!$G$48 -> 1.1181 | BB71: =SUMPRODUCT(($AG71:$AZ71)*(Misc_calcs!$G$29:$Z$29)*($L71:$AE71))*Calcs!$G71 -> 4194.033795 | BD71: =SUMPRODUCT(($L71:$AE71)*(Misc_calcs!$G$29:$Z$29))*$F71*Assumptions!$G$37*(1+Assumptions!$G$83) -> 2643.870081 | BF71: =Assumptions!$G$86*$F71 -> 0.000700653393 | BH71: =($F71*Assumptions!$G$37) -> 21011.397 | BJ71: =-SUMPRODUCT((PMT(real_disc,Assumptions!$G$40,BH71))*(Misc_calcs!$G$29:$Z$29)) -> 11905.52525 | BL71: =SUMPRODUCT(($AG71:$AZ71)*(Misc_calcs!$G$29:$Z$29))*$BF71*$G71 -> 403.0169314 | BN71: =SUMPRODUCT($BF71*(Misc_calcs!$G$29:$Z$29))*$F71*Assumptions!$G$37*(1+Assumptions!$G$83) -> 255.4330575 | BP71: 6837.903877 | BR71: 658.4499889 | BT71: 6179.453888 | BV71: -5726.071364 | BX71: FALSE
